Workbook

Sheet Tally Count Data
B1: Tally Count Data Tool
B2: provided by adaptivebms.com | E2: Issue 2.04
B4: Paste your text data here (then press the green button): | C4: Counts | D4: Calculations
B5: Abe | C5: =IF(B5=B4,C4,COUNTIF(B5:INDEX($B$5:$B$5000,MATCH(B5,$B$5:$B$5000)),B5)) -> 2 | D5: =1+IF(B5=B4,D4) -> 1
B6: Abe | C6: =IF(B6=B5,C5,COUNTIF(B6:INDEX($B$5:$B$5000,MATCH(B6,$B$5:$B$5000)),B6)) -> 2 | D6: =1+IF(B6=B5,D5) -> 2
B7: Adam | C7: =IF(B7=B6,C6,COUNTIF(B7:INDEX($B$5:$B$5000,MATCH(B7,$B$5:$B$5000)),B7)) -> 2 | D7: 1
B8: Adam | C8: =IF(B8=B7,C7,COUNTIF(B8:INDEX($B$5:$B$5000,MATCH(B8,$B$5:$B$5000)),B8)) -> 2 | D8: 2
B9: Addy | C9: =IF(B9=B8,C8,COUNTIF(B9:INDEX($B$5:$B$5000,MATCH(B9,$B$5:$B$5000)),B9)) -> 2 | D9: =1+IF(B9=B8,D8) -> 1
B10: Addy | C10: =IF(B10=B9,C9,COUNTIF(B10:INDEX($B$5:$B$5000,MATCH(B10,$B$5:$B$5000)),B10)) -> 2 | D10: 2
B11: Albert | C11: =IF(B11=B10,C10,COUNTIF(B11:INDEX($B$5:$B$5000,MATCH(B11,$B$5:$B$5000)),B11)) -> 6 | D11: 1
B12: Albert | C12: =IF(B12=B11,C11,COUNTIF(B12:INDEX($B$5:$B$5000,MATCH(B12,$B$5:$B$5000)),B12)) -> 6 | D12: 2
B13: Albert | C13: =IF(B13=B12,C12,COUNTIF(B13:INDEX($B$5:$B$5000,MATCH(B13,$B$5:$B$5000)),B13)) -> 6 | D13: 3
B14: Albert | C14: =IF(B14=B13,C13,COUNTIF(B14:INDEX($B$5:$B$5000,MATCH(B14,$B$5:$B$5000)),B14)) -> 6 | D14: 4
B15: Albert | C15: =IF(B15=B14,C14,COUNTIF(B15:INDEX($B$5:$B$5000,MATCH(B15,$B$5:$B$5000)),B15)) -> 6 | D15: 5
B16: Albert | C16: =IF(B16=B15,C15,COUNTIF(B16:INDEX($B$5:$B$5000,MATCH(B16,$B$5:$B$5000)),B16)) -> 6 | D16: 6
B17: Allen | C17: =IF(B17=B16,C16,COUNTIF(B17:INDEX($B$5:$B$5000,MATCH(B17,$B$5:$B$5000)),B17)) -> 2 | D17: 1
B18: Allen | C18: =IF(B18=B17,C17,COUNTIF(B18:INDEX($B$5:$B$5000,MATCH(B18,$B$5:$B$5000)),B18)) -> 2 | D18: 2
B19: Allison | C19: =IF(B19=B18,C18,COUNTIF(B19:INDEX($B$5:$B$5000,MATCH(B19,$B$5:$B$5000)),B19)) -> 2 | D19: 1
B20: Allison | C20: =IF(B20=B19,C19,COUNTIF(B20:INDEX($B$5:$B$5000,MATCH(B20,$B$5:$B$5000)),B20)) -> 2 | D20: 2
B21: Ann | C21: =IF(B21=B20,C20,COUNTIF(B21:INDEX($B$5:$B$5000,MATCH(B21,$B$5:$B$5000)),B21)) -> 2 | D21: =1+IF(B21=B20,D20) -> 1
B22: Ann | C22: =IF(B22=B21,C21,COUNTIF(B22:INDEX($B$5:$B$5000,MATCH(B22,$B$5:$B$5000)),B22)) -> 2 | D22: 2
B23: Berta | C23: =IF(B23=B22,C22,COUNTIF(B23:INDEX($B$5:$B$5000,MATCH(B23,$B$5:$B$5000)),B23)) -> 8 | D23: 1
B24: Berta | C24: =IF(B24=B23,C23,COUNTIF(B24:INDEX($B$5:$B$5000,MATCH(B24,$B$5:$B$5000)),B24)) -> 8 | D24: 2
B25: Berta | C25: =IF(B25=B24,C24,COUNTIF(B25:INDEX($B$5:$B$5000,MATCH(B25,$B$5:$B$5000)),B25)) -> 8 | D25: 3
B26: Berta | C26: =IF(B26=B25,C25,COUNTIF(B26:INDEX($B$5:$B$5000,MATCH(B26,$B$5:$B$5000)),B26)) -> 8 | D26: 4
B27: Berta | C27: =IF(B27=B26,C26,COUNTIF(B27:INDEX($B$5:$B$5000,MATCH(B27,$B$5:$B$5000)),B27)) -> 8 | D27: 5
B28: Berta | C28: =IF(B28=B27,C27,COUNTIF(B28:INDEX($B$5:$B$5000,MATCH(B28,$B$5:$B$5000)),B28)) -> 8 | D28: 6
B29: Berta | C29: =IF(B29=B28,C28,COUNTIF(B29:INDEX($B$5:$B$5000,MATCH(B29,$B$5:$B$5000)),B29)) -> 8 | D29: 7
B30: Berta | C30: =IF(B30=B29,C29,COUNTIF(B30:INDEX($B$5:$B$5000,MATCH(B30,$B$5:$B$5000)),B30)) -> 8 | D30: 8
B31: Bill | C31: =IF(B31=B30,C30,COUNTIF(B31:INDEX($B$5:$B$5000,MATCH(B31,$B$5:$B$5000)),B31)) -> 4 | D31: 1
B32: Bill | C32: =IF(B32=B31,C31,COUNTIF(B32:INDEX($B$5:$B$5000,MATCH(B32,$B$5:$B$5000)),B32)) -> 4 | D32: 2
B33: Bill | C33: =IF(B33=B32,C32,COUNTIF(B33:INDEX($B$5:$B$5000,MATCH(B33,$B$5:$B$5000)),B33)) -> 4 | D33: 3
B34: Bill | C34: =IF(B34=B33,C33,COUNTIF(B34:INDEX($B$5:$B$5000,MATCH(B34,$B$5:$B$5000)),B34)) -> 4 | D34: 4
B35: Brander | C35: =IF(B35=B34,C34,COUNTIF(B35:INDEX($B$5:$B$5000,MATCH(B35,$B$5:$B$5000)),B35)) -> 2 | D35: 1
B36: Brander | C36: =IF(B36=B35,C35,COUNTIF(B36:INDEX($B$5:$B$5000,MATCH(B36,$B$5:$B$5000)),B36)) -> 2 | D36: 2
B37: Bronson | C37: =IF(B37=B36,C36,COUNTIF(B37:INDEX($B$5:$B$5000,MATCH(B37,$B$5:$B$5000)),B37)) -> 4 | D37: 1
B38: Bronson | C38: =IF(B38=B37,C37,COUNTIF(B38:INDEX($B$5:$B$5000,MATCH(B38,$B$5:$B$5000)),B38)) -> 4 | D38: 2
B39: Bronson | C39: =IF(B39=B38,C38,COUNTIF(B39:INDEX($B$5:$B$5000,MATCH(B39,$B$5:$B$5000)),B39)) -> 4 | D39: 3
B40: Bronson | C40: =IF(B40=B39,C39,COUNTIF(B40:INDEX($B$5:$B$5000,MATCH(B40,$B$5:$B$5000)),B40)) -> 4 | D40: 4
B41: Buck | C41: =IF(B41=B40,C40,COUNTIF(B41:INDEX($B$5:$B$5000,MATCH(B41,$B$5:$B$5000)),B41)) -> 4 | D41: 1
B42: Buck | C42: =IF(B42=B41,C41,COUNTIF(B42:INDEX($B$5:$B$5000,MATCH(B42,$B$5:$B$5000)),B42)) -> 4 | D42: 2
B43: Buck | C43: =IF(B43=B42,C42,COUNTIF(B43:INDEX($B$5:$B$5000,MATCH(B43,$B$5:$B$5000)),B43)) -> 4 | D43: 3
B44: Buck | C44: =IF(B44=B43,C43,COUNTIF(B44:INDEX($B$5:$B$5000,MATCH(B44,$B$5:$B$5000)),B44)) -> 4 | D44: 4
B45: Charlie | C45: =IF(B45=B44,C44,COUNTIF(B45:INDEX($B$5:$B$5000,MATCH(B45,$B$5:$B$5000)),B45)) -> 8 | D45: 1
B46: Charlie | C46: =IF(B46=B45,C45,COUNTIF(B46:INDEX($B$5:$B$5000,MATCH(B46,$B$5:$B$5000)),B46)) -> 8 | D46: 2
B47: Charlie | C47: =IF(B47=B46,C46,COUNTIF(B47:INDEX($B$5:$B$5000,MATCH(B47,$B$5:$B$5000)),B47)) -> 8 | D47: 3
B48: Charlie | C48: =IF(B48=B47,C47,COUNTIF(B48:INDEX($B$5:$B$5000,MATCH(B48,$B$5:$B$5000)),B48)) -> 8 | D48: 4
B49: Charlie | C49: =IF(B49=B48,C48,COUNTIF(B49:INDEX($B$5:$B$5000,MATCH(B49,$B$5:$B$5000)),B49)) -> 8 | D49: 5
B50: Charlie | C50: =IF(B50=B49,C49,COUNTIF(B50:INDEX($B$5:$B$5000,MATCH(B50,$B$5:$B$5000)),B50)) -> 8 | D50: 6
B51: Charlie | C51: =IF(B51=B50,C50,COUNTIF(B51:INDEX($B$5:$B$5000,MATCH(B51,$B$5:$B$5000)),B51)) -> 8 | D51: 7
B52: Charlie | C52: =IF(B52=B51,C51,COUNTIF(B52:INDEX($B$5:$B$5000,MATCH(B52,$B$5:$B$5000)),B52)) -> 8 | D52: 8
B53: Chet | C53: =IF(B53=B52,C52,COUNTIF(B53:INDEX($B$5:$B$5000,MATCH(B53,$B$5:$B$5000)),B53)) -> 2 | D53: 1
B54: Chet | C54: =IF(B54=B53,C53,COUNTIF(B54:INDEX($B$5:$B$5000,MATCH(B54,$B$5:$B$5000)),B54)) -> 2 | D54: 2
B55: Christopher | C55: =IF(B55=B54,C54,COUNTIF(B55:INDEX($B$5:$B$5000,MATCH(B55,$B$5:$B$5000)),B55)) -> 8 | D55: 1
B56: Christopher | C56: =IF(B56=B55,C55,COUNTIF(B56:INDEX($B$5:$B$5000,MATCH(B56,$B$5:$B$5000)),B56)) -> 8 | D56: 2
B57: Christopher | C57: =IF(B57=B56,C56,COUNTIF(B57:INDEX($B$5:$B$5000,MATCH(B57,$B$5:$B$5000)),B57)) -> 8 | D57: 3
B58: Christopher | C58: =IF(B58=B57,C57,COUNTIF(B58:INDEX($B$5:$B$5000,MATCH(B58,$B$5:$B$5000)),B58)) -> 8 | D58: 4
B59: Christopher | C59: =IF(B59=B58,C58,COUNTIF(B59:INDEX($B$5:$B$5000,MATCH(B59,$B$5:$B$5000)),B59)) -> 8 | D59: 5
B60: Christopher | C60: =IF(B60=B59,C59,COUNTIF(B60:INDEX($B$5:$B$5000,MATCH(B60,$B$5:$B$5000)),B60)) -> 8 | D60: 6
B61: Christopher | C61: =IF(B61=B60,C60,COUNTIF(B61:INDEX($B$5:$B$5000,MATCH(B61,$B$5:$B$5000)),B61)) -> 8 | D61: 7
B62: Christopher | C62: =IF(B62=B61,C61,COUNTIF(B62:INDEX($B$5:$B$5000,MATCH(B62,$B$5:$B$5000)),B62)) -> 8 | D62: 8
B63: Clara | C63: =IF(B63=B62,C62,COUNTIF(B63:INDEX($B$5:$B$5000,MATCH(B63,$B$5:$B$5000)),B63)) -> 2 | D63: 1
B64: Clara | C64: =IF(B64=B63,C63,COUNTIF(B64:INDEX($B$5:$B$5000,MATCH(B64,$B$5:$B$5000)),B64)) -> 2 | D64: 2
B65: Clyde | C65: =IF(B65=B64,C64,COUNTIF(B65:INDEX($B$5:$B$5000,MATCH(B65,$B$5:$B$5000)),B65)) -> 4 | D65: 1
B66: Clyde | C66: =IF(B66=B65,C65,COUNTIF(B66:INDEX($B$5:$B$5000,MATCH(B66,$B$5:$B$5000)),B66)) -> 4 | D66: 2
B67: Clyde | C67: =IF(B67=B66,C66,COUNTIF(B67:INDEX($B$5:$B$5000,MATCH(B67,$B$5:$B$5000)),B67)) -> 4 | D67: 3
B68: Clyde | C68: =IF(B68=B67,C67,COUNTIF(B68:INDEX($B$5:$B$5000,MATCH(B68,$B$5:$B$5000)),B68)) -> 4 | D68: 4
B69: Curt | C69: =IF(B69=B68,C68,COUNTIF(B69:INDEX($B$5:$B$5000,MATCH(B69,$B$5:$B$5000)),B69)) -> 4 | D69: 1
B70: Curt | C70: =IF(B70=B69,C69,COUNTIF(B70:INDEX($B$5:$B$5000,MATCH(B70,$B$5:$B$5000)),B70)) -> 4 | D70: 2
B71: Curt | C71: =IF(B71=B70,C70,COUNTIF(B71:INDEX($B$5:$B$5000,MATCH(B71,$B$5:$B$5000)),B71)) -> 4 | D71: 3
B72: Curt | C72: =IF(B72=B71,C71,COUNTIF(B72:INDEX($B$5:$B$5000,MATCH(B72,$B$5:$B$5000)),B72)) -> 4 | D72: 4
B73: Davy | C73: =IF(B73=B72,C72,COUNTIF(B73:INDEX($B$5:$B$5000,MATCH(B73,$B$5:$B$5000)),B73)) -> 10 | D73: 1
B74: Davy | C74: =IF(B74=B73,C73,COUNTIF(B74:INDEX($B$5:$B$5000,MATCH(B74,$B$5:$B$5000)),B74)) -> 10 | D74: 2
B75: Davy | C75: =IF(B75=B74,C74,COUNTIF(B75:INDEX($B$5:$B$5000,MATCH(B75,$B$5:$B$5000)),B75)) -> 10 | D75: 3
B76: Davy | C76: =IF(B76=B75,C75,COUNTIF(B76:INDEX($B$5:$B$5000,MATCH(B76,$B$5:$B$5000)),B76)) -> 10 | D76: 4
B77: Davy | C77: =IF(B77=B76,C76,COUNTIF(B77:INDEX($B$5:$B$5000,MATCH(B77,$B$5:$B$5000)),B77)) -> 10 | D77: 5
B78: Davy | C78: =IF(B78=B77,C77,COUNTIF(B78:INDEX($B$5:$B$5000,MATCH(B78,$B$5:$B$5000)),B78)) -> 10 | D78: 6
B79: Davy | C79: =IF(B79=B78,C78,COUNTIF(B79:INDEX($B$5:$B$5000,MATCH(B79,$B$5:$B$5000)),B79)) -> 10 | D79: 7
B80: Davy | C80: =IF(B80=B79,C79,COUNTIF(B80:INDEX($B$5:$B$5000,MATCH(B80,$B$5:$B$5000)),B80)) -> 10 | D80: 8
B81: Davy | C81: =IF(B81=B80,C80,COUNTIF(B81:INDEX($B$5:$B$5000,MATCH(B81,$B$5:$B$5000)),B81)) -> 10 | D81: 9
B82: Davy | C82: =IF(B82=B81,C81,COUNTIF(B82:INDEX($B$5:$B$5000,MATCH(B82,$B$5:$B$5000)),B82)) -> 10 | D82: 10
B83: Denise | C83: =IF(B83=B82,C82,COUNTIF(B83:INDEX($B$5:$B$5000,MATCH(B83,$B$5:$B$5000)),B83)) -> 2 | D83: 1
B84: Denise | C84: =IF(B84=B83,C83,COUNTIF(B84:INDEX($B$5:$B$5000,MATCH(B84,$B$5:$B$5000)),B84)) -> 2 | D84: 2
B85: Diane | C85: =IF(B85=B84,C84,COUNTIF(B85:INDEX($B$5:$B$5000,MATCH(B85,$B$5:$B$5000)),B85)) -> 2 | D85: =1+IF(B85=B84,D84) -> 1
B86: Diane | C86: =IF(B86=B85,C85,COUNTIF(B86:INDEX($B$5:$B$5000,MATCH(B86,$B$5:$B$5000)),B86)) -> 2 | D86: 2
B87: Dieter | C87: =IF(B87=B86,C86,COUNTIF(B87:INDEX($B$5:$B$5000,MATCH(B87,$B$5:$B$5000)),B87)) -> 2 | D87: 1
B88: Dieter | C88: =IF(B88=B87,C87,COUNTIF(B88:INDEX($B$5:$B$5000,MATCH(B88,$B$5:$B$5000)),B88)) -> 2 | D88: 2
B89: Doc | C89: =IF(B89=B88,C88,COUNTIF(B89:INDEX($B$5:$B$5000,MATCH(B89,$B$5:$B$5000)),B89)) -> 4 | D89: 1
B90: Doc | C90: =IF(B90=B89,C89,COUNTIF(B90:INDEX($B$5:$B$5000,MATCH(B90,$B$5:$B$5000)),B90)) -> 4 | D90: 2
B91: Doc | C91: =IF(B91=B90,C90,COUNTIF(B91:INDEX($B$5:$B$5000,MATCH(B91,$B$5:$B$5000)),B91)) -> 4 | D91: 3
B92: Doc | C92: =IF(B92=B91,C91,COUNTIF(B92:INDEX($B$5:$B$5000,MATCH(B92,$B$5:$B$5000)),B92)) -> 4 | D92: 4
B93: Eddie | C93: =IF(B93=B92,C92,COUNTIF(B93:INDEX($B$5:$B$5000,MATCH(B93,$B$5:$B$5000)),B93)) -> 2 | D93: 1
B94: Eddie | C94: =IF(B94=B93,C93,COUNTIF(B94:INDEX($B$5:$B$5000,MATCH(B94,$B$5:$B$5000)),B94)) -> 2 | D94: 2
B95: Edith | C95: =IF(B95=B94,C94,COUNTIF(B95:INDEX($B$5:$B$5000,MATCH(B95,$B$5:$B$5000)),B95)) -> 2 | D95: 1
B96: Edith | C96: =IF(B96=B95,C95,COUNTIF(B96:INDEX($B$5:$B$5000,MATCH(B96,$B$5:$B$5000)),B96)) -> 2 | D96: 2
B97: Eugene | C97: =IF(B97=B96,C96,COUNTIF(B97:INDEX($B$5:$B$5000,MATCH(B97,$B$5:$B$5000)),B97)) -> 2 | D97: 1
B98: Eugene | C98: =IF(B98=B97,C97,COUNTIF(B98:INDEX($B$5:$B$5000,MATCH(B98,$B$5:$B$5000)),B98)) -> 2 | D98: 2
B99: Evelyn | C99: =IF(B99=B98,C98,COUNTIF(B99:INDEX($B$5:$B$5000,MATCH(B99,$B$5:$B$5000)),B99)) -> 2 | D99: 1
B100: Evelyn | C100: =IF(B100=B99,C99,COUNTIF(B100:INDEX($B$5:$B$5000,MATCH(B100,$B$5:$B$5000)),B100)) -> 2 | D100: 2
B101: Fannie | C101: =IF(B101=B100,C100,COUNTIF(B101:INDEX($B$5:$B$5000,MATCH(B101,$B$5:$B$5000)),B101)) -> 2 | D101: 1
B102: Fannie | C102: =IF(B102=B101,C101,COUNTIF(B102:INDEX($B$5:$B$5000,MATCH(B102,$B$5:$B$5000)),B102)) -> 2 | D102: 2
B103: Floyd | C103: =IF(B103=B102,C102,COUNTIF(B103:INDEX($B$5:$B$5000,MATCH(B103,$B$5:$B$5000)),B103)) -> 2 | D103: 1
B104: Floyd | C104: =IF(B104=B103,C103,COUNTIF(B104:INDEX($B$5:$B$5000,MATCH(B104,$B$5:$B$5000)),B104)) -> 2 | D104: 2
B105: Fran | C105: =IF(B105=B104,C104,COUNTIF(B105:INDEX($B$5:$B$5000,MATCH(B105,$B$5:$B$5000)),B105)) -> 2 | D105: 1
B106: Fran | C106: =IF(B106=B105,C105,COUNTIF(B106:INDEX($B$5:$B$5000,MATCH(B106,$B$5:$B$5000)),B106)) -> 2 | D106: 2
B107: Francis | C107: =IF(B107=B106,C106,COUNTIF(B107:INDEX($B$5:$B$5000,MATCH(B107,$B$5:$B$5000)),B107)) -> 4 | D107: 1
B108: Francis | C108: =IF(B108=B107,C107,COUNTIF(B108:INDEX($B$5:$B$5000,MATCH(B108,$B$5:$B$5000)),B108)) -> 4 | D108: 2
B109: Francis | C109: =IF(B109=B108,C108,COUNTIF(B109:INDEX($B$5:$B$5000,MATCH(B109,$B$5:$B$5000)),B109)) -> 4 | D109: 3
B110: Francis | C110: =IF(B110=B109,C109,COUNTIF(B110:INDEX($B$5:$B$5000,MATCH(B110,$B$5:$B$5000)),B110)) -> 4 | D110: 4
B111: Friday | C111: =IF(B111=B110,C110,COUNTIF(B111:INDEX($B$5:$B$5000,MATCH(B111,$B$5:$B$5000)),B111)) -> 2 | D111: 1
B112: Friday | C112: =IF(B112=B111,C111,COUNTIF(B112:INDEX($B$5:$B$5000,MATCH(B112,$B$5:$B$5000)),B112)) -> 2 | D112: 2
B113: Frieda | C113: =IF(B113=B112,C112,COUNTIF(B113:INDEX($B$5:$B$5000,MATCH(B113,$B$5:$B$5000)),B113)) -> 2 | D113: 1
B114: Frieda | C114: =IF(B114=B113,C113,COUNTIF(B114:INDEX($B$5:$B$5000,MATCH(B114,$B$5:$B$5000)),B114)) -> 2 | D114: 2
B115: Gary | C115: =IF(B115=B114,C114,COUNTIF(B115:INDEX($B$5:$B$5000,MATCH(B115,$B$5:$B$5000)),B115)) -> 10 | D115: 1
B116: Gary | C116: =IF(B116=B115,C115,COUNTIF(B116:INDEX($B$5:$B$5000,MATCH(B116,$B$5:$B$5000)),B116)) -> 10 | D116: 2
B117: Gary | C117: =IF(B117=B116,C116,COUNTIF(B117:INDEX($B$5:$B$5000,MATCH(B117,$B$5:$B$5000)),B117)) -> 10 | D117: 3
B118: Gary | C118: =IF(B118=B117,C117,COUNTIF(B118:INDEX($B$5:$B$5000,MATCH(B118,$B$5:$B$5000)),B118)) -> 10 | D118: 4
B119: Gary | C119: =IF(B119=B118,C118,COUNTIF(B119:INDEX($B$5:$B$5000,MATCH(B119,$B$5:$B$5000)),B119)) -> 10 | D119: 5
B120: Gary | C120: =IF(B120=B119,C119,COUNTIF(B120:INDEX($B$5:$B$5000,MATCH(B120,$B$5:$B$5000)),B120)) -> 10 | D120: 6
B121: Gary | C121: =IF(B121=B120,C120,COUNTIF(B121:INDEX($B$5:$B$5000,MATCH(B121,$B$5:$B$5000)),B121)) -> 10 | D121: 7
B122: Gary | C122: =IF(B122=B121,C121,COUNTIF(B122:INDEX($B$5:$B$5000,MATCH(B122,$B$5:$B$5000)),B122)) -> 10 | D122: 8
B123: Gary | C123: =IF(B123=B122,C122,COUNTIF(B123:INDEX($B$5:$B$5000,MATCH(B123,$B$5:$B$5000)),B123)) -> 10 | D123: 9
B124: Gary | C124: =IF(B124=B123,C123,COUNTIF(B124:INDEX($B$5:$B$5000,MATCH(B124,$B$5:$B$5000)),B124)) -> 10 | D124: 10
B125: Geraldine | C125: =IF(B125=B124,C124,COUNTIF(B125:INDEX($B$5:$B$5000,MATCH(B125,$B$5:$B$5000)),B125)) -> 2 | D125: 1
B126: Geraldine | C126: =IF(B126=B125,C125,COUNTIF(B126:INDEX($B$5:$B$5000,MATCH(B126,$B$5:$B$5000)),B126)) -> 2 | D126: 2
B127: Gert | C127: =IF(B127=B126,C126,COUNTIF(B127:INDEX($B$5:$B$5000,MATCH(B127,$B$5:$B$5000)),B127)) -> 2 | D127: 1
B128: Gert | C128: =IF(B128=B127,C127,COUNTIF(B128:INDEX($B$5:$B$5000,MATCH(B128,$B$5:$B$5000)),B128)) -> 2 | D128: 2
B129: Graham | C129: =IF(B129=B128,C128,COUNTIF(B129:INDEX($B$5:$B$5000,MATCH(B129,$B$5:$B$5000)),B129)) -> 2 | D129: 1
B130: Graham | C130: =IF(B130=B129,C129,COUNTIF(B130:INDEX($B$5:$B$5000,MATCH(B130,$B$5:$B$5000)),B130)) -> 2 | D130: 2
B131: Grizz | C131: =IF(B131=B130,C130,COUNTIF(B131:INDEX($B$5:$B$5000,MATCH(B131,$B$5:$B$5000)),B131)) -> 2 | D131: 1
B132: Grizz | C132: =IF(B132=B131,C131,COUNTIF(B132:INDEX($B$5:$B$5000,MATCH(B132,$B$5:$B$5000)),B132)) -> 2 | D132: 2
B133: Herman | C133: =IF(B133=B132,C132,COUNTIF(B133:INDEX($B$5:$B$5000,MATCH(B133,$B$5:$B$5000)),B133)) -> 2 | D133: 1
B134: Herman | C134: =IF(B134=B133,C133,COUNTIF(B134:INDEX($B$5:$B$5000,MATCH(B134,$B$5:$B$5000)),B134)) -> 2 | D134: 2
B135: Ian | C135: =IF(B135=B134,C134,COUNTIF(B135:INDEX($B$5:$B$5000,MATCH(B135,$B$5:$B$5000)),B135)) -> 4 | D135: 1
B136: Ian | C136: =IF(B136=B135,C135,COUNTIF(B136:INDEX($B$5:$B$5000,MATCH(B136,$B$5:$B$5000)),B136)) -> 4 | D136: 2
B137: Ian | C137: =IF(B137=B136,C136,COUNTIF(B137:INDEX($B$5:$B$5000,MATCH(B137,$B$5:$B$5000)),B137)) -> 4 | D137: 3
B138: Ian | C138: =IF(B138=B137,C137,COUNTIF(B138:INDEX($B$5:$B$5000,MATCH(B138,$B$5:$B$5000)),B138)) -> 4 | D138: 4
B139: Ichabod | C139: =IF(B139=B138,C138,COUNTIF(B139:INDEX($B$5:$B$5000,MATCH(B139,$B$5:$B$5000)),B139)) -> 2 | D139: 1
B140: Ichabod | C140: =IF(B140=B139,C139,COUNTIF(B140:INDEX($B$5:$B$5000,MATCH(B140,$B$5:$B$5000)),B140)) -> 2 | D140: 2
B141: Jeffrey | C141: =IF(B141=B140,C140,COUNTIF(B141:INDEX($B$5:$B$5000,MATCH(B141,$B$5:$B$5000)),B141)) -> 2 | D141: 1
B142: Jeffrey | C142: =IF(B142=B141,C141,COUNTIF(B142:INDEX($B$5:$B$5000,MATCH(B142,$B$5:$B$5000)),B142)) -> 2 | D142: 2
B143: Jim | C143: =IF(B143=B142,C142,COUNTIF(B143:INDEX($B$5:$B$5000,MATCH(B143,$B$5:$B$5000)),B143)) -> 4 | D143: 1
B144: Jim | C144: =IF(B144=B143,C143,COUNTIF(B144:INDEX($B$5:$B$5000,MATCH(B144,$B$5:$B$5000)),B144)) -> 4 | D144: 2
B145: Jim | C145: =IF(B145=B144,C144,COUNTIF(B145:INDEX($B$5:$B$5000,MATCH(B145,$B$5:$B$5000)),B145)) -> 4 | D145: 3
B146: Jim | C146: =IF(B146=B145,C145,COUNTIF(B146:INDEX($B$5:$B$5000,MATCH(B146,$B$5:$B$5000)),B146)) -> 4 | D146: 4
B147: John | C147: =IF(B147=B146,C146,COUNTIF(B147:INDEX($B$5:$B$5000,MATCH(B147,$B$5:$B$5000)),B147)) -> 49 | D147: 1
B148: John | C148: =IF(B148=B147,C147,COUNTIF(B148:INDEX($B$5:$B$5000,MATCH(B148,$B$5:$B$5000)),B148)) -> 49 | D148: 2
B149: John | C149: =IF(B149=B148,C148,COUNTIF(B149:INDEX($B$5:$B$5000,MATCH(B149,$B$5:$B$5000)),B149)) -> 49 | D149: =1+IF(B149=B148,D148) -> 3
B150: John | C150: =IF(B150=B149,C149,COUNTIF(B150:INDEX($B$5:$B$5000,MATCH(B150,$B$5:$B$5000)),B150)) -> 49 | D150: 4
B151: John | C151: =IF(B151=B150,C150,COUNTIF(B151:INDEX($B$5:$B$5000,MATCH(B151,$B$5:$B$5000)),B151)) -> 49 | D151: 5
B152: John | C152: =IF(B152=B151,C151,COUNTIF(B152:INDEX($B$5:$B$5000,MATCH(B152,$B$5:$B$5000)),B152)) -> 49 | D152: 6
B153: John | C153: =IF(B153=B152,C152,COUNTIF(B153:INDEX($B$5:$B$5000,MATCH(B153,$B$5:$B$5000)),B153)) -> 49 | D153: 7
B154: John | C154: =IF(B154=B153,C153,COUNTIF(B154:INDEX($B$5:$B$5000,MATCH(B154,$B$5:$B$5000)),B154)) -> 49 | D154: 8
B155: John | C155: =IF(B155=B154,C154,COUNTIF(B155:INDEX($B$5:$B$5000,MATCH(B155,$B$5:$B$5000)),B155)) -> 49 | D155: 9
B156: John | C156: =IF(B156=B155,C155,COUNTIF(B156:INDEX($B$5:$B$5000,MATCH(B156,$B$5:$B$5000)),B156)) -> 49 | D156: 10
B157: John | C157: =IF(B157=B156,C156,COUNTIF(B157:INDEX($B$5:$B$5000,MATCH(B157,$B$5:$B$5000)),B157)) -> 49 | D157: 11
B158: John | C158: =IF(B158=B157,C157,COUNTIF(B158:INDEX($B$5:$B$5000,MATCH(B158,$B$5:$B$5000)),B158)) -> 49 | D158: 12
B159: John | C159: =IF(B159=B158,C158,COUNTIF(B159:INDEX($B$5:$B$5000,MATCH(B159,$B$5:$B$5000)),B159)) -> 49 | D159: 13
B160: John | C160: =IF(B160=B159,C159,COUNTIF(B160:INDEX($B$5:$B$5000,MATCH(B160,$B$5:$B$5000)),B160)) -> 49 | D160: 14
B161: John | C161: =IF(B161=B160,C160,COUNTIF(B161:INDEX($B$5:$B$5000,MATCH(B161,$B$5:$B$5000)),B161)) -> 49 | D161: 15
B162: John | C162: =IF(B162=B161,C161,COUNTIF(B162:INDEX($B$5:$B$5000,MATCH(B162,$B$5:$B$5000)),B162)) -> 49 | D162: 16
B163: John | C163: =IF(B163=B162,C162,COUNTIF(B163:INDEX($B$5:$B$5000,MATCH(B163,$B$5:$B$5000)),B163)) -> 49 | D163: 17
B164: John | C164: =IF(B164=B163,C163,COUNTIF(B164:INDEX($B$5:$B$5000,MATCH(B164,$B$5:$B$5000)),B164)) -> 49 | D164: 18
B165: John | C165: =IF(B165=B164,C164,COUNTIF(B165:INDEX($B$5:$B$5000,MATCH(B165,$B$5:$B$5000)),B165)) -> 49 | D165: 19
B166: John | C166: =IF(B166=B165,C165,COUNTIF(B166:INDEX($B$5:$B$5000,MATCH(B166,$B$5:$B$5000)),B166)) -> 49 | D166: 20
B167: John | C167: =IF(B167=B166,C166,COUNTIF(B167:INDEX($B$5:$B$5000,MATCH(B167,$B$5:$B$5000)),B167)) -> 49 | D167: 21
B168: John | C168: =IF(B168=B167,C167,COUNTIF(B168:INDEX($B$5:$B$5000,MATCH(B168,$B$5:$B$5000)),B168)) -> 49 | D168: 22
B169: John | C169: =IF(B169=B168,C168,COUNTIF(B169:INDEX($B$5:$B$5000,MATCH(B169,$B$5:$B$5000)),B169)) -> 49 | D169: 23
B170: John | C170: =IF(B170=B169,C169,COUNTIF(B170:INDEX($B$5:$B$5000,MATCH(B170,$B$5:$B$5000)),B170)) -> 49 | D170: 24
B171: John | C171: =IF(B171=B170,C170,COUNTIF(B171:INDEX($B$5:$B$5000,MATCH(B171,$B$5:$B$5000)),B171)) -> 49 | D171: 25
B172: John | C172: =IF(B172=B171,C171,COUNTIF(B172:INDEX($B$5:$B$5000,MATCH(B172,$B$5:$B$5000)),B172)) -> 49 | D172: 26
B173: John | C173: =IF(B173=B172,C172,COUNTIF(B173:INDEX($B$5:$B$5000,MATCH(B173,$B$5:$B$5000)),B173)) -> 49 | D173: 27
B174: John | C174: =IF(B174=B173,C173,COUNTIF(B174:INDEX($B$5:$B$5000,MATCH(B174,$B$5:$B$5000)),B174)) -> 49 | D174: 28
B175: John | C175: =IF(B175=B174,C174,COUNTIF(B175:INDEX($B$5:$B$5000,MATCH(B175,$B$5:$B$5000)),B175)) -> 49 | D175: 29
B176: John | C176: =IF(B176=B175,C175,COUNTIF(B176:INDEX($B$5:$B$5000,MATCH(B176,$B$5:$B$5000)),B176)) -> 49 | D176: 30
B177: John | C177: =IF(B177=B176,C176,COUNTIF(B177:INDEX($B$5:$B$5000,MATCH(B177,$B$5:$B$5000)),B177)) -> 49 | D177: 31
B178: John | C178: =IF(B178=B177,C177,COUNTIF(B178:INDEX($B$5:$B$5000,MATCH(B178,$B$5:$B$5000)),B178)) -> 49 | D178: 32
B179: John | C179: =IF(B179=B178,C178,COUNTIF(B179:INDEX($B$5:$B$5000,MATCH(B179,$B$5:$B$5000)),B179)) -> 49 | D179: 33
B180: John | C180: =IF(B180=B179,C179,COUNTIF(B180:INDEX($B$5:$B$5000,MATCH(B180,$B$5:$B$5000)),B180)) -> 49 | D180: 34
B181: John | C181: =IF(B181=B180,C180,COUNTIF(B181:INDEX($B$5:$B$5000,MATCH(B181,$B$5:$B$5000)),B181)) -> 49 | D181: 35
B182: John | C182: =IF(B182=B181,C181,COUNTIF(B182:INDEX($B$5:$B$5000,MATCH(B182,$B$5:$B$5000)),B182)) -> 49 | D182: 36
B183: John | C183: =IF(B183=B182,C182,COUNTIF(B183:INDEX($B$5:$B$5000,MATCH(B183,$B$5:$B$5000)),B183)) -> 49 | D183: 37
B184: John | C184: =IF(B184=B183,C183,COUNTIF(B184:INDEX($B$5:$B$5000,MATCH(B184,$B$5:$B$5000)),B184)) -> 49 | D184: 38
B185: John | C185: =IF(B185=B184,C184,COUNTIF(B185:INDEX($B$5:$B$5000,MATCH(B185,$B$5:$B$5000)),B185)) -> 49 | D185: 39
B186: John | C186: =IF(B186=B185,C185,COUNTIF(B186:INDEX($B$5:$B$5000,MATCH(B186,$B$5:$B$5000)),B186)) -> 49 | D186: 40
B187: John | C187: =IF(B187=B186,C186,COUNTIF(B187:INDEX($B$5:$B$5000,MATCH(B187,$B$5:$B$5000)),B187)) -> 49 | D187: 41
B188: John | C188: =IF(B188=B187,C187,COUNTIF(B188:INDEX($B$5:$B$5000,MATCH(B188,$B$5:$B$5000)),B188)) -> 49 | D188: 42
B189: John | C189: =IF(B189=B188,C188,COUNTIF(B189:INDEX($B$5:$B$5000,MATCH(B189,$B$5:$B$5000)),B189)) -> 49 | D189: 43
B190: John | C190: =IF(B190=B189,C189,COUNTIF(B190:INDEX($B$5:$B$5000,MATCH(B190,$B$5:$B$5000)),B190)) -> 49 | D190: 44
B191: John | C191: =IF(B191=B190,C190,COUNTIF(B191:INDEX($B$5:$B$5000,MATCH(B191,$B$5:$B$5000)),B191)) -> 49 | D191: 45
B192: John | C192: =IF(B192=B191,C191,COUNTIF(B192:INDEX($B$5:$B$5000,MATCH(B192,$B$5:$B$5000)),B192)) -> 49 | D192: 46
B193: John | C193: =IF(B193=B192,C192,COUNTIF(B193:INDEX($B$5:$B$5000,MATCH(B193,$B$5:$B$5000)),B193)) -> 49 | D193: 47
B194: John | C194: =IF(B194=B193,C193,COUNTIF(B194:INDEX($B$5:$B$5000,MATCH(B194,$B$5:$B$5000)),B194)) -> 49 | D194: 48
B195: John | C195: =IF(B195=B194,C194,COUNTIF(B195:INDEX($B$5:$B$5000,MATCH(B195,$B$5:$B$5000)),B195)) -> 49 | D195: 49
B196: Ken | C196: =IF(B196=B195,C195,COUNTIF(B196:INDEX($B$5:$B$5000,MATCH(B196,$B$5:$B$5000)),B196)) -> 3 | D196: 1
B197: Ken | C197: =IF(B197=B196,C196,COUNTIF(B197:INDEX($B$5:$B$5000,MATCH(B197,$B$5:$B$5000)),B197)) -> 3 | D197: 2
B198: Ken | C198: =IF(B198=B197,C197,COUNTIF(B198:INDEX($B$5:$B$5000,MATCH(B198,$B$5:$B$5000)),B198)) -> 3 | D198: 3
B199: Kermit | C199: =IF(B199=B198,C198,COUNTIF(B199:INDEX($B$5:$B$5000,MATCH(B199,$B$5:$B$5000)),B199)) -> 2 | D199: 1
B200: Kermit | C200: =IF(B200=B199,C199,COUNTIF(B200:INDEX($B$5:$B$5000,MATCH(B200,$B$5:$B$5000)),B200)) -> 2 | D200: 2
B201: Kim | C201: =IF(B201=B200,C200,COUNTIF(B201:INDEX($B$5:$B$5000,MATCH(B201,$B$5:$B$5000)),B201)) -> 2 | D201: 1
... 4799 more rows

Sheet Notes
B1: Tally Count
B2: Use this tool to count the occurrence of each unique text value in the data column.
B4: Tally Count Uses
B5: Use to count fault code data to establish the occurrence of failure
B6: Paste data in to the Pareto chart tool to produce graph
B7: Pareto chart available from: http://tools.adaptivebms.com/
B9: Instructions
B10: 1) Paste text data into green column
B11: 2) Click the green button
B12: 3) Copy Tally data by highlighting required cells and pressing Ctl+C
B13: 4) Paste data into you favorite Pareto tool

Sheet TermsOfUse
B1: Terms of Use
B2: Copyright (C) 2011 Adaptive Business Management Systems Ltd. All rights reserved.
B3: This 'TermsOfUse' worksheet may not be modified, removed, or deleted.
B5: Limited Use Policy
B6: You may make archival copies and customize this template (the "Software") for personal use or for your company use. The customized template (with your specific personal or company information) may be used and shared within your company, but this template or any document including or derived from this template may NOT be sold, distributed, or placed on a public server such as the internet.
B7: No Warranties
B8: THE SOFTWARE AND ANY RELATED DOCUMENTATION ARE PROVIDED TO YOU "AS IS." Adaptive Business Management Systems MAKES NO WARRANTIES, EXPRESS OR IMPLIED, AND EXPRESSLY DISCLAIMS ALL REPRESENTATIONS, ORAL OR WRITTEN, TERMS, CONDITIONS, AND WARRANTIES, INCLUDING BUT NOT LIMITED TO, IMPLIED WARRANTIES OF MERCHANTABILITY, FITNESS FOR A PARTICULAR PURPOSE, AND NONINFRINGEMENT. WITHOUT LIMITING THE ABOVE YOU ACCEPT THAT THE SOFTWARE MAY NOT MEET YOUR REQUIREMENTS, OPERATE ERROR FREE, OR IDENTIFY ANY OR ALL ERRORS OR PROBLEMS, OR DO SO ACCURATELY. This Agreement does not affect any statutory rights you may have as a consumer.
B10: Limitation of Liability
B11: IN NO EVENT SHALL Adaptive Business Management Systems BE LIABLE TO YOU, FOR ANY DAMAGES, INCLUDING ANY LOST PROFITS, LOST SAVINGS, OR ANY OTHER DIRECT, INDIRECT, SPECIAL, INCIDENTAL, OR CONSEQUENTIAL DAMAGES ARISING FROM THE USE OR THE INABILITY TO USE THE SOFTWARE (EVEN IF WE OR AN AUTHORIZED DEALER OR DISTRIBUTOR HAS BEEN ADVISED OF THE POSSIBILITY OF THESE DAMAGES), OR ANY MISTAKES AND NEGLIGENCE IN DEVELOPING THIS SOFTWARE, OR FOR ANY CLAIM BY ANY OTHER PARTY. THE ORGANIZATION, BUSINESS, OR PERSON USING THIS SOFTWARE BEARS ALL RISKS AND RESPONSIBILITY FOR THE QUALITY AND PERFORMANCE OF THIS SOFTWARE.
B12: Some states do not allow the limitation or exclusion of liability for incidental or consequential damages,so the above limitation may not apply to you.

Sheet DV-IDENTITY-0 (hidden)
A1: =IF('Tally Count Data'!1:1,"AAAAAG//bwA=",0) -> 0 | B1: =AND('Tally Count Data'!A1,"AAAAAG//bwE=") ->  | C1: =AND('Tally Count Data'!B1,"AAAAAG//bwI=") ->  | D1: =AND('Tally Count Data'!C1,"AAAAAG//bwM=") ->  | E1: =AND('Tally Count Data'!D1,"AAAAAG//bwQ=") ->  | F1: =AND('Tally Count Data'!E1,"AAAAAG//bwU=") ->  | G1: =AND('Tally Count Data'!F1,"AAAAAG//bwY=") ->  | H1: =AND('Tally Count Data'!G1,"AAAAAG//bwc=") ->  | I1: =AND('Tally Count Data'!H1,"AAAAAG//bwg=") ->  | J1: =AND('Tally Count Data'!I1,"AAAAAG//bwk=") ->  | K1: =AND('Tally Count Data'!J1,"AAAAAG//bwo=") ->  | L1: =AND('Tally Count Data'!K1,"AAAAAG//bws=") ->  | M1: =AND('Tally Count Data'!L1,"AAAAAG//bww=") ->  | N1: =AND('Tally Count Data'!M1,"AAAAAG//bw0=") ->  | O1: =AND('Tally Count Data'!N1,"AAAAAG//bw4=") ->  | P1: =AND('Tally Count Data'!O1,"AAAAAG//bw8=") ->  | Q1: =AND('Tally Count Data'!P1,"AAAAAG//bxA=") ->  | R1: =AND('Tally Count Data'!Q1,"AAAAAG//bxE=") ->  | S1: =AND('Tally Count Data'!R1,"AAAAAG//bxI=") ->  | T1: =AND('Tally Count Data'!S1,"AAAAAG//bxM=") ->  | U1: =AND('Tally Count Data'!T1,"AAAAAG//bxQ=") ->  | V1: =AND('Tally Count Data'!U1,"AAAAAG//bxU=") ->  | W1: =AND('Tally Count Data'!V1,"AAAAAG//bxY=") ->  | X1: =AND('Tally Count Data'!W1,"AAAAAG//bxc=") ->  | Y1: =AND('Tally Count Data'!X1,"AAAAAG//bxg=") ->  | Z1: =AND('Tally Count Data'!Y1,"AAAAAG//bxk=") ->  | AA1: =AND('Tally Count Data'!Z1,"AAAAAG//bxo=") ->  | AB1: =IF('Tally Count Data'!2:2,"AAAAAG//bxs=",0) -> 0 | AC1: =AND('Tally Count Data'!A2,"AAAAAG//bxw=") ->  | AD1: =AND('Tally Count Data'!B2,"AAAAAG//bx0=") ->  | AE1: =AND('Tally Count Data'!C2,"AAAAAG//bx4=") ->  | AF1: =AND('Tally Count Data'!D2,"AAAAAG//bx8=") ->  | AG1: =AND('Tally Count Data'!E2,"AAAAAG//byA=") ->  | AH1: =AND('Tally Count Data'!F2,"AAAAAG//byE=") ->  | AI1: =AND('Tally Count Data'!G2,"AAAAAG//byI=") ->  | AJ1: =AND('Tally Count Data'!H2,"AAAAAG//byM=") ->  | AK1: =AND('Tally Count Data'!I2,"AAAAAG//byQ=") ->  | AL1: =AND('Tally Count Data'!J2,"AAAAAG//byU=") ->  | AM1: =AND('Tally Count Data'!K2,"AAAAAG//byY=") ->  | AN1: =AND('Tally Count Data'!L2,"AAAAAG//byc=") ->  | AO1: =AND('Tally Count Data'!M2,"AAAAAG//byg=") ->  | AP1: =AND('Tally Count Data'!N2,"AAAAAG//byk=") ->  | AQ1: =AND('Tally Count Data'!O2,"AAAAAG//byo=") ->  | AR1: =AND('Tally Count Data'!P2,"AAAAAG//bys=") ->  | AS1: =AND('Tally Count Data'!Q2,"AAAAAG//byw=") ->  | AT1: =AND('Tally Count Data'!R2,"AAAAAG//by0=") ->  | AU1: =AND('Tally Count Data'!S2,"AAAAAG//by4=") ->  | AV1: =AND('Tally Count Data'!T2,"AAAAAG//by8=") ->  | AW1: =AND('Tally Count Data'!U2,"AAAAAG//bzA=") ->  | AX1: =AND('Tally Count Data'!V2,"AAAAAG//bzE=") ->  | AY1: =AND('Tally Count Data'!W2,"AAAAAG//bzI=") ->  | AZ1: =AND('Tally Count Data'!X2,"AAAAAG//bzM=") ->  | BA1: =AND('Tally Count Data'!Y2,"AAAAAG//bzQ=") ->  | BB1: =AND('Tally Count Data'!Z2,"AAAAAG//bzU=") ->  | BC1: =IF('Tally Count Data'!3:3,"AAAAAG//bzY=",0) -> 0 | BD1: =AND('Tally Count Data'!A3,"AAAAAG//bzc=") ->  | BE1: =AND('Tally Count Data'!B3,"AAAAAG//bzg=") ->  | BF1: =AND('Tally Count Data'!C3,"AAAAAG//bzk=") ->  | BG1: =AND('Tally Count Data'!D3,"AAAAAG//bzo=") ->  | BH1: =AND('Tally Count Data'!E3,"AAAAAG//bzs=") ->  | BI1: =AND('Tally Count Data'!F3,"AAAAAG//bzw=") ->  | BJ1: =AND('Tally Count Data'!G3,"AAAAAG//bz0=") ->  | BK1: =AND('Tally Count Data'!H3,"AAAAAG//bz4=") ->  | BL1: =AND('Tally Count Data'!I3,"AAAAAG//bz8=") ->  | BM1: =AND('Tally Count Data'!J3,"AAAAAG//b0A=") ->  | BN1: =AND('Tally Count Data'!K3,"AAAAAG//b0E=") ->  | BO1: =AND('Tally Count Data'!L3,"AAAAAG//b0I=") ->  | BP1: =AND('Tally Count Data'!M3,"AAAAAG//b0M=") ->  | BQ1: =AND('Tally Count Data'!N3,"AAAAAG//b0Q=") ->  | BR1: =AND('Tally Count Data'!O3,"AAAAAG//b0U=") ->  | BS1: =AND('Tally Count Data'!P3,"AAAAAG//b0Y=") ->  | BT1: =AND('Tally Count Data'!Q3,"AAAAAG//b0c=") ->  | BU1: =AND('Tally Count Data'!R3,"AAAAAG//b0g=") ->  | BV1: =AND('Tally Count Data'!S3,"AAAAAG//b0k=") ->  | BW1: =AND('Tally Count Data'!T3,"AAAAAG//b0o=") ->  | BX1: =AND('Tally Count Data'!U3,"AAAAAG//b0s=") ->  | BY1: =AND('Tally Count Data'!V3,"AAAAAG//b0w=") ->  | BZ1: =AND('Tally Count Data'!W3,"AAAAAG//b00=") ->  | CA1: =AND('Tally Count Data'!X3,"AAAAAG//b04=") ->  | CB1: =AND('Tally Count Data'!Y3,"AAAAAG//b08=") ->  | CC1: =AND('Tally Count Data'!Z3,"AAAAAG//b1A=") ->  | CD1: =IF('Tally Count Data'!4:4,"AAAAAG//b1E=",0) -> 0 | CE1: =AND('Tally Count Data'!A4,"AAAAAG//b1I=") ->  | CF1: =AND('Tally Count Data'!B4,"AAAAAG//b1M=") ->  | CG1: =AND('Tally Count Data'!C4,"AAAAAG//b1Q=") ->  | CH1: =AND('Tally Count Data'!D4,"AAAAAG//b1U=") ->  | CI1: =AND('Tally Count Data'!E4,"AAAAAG//b1Y=") ->  | CJ1: =AND('Tally Count Data'!F4,"AAAAAG//b1c=") ->  | CK1: =AND('Tally Count Data'!G4,"AAAAAG//b1g=") ->  | CL1: =AND('Tally Count Data'!H4,"AAAAAG//b1k=") ->  | CM1: =AND('Tally Count Data'!I4,"AAAAAG//b1o=") ->  | CN1: =AND('Tally Count Data'!J4,"AAAAAG//b1s=") ->  | CO1: =AND('Tally Count Data'!K4,"AAAAAG//b1w=") ->  | CP1: =AND('Tally Count Data'!L4,"AAAAAG//b10=") ->  | CQ1: =AND('Tally Count Data'!M4,"AAAAAG//b14=") ->  | CR1: =AND('Tally Count Data'!N4,"AAAAAG//b18=") ->  | CS1: =AND('Tally Count Data'!O4,"AAAAAG//b2A=") ->  | CT1: =AND('Tally Count Data'!P4,"AAAAAG//b2E=") ->  | CU1: =AND('Tally Count Data'!Q4,"AAAAAG//b2I=") ->  | CV1: =AND('Tally Count Data'!R4,"AAAAAG//b2M=") ->  | CW1: =AND('Tally Count Data'!S4,"AAAAAG//b2Q=") ->  | CX1: =AND('Tally Count Data'!T4,"AAAAAG//b2U=") ->  | CY1: =AND('Tally Count Data'!U4,"AAAAAG//b2Y=") ->  | CZ1: =AND('Tally Count Data'!V4,"AAAAAG//b2c=") ->  | DA1: =AND('Tally Count Data'!W4,"AAAAAG//b2g=") ->  | DB1: =AND('Tally Count Data'!X4,"AAAAAG//b2k=") ->  | DC1: =AND('Tally Count Data'!Y4,"AAAAAG//b2o=") ->  | DD1: =AND('Tally Count Data'!Z4,"AAAAAG//b2s=") ->  | DE1: =IF('Tally Count Data'!5:5,"AAAAAG//b2w=",0) -> 0 | DF1: =AND('Tally Count Data'!A5,"AAAAAG//b20=") ->  | DG1: =AND('Tally Count Data'!B5,"AAAAAG//b24=") ->  | DH1: =AND('Tally Count Data'!C5,"AAAAAG//b28=") ->  | DI1: =AND('Tally Count Data'!D5,"AAAAAG//b3A=") ->  | DJ1: =AND('Tally Count Data'!E5,"AAAAAG//b3E=") ->  | DK1: =AND('Tally Count Data'!F5,"AAAAAG//b3I=") ->  | DL1: =AND('Tally Count Data'!G5,"AAAAAG//b3M=") ->  | DM1: =AND('Tally Count Data'!H5,"AAAAAG//b3Q=") ->  | DN1: =AND('Tally Count Data'!I5,"AAAAAG//b3U=") ->  | DO1: =AND('Tally Count Data'!J5,"AAAAAG//b3Y=") ->  | DP1: =AND('Tally Count Data'!K5,"AAAAAG//b3c=") ->  | DQ1: =AND('Tally Count Data'!L5,"AAAAAG//b3g=") ->  | DR1: =AND('Tally Count Data'!M5,"AAAAAG//b3k=") ->  | DS1: =AND('Tally Count Data'!N5,"AAAAAG//b3o=") ->  | DT1: =AND('Tally Count Data'!O5,"AAAAAG//b3s=") ->  | DU1: =AND('Tally Count Data'!P5,"AAAAAG//b3w=") ->  | DV1: =AND('Tally Count Data'!Q5,"AAAAAG//b30=") ->  | DW1: =AND('Tally Count Data'!R5,"AAAAAG//b34=") ->  | DX1: =AND('Tally Count Data'!S5,"AAAAAG//b38=") ->  | DY1: =AND('Tally Count Data'!T5,"AAAAAG//b4A=") ->  | DZ1: =AND('Tally Count Data'!U5,"AAAAAG//b4E=") ->  | EA1: =AND('Tally Count Data'!V5,"AAAAAG//b4I=") ->  | EB1: =AND('Tally Count Data'!W5,"AAAAAG//b4M=") ->  | EC1: =AND('Tally Count Data'!X5,"AAAAAG//b4Q=") ->  | ED1: =AND('Tally Count Data'!Y5,"AAAAAG//b4U=") ->  | EE1: =AND('Tally Count Data'!Z5,"AAAAAG//b4Y=") ->  | EF1: =IF('Tally Count Data'!6:6,"AAAAAG//b4c=",0) -> 0 | EG1: =AND('Tally Count Data'!A6,"AAAAAG//b4g=") ->  | EH1: =AND('Tally Count Data'!B6,"AAAAAG//b4k=") ->  | EI1: =AND('Tally Count Data'!C6,"AAAAAG//b4o=") ->  | EJ1: =AND('Tally Count Data'!D6,"AAAAAG//b4s=") ->  | EK1: =AND('Tally Count Data'!E6,"AAAAAG//b4w=") ->  | EL1: =AND('Tally Count Data'!F6,"AAAAAG//b40=") ->  | EM1: =AND('Tally Count Data'!G6,"AAAAAG//b44=") ->  | EN1: =AND('Tally Count Data'!H6,"AAAAAG//b48=") ->  | EO1: =AND('Tally Count Data'!I6,"AAAAAG//b5A=") ->  | EP1: =AND('Tally Count Data'!J6,"AAAAAG//b5E=") ->  | EQ1: =AND('Tally Count Data'!K6,"AAAAAG//b5I=") ->  | ER1: =AND('Tally Count Data'!L6,"AAAAAG//b5M=") ->  | ES1: =AND('Tally Count Data'!M6,"AAAAAG//b5Q=") ->  | ET1: =AND('Tally Count Data'!N6,"AAAAAG//b5U=") ->  | EU1: =AND('Tally Count Data'!O6,"AAAAAG//b5Y=") ->  | EV1: =AND('Tally Count Data'!P6,"AAAAAG//b5c=") ->  | EW1: =AND('Tally Count Data'!Q6,"AAAAAG//b5g=") ->  | EX1: =AND('Tally Count Data'!R6,"AAAAAG//b5k=") ->  | EY1: =AND('Tally Count Data'!S6,"AAAAAG//b5o=") ->  | EZ1: =AND('Tally Count Data'!T6,"AAAAAG//b5s=") ->  | FA1: =AND('Tally Count Data'!U6,"AAAAAG//b5w=") ->  | FB1: =AND('Tally Count Data'!V6,"AAAAAG//b50=") ->  | FC1: =AND('Tally Count Data'!W6,"AAAAAG//b54=") ->  | FD1: =AND('Tally Count Data'!X6,"AAAAAG//b58=") ->  | FE1: =AND('Tally Count Data'!Y6,"AAAAAG//b6A=") ->  | FF1: =AND('Tally Count Data'!Z6,"AAAAAG//b6E=") ->  | FG1: =IF('Tally Count Data'!7:7,"AAAAAG//b6I=",0) -> 0 | FH1: =AND('Tally Count Data'!A7,"AAAAAG//b6M=") ->  | FI1: =AND('Tally Count Data'!B7,"AAAAAG//b6Q=") ->  | FJ1: =AND('Tally Count Data'!C7,"AAAAAG//b6U=") ->  | FK1: =AND('Tally Count Data'!D7,"AAAAAG//b6Y=") ->  | FL1: =AND('Tally Count Data'!E7,"AAAAAG//b6c=") ->  | FM1: =AND('Tally Count Data'!F7,"AAAAAG//b6g=") ->  | FN1: =AND('Tally Count Data'!G7,"AAAAAG//b6k=") ->  | FO1: =AND('Tally Count Data'!H7,"AAAAAG//b6o=") ->  | FP1: =AND('Tally Count Data'!I7,"AAAAAG//b6s=") ->  | FQ1: =AND('Tally Count Data'!J7,"AAAAAG//b6w=") ->  | FR1: =AND('Tally Count Data'!K7,"AAAAAG//b60=") ->  | FS1: =AND('Tally Count Data'!L7,"AAAAAG//b64=") ->  | FT1: =AND('Tally Count Data'!M7,"AAAAAG//b68=") ->  | FU1: =AND('Tally Count Data'!N7,"AAAAAG//b7A=") ->  | FV1: =AND('Tally Count Data'!O7,"AAAAAG//b7E=") ->  | FW1: =AND('Tally Count Data'!P7,"AAAAAG//b7I=") ->  | FX1: =AND('Tally Count Data'!Q7,"AAAAAG//b7M=") ->  | FY1: =AND('Tally Count Data'!R7,"AAAAAG//b7Q=") ->  | FZ1: =AND('Tally Count Data'!S7,"AAAAAG//b7U=") ->  | GA1: =AND('Tally Count Data'!T7,"AAAAAG//b7Y=") ->  | GB1: =AND('Tally Count Data'!U7,"AAAAAG//b7c=") ->  | GC1: =AND('Tally Count Data'!V7,"AAAAAG//b7g=") ->  | GD1: =AND('Tally Count Data'!W7,"AAAAAG//b7k=") ->  | GE1: =AND('Tally Count Data'!X7,"AAAAAG//b7o=") ->  | GF1: =AND('Tally Count Data'!Y7,"AAAAAG//b7s=") ->  | GG1: =AND('Tally Count Data'!Z7,"AAAAAG//b7w=") ->  | GH1: =IF('Tally Count Data'!8:8,"AAAAAG//b70=",0) -> 0 | GI1: =AND('Tally Count Data'!A8,"AAAAAG//b74=") ->  | GJ1: =AND('Tally Count Data'!B8,"AAAAAG//b78=") ->  | GK1: =AND('Tally Count Data'!C8,"AAAAAG//b8A=") ->  | GL1: =AND('Tally Count Data'!D8,"AAAAAG//b8E=") ->  | GM1: =AND('Tally Count Data'!E8,"AAAAAG//b8I=") ->  | GN1: =AND('Tally Count Data'!F8,"AAAAAG//b8M=") ->  | GO1: =AND('Tally Count Data'!G8,"AAAAAG//b8Q=") ->  | GP1: =AND('Tally Count Data'!H8,"AAAAAG//b8U=") ->  | GQ1: =AND('Tally Count Data'!I8,"AAAAAG//b8Y=") ->  | GR1: =AND('Tally Count Data'!J8,"AAAAAG//b8c=") ->  | GS1: =AND('Tally Count Data'!K8,"AAAAAG//b8g=") ->  | GT1: =AND('Tally Count Data'!L8,"AAAAAG//b8k=") ->  | GU1: =AND('Tally Count Data'!M8,"AAAAAG//b8o=") ->  | GV1: =AND('Tally Count Data'!N8,"AAAAAG//b8s=") ->  | GW1: =AND('Tally Count Data'!O8,"AAAAAG//b8w=") ->  | GX1: =AND('Tally Count Data'!P8,"AAAAAG//b80=") ->  | GY1: =AND('Tally Count Data'!Q8,"AAAAAG//b84=") ->  | GZ1: =AND('Tally Count Data'!R8,"AAAAAG//b88=") ->  | HA1: =AND('Tally Count Data'!S8,"AAAAAG//b9A=") ->  | HB1: =AND('Tally Count Data'!T8,"AAAAAG//b9E=") ->  | HC1: =AND('Tally Count Data'!U8,"AAAAAG//b9I=") ->  | HD1: =AND('Tally Count Data'!V8,"AAAAAG//b9M=") ->  | HE1: =AND('Tally Count Data'!W8,"AAAAAG//b9Q=") ->  | HF1: =AND('Tally Count Data'!X8,"AAAAAG//b9U=") ->  | HG1: =AND('Tally Count Data'!Y8,"AAAAAG//b9Y=") ->  | HH1: =AND('Tally Count Data'!Z8,"AAAAAG//b9c=") ->  | HI1: =IF('Tally Count Data'!9:9,"AAAAAG//b9g=",0) -> 0 | HJ1: =AND('Tally Count Data'!A9,"AAAAAG//b9k=") ->  | HK1: =AND('Tally Count Data'!B9,"AAAAAG//b9o=") ->  | HL1: =AND('Tally Count Data'!C9,"AAAAAG//b9s=") ->  | HM1: =AND('Tally Count Data'!D9,"AAAAAG//b9w=") ->  | HN1: =AND('Tally Count Data'!E9,"AAAAAG//b90=") ->  | HO1: =AND('Tally Count Data'!F9,"AAAAAG//b94=") ->  | HP1: =AND('Tally Count Data'!G9,"AAAAAG//b98=") ->  | HQ1: =AND('Tally Count Data'!H9,"AAAAAG//b+A=") ->  | HR1: =AND('Tally Count Data'!I9,"AAAAAG//b+E=") ->  | HS1: =AND('Tally Count Data'!J9,"AAAAAG//b+I=") ->  | HT1: =AND('Tally Count Data'!K9,"AAAAAG//b+M=") ->  | HU1: =AND('Tally Count Data'!L9,"AAAAAG//b+Q=") ->  | HV1: =AND('Tally Count Data'!M9,"AAAAAG//b+U=") ->  | HW1: =AND('Tally Count Data'!N9,"AAAAAG//b+Y=") ->  | HX1: =AND('Tally Count Data'!O9,"AAAAAG//b+c=") ->  | HY1: =AND('Tally Count Data'!P9,"AAAAAG//b+g=") ->  | HZ1: =AND('Tally Count Data'!Q9,"AAAAAG//b+k=") ->  | IA1: =AND('Tally Count Data'!R9,"AAAAAG//b+o=") ->  | IB1: =AND('Tally Count Data'!S9,"AAAAAG//b+s=") ->  | IC1: =AND('Tally Count Data'!T9,"AAAAAG//b+w=") ->  | ID1: =AND('Tally Count Data'!U9,"AAAAAG//b+0=") ->  | IE1: =AND('Tally Count Data'!V9,"AAAAAG//b+4=") ->  | IF1: =AND('Tally Count Data'!W9,"AAAAAG//b+8=") ->  | IG1: =AND('Tally Count Data'!X9,"AAAAAG//b/A=") ->  | IH1: =AND('Tally Count Data'!Y9,"AAAAAG//b/E=") ->  | II1: =AND('Tally Count Data'!Z9,"AAAAAG//b/I=") ->  | IJ1: =IF('Tally Count Data'!10:10,"AAAAAG//b/M=",0) -> 0 | IK1: =AND('Tally Count Data'!A10,"AAAAAG//b/Q=") ->  | IL1: =AND('Tally Count Data'!B10,"AAAAAG//b/U=") ->  | IM1: =AND('Tally Count Data'!C10,"AAAAAG//b/Y=") ->  | IN1: =AND('Tally Count Data'!D10,"AAAAAG//b/c=") ->  | IO1: =AND('Tally Count Data'!E10,"AAAAAG//b/g=") ->  | IP1: =AND('Tally Count Data'!F10,"AAAAAG//b/k=") ->  | IQ1: =AND('Tally Count Data'!G10,"AAAAAG//b/o=") ->  | IR1: =AND('Tally Count Data'!H10,"AAAAAG//b/s=") ->  | IS1: =AND('Tally Count Data'!I10,"AAAAAG//b/w=") ->  | IT1: =AND('Tally Count Data'!J10,"AAAAAG//b/0=") ->  | IU1: =AND('Tally Count Data'!K10,"AAAAAG//b/4=") ->  | IV1: =AND('Tally Count Data'!L10,"AAAAAG//b/8=") -> 
A2: =AND('Tally Count Data'!M10,"AAAAAH3t/wA=") ->  | B2: =AND('Tally Count Data'!N10,"AAAAAH3t/wE=") ->  | C2: =AND('Tally Count Data'!O10,"AAAAAH3t/wI=") ->  | D2: =AND('Tally Count Data'!P10,"AAAAAH3t/wM=") ->  | E2: =AND('Tally Count Data'!Q10,"AAAAAH3t/wQ=") ->  | F2: =AND('Tally Count Data'!R10,"AAAAAH3t/wU=") ->  | G2: =AND('Tally Count Data'!S10,"AAAAAH3t/wY=") ->  | H2: =AND('Tally Count Data'!T10,"AAAAAH3t/wc=") ->  | I2: =AND('Tally Count Data'!U10,"AAAAAH3t/wg=") ->  | J2: =AND('Tally Count Data'!V10,"AAAAAH3t/wk=") ->  | K2: =AND('Tally Count Data'!W10,"AAAAAH3t/wo=") ->  | L2: =AND('Tally Count Data'!X10,"AAAAAH3t/ws=") ->  | M2: =AND('Tally Count Data'!Y10,"AAAAAH3t/ww=") ->  | N2: =AND('Tally Count Data'!Z10,"AAAAAH3t/w0=") ->  | O2: =IF('Tally Count Data'!11:11,"AAAAAH3t/w4=",0) -> 0 | P2: =AND('Tally Count Data'!A11,"AAAAAH3t/w8=") ->  | Q2: =AND('Tally Count Data'!B11,"AAAAAH3t/xA=") ->  | R2: =AND('Tally Count Data'!C11,"AAAAAH3t/xE=") ->  | S2: =AND('Tally Count Data'!D11,"AAAAAH3t/xI=") ->  | T2: =AND('Tally Count Data'!E11,"AAAAAH3t/xM=") ->  | U2: =AND('Tally Count Data'!F11,"AAAAAH3t/xQ=") ->  | V2: =AND('Tally Count Data'!G11,"AAAAAH3t/xU=") ->  | W2: =AND('Tally Count Data'!H11,"AAAAAH3t/xY=") ->  | X2: =AND('Tally Count Data'!I11,"AAAAAH3t/xc=") ->  | Y2: =AND('Tally Count Data'!J11,"AAAAAH3t/xg=") ->  | Z2: =AND('Tally Count Data'!K11,"AAAAAH3t/xk=") ->  | AA2: =AND('Tally Count Data'!L11,"AAAAAH3t/xo=") ->  | AB2: =AND('Tally Count Data'!M11,"AAAAAH3t/xs=") ->  | AC2: =AND('Tally Count Data'!N11,"AAAAAH3t/xw=") ->  | AD2: =AND('Tally Count Data'!O11,"AAAAAH3t/x0=") ->  | AE2: =AND('Tally Count Data'!P11,"AAAAAH3t/x4=") ->  | AF2: =AND('Tally Count Data'!Q11,"AAAAAH3t/x8=") ->  | AG2: =AND('Tally Count Data'!R11,"AAAAAH3t/yA=") ->  | AH2: =AND('Tally Count Data'!S11,"AAAAAH3t/yE=") ->  | AI2: =AND('Tally Count Data'!T11,"AAAAAH3t/yI=") ->  | AJ2: =AND('Tally Count Data'!U11,"AAAAAH3t/yM=") ->  | AK2: =AND('Tally Count Data'!V11,"AAAAAH3t/yQ=") ->  | AL2: =AND('Tally Count Data'!W11,"AAAAAH3t/yU=") ->  | AM2: =AND('Tally Count Data'!X11,"AAAAAH3t/yY=") ->  | AN2: =AND('Tally Count Data'!Y11,"AAAAAH3t/yc=") ->  | AO2: =AND('Tally Count Data'!Z11,"AAAAAH3t/yg=") ->  | AP2: =IF('Tally Count Data'!12:12,"AAAAAH3t/yk=",0) -> 0 | AQ2: =AND('Tally Count Data'!A12,"AAAAAH3t/yo=") ->  | AR2: =AND('Tally Count Data'!B12,"AAAAAH3t/ys=") ->  | AS2: =AND('Tally Count Data'!C12,"AAAAAH3t/yw=") ->  | AT2: =AND('Tally Count Data'!D12,"AAAAAH3t/y0=") ->  | AU2: =AND('Tally Count Data'!E12,"AAAAAH3t/y4=") ->  | AV2: =AND('Tally Count Data'!F12,"AAAAAH3t/y8=") ->  | AW2: =AND('Tally Count Data'!G12,"AAAAAH3t/zA=") ->  | AX2: =AND('Tally Count Data'!H12,"AAAAAH3t/zE=") ->  | AY2: =AND('Tally Count Data'!I12,"AAAAAH3t/zI=") ->  | AZ2: =AND('Tally Count Data'!J12,"AAAAAH3t/zM=") ->  | BA2: =AND('Tally Count Data'!K12,"AAAAAH3t/zQ=") ->  | BB2: =AND('Tally Count Data'!L12,"AAAAAH3t/zU=") ->  | BC2: =AND('Tally Count Data'!M12,"AAAAAH3t/zY=") ->  | BD2: =AND('Tally Count Data'!N12,"AAAAAH3t/zc=") ->  | BE2: =AND('Tally Count Data'!O12,"AAAAAH3t/zg=") ->  | BF2: =AND('Tally Count Data'!P12,"AAAAAH3t/zk=") ->  | BG2: =AND('Tally Count Data'!Q12,"AAAAAH3t/zo=") ->  | BH2: =AND('Tally Count Data'!R12,"AAAAAH3t/zs=") ->  | BI2: =AND('Tally Count Data'!S12,"AAAAAH3t/zw=") ->  | BJ2: =AND('Tally Count Data'!T12,"AAAAAH3t/z0=") ->  | BK2: =AND('Tally Count Data'!U12,"AAAAAH3t/z4=") ->  | BL2: =AND('Tally Count Data'!V12,"AAAAAH3t/z8=") ->  | BM2: =AND('Tally Count Data'!W12,"AAAAAH3t/0A=") ->  | BN2: =AND('Tally Count Data'!X12,"AAAAAH3t/0E=") ->  | BO2: =AND('Tally Count Data'!Y12,"AAAAAH3t/0I=") ->  | BP2: =AND('Tally Count Data'!Z12,"AAAAAH3t/0M=") ->  | BQ2: =IF('Tally Count Data'!13:13,"AAAAAH3t/0Q=",0) -> 0 | BR2: =AND('Tally Count Data'!A13,"AAAAAH3t/0U=") ->  | BS2: =AND('Tally Count Data'!B13,"AAAAAH3t/0Y=") ->  | BT2: =AND('Tally Count Data'!C13,"AAAAAH3t/0c=") ->  | BU2: =AND('Tally Count Data'!D13,"AAAAAH3t/0g=") ->  | BV2: =AND('Tally Count Data'!E13,"AAAAAH3t/0k=") ->  | BW2: =AND('Tally Count Data'!F13,"AAAAAH3t/0o=") ->  | BX2: =AND('Tally Count Data'!G13,"AAAAAH3t/0s=") ->  | BY2: =AND('Tally Count Data'!H13,"AAAAAH3t/0w=") ->  | BZ2: =AND('Tally Count Data'!I13,"AAAAAH3t/00=") ->  | CA2: =AND('Tally Count Data'!J13,"AAAAAH3t/04=") ->  | CB2: =AND('Tally Count Data'!K13,"AAAAAH3t/08=") ->  | CC2: =AND('Tally Count Data'!L13,"AAAAAH3t/1A=") ->  | CD2: =AND('Tally Count Data'!M13,"AAAAAH3t/1E=") ->  | CE2: =AND('Tally Count Data'!N13,"AAAAAH3t/1I=") ->  | CF2: =AND('Tally Count Data'!O13,"AAAAAH3t/1M=") ->  | CG2: =AND('Tally Count Data'!P13,"AAAAAH3t/1Q=") ->  | CH2: =AND('Tally Count Data'!Q13,"AAAAAH3t/1U=") ->  | CI2: =AND('Tally Count Data'!R13,"AAAAAH3t/1Y=") ->  | CJ2: =AND('Tally Count Data'!S13,"AAAAAH3t/1c=") ->  | CK2: =AND('Tally Count Data'!T13,"AAAAAH3t/1g=") ->  | CL2: =AND('Tally Count Data'!U13,"AAAAAH3t/1k=") ->  | CM2: =AND('Tally Count Data'!V13,"AAAAAH3t/1o=") ->  | CN2: =AND('Tally Count Data'!W13,"AAAAAH3t/1s=") ->  | CO2: =AND('Tally Count Data'!X13,"AAAAAH3t/1w=") ->  | CP2: =AND('Tally Count Data'!Y13,"AAAAAH3t/10=") ->  | CQ2: =AND('Tally Count Data'!Z13,"AAAAAH3t/14=") ->  | CR2: =IF('Tally Count Data'!14:14,"AAAAAH3t/18=",0) -> 0 | CS2: =AND('Tally Count Data'!A14,"AAAAAH3t/2A=") ->  | CT2: =AND('Tally Count Data'!B14,"AAAAAH3t/2E=") ->  | CU2: =AND('Tally Count Data'!C14,"AAAAAH3t/2I=") ->  | CV2: =AND('Tally Count Data'!D14,"AAAAAH3t/2M=") ->  | CW2: =AND('Tally Count Data'!E14,"AAAAAH3t/2Q=") ->  | CX2: =AND('Tally Count Data'!F14,"AAAAAH3t/2U=") ->  | CY2: =AND('Tally Count Data'!G14,"AAAAAH3t/2Y=") ->  | CZ2: =AND('Tally Count Data'!H14,"AAAAAH3t/2c=") ->  | DA2: =AND('Tally Count Data'!I14,"AAAAAH3t/2g=") ->  | DB2: =AND('Tally Count Data'!J14,"AAAAAH3t/2k=") ->  | DC2: =AND('Tally Count Data'!K14,"AAAAAH3t/2o=") ->  | DD2: =AND('Tally Count Data'!L14,"AAAAAH3t/2s=") ->  | DE2: =AND('Tally Count Data'!M14,"AAAAAH3t/2w=") ->  | DF2: =AND('Tally Count Data'!N14,"AAAAAH3t/20=") ->  | DG2: =AND('Tally Count Data'!O14,"AAAAAH3t/24=") ->  | DH2: =AND('Tally Count Data'!P14,"AAAAAH3t/28=") ->  | DI2: =AND('Tally Count Data'!Q14,"AAAAAH3t/3A=") ->  | DJ2: =AND('Tally Count Data'!R14,"AAAAAH3t/3E=") ->  | DK2: =AND('Tally Count Data'!S14,"AAAAAH3t/3I=") ->  | DL2: =AND('Tally Count Data'!T14,"AAAAAH3t/3M=") ->  | DM2: =AND('Tally Count Data'!U14,"AAAAAH3t/3Q=") ->  | DN2: =AND('Tally Count Data'!V14,"AAAAAH3t/3U=") ->  | DO2: =AND('Tally Count Data'!W14,"AAAAAH3t/3Y=") ->  | DP2: =AND('Tally Count Data'!X14,"AAAAAH3t/3c=") ->  | DQ2: =AND('Tally Count Data'!Y14,"AAAAAH3t/3g=") ->  | DR2: =AND('Tally Count Data'!Z14,"AAAAAH3t/3k=") ->  | DS2: =IF('Tally Count Data'!15:15,"AAAAAH3t/3o=",0) -> 0 | DT2: =AND('Tally Count Data'!A15,"AAAAAH3t/3s=") ->  | DU2: =AND('Tally Count Data'!B15,"AAAAAH3t/3w=") ->  | DV2: =AND('Tally Count Data'!C15,"AAAAAH3t/30=") ->  | DW2: =AND('Tally Count Data'!D15,"AAAAAH3t/34=") ->  | DX2: =AND('Tally Count Data'!E15,"AAAAAH3t/38=") ->  | DY2: =AND('Tally Count Data'!F15,"AAAAAH3t/4A=") ->  | DZ2: =AND('Tally Count Data'!G15,"AAAAAH3t/4E=") ->  | EA2: =AND('Tally Count Data'!H15,"AAAAAH3t/4I=") ->  | EB2: =AND('Tally Count Data'!I15,"AAAAAH3t/4M=") ->  | EC2: =AND('Tally Count Data'!J15,"AAAAAH3t/4Q=") ->  | ED2: =AND('Tally Count Data'!K15,"AAAAAH3t/4U=") ->  | EE2: =AND('Tally Count Data'!L15,"AAAAAH3t/4Y=") ->  | EF2: =AND('Tally Count Data'!M15,"AAAAAH3t/4c=") ->  | EG2: =AND('Tally Count Data'!N15,"AAAAAH3t/4g=") ->  | EH2: =AND('Tally Count Data'!O15,"AAAAAH3t/4k=") ->  | EI2: =AND('Tally Count Data'!P15,"AAAAAH3t/4o=") ->  | EJ2: =AND('Tally Count Data'!Q15,"AAAAAH3t/4s=") ->  | EK2: =AND('Tally Count Data'!R15,"AAAAAH3t/4w=") ->  | EL2: =AND('Tally Count Data'!S15,"AAAAAH3t/40=") ->  | EM2: =AND('Tally Count Data'!T15,"AAAAAH3t/44=") ->  | EN2: =AND('Tally Count Data'!U15,"AAAAAH3t/48=") ->  | EO2: =AND('Tally Count Data'!V15,"AAAAAH3t/5A=") ->  | EP2: =AND('Tally Count Data'!W15,"AAAAAH3t/5E=") ->  | EQ2: =AND('Tally Count Data'!X15,"AAAAAH3t/5I=") ->  | ER2: =AND('Tally Count Data'!Y15,"AAAAAH3t/5M=") ->  | ES2: =AND('Tally Count Data'!Z15,"AAAAAH3t/5Q=") ->  | ET2: =IF('Tally Count Data'!16:16,"AAAAAH3t/5U=",0) -> 0 | EU2: =AND('Tally Count Data'!A16,"AAAAAH3t/5Y=") ->  | EV2: =AND('Tally Count Data'!B16,"AAAAAH3t/5c=") ->  | EW2: =AND('Tally Count Data'!C16,"AAAAAH3t/5g=") ->  | EX2: =AND('Tally Count Data'!D16,"AAAAAH3t/5k=") ->  | EY2: =AND('Tally Count Data'!E16,"AAAAAH3t/5o=") ->  | EZ2: =AND('Tally Count Data'!F16,"AAAAAH3t/5s=") ->  | FA2: =AND('Tally Count Data'!G16,"AAAAAH3t/5w=") ->  | FB2: =AND('Tally Count Data'!H16,"AAAAAH3t/50=") ->  | FC2: =AND('Tally Count Data'!I16,"AAAAAH3t/54=") ->  | FD2: =AND('Tally Count Data'!J16,"AAAAAH3t/58=") ->  | FE2: =AND('Tally Count Data'!K16,"AAAAAH3t/6A=") ->  | FF2: =AND('Tally Count Data'!L16,"AAAAAH3t/6E=") ->  | FG2: =AND('Tally Count Data'!M16,"AAAAAH3t/6I=") ->  | FH2: =AND('Tally Count Data'!N16,"AAAAAH3t/6M=") ->  | FI2: =AND('Tally Count Data'!O16,"AAAAAH3t/6Q=") ->  | FJ2: =AND('Tally Count Data'!P16,"AAAAAH3t/6U=") ->  | FK2: =AND('Tally Count Data'!Q16,"AAAAAH3t/6Y=") ->  | FL2: =AND('Tally Count Data'!R16,"AAAAAH3t/6c=") ->  | FM2: =AND('Tally Count Data'!S16,"AAAAAH3t/6g=") ->  | FN2: =AND('Tally Count Data'!T16,"AAAAAH3t/6k=") ->  | FO2: =AND('Tally Count Data'!U16,"AAAAAH3t/6o=") ->  | FP2: =AND('Tally Count Data'!V16,"AAAAAH3t/6s=") ->  | FQ2: =AND('Tally Count Data'!W16,"AAAAAH3t/6w=") ->  | FR2: =AND('Tally Count Data'!X16,"AAAAAH3t/60=") ->  | FS2: =AND('Tally Count Data'!Y16,"AAAAAH3t/64=") ->  | FT2: =AND('Tally Count Data'!Z16,"AAAAAH3t/68=") ->  | FU2: =IF('Tally Count Data'!17:17,"AAAAAH3t/7A=",0) -> 0 | FV2: =AND('Tally Count Data'!A17,"AAAAAH3t/7E=") ->  | FW2: =AND('Tally Count Data'!B17,"AAAAAH3t/7I=") ->  | FX2: =AND('Tally Count Data'!C17,"AAAAAH3t/7M=") ->  | FY2: =AND('Tally Count Data'!D17,"AAAAAH3t/7Q=") ->  | FZ2: =AND('Tally Count Data'!E17,"AAAAAH3t/7U=") ->  | GA2: =AND('Tally Count Data'!F17,"AAAAAH3t/7Y=") ->  | GB2: =AND('Tally Count Data'!G17,"AAAAAH3t/7c=") ->  | GC2: =AND('Tally Count Data'!H17,"AAAAAH3t/7g=") ->  | GD2: =AND('Tally Count Data'!I17,"AAAAAH3t/7k=") ->  | GE2: =AND('Tally Count Data'!J17,"AAAAAH3t/7o=") ->  | GF2: =AND('Tally Count Data'!K17,"AAAAAH3t/7s=") ->  | GG2: =AND('Tally Count Data'!L17,"AAAAAH3t/7w=") ->  | GH2: =AND('Tally Count Data'!M17,"AAAAAH3t/70=") ->  | GI2: =AND('Tally Count Data'!N17,"AAAAAH3t/74=") ->  | GJ2: =AND('Tally Count Data'!O17,"AAAAAH3t/78=") ->  | GK2: =AND('Tally Count Data'!P17,"AAAAAH3t/8A=") ->  | GL2: =AND('Tally Count Data'!Q17,"AAAAAH3t/8E=") ->  | GM2: =AND('Tally Count Data'!R17,"AAAAAH3t/8I=") ->  | GN2: =AND('Tally Count Data'!S17,"AAAAAH3t/8M=") ->  | GO2: =AND('Tally Count Data'!T17,"AAAAAH3t/8Q=") ->  | GP2: =AND('Tally Count Data'!U17,"AAAAAH3t/8U=") ->  | GQ2: =AND('Tally Count Data'!V17,"AAAAAH3t/8Y=") ->  | GR2: =AND('Tally Count Data'!W17,"AAAAAH3t/8c=") ->  | GS2: =AND('Tally Count Data'!X17,"AAAAAH3t/8g=") ->  | GT2: =AND('Tally Count Data'!Y17,"AAAAAH3t/8k=") ->  | GU2: =AND('Tally Count Data'!Z17,"AAAAAH3t/8o=") ->  | GV2: =IF('Tally Count Data'!18:18,"AAAAAH3t/8s=",0) -> 0 | GW2: =AND('Tally Count Data'!A18,"AAAAAH3t/8w=") ->  | GX2: =AND('Tally Count Data'!B18,"AAAAAH3t/80=") ->  | GY2: =AND('Tally Count Data'!C18,"AAAAAH3t/84=") ->  | GZ2: =AND('Tally Count Data'!D18,"AAAAAH3t/88=") ->  | HA2: =AND('Tally Count Data'!E18,"AAAAAH3t/9A=") ->  | HB2: =AND('Tally Count Data'!F18,"AAAAAH3t/9E=") ->  | HC2: =AND('Tally Count Data'!G18,"AAAAAH3t/9I=") ->  | HD2: =AND('Tally Count Data'!H18,"AAAAAH3t/9M=") ->  | HE2: =AND('Tally Count Data'!I18,"AAAAAH3t/9Q=") ->  | HF2: =AND('Tally Count Data'!J18,"AAAAAH3t/9U=") ->  | HG2: =AND('Tally Count Data'!K18,"AAAAAH3t/9Y=") ->  | HH2: =AND('Tally Count Data'!L18,"AAAAAH3t/9c=") ->  | HI2: =AND('Tally Count Data'!M18,"AAAAAH3t/9g=") ->  | HJ2: =AND('Tally Count Data'!N18,"AAAAAH3t/9k=") ->  | HK2: =AND('Tally Count Data'!O18,"AAAAAH3t/9o=") ->  | HL2: =AND('Tally Count Data'!P18,"AAAAAH3t/9s=") ->  | HM2: =AND('Tally Count Data'!Q18,"AAAAAH3t/9w=") ->  | HN2: =AND('Tally Count Data'!R18,"AAAAAH3t/90=") ->  | HO2: =AND('Tally Count Data'!S18,"AAAAAH3t/94=") ->  | HP2: =AND('Tally Count Data'!T18,"AAAAAH3t/98=") ->  | HQ2: =AND('Tally Count Data'!U18,"AAAAAH3t/+A=") ->  | HR2: =AND('Tally Count Data'!V18,"AAAAAH3t/+E=") ->  | HS2: =AND('Tally Count Data'!W18,"AAAAAH3t/+I=") ->  | HT2: =AND('Tally Count Data'!X18,"AAAAAH3t/+M=") ->  | HU2: =AND('Tally Count Data'!Y18,"AAAAAH3t/+Q=") ->  | HV2: =AND('Tally Count Data'!Z18,"AAAAAH3t/+U=") ->  | HW2: =IF('Tally Count Data'!19:19,"AAAAAH3t/+Y=",0) -> 0 | HX2: =AND('Tally Count Data'!A19,"AAAAAH3t/+c=") ->  | HY2: =AND('Tally Count Data'!B19,"AAAAAH3t/+g=") ->  | HZ2: =AND('Tally Count Data'!C19,"AAAAAH3t/+k=") ->  | IA2: =AND('Tally Count Data'!D19,"AAAAAH3t/+o=") ->  | IB2: =AND('Tally Count Data'!E19,"AAAAAH3t/+s=") ->  | IC2: =AND('Tally Count Data'!F19,"AAAAAH3t/+w=") ->  | ID2: =AND('Tally Count Data'!G19,"AAAAAH3t/+0=") ->  | IE2: =AND('Tally Count Data'!H19,"AAAAAH3t/+4=") ->  | IF2: =AND('Tally Count Data'!I19,"AAAAAH3t/+8=") ->  | IG2: =AND('Tally Count Data'!J19,"AAAAAH3t//A=") ->  | IH2: =AND('Tally Count Data'!K19,"AAAAAH3t//E=") ->  | II2: =AND('Tally Count Data'!L19,"AAAAAH3t//I=") ->  | IJ2: =AND('Tally Count Data'!M19,"AAAAAH3t//M=") ->  | IK2: =AND('Tally Count Data'!N19,"AAAAAH3t//Q=") ->  | IL2: =AND('Tally Count Data'!O19,"AAAAAH3t//U=") ->  | IM2: =AND('Tally Count Data'!P19,"AAAAAH3t//Y=") ->  | IN2: =AND('Tally Count Data'!Q19,"AAAAAH3t//c=") ->  | IO2: =AND('Tally Count Data'!R19,"AAAAAH3t//g=") ->  | IP2: =AND('Tally Count Data'!S19,"AAAAAH3t//k=") ->  | IQ2: =AND('Tally Count Data'!T19,"AAAAAH3t//o=") ->  | IR2: =AND('Tally Count Data'!U19,"AAAAAH3t//s=") ->  | IS2: =AND('Tally Count Data'!V19,"AAAAAH3t//w=") ->  | IT2: =AND('Tally Count Data'!W19,"AAAAAH3t//0=") ->  | IU2: =AND('Tally Count Data'!X19,"AAAAAH3t//4=") ->  | IV2: =AND('Tally Count Data'!Y19,"AAAAAH3t//8=") -> 
A3: =AND('Tally Count Data'!Z19,"AAAAAG23zQA=") ->  | B3: =IF('Tally Count Data'!20:20,"AAAAAG23zQE=",0) ->  | C3: =AND('Tally Count Data'!A20,"AAAAAG23zQI=") ->  | D3: =AND('Tally Count Data'!B20,"AAAAAG23zQM=") ->  | E3: =AND('Tally Count Data'!C20,"AAAAAG23zQQ=") ->  | F3: =AND('Tally Count Data'!D20,"AAAAAG23zQU=") ->  | G3: =AND('Tally Count Data'!E20,"AAAAAG23zQY=") ->  | H3: =AND('Tally Count Data'!F20,"AAAAAG23zQc=") ->  | I3: =AND('Tally Count Data'!G20,"AAAAAG23zQg=") ->  | J3: =AND('Tally Count Data'!H20,"AAAAAG23zQk=") ->  | K3: =AND('Tally Count Data'!I20,"AAAAAG23zQo=") ->  | L3: =AND('Tally Count Data'!J20,"AAAAAG23zQs=") ->  | M3: =AND('Tally Count Data'!K20,"AAAAAG23zQw=") ->  | N3: =AND('Tally Count Data'!L20,"AAAAAG23zQ0=") ->  | O3: =AND('Tally Count Data'!M20,"AAAAAG23zQ4=") ->  | P3: =AND('Tally Count Data'!N20,"AAAAAG23zQ8=") ->  | Q3: =AND('Tally Count Data'!O20,"AAAAAG23zRA=") ->  | R3: =AND('Tally Count Data'!P20,"AAAAAG23zRE=") ->  | S3: =AND('Tally Count Data'!Q20,"AAAAAG23zRI=") ->  | T3: =AND('Tally Count Data'!R20,"AAAAAG23zRM=") ->  | U3: =AND('Tally Count Data'!S20,"AAAAAG23zRQ=") ->  | V3: =AND('Tally Count Data'!T20,"AAAAAG23zRU=") ->  | W3: =AND('Tally Count Data'!U20,"AAAAAG23zRY=") ->  | X3: =AND('Tally Count Data'!V20,"AAAAAG23zRc=") ->  | Y3: =AND('Tally Count Data'!W20,"AAAAAG23zRg=") ->  | Z3: =AND('Tally Count Data'!X20,"AAAAAG23zRk=") ->  | AA3: =AND('Tally Count Data'!Y20,"AAAAAG23zRo=") ->  | AB3: =AND('Tally Count Data'!Z20,"AAAAAG23zRs=") ->  | AC3: =IF('Tally Count Data'!21:21,"AAAAAG23zRw=",0) -> 0 | AD3: =AND('Tally Count Data'!A21,"AAAAAG23zR0=") ->  | AE3: =AND('Tally Count Data'!B21,"AAAAAG23zR4=") ->  | AF3: =AND('Tally Count Data'!C21,"AAAAAG23zR8=") ->  | AG3: =AND('Tally Count Data'!D21,"AAAAAG23zSA=") ->  | AH3: =AND('Tally Count Data'!E21,"AAAAAG23zSE=") ->  | AI3: =AND('Tally Count Data'!F21,"AAAAAG23zSI=") ->  | AJ3: =AND('Tally Count Data'!G21,"AAAAAG23zSM=") ->  | AK3: =AND('Tally Count Data'!H21,"AAAAAG23zSQ=") ->  | AL3: =AND('Tally Count Data'!I21,"AAAAAG23zSU=") ->  | AM3: =AND('Tally Count Data'!J21,"AAAAAG23zSY=") ->  | AN3: =AND('Tally Count Data'!K21,"AAAAAG23zSc=") ->  | AO3: =AND('Tally Count Data'!L21,"AAAAAG23zSg=") ->  | AP3: =AND('Tally Count Data'!M21,"AAAAAG23zSk=") ->  | AQ3: =AND('Tally Count Data'!N21,"AAAAAG23zSo=") ->  | AR3: =AND('Tally Count Data'!O21,"AAAAAG23zSs=") ->  | AS3: =AND('Tally Count Data'!P21,"AAAAAG23zSw=") ->  | AT3: =AND('Tally Count Data'!Q21,"AAAAAG23zS0=") ->  | AU3: =AND('Tally Count Data'!R21,"AAAAAG23zS4=") ->  | AV3: =AND('Tally Count Data'!S21,"AAAAAG23zS8=") ->  | AW3: =AND('Tally Count Data'!T21,"AAAAAG23zTA=") ->  | AX3: =AND('Tally Count Data'!U21,"AAAAAG23zTE=") ->  | AY3: =AND('Tally Count Data'!V21,"AAAAAG23zTI=") ->  | AZ3: =AND('Tally Count Data'!W21,"AAAAAG23zTM=") ->  | BA3: =AND('Tally Count Data'!X21,"AAAAAG23zTQ=") ->  | BB3: =AND('Tally Count Data'!Y21,"AAAAAG23zTU=") ->  | BC3: =AND('Tally Count Data'!Z21,"AAAAAG23zTY=") ->  | BD3: =IF('Tally Count Data'!22:22,"AAAAAG23zTc=",0) -> 0 | BE3: =AND('Tally Count Data'!A22,"AAAAAG23zTg=") ->  | BF3: =AND('Tally Count Data'!B22,"AAAAAG23zTk=") ->  | BG3: =AND('Tally Count Data'!C22,"AAAAAG23zTo=") ->  | BH3: =AND('Tally Count Data'!D22,"AAAAAG23zTs=") ->  | BI3: =AND('Tally Count Data'!E22,"AAAAAG23zTw=") ->  | BJ3: =AND('Tally Count Data'!F22,"AAAAAG23zT0=") ->  | BK3: =AND('Tally Count Data'!G22,"AAAAAG23zT4=") ->  | BL3: =AND('Tally Count Data'!H22,"AAAAAG23zT8=") ->  | BM3: =AND('Tally Count Data'!I22,"AAAAAG23zUA=") ->  | BN3: =AND('Tally Count Data'!J22,"AAAAAG23zUE=") ->  | BO3: =AND('Tally Count Data'!K22,"AAAAAG23zUI=") ->  | BP3: =AND('Tally Count Data'!L22,"AAAAAG23zUM=") ->  | BQ3: =AND('Tally Count Data'!M22,"AAAAAG23zUQ=") ->  | BR3: =AND('Tally Count Data'!N22,"AAAAAG23zUU=") ->  | BS3: =AND('Tally Count Data'!O22,"AAAAAG23zUY=") ->  | BT3: =AND('Tally Count Data'!P22,"AAAAAG23zUc=") ->  | BU3: =AND('Tally Count Data'!Q22,"AAAAAG23zUg=") ->  | BV3: =AND('Tally Count Data'!R22,"AAAAAG23zUk=") ->  | BW3: =AND('Tally Count Data'!S22,"AAAAAG23zUo=") ->  | BX3: =AND('Tally Count Data'!T22,"AAAAAG23zUs=") ->  | BY3: =AND('Tally Count Data'!U22,"AAAAAG23zUw=") ->  | BZ3: =AND('Tally Count Data'!V22,"AAAAAG23zU0=") ->  | CA3: =AND('Tally Count Data'!W22,"AAAAAG23zU4=") ->  | CB3: =AND('Tally Count Data'!X22,"AAAAAG23zU8=") ->  | CC3: =AND('Tally Count Data'!Y22,"AAAAAG23zVA=") ->  | CD3: =AND('Tally Count Data'!Z22,"AAAAAG23zVE=") ->  | CE3: =IF('Tally Count Data'!23:23,"AAAAAG23zVI=",0) -> 0 | CF3: =AND('Tally Count Data'!A23,"AAAAAG23zVM=") ->  | CG3: =AND('Tally Count Data'!B23,"AAAAAG23zVQ=") ->  | CH3: =AND('Tally Count Data'!C23,"AAAAAG23zVU=") ->  | CI3: =AND('Tally Count Data'!D23,"AAAAAG23zVY=") ->  | CJ3: =AND('Tally Count Data'!E23,"AAAAAG23zVc=") ->  | CK3: =AND('Tally Count Data'!F23,"AAAAAG23zVg=") ->  | CL3: =AND('Tally Count Data'!G23,"AAAAAG23zVk=") ->  | CM3: =AND('Tally Count Data'!H23,"AAAAAG23zVo=") ->  | CN3: =AND('Tally Count Data'!I23,"AAAAAG23zVs=") ->  | CO3: =AND('Tally Count Data'!J23,"AAAAAG23zVw=") ->  | CP3: =AND('Tally Count Data'!K23,"AAAAAG23zV0=") ->  | CQ3: =AND('Tally Count Data'!L23,"AAAAAG23zV4=") ->  | CR3: =AND('Tally Count Data'!M23,"AAAAAG23zV8=") ->  | CS3: =AND('Tally Count Data'!N23,"AAAAAG23zWA=") ->  | CT3: =AND('Tally Count Data'!O23,"AAAAAG23zWE=") ->  | CU3: =AND('Tally Count Data'!P23,"AAAAAG23zWI=") ->  | CV3: =AND('Tally Count Data'!Q23,"AAAAAG23zWM=") ->  | CW3: =AND('Tally Count Data'!R23,"AAAAAG23zWQ=") ->  | CX3: =AND('Tally Count Data'!S23,"AAAAAG23zWU=") ->  | CY3: =AND('Tally Count Data'!T23,"AAAAAG23zWY=") ->  | CZ3: =AND('Tally Count Data'!U23,"AAAAAG23zWc=") ->  | DA3: =AND('Tally Count Data'!V23,"AAAAAG23zWg=") ->  | DB3: =AND('Tally Count Data'!W23,"AAAAAG23zWk=") ->  | DC3: =AND('Tally Count Data'!X23,"AAAAAG23zWo=") ->  | DD3: =AND('Tally Count Data'!Y23,"AAAAAG23zWs=") ->  | DE3: =AND('Tally Count Data'!Z23,"AAAAAG23zWw=") ->  | DF3: =IF('Tally Count Data'!24:24,"AAAAAG23zW0=",0) -> 0 | DG3: =AND('Tally Count Data'!A24,"AAAAAG23zW4=") ->  | DH3: =AND('Tally Count Data'!B24,"AAAAAG23zW8=") ->  | DI3: =AND('Tally Count Data'!C24,"AAAAAG23zXA=") ->  | DJ3: =AND('Tally Count Data'!D24,"AAAAAG23zXE=") ->  | DK3: =AND('Tally Count Data'!E24,"AAAAAG23zXI=") ->  | DL3: =AND('Tally Count Data'!F24,"AAAAAG23zXM=") ->  | DM3: =AND('Tally Count Data'!G24,"AAAAAG23zXQ=") ->  | DN3: =AND('Tally Count Data'!H24,"AAAAAG23zXU=") ->  | DO3: =AND('Tally Count Data'!I24,"AAAAAG23zXY=") ->  | DP3: =AND('Tally Count Data'!J24,"AAAAAG23zXc=") ->  | DQ3: =AND('Tally Count Data'!K24,"AAAAAG23zXg=") ->  | DR3: =AND('Tally Count Data'!L24,"AAAAAG23zXk=") ->  | DS3: =AND('Tally Count Data'!M24,"AAAAAG23zXo=") ->  | DT3: =AND('Tally Count Data'!N24,"AAAAAG23zXs=") ->  | DU3: =AND('Tally Count Data'!O24,"AAAAAG23zXw=") ->  | DV3: =AND('Tally Count Data'!P24,"AAAAAG23zX0=") ->  | DW3: =AND('Tally Count Data'!Q24,"AAAAAG23zX4=") ->  | DX3: =AND('Tally Count Data'!R24,"AAAAAG23zX8=") ->  | DY3: =AND('Tally Count Data'!S24,"AAAAAG23zYA=") ->  | DZ3: =AND('Tally Count Data'!T24,"AAAAAG23zYE=") ->  | EA3: =AND('Tally Count Data'!U24,"AAAAAG23zYI=") ->  | EB3: =AND('Tally Count Data'!V24,"AAAAAG23zYM=") ->  | EC3: =AND('Tally Count Data'!W24,"AAAAAG23zYQ=") ->  | ED3: =AND('Tally Count Data'!X24,"AAAAAG23zYU=") ->  | EE3: =AND('Tally Count Data'!Y24,"AAAAAG23zYY=") ->  | EF3: =AND('Tally Count Data'!Z24,"AAAAAG23zYc=") ->  | EG3: =IF('Tally Count Data'!25:25,"AAAAAG23zYg=",0) -> 0 | EH3: =AND('Tally Count Data'!A25,"AAAAAG23zYk=") ->  | EI3: =AND('Tally Count Data'!B25,"AAAAAG23zYo=") ->  | EJ3: =AND('Tally Count Data'!C25,"AAAAAG23zYs=") ->  | EK3: =AND('Tally Count Data'!D25,"AAAAAG23zYw=") ->  | EL3: =AND('Tally Count Data'!E25,"AAAAAG23zY0=") ->  | EM3: =AND('Tally Count Data'!F25,"AAAAAG23zY4=") ->  | EN3: =AND('Tally Count Data'!G25,"AAAAAG23zY8=") ->  | EO3: =AND('Tally Count Data'!H25,"AAAAAG23zZA=") ->  | EP3: =AND('Tally Count Data'!I25,"AAAAAG23zZE=") ->  | EQ3: =AND('Tally Count Data'!J25,"AAAAAG23zZI=") ->  | ER3: =AND('Tally Count Data'!K25,"AAAAAG23zZM=") ->  | ES3: =AND('Tally Count Data'!L25,"AAAAAG23zZQ=") ->  | ET3: =AND('Tally Count Data'!M25,"AAAAAG23zZU=") ->  | EU3: =AND('Tally Count Data'!N25,"AAAAAG23zZY=") ->  | EV3: =AND('Tally Count Data'!O25,"AAAAAG23zZc=") ->  | EW3: =AND('Tally Count Data'!P25,"AAAAAG23zZg=") ->  | EX3: =AND('Tally Count Data'!Q25,"AAAAAG23zZk=") ->  | EY3: =AND('Tally Count Data'!R25,"AAAAAG23zZo=") ->  | EZ3: =AND('Tally Count Data'!S25,"AAAAAG23zZs=") ->  | FA3: =AND('Tally Count Data'!T25,"AAAAAG23zZw=") ->  | FB3: =AND('Tally Count Data'!U25,"AAAAAG23zZ0=") ->  | FC3: =AND('Tally Count Data'!V25,"AAAAAG23zZ4=") ->  | FD3: =AND('Tally Count Data'!W25,"AAAAAG23zZ8=") ->  | FE3: =AND('Tally Count Data'!X25,"AAAAAG23zaA=") ->  | FF3: =AND('Tally Count Data'!Y25,"AAAAAG23zaE=") ->  | FG3: =AND('Tally Count Data'!Z25,"AAAAAG23zaI=") ->  | FH3: =IF('Tally Count Data'!26:26,"AAAAAG23zaM=",0) -> 0 | FI3: =AND('Tally Count Data'!A26,"AAAAAG23zaQ=") ->  | FJ3: =AND('Tally Count Data'!B26,"AAAAAG23zaU=") ->  | FK3: =AND('Tally Count Data'!C26,"AAAAAG23zaY=") ->  | FL3: =AND('Tally Count Data'!D26,"AAAAAG23zac=") ->  | FM3: =AND('Tally Count Data'!E26,"AAAAAG23zag=") ->  | FN3: =AND('Tally Count Data'!F26,"AAAAAG23zak=") ->  | FO3: =AND('Tally Count Data'!G26,"AAAAAG23zao=") ->  | FP3: =AND('Tally Count Data'!H26,"AAAAAG23zas=") ->  | FQ3: =AND('Tally Count Data'!I26,"AAAAAG23zaw=") ->  | FR3: =AND('Tally Count Data'!J26,"AAAAAG23za0=") ->  | FS3: =AND('Tally Count Data'!K26,"AAAAAG23za4=") ->  | FT3: =AND('Tally Count Data'!L26,"AAAAAG23za8=") ->  | FU3: =AND('Tally Count Data'!M26,"AAAAAG23zbA=") ->  | FV3: =AND('Tally Count Data'!N26,"AAAAAG23zbE=") ->  | FW3: =AND('Tally Count Data'!O26,"AAAAAG23zbI=") ->  | FX3: =AND('Tally Count Data'!P26,"AAAAAG23zbM=") ->  | FY3: =AND('Tally Count Data'!Q26,"AAAAAG23zbQ=") ->  | FZ3: =AND('Tally Count Data'!R26,"AAAAAG23zbU=") ->  | GA3: =AND('Tally Count Data'!S26,"AAAAAG23zbY=") ->  | GB3: =AND('Tally Count Data'!T26,"AAAAAG23zbc=") ->  | GC3: =AND('Tally Count Data'!U26,"AAAAAG23zbg=") ->  | GD3: =AND('Tally Count Data'!V26,"AAAAAG23zbk=") ->  | GE3: =AND('Tally Count Data'!W26,"AAAAAG23zbo=") ->  | GF3: =AND('Tally Count Data'!X26,"AAAAAG23zbs=") ->  | GG3: =AND('Tally Count Data'!Y26,"AAAAAG23zbw=") ->  | GH3: =AND('Tally Count Data'!Z26,"AAAAAG23zb0=") ->  | GI3: =IF('Tally Count Data'!27:27,"AAAAAG23zb4=",0) -> 0 | GJ3: =AND('Tally Count Data'!A27,"AAAAAG23zb8=") ->  | GK3: =AND('Tally Count Data'!B27,"AAAAAG23zcA=") ->  | GL3: =AND('Tally Count Data'!C27,"AAAAAG23zcE=") ->  | GM3: =AND('Tally Count Data'!D27,"AAAAAG23zcI=") ->  | GN3: =AND('Tally Count Data'!E27,"AAAAAG23zcM=") ->  | GO3: =AND('Tally Count Data'!F27,"AAAAAG23zcQ=") ->  | GP3: =AND('Tally Count Data'!G27,"AAAAAG23zcU=") ->  | GQ3: =AND('Tally Count Data'!H27,"AAAAAG23zcY=") ->  | GR3: =AND('Tally Count Data'!I27,"AAAAAG23zcc=") ->  | GS3: =AND('Tally Count Data'!J27,"AAAAAG23zcg=") ->  | GT3: =AND('Tally Count Data'!K27,"AAAAAG23zck=") ->  | GU3: =AND('Tally Count Data'!L27,"AAAAAG23zco=") ->  | GV3: =AND('Tally Count Data'!M27,"AAAAAG23zcs=") ->  | GW3: =AND('Tally Count Data'!N27,"AAAAAG23zcw=") ->  | GX3: =AND('Tally Count Data'!O27,"AAAAAG23zc0=") ->  | GY3: =AND('Tally Count Data'!P27,"AAAAAG23zc4=") ->  | GZ3: =AND('Tally Count Data'!Q27,"AAAAAG23zc8=") ->  | HA3: =AND('Tally Count Data'!R27,"AAAAAG23zdA=") ->  | HB3: =AND('Tally Count Data'!S27,"AAAAAG23zdE=") ->  | HC3: =AND('Tally Count Data'!T27,"AAAAAG23zdI=") ->  | HD3: =AND('Tally Count Data'!U27,"AAAAAG23zdM=") ->  | HE3: =AND('Tally Count Data'!V27,"AAAAAG23zdQ=") ->  | HF3: =AND('Tally Count Data'!W27,"AAAAAG23zdU=") ->  | HG3: =AND('Tally Count Data'!X27,"AAAAAG23zdY=") ->  | HH3: =AND('Tally Count Data'!Y27,"AAAAAG23zdc=") ->  | HI3: =AND('Tally Count Data'!Z27,"AAAAAG23zdg=") ->  | HJ3: =IF('Tally Count Data'!28:28,"AAAAAG23zdk=",0) -> 0 | HK3: =AND('Tally Count Data'!A28,"AAAAAG23zdo=") ->  | HL3: =AND('Tally Count Data'!B28,"AAAAAG23zds=") ->  | HM3: =AND('Tally Count Data'!C28,"AAAAAG23zdw=") ->  | HN3: =AND('Tally Count Data'!D28,"AAAAAG23zd0=") ->  | HO3: =AND('Tally Count Data'!E28,"AAAAAG23zd4=") ->  | HP3: =AND('Tally Count Data'!F28,"AAAAAG23zd8=") ->  | HQ3: =AND('Tally Count Data'!G28,"AAAAAG23zeA=") ->  | HR3: =AND('Tally Count Data'!H28,"AAAAAG23zeE=") ->  | HS3: =AND('Tally Count Data'!I28,"AAAAAG23zeI=") ->  | HT3: =AND('Tally Count Data'!J28,"AAAAAG23zeM=") ->  | HU3: =AND('Tally Count Data'!K28,"AAAAAG23zeQ=") ->  | HV3: =AND('Tally Count Data'!L28,"AAAAAG23zeU=") ->  | HW3: =AND('Tally Count Data'!M28,"AAAAAG23zeY=") ->  | HX3: =AND('Tally Count Data'!N28,"AAAAAG23zec=") ->  | HY3: =AND('Tally Count Data'!O28,"AAAAAG23zeg=") ->  | HZ3: =AND('Tally Count Data'!P28,"AAAAAG23zek=") ->  | IA3: =AND('Tally Count Data'!Q28,"AAAAAG23zeo=") ->  | IB3: =AND('Tally Count Data'!R28,"AAAAAG23zes=") ->  | IC3: =AND('Tally Count Data'!S28,"AAAAAG23zew=") ->  | ID3: =AND('Tally Count Data'!T28,"AAAAAG23ze0=") ->  | IE3: =AND('Tally Count Data'!U28,"AAAAAG23ze4=") ->  | IF3: =AND('Tally Count Data'!V28,"AAAAAG23ze8=") ->  | IG3: =AND('Tally Count Data'!W28,"AAAAAG23zfA=") ->  | IH3: =AND('Tally Count Data'!X28,"AAAAAG23zfE=") ->  | II3: =AND('Tally Count Data'!Y28,"AAAAAG23zfI=") ->  | IJ3: =AND('Tally Count Data'!Z28,"AAAAAG23zfM=") ->  | IK3: =IF('Tally Count Data'!29:29,"AAAAAG23zfQ=",0) -> 0 | IL3: =AND('Tally Count Data'!A29,"AAAAAG23zfU=") ->  | IM3: =AND('Tally Count Data'!B29,"AAAAAG23zfY=") ->  | IN3: =AND('Tally Count Data'!C29,"AAAAAG23zfc=") ->  | IO3: =AND('Tally Count Data'!D29,"AAAAAG23zfg=") ->  | IP3: =AND('Tally Count Data'!E29,"AAAAAG23zfk=") ->  | IQ3: =AND('Tally Count Data'!F29,"AAAAAG23zfo=") ->  | IR3: =AND('Tally Count Data'!G29,"AAAAAG23zfs=") ->  | IS3: =AND('Tally Count Data'!H29,"AAAAAG23zfw=") ->  | IT3: =AND('Tally Count Data'!I29,"AAAAAG23zf0=") ->  | IU3: =AND('Tally Count Data'!J29,"AAAAAG23zf4=") ->  | IV3: =AND('Tally Count Data'!K29,"AAAAAG23zf8=") -> 
A4: =AND('Tally Count Data'!L29,"AAAAAGdXlwA=") ->  | B4: =AND('Tally Count Data'!M29,"AAAAAGdXlwE=") ->  | C4: =AND('Tally Count Data'!N29,"AAAAAGdXlwI=") ->  | D4: =AND('Tally Count Data'!O29,"AAAAAGdXlwM=") ->  | E4: =AND('Tally Count Data'!P29,"AAAAAGdXlwQ=") ->  | F4: =AND('Tally Count Data'!Q29,"AAAAAGdXlwU=") ->  | G4: =AND('Tally Count Data'!R29,"AAAAAGdXlwY=") ->  | H4: =AND('Tally Count Data'!S29,"AAAAAGdXlwc=") ->  | I4: =AND('Tally Count Data'!T29,"AAAAAGdXlwg=") ->  | J4: =AND('Tally Count Data'!U29,"AAAAAGdXlwk=") ->  | K4: =AND('Tally Count Data'!V29,"AAAAAGdXlwo=") ->  | L4: =AND('Tally Count Data'!W29,"AAAAAGdXlws=") ->  | M4: =AND('Tally Count Data'!X29,"AAAAAGdXlww=") ->  | N4: =AND('Tally Count Data'!Y29,"AAAAAGdXlw0=") ->  | O4: =AND('Tally Count Data'!Z29,"AAAAAGdXlw4=") ->  | P4: =IF('Tally Count Data'!30:30,"AAAAAGdXlw8=",0) -> 0 | Q4: =AND('Tally Count Data'!A30,"AAAAAGdXlxA=") ->  | R4: =AND('Tally Count Data'!B30,"AAAAAGdXlxE=") ->  | S4: =AND('Tally Count Data'!C30,"AAAAAGdXlxI=") ->  | T4: =AND('Tally Count Data'!D30,"AAAAAGdXlxM=") ->  | U4: =AND('Tally Count Data'!E30,"AAAAAGdXlxQ=") ->  | V4: =AND('Tally Count Data'!F30,"AAAAAGdXlxU=") ->  | W4: =AND('Tally Count Data'!G30,"AAAAAGdXlxY=") ->  | X4: =AND('Tally Count Data'!H30,"AAAAAGdXlxc=") ->  | Y4: =AND('Tally Count Data'!I30,"AAAAAGdXlxg=") ->  | Z4: =AND('Tally Count Data'!J30,"AAAAAGdXlxk=") ->  | AA4: =AND('Tally Count Data'!K30,"AAAAAGdXlxo=") ->  | AB4: =AND('Tally Count Data'!L30,"AAAAAGdXlxs=") ->  | AC4: =AND('Tally Count Data'!M30,"AAAAAGdXlxw=") ->  | AD4: =AND('Tally Count Data'!N30,"AAAAAGdXlx0=") ->  | AE4: =AND('Tally Count Data'!O30,"AAAAAGdXlx4=") ->  | AF4: =AND('Tally Count Data'!P30,"AAAAAGdXlx8=") ->  | AG4: =AND('Tally Count Data'!Q30,"AAAAAGdXlyA=") ->  | AH4: =AND('Tally Count Data'!R30,"AAAAAGdXlyE=") ->  | AI4: =AND('Tally Count Data'!S30,"AAAAAGdXlyI=") ->  | AJ4: =AND('Tally Count Data'!T30,"AAAAAGdXlyM=") ->  | AK4: =AND('Tally Count Data'!U30,"AAAAAGdXlyQ=") ->  | AL4: =AND('Tally Count Data'!V30,"AAAAAGdXlyU=") ->  | AM4: =AND('Tally Count Data'!W30,"AAAAAGdXlyY=") ->  | AN4: =AND('Tally Count Data'!X30,"AAAAAGdXlyc=") ->  | AO4: =AND('Tally Count Data'!Y30,"AAAAAGdXlyg=") ->  | AP4: =AND('Tally Count Data'!Z30,"AAAAAGdXlyk=") ->  | AQ4: =IF('Tally Count Data'!31:31,"AAAAAGdXlyo=",0) -> 0 | AR4: =AND('Tally Count Data'!A31,"AAAAAGdXlys=") ->  | AS4: =AND('Tally Count Data'!B31,"AAAAAGdXlyw=") ->  | AT4: =AND('Tally Count Data'!C31,"AAAAAGdXly0=") ->  | AU4: =AND('Tally Count Data'!D31,"AAAAAGdXly4=") ->  | AV4: =AND('Tally Count Data'!E31,"AAAAAGdXly8=") ->  | AW4: =AND('Tally Count Data'!F31,"AAAAAGdXlzA=") ->  | AX4: =AND('Tally Count Data'!G31,"AAAAAGdXlzE=") ->  | AY4: =AND('Tally Count Data'!H31,"AAAAAGdXlzI=") ->  | AZ4: =AND('Tally Count Data'!I31,"AAAAAGdXlzM=") ->  | BA4: =AND('Tally Count Data'!J31,"AAAAAGdXlzQ=") ->  | BB4: =AND('Tally Count Data'!K31,"AAAAAGdXlzU=") ->  | BC4: =AND('Tally Count Data'!L31,"AAAAAGdXlzY=") ->  | BD4: =AND('Tally Count Data'!M31,"AAAAAGdXlzc=") ->  | BE4: =AND('Tally Count Data'!N31,"AAAAAGdXlzg=") ->  | BF4: =AND('Tally Count Data'!O31,"AAAAAGdXlzk=") ->  | BG4: =AND('Tally Count Data'!P31,"AAAAAGdXlzo=") ->  | BH4: =AND('Tally Count Data'!Q31,"AAAAAGdXlzs=") ->  | BI4: =AND('Tally Count Data'!R31,"AAAAAGdXlzw=") ->  | BJ4: =AND('Tally Count Data'!S31,"AAAAAGdXlz0=") ->  | BK4: =AND('Tally Count Data'!T31,"AAAAAGdXlz4=") ->  | BL4: =AND('Tally Count Data'!U31,"AAAAAGdXlz8=") ->  | BM4: =AND('Tally Count Data'!V31,"AAAAAGdXl0A=") ->  | BN4: =AND('Tally Count Data'!W31,"AAAAAGdXl0E=") ->  | BO4: =AND('Tally Count Data'!X31,"AAAAAGdXl0I=") ->  | BP4: =AND('Tally Count Data'!Y31,"AAAAAGdXl0M=") ->  | BQ4: =AND('Tally Count Data'!Z31,"AAAAAGdXl0Q=") ->  | BR4: =IF('Tally Count Data'!32:32,"AAAAAGdXl0U=",0) -> 0 | BS4: =AND('Tally Count Data'!A32,"AAAAAGdXl0Y=") ->  | BT4: =AND('Tally Count Data'!B32,"AAAAAGdXl0c=") ->  | BU4: =AND('Tally Count Data'!C32,"AAAAAGdXl0g=") ->  | BV4: =AND('Tally Count Data'!D32,"AAAAAGdXl0k=") ->  | BW4: =AND('Tally Count Data'!E32,"AAAAAGdXl0o=") ->  | BX4: =AND('Tally Count Data'!F32,"AAAAAGdXl0s=") ->  | BY4: =AND('Tally Count Data'!G32,"AAAAAGdXl0w=") ->  | BZ4: =AND('Tally Count Data'!H32,"AAAAAGdXl00=") ->  | CA4: =AND('Tally Count Data'!I32,"AAAAAGdXl04=") ->  | CB4: =AND('Tally Count Data'!J32,"AAAAAGdXl08=") ->  | CC4: =AND('Tally Count Data'!K32,"AAAAAGdXl1A=") ->  | CD4: =AND('Tally Count Data'!L32,"AAAAAGdXl1E=") ->  | CE4: =AND('Tally Count Data'!M32,"AAAAAGdXl1I=") ->  | CF4: =AND('Tally Count Data'!N32,"AAAAAGdXl1M=") ->  | CG4: =AND('Tally Count Data'!O32,"AAAAAGdXl1Q=") ->  | CH4: =AND('Tally Count Data'!P32,"AAAAAGdXl1U=") ->  | CI4: =AND('Tally Count Data'!Q32,"AAAAAGdXl1Y=") ->  | CJ4: =AND('Tally Count Data'!R32,"AAAAAGdXl1c=") ->  | CK4: =AND('Tally Count Data'!S32,"AAAAAGdXl1g=") ->  | CL4: =AND('Tally Count Data'!T32,"AAAAAGdXl1k=") ->  | CM4: =AND('Tally Count Data'!U32,"AAAAAGdXl1o=") ->  | CN4: =AND('Tally Count Data'!V32,"AAAAAGdXl1s=") ->  | CO4: =AND('Tally Count Data'!W32,"AAAAAGdXl1w=") ->  | CP4: =AND('Tally Count Data'!X32,"AAAAAGdXl10=") ->  | CQ4: =AND('Tally Count Data'!Y32,"AAAAAGdXl14=") ->  | CR4: =AND('Tally Count Data'!Z32,"AAAAAGdXl18=") ->  | CS4: =IF('Tally Count Data'!33:33,"AAAAAGdXl2A=",0) -> 0 | CT4: =AND('Tally Count Data'!A33,"AAAAAGdXl2E=") ->  | CU4: =AND('Tally Count Data'!B33,"AAAAAGdXl2I=") ->  | CV4: =AND('Tally Count Data'!C33,"AAAAAGdXl2M=") ->  | CW4: =AND('Tally Count Data'!D33,"AAAAAGdXl2Q=") ->  | CX4: =AND('Tally Count Data'!E33,"AAAAAGdXl2U=") ->  | CY4: =AND('Tally Count Data'!F33,"AAAAAGdXl2Y=") ->  | CZ4: =AND('Tally Count Data'!G33,"AAAAAGdXl2c=") ->  | DA4: =AND('Tally Count Data'!H33,"AAAAAGdXl2g=") ->  | DB4: =AND('Tally Count Data'!I33,"AAAAAGdXl2k=") ->  | DC4: =AND('Tally Count Data'!J33,"AAAAAGdXl2o=") ->  | DD4: =AND('Tally Count Data'!K33,"AAAAAGdXl2s=") ->  | DE4: =AND('Tally Count Data'!L33,"AAAAAGdXl2w=") ->  | DF4: =AND('Tally Count Data'!M33,"AAAAAGdXl20=") ->  | DG4: =AND('Tally Count Data'!N33,"AAAAAGdXl24=") ->  | DH4: =AND('Tally Count Data'!O33,"AAAAAGdXl28=") ->  | DI4: =AND('Tally Count Data'!P33,"AAAAAGdXl3A=") ->  | DJ4: =AND('Tally Count Data'!Q33,"AAAAAGdXl3E=") ->  | DK4: =AND('Tally Count Data'!R33,"AAAAAGdXl3I=") ->  | DL4: =AND('Tally Count Data'!S33,"AAAAAGdXl3M=") ->  | DM4: =AND('Tally Count Data'!T33,"AAAAAGdXl3Q=") ->  | DN4: =AND('Tally Count Data'!U33,"AAAAAGdXl3U=") ->  | DO4: =AND('Tally Count Data'!V33,"AAAAAGdXl3Y=") ->  | DP4: =AND('Tally Count Data'!W33,"AAAAAGdXl3c=") ->  | DQ4: =AND('Tally Count Data'!X33,"AAAAAGdXl3g=") ->  | DR4: =AND('Tally Count Data'!Y33,"AAAAAGdXl3k=") ->  | DS4: =AND('Tally Count Data'!Z33,"AAAAAGdXl3o=") ->  | DT4: =IF('Tally Count Data'!34:34,"AAAAAGdXl3s=",0) -> 0 | DU4: =AND('Tally Count Data'!A34,"AAAAAGdXl3w=") ->  | DV4: =AND('Tally Count Data'!B34,"AAAAAGdXl30=") ->  | DW4: =AND('Tally Count Data'!C34,"AAAAAGdXl34=") ->  | DX4: =AND('Tally Count Data'!D34,"AAAAAGdXl38=") ->  | DY4: =AND('Tally Count Data'!E34,"AAAAAGdXl4A=") ->  | DZ4: =AND('Tally Count Data'!F34,"AAAAAGdXl4E=") ->  | EA4: =AND('Tally Count Data'!G34,"AAAAAGdXl4I=") ->  | EB4: =AND('Tally Count Data'!H34,"AAAAAGdXl4M=") ->  | EC4: =AND('Tally Count Data'!I34,"AAAAAGdXl4Q=") ->  | ED4: =AND('Tally Count Data'!J34,"AAAAAGdXl4U=") ->  | EE4: =AND('Tally Count Data'!K34,"AAAAAGdXl4Y=") ->  | EF4: =AND('Tally Count Data'!L34,"AAAAAGdXl4c=") ->  | EG4: =AND('Tally Count Data'!M34,"AAAAAGdXl4g=") ->  | EH4: =AND('Tally Count Data'!N34,"AAAAAGdXl4k=") ->  | EI4: =AND('Tally Count Data'!O34,"AAAAAGdXl4o=") ->  | EJ4: =AND('Tally Count Data'!P34,"AAAAAGdXl4s=") ->  | EK4: =AND('Tally Count Data'!Q34,"AAAAAGdXl4w=") ->  | EL4: =AND('Tally Count Data'!R34,"AAAAAGdXl40=") ->  | EM4: =AND('Tally Count Data'!S34,"AAAAAGdXl44=") ->  | EN4: =AND('Tally Count Data'!T34,"AAAAAGdXl48=") ->  | EO4: =AND('Tally Count Data'!U34,"AAAAAGdXl5A=") ->  | EP4: =AND('Tally Count Data'!V34,"AAAAAGdXl5E=") ->  | EQ4: =AND('Tally Count Data'!W34,"AAAAAGdXl5I=") ->  | ER4: =AND('Tally Count Data'!X34,"AAAAAGdXl5M=") ->  | ES4: =AND('Tally Count Data'!Y34,"AAAAAGdXl5Q=") ->  | ET4: =AND('Tally Count Data'!Z34,"AAAAAGdXl5U=") ->  | EU4: =IF('Tally Count Data'!35:35,"AAAAAGdXl5Y=",0) -> 0 | EV4: =AND('Tally Count Data'!A35,"AAAAAGdXl5c=") ->  | EW4: =AND('Tally Count Data'!B35,"AAAAAGdXl5g=") ->  | EX4: =AND('Tally Count Data'!C35,"AAAAAGdXl5k=") ->  | EY4: =AND('Tally Count Data'!D35,"AAAAAGdXl5o=") ->  | EZ4: =AND('Tally Count Data'!E35,"AAAAAGdXl5s=") ->  | FA4: =AND('Tally Count Data'!F35,"AAAAAGdXl5w=") ->  | FB4: =AND('Tally Count Data'!G35,"AAAAAGdXl50=") ->  | FC4: =AND('Tally Count Data'!H35,"AAAAAGdXl54=") ->  | FD4: =AND('Tally Count Data'!I35,"AAAAAGdXl58=") ->  | FE4: =AND('Tally Count Data'!J35,"AAAAAGdXl6A=") ->  | FF4: =AND('Tally Count Data'!K35,"AAAAAGdXl6E=") ->  | FG4: =AND('Tally Count Data'!L35,"AAAAAGdXl6I=") ->  | FH4: =AND('Tally Count Data'!M35,"AAAAAGdXl6M=") ->  | FI4: =AND('Tally Count Data'!N35,"AAAAAGdXl6Q=") ->  | FJ4: =AND('Tally Count Data'!O35,"AAAAAGdXl6U=") ->  | FK4: =AND('Tally Count Data'!P35,"AAAAAGdXl6Y=") ->  | FL4: =AND('Tally Count Data'!Q35,"AAAAAGdXl6c=") ->  | FM4: =AND('Tally Count Data'!R35,"AAAAAGdXl6g=") ->  | FN4: =AND('Tally Count Data'!S35,"AAAAAGdXl6k=") ->  | FO4: =AND('Tally Count Data'!T35,"AAAAAGdXl6o=") ->  | FP4: =AND('Tally Count Data'!U35,"AAAAAGdXl6s=") ->  | FQ4: =AND('Tally Count Data'!V35,"AAAAAGdXl6w=") ->  | FR4: =AND('Tally Count Data'!W35,"AAAAAGdXl60=") ->  | FS4: =AND('Tally Count Data'!X35,"AAAAAGdXl64=") ->  | FT4: =AND('Tally Count Data'!Y35,"AAAAAGdXl68=") ->  | FU4: =AND('Tally Count Data'!Z35,"AAAAAGdXl7A=") ->  | FV4: =IF('Tally Count Data'!36:36,"AAAAAGdXl7E=",0) -> 0 | FW4: =AND('Tally Count Data'!A36,"AAAAAGdXl7I=") ->  | FX4: =AND('Tally Count Data'!B36,"AAAAAGdXl7M=") ->  | FY4: =AND('Tally Count Data'!C36,"AAAAAGdXl7Q=") ->  | FZ4: =AND('Tally Count Data'!D36,"AAAAAGdXl7U=") ->  | GA4: =AND('Tally Count Data'!E36,"AAAAAGdXl7Y=") ->  | GB4: =AND('Tally Count Data'!F36,"AAAAAGdXl7c=") ->  | GC4: =AND('Tally Count Data'!G36,"AAAAAGdXl7g=") ->  | GD4: =AND('Tally Count Data'!H36,"AAAAAGdXl7k=") ->  | GE4: =AND('Tally Count Data'!I36,"AAAAAGdXl7o=") ->  | GF4: =AND('Tally Count Data'!J36,"AAAAAGdXl7s=") ->  | GG4: =AND('Tally Count Data'!K36,"AAAAAGdXl7w=") ->  | GH4: =AND('Tally Count Data'!L36,"AAAAAGdXl70=") ->  | GI4: =AND('Tally Count Data'!M36,"AAAAAGdXl74=") ->  | GJ4: =AND('Tally Count Data'!N36,"AAAAAGdXl78=") ->  | GK4: =AND('Tally Count Data'!O36,"AAAAAGdXl8A=") ->  | GL4: =AND('Tally Count Data'!P36,"AAAAAGdXl8E=") ->  | GM4: =AND('Tally Count Data'!Q36,"AAAAAGdXl8I=") ->  | GN4: =AND('Tally Count Data'!R36,"AAAAAGdXl8M=") ->  | GO4: =AND('Tally Count Data'!S36,"AAAAAGdXl8Q=") ->  | GP4: =AND('Tally Count Data'!T36,"AAAAAGdXl8U=") ->  | GQ4: =AND('Tally Count Data'!U36,"AAAAAGdXl8Y=") ->  | GR4: =AND('Tally Count Data'!V36,"AAAAAGdXl8c=") ->  | GS4: =AND('Tally Count Data'!W36,"AAAAAGdXl8g=") ->  | GT4: =AND('Tally Count Data'!X36,"AAAAAGdXl8k=") ->  | GU4: =AND('Tally Count Data'!Y36,"AAAAAGdXl8o=") ->  | GV4: =AND('Tally Count Data'!Z36,"AAAAAGdXl8s=") ->  | GW4: =IF('Tally Count Data'!37:37,"AAAAAGdXl8w=",0) -> 0 | GX4: =AND('Tally Count Data'!A37,"AAAAAGdXl80=") ->  | GY4: =AND('Tally Count Data'!B37,"AAAAAGdXl84=") ->  | GZ4: =AND('Tally Count Data'!C37,"AAAAAGdXl88=") ->  | HA4: =AND('Tally Count Data'!D37,"AAAAAGdXl9A=") ->  | HB4: =AND('Tally Count Data'!E37,"AAAAAGdXl9E=") ->  | HC4: =AND('Tally Count Data'!F37,"AAAAAGdXl9I=") ->  | HD4: =AND('Tally Count Data'!G37,"AAAAAGdXl9M=") ->  | HE4: =AND('Tally Count Data'!H37,"AAAAAGdXl9Q=") ->  | HF4: =AND('Tally Count Data'!I37,"AAAAAGdXl9U=") ->  | HG4: =AND('Tally Count Data'!J37,"AAAAAGdXl9Y=") ->  | HH4: =AND('Tally Count Data'!K37,"AAAAAGdXl9c=") ->  | HI4: =AND('Tally Count Data'!L37,"AAAAAGdXl9g=") ->  | HJ4: =AND('Tally Count Data'!M37,"AAAAAGdXl9k=") ->  | HK4: =AND('Tally Count Data'!N37,"AAAAAGdXl9o=") ->  | HL4: =AND('Tally Count Data'!O37,"AAAAAGdXl9s=") ->  | HM4: =AND('Tally Count Data'!P37,"AAAAAGdXl9w=") ->  | HN4: =AND('Tally Count Data'!Q37,"AAAAAGdXl90=") ->  | HO4: =AND('Tally Count Data'!R37,"AAAAAGdXl94=") ->  | HP4: =AND('Tally Count Data'!S37,"AAAAAGdXl98=") ->  | HQ4: =AND('Tally Count Data'!T37,"AAAAAGdXl+A=") ->  | HR4: =AND('Tally Count Data'!U37,"AAAAAGdXl+E=") ->  | HS4: =AND('Tally Count Data'!V37,"AAAAAGdXl+I=") ->  | HT4: =AND('Tally Count Data'!W37,"AAAAAGdXl+M=") ->  | HU4: =AND('Tally Count Data'!X37,"AAAAAGdXl+Q=") ->  | HV4: =AND('Tally Count Data'!Y37,"AAAAAGdXl+U=") ->  | HW4: =AND('Tally Count Data'!Z37,"AAAAAGdXl+Y=") ->  | HX4: =IF('Tally Count Data'!38:38,"AAAAAGdXl+c=",0) -> 0 | HY4: =AND('Tally Count Data'!A38,"AAAAAGdXl+g=") ->  | HZ4: =AND('Tally Count Data'!B38,"AAAAAGdXl+k=") ->  | IA4: =AND('Tally Count Data'!C38,"AAAAAGdXl+o=") ->  | IB4: =AND('Tally Count Data'!D38,"AAAAAGdXl+s=") ->  | IC4: =AND('Tally Count Data'!E38,"AAAAAGdXl+w=") ->  | ID4: =AND('Tally Count Data'!F38,"AAAAAGdXl+0=") ->  | IE4: =AND('Tally Count Data'!G38,"AAAAAGdXl+4=") ->  | IF4: =AND('Tally Count Data'!H38,"AAAAAGdXl+8=") ->  | IG4: =AND('Tally Count Data'!I38,"AAAAAGdXl/A=") ->  | IH4: =AND('Tally Count Data'!J38,"AAAAAGdXl/E=") ->  | II4: =AND('Tally Count Data'!K38,"AAAAAGdXl/I=") ->  | IJ4: =AND('Tally Count Data'!L38,"AAAAAGdXl/M=") ->  | IK4: =AND('Tally Count Data'!M38,"AAAAAGdXl/Q=") ->  | IL4: =AND('Tally Count Data'!N38,"AAAAAGdXl/U=") ->  | IM4: =AND('Tally Count Data'!O38,"AAAAAGdXl/Y=") ->  | IN4: =AND('Tally Count Data'!P38,"AAAAAGdXl/c=") ->  | IO4: =AND('Tally Count Data'!Q38,"AAAAAGdXl/g=") ->  | IP4: =AND('Tally Count Data'!R38,"AAAAAGdXl/k=") ->  | IQ4: =AND('Tally Count Data'!S38,"AAAAAGdXl/o=") ->  | IR4: =AND('Tally Count Data'!T38,"AAAAAGdXl/s=") ->  | IS4: =AND('Tally Count Data'!U38,"AAAAAGdXl/w=") ->  | IT4: =AND('Tally Count Data'!V38,"AAAAAGdXl/0=") ->  | IU4: =AND('Tally Count Data'!W38,"AAAAAGdXl/4=") ->  | IV4: =AND('Tally Count Data'!X38,"AAAAAGdXl/8=") -> 
A5: =AND('Tally Count Data'!Y38,"AAAAAFo/ewA=") ->  | B5: =AND('Tally Count Data'!Z38,"AAAAAFo/ewE=") ->  | C5: =IF('Tally Count Data'!39:39,"AAAAAFo/ewI=",0) -> AAAAAFo/ewI= | D5: =AND('Tally Count Data'!A39,"AAAAAFo/ewM=") ->  | E5: =AND('Tally Count Data'!B39,"AAAAAFo/ewQ=") ->  | F5: =AND('Tally Count Data'!C39,"AAAAAFo/ewU=") ->  | G5: =AND('Tally Count Data'!D39,"AAAAAFo/ewY=") ->  | H5: =AND('Tally Count Data'!E39,"AAAAAFo/ewc=") ->  | I5: =AND('Tally Count Data'!F39,"AAAAAFo/ewg=") ->  | J5: =AND('Tally Count Data'!G39,"AAAAAFo/ewk=") ->  | K5: =AND('Tally Count Data'!H39,"AAAAAFo/ewo=") ->  | L5: =AND('Tally Count Data'!I39,"AAAAAFo/ews=") ->  | M5: =AND('Tally Count Data'!J39,"AAAAAFo/eww=") ->  | N5: =AND('Tally Count Data'!K39,"AAAAAFo/ew0=") ->  | O5: =AND('Tally Count Data'!L39,"AAAAAFo/ew4=") ->  | P5: =AND('Tally Count Data'!M39,"AAAAAFo/ew8=") ->  | Q5: =AND('Tally Count Data'!N39,"AAAAAFo/exA=") ->  | R5: =AND('Tally Count Data'!O39,"AAAAAFo/exE=") ->  | S5: =AND('Tally Count Data'!P39,"AAAAAFo/exI=") ->  | T5: =AND('Tally Count Data'!Q39,"AAAAAFo/exM=") ->  | U5: =AND('Tally Count Data'!R39,"AAAAAFo/exQ=") ->  | V5: =AND('Tally Count Data'!S39,"AAAAAFo/exU=") ->  | W5: =AND('Tally Count Data'!T39,"AAAAAFo/exY=") ->  | X5: =AND('Tally Count Data'!U39,"AAAAAFo/exc=") ->  | Y5: =AND('Tally Count Data'!V39,"AAAAAFo/exg=") ->  | Z5: =AND('Tally Count Data'!W39,"AAAAAFo/exk=") ->  | AA5: =AND('Tally Count Data'!X39,"AAAAAFo/exo=") ->  | AB5: =AND('Tally Count Data'!Y39,"AAAAAFo/exs=") ->  | AC5: =AND('Tally Count Data'!Z39,"AAAAAFo/exw=") ->  | AD5: =IF('Tally Count Data'!40:40,"AAAAAFo/ex0=",0) -> 0 | AE5: =AND('Tally Count Data'!A40,"AAAAAFo/ex4=") ->  | AF5: =AND('Tally Count Data'!B40,"AAAAAFo/ex8=") ->  | AG5: =AND('Tally Count Data'!C40,"AAAAAFo/eyA=") ->  | AH5: =AND('Tally Count Data'!D40,"AAAAAFo/eyE=") ->  | AI5: =AND('Tally Count Data'!E40,"AAAAAFo/eyI=") ->  | AJ5: =AND('Tally Count Data'!F40,"AAAAAFo/eyM=") ->  | AK5: =AND('Tally Count Data'!G40,"AAAAAFo/eyQ=") ->  | AL5: =AND('Tally Count Data'!H40,"AAAAAFo/eyU=") ->  | AM5: =AND('Tally Count Data'!I40,"AAAAAFo/eyY=") ->  | AN5: =AND('Tally Count Data'!J40,"AAAAAFo/eyc=") ->  | AO5: =AND('Tally Count Data'!K40,"AAAAAFo/eyg=") ->  | AP5: =AND('Tally Count Data'!L40,"AAAAAFo/eyk=") ->  | AQ5: =AND('Tally Count Data'!M40,"AAAAAFo/eyo=") ->  | AR5: =AND('Tally Count Data'!N40,"AAAAAFo/eys=") ->  | AS5: =AND('Tally Count Data'!O40,"AAAAAFo/eyw=") ->  | AT5: =AND('Tally Count Data'!P40,"AAAAAFo/ey0=") ->  | AU5: =AND('Tally Count Data'!Q40,"AAAAAFo/ey4=") ->  | AV5: =AND('Tally Count Data'!R40,"AAAAAFo/ey8=") ->  | AW5: =AND('Tally Count Data'!S40,"AAAAAFo/ezA=") ->  | AX5: =AND('Tally Count Data'!T40,"AAAAAFo/ezE=") ->  | AY5: =AND('Tally Count Data'!U40,"AAAAAFo/ezI=") ->  | AZ5: =AND('Tally Count Data'!V40,"AAAAAFo/ezM=") ->  | BA5: =AND('Tally Count Data'!W40,"AAAAAFo/ezQ=") ->  | BB5: =AND('Tally Count Data'!X40,"AAAAAFo/ezU=") ->  | BC5: =AND('Tally Count Data'!Y40,"AAAAAFo/ezY=") ->  | BD5: =AND('Tally Count Data'!Z40,"AAAAAFo/ezc=") ->  | BE5: =IF('Tally Count Data'!41:41,"AAAAAFo/ezg=",0) -> 0 | BF5: =AND('Tally Count Data'!A41,"AAAAAFo/ezk=") ->  | BG5: =AND('Tally Count Data'!B41,"AAAAAFo/ezo=") ->  | BH5: =AND('Tally Count Data'!C41,"AAAAAFo/ezs=") ->  | BI5: =AND('Tally Count Data'!D41,"AAAAAFo/ezw=") ->  | BJ5: =AND('Tally Count Data'!E41,"AAAAAFo/ez0=") ->  | BK5: =AND('Tally Count Data'!F41,"AAAAAFo/ez4=") ->  | BL5: =AND('Tally Count Data'!G41,"AAAAAFo/ez8=") ->  | BM5: =AND('Tally Count Data'!H41,"AAAAAFo/e0A=") ->  | BN5: =AND('Tally Count Data'!I41,"AAAAAFo/e0E=") ->  | BO5: =AND('Tally Count Data'!J41,"AAAAAFo/e0I=") ->  | BP5: =AND('Tally Count Data'!K41,"AAAAAFo/e0M=") ->  | BQ5: =AND('Tally Count Data'!L41,"AAAAAFo/e0Q=") ->  | BR5: =AND('Tally Count Data'!M41,"AAAAAFo/e0U=") ->  | BS5: =AND('Tally Count Data'!N41,"AAAAAFo/e0Y=") ->  | BT5: =AND('Tally Count Data'!O41,"AAAAAFo/e0c=") ->  | BU5: =AND('Tally Count Data'!P41,"AAAAAFo/e0g=") ->  | BV5: =AND('Tally Count Data'!Q41,"AAAAAFo/e0k=") ->  | BW5: =AND('Tally Count Data'!R41,"AAAAAFo/e0o=") ->  | BX5: =AND('Tally Count Data'!S41,"AAAAAFo/e0s=") ->  | BY5: =AND('Tally Count Data'!T41,"AAAAAFo/e0w=") ->  | BZ5: =AND('Tally Count Data'!U41,"AAAAAFo/e00=") ->  | CA5: =AND('Tally Count Data'!V41,"AAAAAFo/e04=") ->  | CB5: =AND('Tally Count Data'!W41,"AAAAAFo/e08=") ->  | CC5: =AND('Tally Count Data'!X41,"AAAAAFo/e1A=") ->  | CD5: =AND('Tally Count Data'!Y41,"AAAAAFo/e1E=") ->  | CE5: =AND('Tally Count Data'!Z41,"AAAAAFo/e1I=") ->  | CF5: =IF('Tally Count Data'!42:42,"AAAAAFo/e1M=",0) -> 0 | CG5: =AND('Tally Count Data'!A42,"AAAAAFo/e1Q=") ->  | CH5: =AND('Tally Count Data'!B42,"AAAAAFo/e1U=") ->  | CI5: =AND('Tally Count Data'!C42,"AAAAAFo/e1Y=") ->  | CJ5: =AND('Tally Count Data'!D42,"AAAAAFo/e1c=") ->  | CK5: =AND('Tally Count Data'!E42,"AAAAAFo/e1g=") ->  | CL5: =AND('Tally Count Data'!F42,"AAAAAFo/e1k=") ->  | CM5: =AND('Tally Count Data'!G42,"AAAAAFo/e1o=") ->  | CN5: =AND('Tally Count Data'!H42,"AAAAAFo/e1s=") ->  | CO5: =AND('Tally Count Data'!I42,"AAAAAFo/e1w=") ->  | CP5: =AND('Tally Count Data'!J42,"AAAAAFo/e10=") ->  | CQ5: =AND('Tally Count Data'!K42,"AAAAAFo/e14=") ->  | CR5: =AND('Tally Count Data'!L42,"AAAAAFo/e18=") ->  | CS5: =AND('Tally Count Data'!M42,"AAAAAFo/e2A=") ->  | CT5: =AND('Tally Count Data'!N42,"AAAAAFo/e2E=") ->  | CU5: =AND('Tally Count Data'!O42,"AAAAAFo/e2I=") ->  | CV5: =AND('Tally Count Data'!P42,"AAAAAFo/e2M=") ->  | CW5: =AND('Tally Count Data'!Q42,"AAAAAFo/e2Q=") ->  | CX5: =AND('Tally Count Data'!R42,"AAAAAFo/e2U=") ->  | CY5: =AND('Tally Count Data'!S42,"AAAAAFo/e2Y=") ->  | CZ5: =AND('Tally Count Data'!T42,"AAAAAFo/e2c=") ->  | DA5: =AND('Tally Count Data'!U42,"AAAAAFo/e2g=") ->  | DB5: =AND('Tally Count Data'!V42,"AAAAAFo/e2k=") ->  | DC5: =AND('Tally Count Data'!W42,"AAAAAFo/e2o=") ->  | DD5: =AND('Tally Count Data'!X42,"AAAAAFo/e2s=") ->  | DE5: =AND('Tally Count Data'!Y42,"AAAAAFo/e2w=") ->  | DF5: =AND('Tally Count Data'!Z42,"AAAAAFo/e20=") ->  | DG5: =IF('Tally Count Data'!43:43,"AAAAAFo/e24=",0) -> 0 | DH5: =AND('Tally Count Data'!A43,"AAAAAFo/e28=") ->  | DI5: =AND('Tally Count Data'!B43,"AAAAAFo/e3A=") ->  | DJ5: =AND('Tally Count Data'!C43,"AAAAAFo/e3E=") ->  | DK5: =AND('Tally Count Data'!D43,"AAAAAFo/e3I=") ->  | DL5: =AND('Tally Count Data'!E43,"AAAAAFo/e3M=") ->  | DM5: =AND('Tally Count Data'!F43,"AAAAAFo/e3Q=") ->  | DN5: =AND('Tally Count Data'!G43,"AAAAAFo/e3U=") ->  | DO5: =AND('Tally Count Data'!H43,"AAAAAFo/e3Y=") ->  | DP5: =AND('Tally Count Data'!I43,"AAAAAFo/e3c=") ->  | DQ5: =AND('Tally Count Data'!J43,"AAAAAFo/e3g=") ->  | DR5: =AND('Tally Count Data'!K43,"AAAAAFo/e3k=") ->  | DS5: =AND('Tally Count Data'!L43,"AAAAAFo/e3o=") ->  | DT5: =AND('Tally Count Data'!M43,"AAAAAFo/e3s=") ->  | DU5: =AND('Tally Count Data'!N43,"AAAAAFo/e3w=") ->  | DV5: =AND('Tally Count Data'!O43,"AAAAAFo/e30=") ->  | DW5: =AND('Tally Count Data'!P43,"AAAAAFo/e34=") ->  | DX5: =AND('Tally Count Data'!Q43,"AAAAAFo/e38=") ->  | DY5: =AND('Tally Count Data'!R43,"AAAAAFo/e4A=") ->  | DZ5: =AND('Tally Count Data'!S43,"AAAAAFo/e4E=") ->  | EA5: =AND('Tally Count Data'!T43,"AAAAAFo/e4I=") ->  | EB5: =AND('Tally Count Data'!U43,"AAAAAFo/e4M=") ->  | EC5: =AND('Tally Count Data'!V43,"AAAAAFo/e4Q=") ->  | ED5: =AND('Tally Count Data'!W43,"AAAAAFo/e4U=") ->  | EE5: =AND('Tally Count Data'!X43,"AAAAAFo/e4Y=") ->  | EF5: =AND('Tally Count Data'!Y43,"AAAAAFo/e4c=") ->  | EG5: =AND('Tally Count Data'!Z43,"AAAAAFo/e4g=") ->  | EH5: =IF('Tally Count Data'!44:44,"AAAAAFo/e4k=",0) -> 0 | EI5: =AND('Tally Count Data'!A44,"AAAAAFo/e4o=") ->  | EJ5: =AND('Tally Count Data'!B44,"AAAAAFo/e4s=") ->  | EK5: =AND('Tally Count Data'!C44,"AAAAAFo/e4w=") ->  | EL5: =AND('Tally Count Data'!D44,"AAAAAFo/e40=") ->  | EM5: =AND('Tally Count Data'!E44,"AAAAAFo/e44=") ->  | EN5: =AND('Tally Count Data'!F44,"AAAAAFo/e48=") ->  | EO5: =AND('Tally Count Data'!G44,"AAAAAFo/e5A=") ->  | EP5: =AND('Tally Count Data'!H44,"AAAAAFo/e5E=") ->  | EQ5: =AND('Tally Count Data'!I44,"AAAAAFo/e5I=") ->  | ER5: =AND('Tally Count Data'!J44,"AAAAAFo/e5M=") ->  | ES5: =AND('Tally Count Data'!K44,"AAAAAFo/e5Q=") ->  | ET5: =AND('Tally Count Data'!L44,"AAAAAFo/e5U=") ->  | EU5: =AND('Tally Count Data'!M44,"AAAAAFo/e5Y=") ->  | EV5: =AND('Tally Count Data'!N44,"AAAAAFo/e5c=") ->  | EW5: =AND('Tally Count Data'!O44,"AAAAAFo/e5g=") ->  | EX5: =AND('Tally Count Data'!P44,"AAAAAFo/e5k=") ->  | EY5: =AND('Tally Count Data'!Q44,"AAAAAFo/e5o=") ->  | EZ5: =AND('Tally Count Data'!R44,"AAAAAFo/e5s=") ->  | FA5: =AND('Tally Count Data'!S44,"AAAAAFo/e5w=") ->  | FB5: =AND('Tally Count Data'!T44,"AAAAAFo/e50=") ->  | FC5: =AND('Tally Count Data'!U44,"AAAAAFo/e54=") ->  | FD5: =AND('Tally Count Data'!V44,"AAAAAFo/e58=") ->  | FE5: =AND('Tally Count Data'!W44,"AAAAAFo/e6A=") ->  | FF5: =AND('Tally Count Data'!X44,"AAAAAFo/e6E=") ->  | FG5: =AND('Tally Count Data'!Y44,"AAAAAFo/e6I=") ->  | FH5: =AND('Tally Count Data'!Z44,"AAAAAFo/e6M=") ->  | FI5: =IF('Tally Count Data'!45:45,"AAAAAFo/e6Q=",0) -> 0 | FJ5: =AND('Tally Count Data'!A45,"AAAAAFo/e6U=") ->  | FK5: =AND('Tally Count Data'!B45,"AAAAAFo/e6Y=") ->  | FL5: =AND('Tally Count Data'!C45,"AAAAAFo/e6c=") ->  | FM5: =AND('Tally Count Data'!D45,"AAAAAFo/e6g=") ->  | FN5: =AND('Tally Count Data'!E45,"AAAAAFo/e6k=") ->  | FO5: =AND('Tally Count Data'!F45,"AAAAAFo/e6o=") ->  | FP5: =AND('Tally Count Data'!G45,"AAAAAFo/e6s=") ->  | FQ5: =AND('Tally Count Data'!H45,"AAAAAFo/e6w=") ->  | FR5: =AND('Tally Count Data'!I45,"AAAAAFo/e60=") ->  | FS5: =AND('Tally Count Data'!J45,"AAAAAFo/e64=") ->  | FT5: =AND('Tally Count Data'!K45,"AAAAAFo/e68=") ->  | FU5: =AND('Tally Count Data'!L45,"AAAAAFo/e7A=") ->  | FV5: =AND('Tally Count Data'!M45,"AAAAAFo/e7E=") ->  | FW5: =AND('Tally Count Data'!N45,"AAAAAFo/e7I=") ->  | FX5: =AND('Tally Count Data'!O45,"AAAAAFo/e7M=") ->  | FY5: =AND('Tally Count Data'!P45,"AAAAAFo/e7Q=") ->  | FZ5: =AND('Tally Count Data'!Q45,"AAAAAFo/e7U=") ->  | GA5: =AND('Tally Count Data'!R45,"AAAAAFo/e7Y=") ->  | GB5: =AND('Tally Count Data'!S45,"AAAAAFo/e7c=") ->  | GC5: =AND('Tally Count Data'!T45,"AAAAAFo/e7g=") ->  | GD5: =AND('Tally Count Data'!U45,"AAAAAFo/e7k=") ->  | GE5: =AND('Tally Count Data'!V45,"AAAAAFo/e7o=") ->  | GF5: =AND('Tally Count Data'!W45,"AAAAAFo/e7s=") ->  | GG5: =AND('Tally Count Data'!X45,"AAAAAFo/e7w=") ->  | GH5: =AND('Tally Count Data'!Y45,"AAAAAFo/e70=") ->  | GI5: =AND('Tally Count Data'!Z45,"AAAAAFo/e74=") ->  | GJ5: =IF('Tally Count Data'!46:46,"AAAAAFo/e78=",0) -> 0 | GK5: =AND('Tally Count Data'!A46,"AAAAAFo/e8A=") ->  | GL5: =AND('Tally Count Data'!B46,"AAAAAFo/e8E=") ->  | GM5: =AND('Tally Count Data'!C46,"AAAAAFo/e8I=") ->  | GN5: =AND('Tally Count Data'!D46,"AAAAAFo/e8M=") ->  | GO5: =AND('Tally Count Data'!E46,"AAAAAFo/e8Q=") ->  | GP5: =AND('Tally Count Data'!F46,"AAAAAFo/e8U=") ->  | GQ5: =AND('Tally Count Data'!G46,"AAAAAFo/e8Y=") ->  | GR5: =AND('Tally Count Data'!H46,"AAAAAFo/e8c=") ->  | GS5: =AND('Tally Count Data'!I46,"AAAAAFo/e8g=") ->  | GT5: =AND('Tally Count Data'!J46,"AAAAAFo/e8k=") ->  | GU5: =AND('Tally Count Data'!K46,"AAAAAFo/e8o=") ->  | GV5: =AND('Tally Count Data'!L46,"AAAAAFo/e8s=") ->  | GW5: =AND('Tally Count Data'!M46,"AAAAAFo/e8w=") ->  | GX5: =AND('Tally Count Data'!N46,"AAAAAFo/e80=") ->  | GY5: =AND('Tally Count Data'!O46,"AAAAAFo/e84=") ->  | GZ5: =AND('Tally Count Data'!P46,"AAAAAFo/e88=") ->  | HA5: =AND('Tally Count Data'!Q46,"AAAAAFo/e9A=") ->  | HB5: =AND('Tally Count Data'!R46,"AAAAAFo/e9E=") ->  | HC5: =AND('Tally Count Data'!S46,"AAAAAFo/e9I=") ->  | HD5: =AND('Tally Count Data'!T46,"AAAAAFo/e9M=") ->  | HE5: =AND('Tally Count Data'!U46,"AAAAAFo/e9Q=") ->  | HF5: =AND('Tally Count Data'!V46,"AAAAAFo/e9U=") ->  | HG5: =AND('Tally Count Data'!W46,"AAAAAFo/e9Y=") ->  | HH5: =AND('Tally Count Data'!X46,"AAAAAFo/e9c=") ->  | HI5: =AND('Tally Count Data'!Y46,"AAAAAFo/e9g=") ->  | HJ5: =AND('Tally Count Data'!Z46,"AAAAAFo/e9k=") ->  | HK5: =IF('Tally Count Data'!47:47,"AAAAAFo/e9o=",0) -> 0 | HL5: =AND('Tally Count Data'!A47,"AAAAAFo/e9s=") ->  | HM5: =AND('Tally Count Data'!B47,"AAAAAFo/e9w=") ->  | HN5: =AND('Tally Count Data'!C47,"AAAAAFo/e90=") ->  | HO5: =AND('Tally Count Data'!D47,"AAAAAFo/e94=") ->  | HP5: =AND('Tally Count Data'!E47,"AAAAAFo/e98=") ->  | HQ5: =AND('Tally Count Data'!F47,"AAAAAFo/e+A=") ->  | HR5: =AND('Tally Count Data'!G47,"AAAAAFo/e+E=") ->  | HS5: =AND('Tally Count Data'!H47,"AAAAAFo/e+I=") ->  | HT5: =AND('Tally Count Data'!I47,"AAAAAFo/e+M=") ->  | HU5: =AND('Tally Count Data'!J47,"AAAAAFo/e+Q=") ->  | HV5: =AND('Tally Count Data'!K47,"AAAAAFo/e+U=") ->  | HW5: =AND('Tally Count Data'!L47,"AAAAAFo/e+Y=") ->  | HX5: =AND('Tally Count Data'!M47,"AAAAAFo/e+c=") ->  | HY5: =AND('Tally Count Data'!N47,"AAAAAFo/e+g=") ->  | HZ5: =AND('Tally Count Data'!O47,"AAAAAFo/e+k=") ->  | IA5: =AND('Tally Count Data'!P47,"AAAAAFo/e+o=") ->  | IB5: =AND('Tally Count Data'!Q47,"AAAAAFo/e+s=") ->  | IC5: =AND('Tally Count Data'!R47,"AAAAAFo/e+w=") ->  | ID5: =AND('Tally Count Data'!S47,"AAAAAFo/e+0=") ->  | IE5: =AND('Tally Count Data'!T47,"AAAAAFo/e+4=") ->  | IF5: =AND('Tally Count Data'!U47,"AAAAAFo/e+8=") ->  | IG5: =AND('Tally Count Data'!V47,"AAAAAFo/e/A=") ->  | IH5: =AND('Tally Count Data'!W47,"AAAAAFo/e/E=") ->  | II5: =AND('Tally Count Data'!X47,"AAAAAFo/e/I=") ->  | IJ5: =AND('Tally Count Data'!Y47,"AAAAAFo/e/M=") ->  | IK5: =AND('Tally Count Data'!Z47,"AAAAAFo/e/Q=") ->  | IL5: =IF('Tally Count Data'!48:48,"AAAAAFo/e/U=",0) -> 0 | IM5: =AND('Tally Count Data'!A48,"AAAAAFo/e/Y=") ->  | IN5: =AND('Tally Count Data'!B48,"AAAAAFo/e/c=") ->  | IO5: =AND('Tally Count Data'!C48,"AAAAAFo/e/g=") ->  | IP5: =AND('Tally Count Data'!D48,"AAAAAFo/e/k=") ->  | IQ5: =AND('Tally Count Data'!E48,"AAAAAFo/e/o=") ->  | IR5: =AND('Tally Count Data'!F48,"AAAAAFo/e/s=") ->  | IS5: =AND('Tally Count Data'!G48,"AAAAAFo/e/w=") ->  | IT5: =AND('Tally Count Data'!H48,"AAAAAFo/e/0=") ->  | IU5: =AND('Tally Count Data'!I48,"AAAAAFo/e/4=") ->  | IV5: =AND('Tally Count Data'!J48,"AAAAAFo/e/8=") -> 
A6: =AND('Tally Count Data'!K48,"AAAAAF/s3wA=") ->  | B6: =AND('Tally Count Data'!L48,"AAAAAF/s3wE=") ->  | C6: =AND('Tally Count Data'!M48,"AAAAAF/s3wI=") ->  | D6: =AND('Tally Count Data'!N48,"AAAAAF/s3wM=") ->  | E6: =AND('Tally Count Data'!O48,"AAAAAF/s3wQ=") ->  | F6: =AND('Tally Count Data'!P48,"AAAAAF/s3wU=") ->  | G6: =AND('Tally Count Data'!Q48,"AAAAAF/s3wY=") ->  | H6: =AND('Tally Count Data'!R48,"AAAAAF/s3wc=") ->  | I6: =AND('Tally Count Data'!S48,"AAAAAF/s3wg=") ->  | J6: =AND('Tally Count Data'!T48,"AAAAAF/s3wk=") ->  | K6: =AND('Tally Count Data'!U48,"AAAAAF/s3wo=") ->  | L6: =AND('Tally Count Data'!V48,"AAAAAF/s3ws=") ->  | M6: =AND('Tally Count Data'!W48,"AAAAAF/s3ww=") ->  | N6: =AND('Tally Count Data'!X48,"AAAAAF/s3w0=") ->  | O6: =AND('Tally Count Data'!Y48,"AAAAAF/s3w4=") ->  | P6: =AND('Tally Count Data'!Z48,"AAAAAF/s3w8=") ->  | Q6: =IF('Tally Count Data'!49:49,"AAAAAF/s3xA=",0) -> 0 | R6: =AND('Tally Count Data'!A49,"AAAAAF/s3xE=") ->  | S6: =AND('Tally Count Data'!B49,"AAAAAF/s3xI=") ->  | T6: =AND('Tally Count Data'!C49,"AAAAAF/s3xM=") ->  | U6: =AND('Tally Count Data'!D49,"AAAAAF/s3xQ=") ->  | V6: =AND('Tally Count Data'!E49,"AAAAAF/s3xU=") ->  | W6: =AND('Tally Count Data'!F49,"AAAAAF/s3xY=") ->  | X6: =AND('Tally Count Data'!G49,"AAAAAF/s3xc=") ->  | Y6: =AND('Tally Count Data'!H49,"AAAAAF/s3xg=") ->  | Z6: =AND('Tally Count Data'!I49,"AAAAAF/s3xk=") ->  | AA6: =AND('Tally Count Data'!J49,"AAAAAF/s3xo=") ->  | AB6: =AND('Tally Count Data'!K49,"AAAAAF/s3xs=") ->  | AC6: =AND('Tally Count Data'!L49,"AAAAAF/s3xw=") ->  | AD6: =AND('Tally Count Data'!M49,"AAAAAF/s3x0=") ->  | AE6: =AND('Tally Count Data'!N49,"AAAAAF/s3x4=") ->  | AF6: =AND('Tally Count Data'!O49,"AAAAAF/s3x8=") ->  | AG6: =AND('Tally Count Data'!P49,"AAAAAF/s3yA=") ->  | AH6: =AND('Tally Count Data'!Q49,"AAAAAF/s3yE=") ->  | AI6: =AND('Tally Count Data'!R49,"AAAAAF/s3yI=") ->  | AJ6: =AND('Tally Count Data'!S49,"AAAAAF/s3yM=") ->  | AK6: =AND('Tally Count Data'!T49,"AAAAAF/s3yQ=") ->  | AL6: =AND('Tally Count Data'!U49,"AAAAAF/s3yU=") ->  | AM6: =AND('Tally Count Data'!V49,"AAAAAF/s3yY=") ->  | AN6: =AND('Tally Count Data'!W49,"AAAAAF/s3yc=") ->  | AO6: =AND('Tally Count Data'!X49,"AAAAAF/s3yg=") ->  | AP6: =AND('Tally Count Data'!Y49,"AAAAAF/s3yk=") ->  | AQ6: =AND('Tally Count Data'!Z49,"AAAAAF/s3yo=") ->  | AR6: =IF('Tally Count Data'!50:50,"AAAAAF/s3ys=",0) -> 0 | AS6: =AND('Tally Count Data'!A50,"AAAAAF/s3yw=") ->  | AT6: =AND('Tally Count Data'!B50,"AAAAAF/s3y0=") ->  | AU6: =AND('Tally Count Data'!C50,"AAAAAF/s3y4=") ->  | AV6: =AND('Tally Count Data'!D50,"AAAAAF/s3y8=") ->  | AW6: =AND('Tally Count Data'!E50,"AAAAAF/s3zA=") ->  | AX6: =AND('Tally Count Data'!F50,"AAAAAF/s3zE=") ->  | AY6: =AND('Tally Count Data'!G50,"AAAAAF/s3zI=") ->  | AZ6: =AND('Tally Count Data'!H50,"AAAAAF/s3zM=") ->  | BA6: =AND('Tally Count Data'!I50,"AAAAAF/s3zQ=") ->  | BB6: =AND('Tally Count Data'!J50,"AAAAAF/s3zU=") ->  | BC6: =AND('Tally Count Data'!K50,"AAAAAF/s3zY=") ->  | BD6: =AND('Tally Count Data'!L50,"AAAAAF/s3zc=") ->  | BE6: =AND('Tally Count Data'!M50,"AAAAAF/s3zg=") ->  | BF6: =AND('Tally Count Data'!N50,"AAAAAF/s3zk=") ->  | BG6: =AND('Tally Count Data'!O50,"AAAAAF/s3zo=") ->  | BH6: =AND('Tally Count Data'!P50,"AAAAAF/s3zs=") ->  | BI6: =AND('Tally Count Data'!Q50,"AAAAAF/s3zw=") ->  | BJ6: =AND('Tally Count Data'!R50,"AAAAAF/s3z0=") ->  | BK6: =AND('Tally Count Data'!S50,"AAAAAF/s3z4=") ->  | BL6: =AND('Tally Count Data'!T50,"AAAAAF/s3z8=") ->  | BM6: =AND('Tally Count Data'!U50,"AAAAAF/s30A=") ->  | BN6: =AND('Tally Count Data'!V50,"AAAAAF/s30E=") ->  | BO6: =AND('Tally Count Data'!W50,"AAAAAF/s30I=") ->  | BP6: =AND('Tally Count Data'!X50,"AAAAAF/s30M=") ->  | BQ6: =AND('Tally Count Data'!Y50,"AAAAAF/s30Q=") ->  | BR6: =AND('Tally Count Data'!Z50,"AAAAAF/s30U=") ->  | BS6: =IF('Tally Count Data'!51:51,"AAAAAF/s30Y=",0) -> 0 | BT6: =AND('Tally Count Data'!A51,"AAAAAF/s30c=") ->  | BU6: =AND('Tally Count Data'!B51,"AAAAAF/s30g=") ->  | BV6: =AND('Tally Count Data'!C51,"AAAAAF/s30k=") ->  | BW6: =AND('Tally Count Data'!D51,"AAAAAF/s30o=") ->  | BX6: =AND('Tally Count Data'!E51,"AAAAAF/s30s=") ->  | BY6: =AND('Tally Count Data'!F51,"AAAAAF/s30w=") ->  | BZ6: =AND('Tally Count Data'!G51,"AAAAAF/s300=") ->  | CA6: =AND('Tally Count Data'!H51,"AAAAAF/s304=") ->  | CB6: =AND('Tally Count Data'!I51,"AAAAAF/s308=") ->  | CC6: =AND('Tally Count Data'!J51,"AAAAAF/s31A=") ->  | CD6: =AND('Tally Count Data'!K51,"AAAAAF/s31E=") ->  | CE6: =AND('Tally Count Data'!L51,"AAAAAF/s31I=") ->  | CF6: =AND('Tally Count Data'!M51,"AAAAAF/s31M=") ->  | CG6: =AND('Tally Count Data'!N51,"AAAAAF/s31Q=") ->  | CH6: =AND('Tally Count Data'!O51,"AAAAAF/s31U=") ->  | CI6: =AND('Tally Count Data'!P51,"AAAAAF/s31Y=") ->  | CJ6: =AND('Tally Count Data'!Q51,"AAAAAF/s31c=") ->  | CK6: =AND('Tally Count Data'!R51,"AAAAAF/s31g=") ->  | CL6: =AND('Tally Count Data'!S51,"AAAAAF/s31k=") ->  | CM6: =AND('Tally Count Data'!T51,"AAAAAF/s31o=") ->  | CN6: =AND('Tally Count Data'!U51,"AAAAAF/s31s=") ->  | CO6: =AND('Tally Count Data'!V51,"AAAAAF/s31w=") ->  | CP6: =AND('Tally Count Data'!W51,"AAAAAF/s310=") ->  | CQ6: =AND('Tally Count Data'!X51,"AAAAAF/s314=") ->  | CR6: =AND('Tally Count Data'!Y51,"AAAAAF/s318=") ->  | CS6: =AND('Tally Count Data'!Z51,"AAAAAF/s32A=") ->  | CT6: =IF('Tally Count Data'!52:52,"AAAAAF/s32E=",0) -> 0 | CU6: =AND('Tally Count Data'!A52,"AAAAAF/s32I=") ->  | CV6: =AND('Tally Count Data'!B52,"AAAAAF/s32M=") ->  | CW6: =AND('Tally Count Data'!C52,"AAAAAF/s32Q=") ->  | CX6: =AND('Tally Count Data'!D52,"AAAAAF/s32U=") ->  | CY6: =AND('Tally Count Data'!E52,"AAAAAF/s32Y=") ->  | CZ6: =AND('Tally Count Data'!F52,"AAAAAF/s32c=") ->  | DA6: =AND('Tally Count Data'!G52,"AAAAAF/s32g=") ->  | DB6: =AND('Tally Count Data'!H52,"AAAAAF/s32k=") ->  | DC6: =AND('Tally Count Data'!I52,"AAAAAF/s32o=") ->  | DD6: =AND('Tally Count Data'!J52,"AAAAAF/s32s=") ->  | DE6: =AND('Tally Count Data'!K52,"AAAAAF/s32w=") ->  | DF6: =AND('Tally Count Data'!L52,"AAAAAF/s320=") ->  | DG6: =AND('Tally Count Data'!M52,"AAAAAF/s324=") ->  | DH6: =AND('Tally Count Data'!N52,"AAAAAF/s328=") ->  | DI6: =AND('Tally Count Data'!O52,"AAAAAF/s33A=") ->  | DJ6: =AND('Tally Count Data'!P52,"AAAAAF/s33E=") ->  | DK6: =AND('Tally Count Data'!Q52,"AAAAAF/s33I=") ->  | DL6: =AND('Tally Count Data'!R52,"AAAAAF/s33M=") ->  | DM6: =AND('Tally Count Data'!S52,"AAAAAF/s33Q=") ->  | DN6: =AND('Tally Count Data'!T52,"AAAAAF/s33U=") ->  | DO6: =AND('Tally Count Data'!U52,"AAAAAF/s33Y=") ->  | DP6: =AND('Tally Count Data'!V52,"AAAAAF/s33c=") ->  | DQ6: =AND('Tally Count Data'!W52,"AAAAAF/s33g=") ->  | DR6: =AND('Tally Count Data'!X52,"AAAAAF/s33k=") ->  | DS6: =AND('Tally Count Data'!Y52,"AAAAAF/s33o=") ->  | DT6: =AND('Tally Count Data'!Z52,"AAAAAF/s33s=") ->  | DU6: =IF('Tally Count Data'!53:53,"AAAAAF/s33w=",0) -> 0 | DV6: =AND('Tally Count Data'!A53,"AAAAAF/s330=") ->  | DW6: =AND('Tally Count Data'!B53,"AAAAAF/s334=") ->  | DX6: =AND('Tally Count Data'!C53,"AAAAAF/s338=") ->  | DY6: =AND('Tally Count Data'!D53,"AAAAAF/s34A=") ->  | DZ6: =AND('Tally Count Data'!E53,"AAAAAF/s34E=") ->  | EA6: =AND('Tally Count Data'!F53,"AAAAAF/s34I=") ->  | EB6: =AND('Tally Count Data'!G53,"AAAAAF/s34M=") ->  | EC6: =AND('Tally Count Data'!H53,"AAAAAF/s34Q=") ->  | ED6: =AND('Tally Count Data'!I53,"AAAAAF/s34U=") ->  | EE6: =AND('Tally Count Data'!J53,"AAAAAF/s34Y=") ->  | EF6: =AND('Tally Count Data'!K53,"AAAAAF/s34c=") ->  | EG6: =AND('Tally Count Data'!L53,"AAAAAF/s34g=") ->  | EH6: =AND('Tally Count Data'!M53,"AAAAAF/s34k=") ->  | EI6: =AND('Tally Count Data'!N53,"AAAAAF/s34o=") ->  | EJ6: =AND('Tally Count Data'!O53,"AAAAAF/s34s=") ->  | EK6: =AND('Tally Count Data'!P53,"AAAAAF/s34w=") ->  | EL6: =AND('Tally Count Data'!Q53,"AAAAAF/s340=") ->  | EM6: =AND('Tally Count Data'!R53,"AAAAAF/s344=") ->  | EN6: =AND('Tally Count Data'!S53,"AAAAAF/s348=") ->  | EO6: =AND('Tally Count Data'!T53,"AAAAAF/s35A=") ->  | EP6: =AND('Tally Count Data'!U53,"AAAAAF/s35E=") ->  | EQ6: =AND('Tally Count Data'!V53,"AAAAAF/s35I=") ->  | ER6: =AND('Tally Count Data'!W53,"AAAAAF/s35M=") ->  | ES6: =AND('Tally Count Data'!X53,"AAAAAF/s35Q=") ->  | ET6: =AND('Tally Count Data'!Y53,"AAAAAF/s35U=") ->  | EU6: =AND('Tally Count Data'!Z53,"AAAAAF/s35Y=") ->  | EV6: =IF('Tally Count Data'!54:54,"AAAAAF/s35c=",0) -> 0 | EW6: =AND('Tally Count Data'!A54,"AAAAAF/s35g=") ->  | EX6: =AND('Tally Count Data'!B54,"AAAAAF/s35k=") ->  | EY6: =AND('Tally Count Data'!C54,"AAAAAF/s35o=") ->  | EZ6: =AND('Tally Count Data'!D54,"AAAAAF/s35s=") ->  | FA6: =AND('Tally Count Data'!E54,"AAAAAF/s35w=") ->  | FB6: =AND('Tally Count Data'!F54,"AAAAAF/s350=") ->  | FC6: =AND('Tally Count Data'!G54,"AAAAAF/s354=") ->  | FD6: =AND('Tally Count Data'!H54,"AAAAAF/s358=") ->  | FE6: =AND('Tally Count Data'!I54,"AAAAAF/s36A=") ->  | FF6: =AND('Tally Count Data'!J54,"AAAAAF/s36E=") ->  | FG6: =AND('Tally Count Data'!K54,"AAAAAF/s36I=") ->  | FH6: =AND('Tally Count Data'!L54,"AAAAAF/s36M=") ->  | FI6: =AND('Tally Count Data'!M54,"AAAAAF/s36Q=") ->  | FJ6: =AND('Tally Count Data'!N54,"AAAAAF/s36U=") ->  | FK6: =AND('Tally Count Data'!O54,"AAAAAF/s36Y=") ->  | FL6: =AND('Tally Count Data'!P54,"AAAAAF/s36c=") ->  | FM6: =AND('Tally Count Data'!Q54,"AAAAAF/s36g=") ->  | FN6: =AND('Tally Count Data'!R54,"AAAAAF/s36k=") ->  | FO6: =AND('Tally Count Data'!S54,"AAAAAF/s36o=") ->  | FP6: =AND('Tally Count Data'!T54,"AAAAAF/s36s=") ->  | FQ6: =AND('Tally Count Data'!U54,"AAAAAF/s36w=") ->  | FR6: =AND('Tally Count Data'!V54,"AAAAAF/s360=") ->  | FS6: =AND('Tally Count Data'!W54,"AAAAAF/s364=") ->  | FT6: =AND('Tally Count Data'!X54,"AAAAAF/s368=") ->  | FU6: =AND('Tally Count Data'!Y54,"AAAAAF/s37A=") ->  | FV6: =AND('Tally Count Data'!Z54,"AAAAAF/s37E=") ->  | FW6: =IF('Tally Count Data'!55:55,"AAAAAF/s37I=",0) -> 0 | FX6: =AND('Tally Count Data'!A55,"AAAAAF/s37M=") ->  | FY6: =AND('Tally Count Data'!B55,"AAAAAF/s37Q=") ->  | FZ6: =AND('Tally Count Data'!C55,"AAAAAF/s37U=") ->  | GA6: =AND('Tally Count Data'!D55,"AAAAAF/s37Y=") ->  | GB6: =AND('Tally Count Data'!E55,"AAAAAF/s37c=") ->  | GC6: =AND('Tally Count Data'!F55,"AAAAAF/s37g=") ->  | GD6: =AND('Tally Count Data'!G55,"AAAAAF/s37k=") ->  | GE6: =AND('Tally Count Data'!H55,"AAAAAF/s37o=") ->  | GF6: =AND('Tally Count Data'!I55,"AAAAAF/s37s=") ->  | GG6: =AND('Tally Count Data'!J55,"AAAAAF/s37w=") ->  | GH6: =AND('Tally Count Data'!K55,"AAAAAF/s370=") ->  | GI6: =AND('Tally Count Data'!L55,"AAAAAF/s374=") ->  | GJ6: =AND('Tally Count Data'!M55,"AAAAAF/s378=") ->  | GK6: =AND('Tally Count Data'!N55,"AAAAAF/s38A=") ->  | GL6: =AND('Tally Count Data'!O55,"AAAAAF/s38E=") ->  | GM6: =AND('Tally Count Data'!P55,"AAAAAF/s38I=") ->  | GN6: =AND('Tally Count Data'!Q55,"AAAAAF/s38M=") ->  | GO6: =AND('Tally Count Data'!R55,"AAAAAF/s38Q=") ->  | GP6: =AND('Tally Count Data'!S55,"AAAAAF/s38U=") ->  | GQ6: =AND('Tally Count Data'!T55,"AAAAAF/s38Y=") ->  | GR6: =AND('Tally Count Data'!U55,"AAAAAF/s38c=") ->  | GS6: =AND('Tally Count Data'!V55,"AAAAAF/s38g=") ->  | GT6: =AND('Tally Count Data'!W55,"AAAAAF/s38k=") ->  | GU6: =AND('Tally Count Data'!X55,"AAAAAF/s38o=") ->  | GV6: =AND('Tally Count Data'!Y55,"AAAAAF/s38s=") ->  | GW6: =AND('Tally Count Data'!Z55,"AAAAAF/s38w=") ->  | GX6: =IF('Tally Count Data'!56:56,"AAAAAF/s380=",0) -> 0 | GY6: =AND('Tally Count Data'!A56,"AAAAAF/s384=") ->  | GZ6: =AND('Tally Count Data'!B56,"AAAAAF/s388=") ->  | HA6: =AND('Tally Count Data'!C56,"AAAAAF/s39A=") ->  | HB6: =AND('Tally Count Data'!D56,"AAAAAF/s39E=") ->  | HC6: =AND('Tally Count Data'!E56,"AAAAAF/s39I=") ->  | HD6: =AND('Tally Count Data'!F56,"AAAAAF/s39M=") ->  | HE6: =AND('Tally Count Data'!G56,"AAAAAF/s39Q=") ->  | HF6: =AND('Tally Count Data'!H56,"AAAAAF/s39U=") ->  | HG6: =AND('Tally Count Data'!I56,"AAAAAF/s39Y=") ->  | HH6: =AND('Tally Count Data'!J56,"AAAAAF/s39c=") ->  | HI6: =AND('Tally Count Data'!K56,"AAAAAF/s39g=") ->  | HJ6: =AND('Tally Count Data'!L56,"AAAAAF/s39k=") ->  | HK6: =AND('Tally Count Data'!M56,"AAAAAF/s39o=") ->  | HL6: =AND('Tally Count Data'!N56,"AAAAAF/s39s=") ->  | HM6: =AND('Tally Count Data'!O56,"AAAAAF/s39w=") ->  | HN6: =AND('Tally Count Data'!P56,"AAAAAF/s390=") ->  | HO6: =AND('Tally Count Data'!Q56,"AAAAAF/s394=") ->  | HP6: =AND('Tally Count Data'!R56,"AAAAAF/s398=") ->  | HQ6: =AND('Tally Count Data'!S56,"AAAAAF/s3+A=") ->  | HR6: =AND('Tally Count Data'!T56,"AAAAAF/s3+E=") ->  | HS6: =AND('Tally Count Data'!U56,"AAAAAF/s3+I=") ->  | HT6: =AND('Tally Count Data'!V56,"AAAAAF/s3+M=") ->  | HU6: =AND('Tally Count Data'!W56,"AAAAAF/s3+Q=") ->  | HV6: =AND('Tally Count Data'!X56,"AAAAAF/s3+U=") ->  | HW6: =AND('Tally Count Data'!Y56,"AAAAAF/s3+Y=") ->  | HX6: =AND('Tally Count Data'!Z56,"AAAAAF/s3+c=") ->  | HY6: =IF('Tally Count Data'!57:57,"AAAAAF/s3+g=",0) -> 0 | HZ6: =AND('Tally Count Data'!A57,"AAAAAF/s3+k=") ->  | IA6: =AND('Tally Count Data'!B57,"AAAAAF/s3+o=") ->  | IB6: =AND('Tally Count Data'!C57,"AAAAAF/s3+s=") ->  | IC6: =AND('Tally Count Data'!D57,"AAAAAF/s3+w=") ->  | ID6: =AND('Tally Count Data'!E57,"AAAAAF/s3+0=") ->  | IE6: =AND('Tally Count Data'!F57,"AAAAAF/s3+4=") ->  | IF6: =AND('Tally Count Data'!G57,"AAAAAF/s3+8=") ->  | IG6: =AND('Tally Count Data'!H57,"AAAAAF/s3/A=") ->  | IH6: =AND('Tally Count Data'!I57,"AAAAAF/s3/E=") ->  | II6: =AND('Tally Count Data'!J57,"AAAAAF/s3/I=") ->  | IJ6: =AND('Tally Count Data'!K57,"AAAAAF/s3/M=") ->  | IK6: =AND('Tally Count Data'!L57,"AAAAAF/s3/Q=") ->  | IL6: =AND('Tally Count Data'!M57,"AAAAAF/s3/U=") ->  | IM6: =AND('Tally Count Data'!N57,"AAAAAF/s3/Y=") ->  | IN6: =AND('Tally Count Data'!O57,"AAAAAF/s3/c=") ->  | IO6: =AND('Tally Count Data'!P57,"AAAAAF/s3/g=") ->  | IP6: =AND('Tally Count Data'!Q57,"AAAAAF/s3/k=") ->  | IQ6: =AND('Tally Count Data'!R57,"AAAAAF/s3/o=") ->  | IR6: =AND('Tally Count Data'!S57,"AAAAAF/s3/s=") ->  | IS6: =AND('Tally Count Data'!T57,"AAAAAF/s3/w=") ->  | IT6: =AND('Tally Count Data'!U57,"AAAAAF/s3/0=") ->  | IU6: =AND('Tally Count Data'!V57,"AAAAAF/s3/4=") ->  | IV6: =AND('Tally Count Data'!W57,"AAAAAF/s3/8=") -> 
A7: =AND('Tally Count Data'!X57,"AAAAAGt97gA=") ->  | B7: =AND('Tally Count Data'!Y57,"AAAAAGt97gE=") ->  | C7: =AND('Tally Count Data'!Z57,"AAAAAGt97gI=") ->  | D7: =IF('Tally Count Data'!58:58,"AAAAAGt97gM=",0) -> AAAAAGt97gM= | E7: =AND('Tally Count Data'!A58,"AAAAAGt97gQ=") ->  | F7: =AND('Tally Count Data'!B58,"AAAAAGt97gU=") ->  | G7: =AND('Tally Count Data'!C58,"AAAAAGt97gY=") ->  | H7: =AND('Tally Count Data'!D58,"AAAAAGt97gc=") ->  | I7: =AND('Tally Count Data'!E58,"AAAAAGt97gg=") ->  | J7: =AND('Tally Count Data'!F58,"AAAAAGt97gk=") ->  | K7: =AND('Tally Count Data'!G58,"AAAAAGt97go=") ->  | L7: =AND('Tally Count Data'!H58,"AAAAAGt97gs=") ->  | M7: =AND('Tally Count Data'!I58,"AAAAAGt97gw=") ->  | N7: =AND('Tally Count Data'!J58,"AAAAAGt97g0=") ->  | O7: =AND('Tally Count Data'!K58,"AAAAAGt97g4=") ->  | P7: =AND('Tally Count Data'!L58,"AAAAAGt97g8=") ->  | Q7: =AND('Tally Count Data'!M58,"AAAAAGt97hA=") ->  | R7: =AND('Tally Count Data'!N58,"AAAAAGt97hE=") ->  | S7: =AND('Tally Count Data'!O58,"AAAAAGt97hI=") ->  | T7: =AND('Tally Count Data'!P58,"AAAAAGt97hM=") ->  | U7: =AND('Tally Count Data'!Q58,"AAAAAGt97hQ=") ->  | V7: =AND('Tally Count Data'!R58,"AAAAAGt97hU=") ->  | W7: =AND('Tally Count Data'!S58,"AAAAAGt97hY=") ->  | X7: =AND('Tally Count Data'!T58,"AAAAAGt97hc=") ->  | Y7: =AND('Tally Count Data'!U58,"AAAAAGt97hg=") ->  | Z7: =AND('Tally Count Data'!V58,"AAAAAGt97hk=") ->  | AA7: =AND('Tally Count Data'!W58,"AAAAAGt97ho=") ->  | AB7: =AND('Tally Count Data'!X58,"AAAAAGt97hs=") ->  | AC7: =AND('Tally Count Data'!Y58,"AAAAAGt97hw=") ->  | AD7: =AND('Tally Count Data'!Z58,"AAAAAGt97h0=") ->  | AE7: =IF('Tally Count Data'!59:59,"AAAAAGt97h4=",0) -> 0 | AF7: =AND('Tally Count Data'!A59,"AAAAAGt97h8=") ->  | AG7: =AND('Tally Count Data'!B59,"AAAAAGt97iA=") ->  | AH7: =AND('Tally Count Data'!C59,"AAAAAGt97iE=") ->  | AI7: =AND('Tally Count Data'!D59,"AAAAAGt97iI=") ->  | AJ7: =AND('Tally Count Data'!E59,"AAAAAGt97iM=") ->  | AK7: =AND('Tally Count Data'!F59,"AAAAAGt97iQ=") ->  | AL7: =AND('Tally Count Data'!G59,"AAAAAGt97iU=") ->  | AM7: =AND('Tally Count Data'!H59,"AAAAAGt97iY=") ->  | AN7: =AND('Tally Count Data'!I59,"AAAAAGt97ic=") ->  | AO7: =AND('Tally Count Data'!J59,"AAAAAGt97ig=") ->  | AP7: =AND('Tally Count Data'!K59,"AAAAAGt97ik=") ->  | AQ7: =AND('Tally Count Data'!L59,"AAAAAGt97io=") ->  | AR7: =AND('Tally Count Data'!M59,"AAAAAGt97is=") ->  | AS7: =AND('Tally Count Data'!N59,"AAAAAGt97iw=") ->  | AT7: =AND('Tally Count Data'!O59,"AAAAAGt97i0=") ->  | AU7: =AND('Tally Count Data'!P59,"AAAAAGt97i4=") ->  | AV7: =AND('Tally Count Data'!Q59,"AAAAAGt97i8=") ->  | AW7: =AND('Tally Count Data'!R59,"AAAAAGt97jA=") ->  | AX7: =AND('Tally Count Data'!S59,"AAAAAGt97jE=") ->  | AY7: =AND('Tally Count Data'!T59,"AAAAAGt97jI=") ->  | AZ7: =AND('Tally Count Data'!U59,"AAAAAGt97jM=") ->  | BA7: =AND('Tally Count Data'!V59,"AAAAAGt97jQ=") ->  | BB7: =AND('Tally Count Data'!W59,"AAAAAGt97jU=") ->  | BC7: =AND('Tally Count Data'!X59,"AAAAAGt97jY=") ->  | BD7: =AND('Tally Count Data'!Y59,"AAAAAGt97jc=") ->  | BE7: =AND('Tally Count Data'!Z59,"AAAAAGt97jg=") ->  | BF7: =IF('Tally Count Data'!60:60,"AAAAAGt97jk=",0) -> 0 | BG7: =AND('Tally Count Data'!A60,"AAAAAGt97jo=") ->  | BH7: =AND('Tally Count Data'!B60,"AAAAAGt97js=") ->  | BI7: =AND('Tally Count Data'!C60,"AAAAAGt97jw=") ->  | BJ7: =AND('Tally Count Data'!D60,"AAAAAGt97j0=") ->  | BK7: =AND('Tally Count Data'!E60,"AAAAAGt97j4=") ->  | BL7: =AND('Tally Count Data'!F60,"AAAAAGt97j8=") ->  | BM7: =AND('Tally Count Data'!G60,"AAAAAGt97kA=") ->  | BN7: =AND('Tally Count Data'!H60,"AAAAAGt97kE=") ->  | BO7: =AND('Tally Count Data'!I60,"AAAAAGt97kI=") ->  | BP7: =AND('Tally Count Data'!J60,"AAAAAGt97kM=") ->  | BQ7: =AND('Tally Count Data'!K60,"AAAAAGt97kQ=") ->  | BR7: =AND('Tally Count Data'!L60,"AAAAAGt97kU=") ->  | BS7: =AND('Tally Count Data'!M60,"AAAAAGt97kY=") ->  | BT7: =AND('Tally Count Data'!N60,"AAAAAGt97kc=") ->  | BU7: =AND('Tally Count Data'!O60,"AAAAAGt97kg=") ->  | BV7: =AND('Tally Count Data'!P60,"AAAAAGt97kk=") ->  | BW7: =AND('Tally Count Data'!Q60,"AAAAAGt97ko=") ->  | BX7: =AND('Tally Count Data'!R60,"AAAAAGt97ks=") ->  | BY7: =AND('Tally Count Data'!S60,"AAAAAGt97kw=") ->  | BZ7: =AND('Tally Count Data'!T60,"AAAAAGt97k0=") ->  | CA7: =AND('Tally Count Data'!U60,"AAAAAGt97k4=") ->  | CB7: =AND('Tally Count Data'!V60,"AAAAAGt97k8=") ->  | CC7: =AND('Tally Count Data'!W60,"AAAAAGt97lA=") ->  | CD7: =AND('Tally Count Data'!X60,"AAAAAGt97lE=") ->  | CE7: =AND('Tally Count Data'!Y60,"AAAAAGt97lI=") ->  | CF7: =AND('Tally Count Data'!Z60,"AAAAAGt97lM=") ->  | CG7: =IF('Tally Count Data'!61:61,"AAAAAGt97lQ=",0) -> 0 | CH7: =AND('Tally Count Data'!A61,"AAAAAGt97lU=") ->  | CI7: =AND('Tally Count Data'!B61,"AAAAAGt97lY=") ->  | CJ7: =AND('Tally Count Data'!C61,"AAAAAGt97lc=") ->  | CK7: =AND('Tally Count Data'!D61,"AAAAAGt97lg=") ->  | CL7: =AND('Tally Count Data'!E61,"AAAAAGt97lk=") ->  | CM7: =AND('Tally Count Data'!F61,"AAAAAGt97lo=") ->  | CN7: =AND('Tally Count Data'!G61,"AAAAAGt97ls=") ->  | CO7: =AND('Tally Count Data'!H61,"AAAAAGt97lw=") ->  | CP7: =AND('Tally Count Data'!I61,"AAAAAGt97l0=") ->  | CQ7: =AND('Tally Count Data'!J61,"AAAAAGt97l4=") ->  | CR7: =AND('Tally Count Data'!K61,"AAAAAGt97l8=") ->  | CS7: =AND('Tally Count Data'!L61,"AAAAAGt97mA=") ->  | CT7: =AND('Tally Count Data'!M61,"AAAAAGt97mE=") ->  | CU7: =AND('Tally Count Data'!N61,"AAAAAGt97mI=") ->  | CV7: =AND('Tally Count Data'!O61,"AAAAAGt97mM=") ->  | CW7: =AND('Tally Count Data'!P61,"AAAAAGt97mQ=") ->  | CX7: =AND('Tally Count Data'!Q61,"AAAAAGt97mU=") ->  | CY7: =AND('Tally Count Data'!R61,"AAAAAGt97mY=") ->  | CZ7: =AND('Tally Count Data'!S61,"AAAAAGt97mc=") ->  | DA7: =AND('Tally Count Data'!T61,"AAAAAGt97mg=") ->  | DB7: =AND('Tally Count Data'!U61,"AAAAAGt97mk=") ->  | DC7: =AND('Tally Count Data'!V61,"AAAAAGt97mo=") ->  | DD7: =AND('Tally Count Data'!W61,"AAAAAGt97ms=") ->  | DE7: =AND('Tally Count Data'!X61,"AAAAAGt97mw=") ->  | DF7: =AND('Tally Count Data'!Y61,"AAAAAGt97m0=") ->  | DG7: =AND('Tally Count Data'!Z61,"AAAAAGt97m4=") ->  | DH7: =IF('Tally Count Data'!62:62,"AAAAAGt97m8=",0) -> 0 | DI7: =AND('Tally Count Data'!A62,"AAAAAGt97nA=") ->  | DJ7: =AND('Tally Count Data'!B62,"AAAAAGt97nE=") ->  | DK7: =AND('Tally Count Data'!C62,"AAAAAGt97nI=") ->  | DL7: =AND('Tally Count Data'!D62,"AAAAAGt97nM=") ->  | DM7: =AND('Tally Count Data'!E62,"AAAAAGt97nQ=") ->  | DN7: =AND('Tally Count Data'!F62,"AAAAAGt97nU=") ->  | DO7: =AND('Tally Count Data'!G62,"AAAAAGt97nY=") ->  | DP7: =AND('Tally Count Data'!H62,"AAAAAGt97nc=") ->  | DQ7: =AND('Tally Count Data'!I62,"AAAAAGt97ng=") ->  | DR7: =AND('Tally Count Data'!J62,"AAAAAGt97nk=") ->  | DS7: =AND('Tally Count Data'!K62,"AAAAAGt97no=") ->  | DT7: =AND('Tally Count Data'!L62,"AAAAAGt97ns=") ->  | DU7: =AND('Tally Count Data'!M62,"AAAAAGt97nw=") ->  | DV7: =AND('Tally Count Data'!N62,"AAAAAGt97n0=") ->  | DW7: =AND('Tally Count Data'!O62,"AAAAAGt97n4=") ->  | DX7: =AND('Tally Count Data'!P62,"AAAAAGt97n8=") ->  | DY7: =AND('Tally Count Data'!Q62,"AAAAAGt97oA=") ->  | DZ7: =AND('Tally Count Data'!R62,"AAAAAGt97oE=") ->  | EA7: =AND('Tally Count Data'!S62,"AAAAAGt97oI=") ->  | EB7: =AND('Tally Count Data'!T62,"AAAAAGt97oM=") ->  | EC7: =AND('Tally Count Data'!U62,"AAAAAGt97oQ=") ->  | ED7: =AND('Tally Count Data'!V62,"AAAAAGt97oU=") ->  | EE7: =AND('Tally Count Data'!W62,"AAAAAGt97oY=") ->  | EF7: =AND('Tally Count Data'!X62,"AAAAAGt97oc=") ->  | EG7: =AND('Tally Count Data'!Y62,"AAAAAGt97og=") ->  | EH7: =AND('Tally Count Data'!Z62,"AAAAAGt97ok=") ->  | EI7: =IF('Tally Count Data'!63:63,"AAAAAGt97oo=",0) -> 0 | EJ7: =AND('Tally Count Data'!A63,"AAAAAGt97os=") ->  | EK7: =AND('Tally Count Data'!B63,"AAAAAGt97ow=") ->  | EL7: =AND('Tally Count Data'!C63,"AAAAAGt97o0=") ->  | EM7: =AND('Tally Count Data'!D63,"AAAAAGt97o4=") ->  | EN7: =AND('Tally Count Data'!E63,"AAAAAGt97o8=") ->  | EO7: =AND('Tally Count Data'!F63,"AAAAAGt97pA=") ->  | EP7: =AND('Tally Count Data'!G63,"AAAAAGt97pE=") ->  | EQ7: =AND('Tally Count Data'!H63,"AAAAAGt97pI=") ->  | ER7: =AND('Tally Count Data'!I63,"AAAAAGt97pM=") ->  | ES7: =AND('Tally Count Data'!J63,"AAAAAGt97pQ=") ->  | ET7: =AND('Tally Count Data'!K63,"AAAAAGt97pU=") ->  | EU7: =AND('Tally Count Data'!L63,"AAAAAGt97pY=") ->  | EV7: =AND('Tally Count Data'!M63,"AAAAAGt97pc=") ->  | EW7: =AND('Tally Count Data'!N63,"AAAAAGt97pg=") ->  | EX7: =AND('Tally Count Data'!O63,"AAAAAGt97pk=") ->  | EY7: =AND('Tally Count Data'!P63,"AAAAAGt97po=") ->  | EZ7: =AND('Tally Count Data'!Q63,"AAAAAGt97ps=") ->  | FA7: =AND('Tally Count Data'!R63,"AAAAAGt97pw=") ->  | FB7: =AND('Tally Count Data'!S63,"AAAAAGt97p0=") ->  | FC7: =AND('Tally Count Data'!T63,"AAAAAGt97p4=") ->  | FD7: =AND('Tally Count Data'!U63,"AAAAAGt97p8=") ->  | FE7: =AND('Tally Count Data'!V63,"AAAAAGt97qA=") ->  | FF7: =AND('Tally Count Data'!W63,"AAAAAGt97qE=") ->  | FG7: =AND('Tally Count Data'!X63,"AAAAAGt97qI=") ->  | FH7: =AND('Tally Count Data'!Y63,"AAAAAGt97qM=") ->  | FI7: =AND('Tally Count Data'!Z63,"AAAAAGt97qQ=") ->  | FJ7: =IF('Tally Count Data'!64:64,"AAAAAGt97qU=",0) -> 0 | FK7: =AND('Tally Count Data'!A64,"AAAAAGt97qY=") ->  | FL7: =AND('Tally Count Data'!B64,"AAAAAGt97qc=") ->  | FM7: =AND('Tally Count Data'!C64,"AAAAAGt97qg=") ->  | FN7: =AND('Tally Count Data'!D64,"AAAAAGt97qk=") ->  | FO7: =AND('Tally Count Data'!E64,"AAAAAGt97qo=") ->  | FP7: =AND('Tally Count Data'!F64,"AAAAAGt97qs=") ->  | FQ7: =AND('Tally Count Data'!G64,"AAAAAGt97qw=") ->  | FR7: =AND('Tally Count Data'!H64,"AAAAAGt97q0=") ->  | FS7: =AND('Tally Count Data'!I64,"AAAAAGt97q4=") ->  | FT7: =AND('Tally Count Data'!J64,"AAAAAGt97q8=") ->  | FU7: =AND('Tally Count Data'!K64,"AAAAAGt97rA=") ->  | FV7: =AND('Tally Count Data'!L64,"AAAAAGt97rE=") ->  | FW7: =AND('Tally Count Data'!M64,"AAAAAGt97rI=") ->  | FX7: =AND('Tally Count Data'!N64,"AAAAAGt97rM=") ->  | FY7: =AND('Tally Count Data'!O64,"AAAAAGt97rQ=") ->  | FZ7: =AND('Tally Count Data'!P64,"AAAAAGt97rU=") ->  | GA7: =AND('Tally Count Data'!Q64,"AAAAAGt97rY=") ->  | GB7: =AND('Tally Count Data'!R64,"AAAAAGt97rc=") ->  | GC7: =AND('Tally Count Data'!S64,"AAAAAGt97rg=") ->  | GD7: =AND('Tally Count Data'!T64,"AAAAAGt97rk=") ->  | GE7: =AND('Tally Count Data'!U64,"AAAAAGt97ro=") ->  | GF7: =AND('Tally Count Data'!V64,"AAAAAGt97rs=") ->  | GG7: =AND('Tally Count Data'!W64,"AAAAAGt97rw=") ->  | GH7: =AND('Tally Count Data'!X64,"AAAAAGt97r0=") ->  | GI7: =AND('Tally Count Data'!Y64,"AAAAAGt97r4=") ->  | GJ7: =AND('Tally Count Data'!Z64,"AAAAAGt97r8=") ->  | GK7: =IF('Tally Count Data'!65:65,"AAAAAGt97sA=",0) -> 0 | GL7: =AND('Tally Count Data'!A65,"AAAAAGt97sE=") ->  | GM7: =AND('Tally Count Data'!B65,"AAAAAGt97sI=") ->  | GN7: =AND('Tally Count Data'!C65,"AAAAAGt97sM=") ->  | GO7: =AND('Tally Count Data'!D65,"AAAAAGt97sQ=") ->  | GP7: =AND('Tally Count Data'!E65,"AAAAAGt97sU=") ->  | GQ7: =AND('Tally Count Data'!F65,"AAAAAGt97sY=") ->  | GR7: =AND('Tally Count Data'!G65,"AAAAAGt97sc=") ->  | GS7: =AND('Tally Count Data'!H65,"AAAAAGt97sg=") ->  | GT7: =AND('Tally Count Data'!I65,"AAAAAGt97sk=") ->  | GU7: =AND('Tally Count Data'!J65,"AAAAAGt97so=") ->  | GV7: =AND('Tally Count Data'!K65,"AAAAAGt97ss=") ->  | GW7: =AND('Tally Count Data'!L65,"AAAAAGt97sw=") ->  | GX7: =AND('Tally Count Data'!M65,"AAAAAGt97s0=") ->  | GY7: =AND('Tally Count Data'!N65,"AAAAAGt97s4=") ->  | GZ7: =AND('Tally Count Data'!O65,"AAAAAGt97s8=") ->  | HA7: =AND('Tally Count Data'!P65,"AAAAAGt97tA=") ->  | HB7: =AND('Tally Count Data'!Q65,"AAAAAGt97tE=") ->  | HC7: =AND('Tally Count Data'!R65,"AAAAAGt97tI=") ->  | HD7: =AND('Tally Count Data'!S65,"AAAAAGt97tM=") ->  | HE7: =AND('Tally Count Data'!T65,"AAAAAGt97tQ=") ->  | HF7: =AND('Tally Count Data'!U65,"AAAAAGt97tU=") ->  | HG7: =AND('Tally Count Data'!V65,"AAAAAGt97tY=") ->  | HH7: =AND('Tally Count Data'!W65,"AAAAAGt97tc=") ->  | HI7: =AND('Tally Count Data'!X65,"AAAAAGt97tg=") ->  | HJ7: =AND('Tally Count Data'!Y65,"AAAAAGt97tk=") ->  | HK7: =AND('Tally Count Data'!Z65,"AAAAAGt97to=") ->  | HL7: =IF('Tally Count Data'!66:66,"AAAAAGt97ts=",0) -> 0 | HM7: =AND('Tally Count Data'!A66,"AAAAAGt97tw=") ->  | HN7: =AND('Tally Count Data'!B66,"AAAAAGt97t0=") ->  | HO7: =AND('Tally Count Data'!C66,"AAAAAGt97t4=") ->  | HP7: =AND('Tally Count Data'!D66,"AAAAAGt97t8=") ->  | HQ7: =AND('Tally Count Data'!E66,"AAAAAGt97uA=") ->  | HR7: =AND('Tally Count Data'!F66,"AAAAAGt97uE=") ->  | HS7: =AND('Tally Count Data'!G66,"AAAAAGt97uI=") ->  | HT7: =AND('Tally Count Data'!H66,"AAAAAGt97uM=") ->  | HU7: =AND('Tally Count Data'!I66,"AAAAAGt97uQ=") ->  | HV7: =AND('Tally Count Data'!J66,"AAAAAGt97uU=") ->  | HW7: =AND('Tally Count Data'!K66,"AAAAAGt97uY=") ->  | HX7: =AND('Tally Count Data'!L66,"AAAAAGt97uc=") ->  | HY7: =AND('Tally Count Data'!M66,"AAAAAGt97ug=") ->  | HZ7: =AND('Tally Count Data'!N66,"AAAAAGt97uk=") ->  | IA7: =AND('Tally Count Data'!O66,"AAAAAGt97uo=") ->  | IB7: =AND('Tally Count Data'!P66,"AAAAAGt97us=") ->  | IC7: =AND('Tally Count Data'!Q66,"AAAAAGt97uw=") ->  | ID7: =AND('Tally Count Data'!R66,"AAAAAGt97u0=") ->  | IE7: =AND('Tally Count Data'!S66,"AAAAAGt97u4=") ->  | IF7: =AND('Tally Count Data'!T66,"AAAAAGt97u8=") ->  | IG7: =AND('Tally Count Data'!U66,"AAAAAGt97vA=") ->  | IH7: =AND('Tally Count Data'!V66,"AAAAAGt97vE=") ->  | II7: =AND('Tally Count Data'!W66,"AAAAAGt97vI=") ->  | IJ7: =AND('Tally Count Data'!X66,"AAAAAGt97vM=") ->  | IK7: =AND('Tally Count Data'!Y66,"AAAAAGt97vQ=") ->  | IL7: =AND('Tally Count Data'!Z66,"AAAAAGt97vU=") ->  | IM7: =IF('Tally Count Data'!67:67,"AAAAAGt97vY=",0) -> 0 | IN7: =AND('Tally Count Data'!A67,"AAAAAGt97vc=") ->  | IO7: =AND('Tally Count Data'!B67,"AAAAAGt97vg=") ->  | IP7: =AND('Tally Count Data'!C67,"AAAAAGt97vk=") ->  | IQ7: =AND('Tally Count Data'!D67,"AAAAAGt97vo=") ->  | IR7: =AND('Tally Count Data'!E67,"AAAAAGt97vs=") ->  | IS7: =AND('Tally Count Data'!F67,"AAAAAGt97vw=") ->  | IT7: =AND('Tally Count Data'!G67,"AAAAAGt97v0=") ->  | IU7: =AND('Tally Count Data'!H67,"AAAAAGt97v4=") ->  | IV7: =AND('Tally Count Data'!I67,"AAAAAGt97v8=") -> 
A8: =AND('Tally Count Data'!J67,"AAAAAE/u/wA=") ->  | B8: =AND('Tally Count Data'!K67,"AAAAAE/u/wE=") ->  | C8: =AND('Tally Count Data'!L67,"AAAAAE/u/wI=") ->  | D8: =AND('Tally Count Data'!M67,"AAAAAE/u/wM=") ->  | E8: =AND('Tally Count Data'!N67,"AAAAAE/u/wQ=") ->  | F8: =AND('Tally Count Data'!O67,"AAAAAE/u/wU=") ->  | G8: =AND('Tally Count Data'!P67,"AAAAAE/u/wY=") ->  | H8: =AND('Tally Count Data'!Q67,"AAAAAE/u/wc=") ->  | I8: =AND('Tally Count Data'!R67,"AAAAAE/u/wg=") ->  | J8: =AND('Tally Count Data'!S67,"AAAAAE/u/wk=") ->  | K8: =AND('Tally Count Data'!T67,"AAAAAE/u/wo=") ->  | L8: =AND('Tally Count Data'!U67,"AAAAAE/u/ws=") ->  | M8: =AND('Tally Count Data'!V67,"AAAAAE/u/ww=") ->  | N8: =AND('Tally Count Data'!W67,"AAAAAE/u/w0=") ->  | O8: =AND('Tally Count Data'!X67,"AAAAAE/u/w4=") ->  | P8: =AND('Tally Count Data'!Y67,"AAAAAE/u/w8=") ->  | Q8: =AND('Tally Count Data'!Z67,"AAAAAE/u/xA=") ->  | R8: =IF('Tally Count Data'!68:68,"AAAAAE/u/xE=",0) -> 0 | S8: =AND('Tally Count Data'!A68,"AAAAAE/u/xI=") ->  | T8: =AND('Tally Count Data'!B68,"AAAAAE/u/xM=") ->  | U8: =AND('Tally Count Data'!C68,"AAAAAE/u/xQ=") ->  | V8: =AND('Tally Count Data'!D68,"AAAAAE/u/xU=") ->  | W8: =AND('Tally Count Data'!E68,"AAAAAE/u/xY=") ->  | X8: =AND('Tally Count Data'!F68,"AAAAAE/u/xc=") ->  | Y8: =AND('Tally Count Data'!G68,"AAAAAE/u/xg=") ->  | Z8: =AND('Tally Count Data'!H68,"AAAAAE/u/xk=") ->  | AA8: =AND('Tally Count Data'!I68,"AAAAAE/u/xo=") ->  | AB8: =AND('Tally Count Data'!J68,"AAAAAE/u/xs=") ->  | AC8: =AND('Tally Count Data'!K68,"AAAAAE/u/xw=") ->  | AD8: =AND('Tally Count Data'!L68,"AAAAAE/u/x0=") ->  | AE8: =AND('Tally Count Data'!M68,"AAAAAE/u/x4=") ->  | AF8: =AND('Tally Count Data'!N68,"AAAAAE/u/x8=") ->  | AG8: =AND('Tally Count Data'!O68,"AAAAAE/u/yA=") ->  | AH8: =AND('Tally Count Data'!P68,"AAAAAE/u/yE=") ->  | AI8: =AND('Tally Count Data'!Q68,"AAAAAE/u/yI=") ->  | AJ8: =AND('Tally Count Data'!R68,"AAAAAE/u/yM=") ->  | AK8: =AND('Tally Count Data'!S68,"AAAAAE/u/yQ=") ->  | AL8: =AND('Tally Count Data'!T68,"AAAAAE/u/yU=") ->  | AM8: =AND('Tally Count Data'!U68,"AAAAAE/u/yY=") ->  | AN8: =AND('Tally Count Data'!V68,"AAAAAE/u/yc=") ->  | AO8: =AND('Tally Count Data'!W68,"AAAAAE/u/yg=") ->  | AP8: =AND('Tally Count Data'!X68,"AAAAAE/u/yk=") ->  | AQ8: =AND('Tally Count Data'!Y68,"AAAAAE/u/yo=") ->  | AR8: =AND('Tally Count Data'!Z68,"AAAAAE/u/ys=") ->  | AS8: =IF('Tally Count Data'!69:69,"AAAAAE/u/yw=",0) -> 0 | AT8: =AND('Tally Count Data'!A69,"AAAAAE/u/y0=") ->  | AU8: =AND('Tally Count Data'!B69,"AAAAAE/u/y4=") ->  | AV8: =AND('Tally Count Data'!C69,"AAAAAE/u/y8=") ->  | AW8: =AND('Tally Count Data'!D69,"AAAAAE/u/zA=") ->  | AX8: =AND('Tally Count Data'!E69,"AAAAAE/u/zE=") ->  | AY8: =AND('Tally Count Data'!F69,"AAAAAE/u/zI=") ->  | AZ8: =AND('Tally Count Data'!G69,"AAAAAE/u/zM=") ->  | BA8: =AND('Tally Count Data'!H69,"AAAAAE/u/zQ=") ->  | BB8: =AND('Tally Count Data'!I69,"AAAAAE/u/zU=") ->  | BC8: =AND('Tally Count Data'!J69,"AAAAAE/u/zY=") ->  | BD8: =AND('Tally Count Data'!K69,"AAAAAE/u/zc=") ->  | BE8: =AND('Tally Count Data'!L69,"AAAAAE/u/zg=") ->  | BF8: =AND('Tally Count Data'!M69,"AAAAAE/u/zk=") ->  | BG8: =AND('Tally Count Data'!N69,"AAAAAE/u/zo=") ->  | BH8: =AND('Tally Count Data'!O69,"AAAAAE/u/zs=") ->  | BI8: =AND('Tally Count Data'!P69,"AAAAAE/u/zw=") ->  | BJ8: =AND('Tally Count Data'!Q69,"AAAAAE/u/z0=") ->  | BK8: =AND('Tally Count Data'!R69,"AAAAAE/u/z4=") ->  | BL8: =AND('Tally Count Data'!S69,"AAAAAE/u/z8=") ->  | BM8: =AND('Tally Count Data'!T69,"AAAAAE/u/0A=") ->  | BN8: =AND('Tally Count Data'!U69,"AAAAAE/u/0E=") ->  | BO8: =AND('Tally Count Data'!V69,"AAAAAE/u/0I=") ->  | BP8: =AND('Tally Count Data'!W69,"AAAAAE/u/0M=") ->  | BQ8: =AND('Tally Count Data'!X69,"AAAAAE/u/0Q=") ->  | BR8: =AND('Tally Count Data'!Y69,"AAAAAE/u/0U=") ->  | BS8: =AND('Tally Count Data'!Z69,"AAAAAE/u/0Y=") ->  | BT8: =IF('Tally Count Data'!70:70,"AAAAAE/u/0c=",0) -> 0 | BU8: =AND('Tally Count Data'!A70,"AAAAAE/u/0g=") ->  | BV8: =AND('Tally Count Data'!B70,"AAAAAE/u/0k=") ->  | BW8: =AND('Tally Count Data'!C70,"AAAAAE/u/0o=") ->  | BX8: =AND('Tally Count Data'!D70,"AAAAAE/u/0s=") ->  | BY8: =AND('Tally Count Data'!E70,"AAAAAE/u/0w=") ->  | BZ8: =AND('Tally Count Data'!F70,"AAAAAE/u/00=") ->  | CA8: =AND('Tally Count Data'!G70,"AAAAAE/u/04=") ->  | CB8: =AND('Tally Count Data'!H70,"AAAAAE/u/08=") ->  | CC8: =AND('Tally Count Data'!I70,"AAAAAE/u/1A=") ->  | CD8: =AND('Tally Count Data'!J70,"AAAAAE/u/1E=") ->  | CE8: =AND('Tally Count Data'!K70,"AAAAAE/u/1I=") ->  | CF8: =AND('Tally Count Data'!L70,"AAAAAE/u/1M=") ->  | CG8: =AND('Tally Count Data'!M70,"AAAAAE/u/1Q=") ->  | CH8: =AND('Tally Count Data'!N70,"AAAAAE/u/1U=") ->  | CI8: =AND('Tally Count Data'!O70,"AAAAAE/u/1Y=") ->  | CJ8: =AND('Tally Count Data'!P70,"AAAAAE/u/1c=") ->  | CK8: =AND('Tally Count Data'!Q70,"AAAAAE/u/1g=") ->  | CL8: =AND('Tally Count Data'!R70,"AAAAAE/u/1k=") ->  | CM8: =AND('Tally Count Data'!S70,"AAAAAE/u/1o=") ->  | CN8: =AND('Tally Count Data'!T70,"AAAAAE/u/1s=") ->  | CO8: =AND('Tally Count Data'!U70,"AAAAAE/u/1w=") ->  | CP8: =AND('Tally Count Data'!V70,"AAAAAE/u/10=") ->  | CQ8: =AND('Tally Count Data'!W70,"AAAAAE/u/14=") ->  | CR8: =AND('Tally Count Data'!X70,"AAAAAE/u/18=") ->  | CS8: =AND('Tally Count Data'!Y70,"AAAAAE/u/2A=") ->  | CT8: =AND('Tally Count Data'!Z70,"AAAAAE/u/2E=") ->  | CU8: =IF('Tally Count Data'!71:71,"AAAAAE/u/2I=",0) -> 0 | CV8: =AND('Tally Count Data'!A71,"AAAAAE/u/2M=") ->  | CW8: =AND('Tally Count Data'!B71,"AAAAAE/u/2Q=") ->  | CX8: =AND('Tally Count Data'!C71,"AAAAAE/u/2U=") ->  | CY8: =AND('Tally Count Data'!D71,"AAAAAE/u/2Y=") ->  | CZ8: =AND('Tally Count Data'!E71,"AAAAAE/u/2c=") ->  | DA8: =AND('Tally Count Data'!F71,"AAAAAE/u/2g=") ->  | DB8: =AND('Tally Count Data'!G71,"AAAAAE/u/2k=") ->  | DC8: =AND('Tally Count Data'!H71,"AAAAAE/u/2o=") ->  | DD8: =AND('Tally Count Data'!I71,"AAAAAE/u/2s=") ->  | DE8: =AND('Tally Count Data'!J71,"AAAAAE/u/2w=") ->  | DF8: =AND('Tally Count Data'!K71,"AAAAAE/u/20=") ->  | DG8: =AND('Tally Count Data'!L71,"AAAAAE/u/24=") ->  | DH8: =AND('Tally Count Data'!M71,"AAAAAE/u/28=") ->  | DI8: =AND('Tally Count Data'!N71,"AAAAAE/u/3A=") ->  | DJ8: =AND('Tally Count Data'!O71,"AAAAAE/u/3E=") ->  | DK8: =AND('Tally Count Data'!P71,"AAAAAE/u/3I=") ->  | DL8: =AND('Tally Count Data'!Q71,"AAAAAE/u/3M=") ->  | DM8: =AND('Tally Count Data'!R71,"AAAAAE/u/3Q=") ->  | DN8: =AND('Tally Count Data'!S71,"AAAAAE/u/3U=") ->  | DO8: =AND('Tally Count Data'!T71,"AAAAAE/u/3Y=") ->  | DP8: =AND('Tally Count Data'!U71,"AAAAAE/u/3c=") ->  | DQ8: =AND('Tally Count Data'!V71,"AAAAAE/u/3g=") ->  | DR8: =AND('Tally Count Data'!W71,"AAAAAE/u/3k=") ->  | DS8: =AND('Tally Count Data'!X71,"AAAAAE/u/3o=") ->  | DT8: =AND('Tally Count Data'!Y71,"AAAAAE/u/3s=") ->  | DU8: =AND('Tally Count Data'!Z71,"AAAAAE/u/3w=") ->  | DV8: =IF('Tally Count Data'!72:72,"AAAAAE/u/30=",0) -> 0 | DW8: =AND('Tally Count Data'!A72,"AAAAAE/u/34=") ->  | DX8: =AND('Tally Count Data'!B72,"AAAAAE/u/38=") ->  | DY8: =AND('Tally Count Data'!C72,"AAAAAE/u/4A=") ->  | DZ8: =AND('Tally Count Data'!D72,"AAAAAE/u/4E=") ->  | EA8: =AND('Tally Count Data'!E72,"AAAAAE/u/4I=") ->  | EB8: =AND('Tally Count Data'!F72,"AAAAAE/u/4M=") ->  | EC8: =AND('Tally Count Data'!G72,"AAAAAE/u/4Q=") ->  | ED8: =AND('Tally Count Data'!H72,"AAAAAE/u/4U=") ->  | EE8: =AND('Tally Count Data'!I72,"AAAAAE/u/4Y=") ->  | EF8: =AND('Tally Count Data'!J72,"AAAAAE/u/4c=") ->  | EG8: =AND('Tally Count Data'!K72,"AAAAAE/u/4g=") ->  | EH8: =AND('Tally Count Data'!L72,"AAAAAE/u/4k=") ->  | EI8: =AND('Tally Count Data'!M72,"AAAAAE/u/4o=") ->  | EJ8: =AND('Tally Count Data'!N72,"AAAAAE/u/4s=") ->  | EK8: =AND('Tally Count Data'!O72,"AAAAAE/u/4w=") ->  | EL8: =AND('Tally Count Data'!P72,"AAAAAE/u/40=") ->  | EM8: =AND('Tally Count Data'!Q72,"AAAAAE/u/44=") ->  | EN8: =AND('Tally Count Data'!R72,"AAAAAE/u/48=") ->  | EO8: =AND('Tally Count Data'!S72,"AAAAAE/u/5A=") ->  | EP8: =AND('Tally Count Data'!T72,"AAAAAE/u/5E=") ->  | EQ8: =AND('Tally Count Data'!U72,"AAAAAE/u/5I=") ->  | ER8: =AND('Tally Count Data'!V72,"AAAAAE/u/5M=") ->  | ES8: =AND('Tally Count Data'!W72,"AAAAAE/u/5Q=") ->  | ET8: =AND('Tally Count Data'!X72,"AAAAAE/u/5U=") ->  | EU8: =AND('Tally Count Data'!Y72,"AAAAAE/u/5Y=") ->  | EV8: =AND('Tally Count Data'!Z72,"AAAAAE/u/5c=") ->  | EW8: =IF('Tally Count Data'!73:73,"AAAAAE/u/5g=",0) -> 0 | EX8: =AND('Tally Count Data'!A73,"AAAAAE/u/5k=") ->  | EY8: =AND('Tally Count Data'!B73,"AAAAAE/u/5o=") ->  | EZ8: =AND('Tally Count Data'!C73,"AAAAAE/u/5s=") ->  | FA8: =AND('Tally Count Data'!D73,"AAAAAE/u/5w=") ->  | FB8: =AND('Tally Count Data'!E73,"AAAAAE/u/50=") ->  | FC8: =AND('Tally Count Data'!F73,"AAAAAE/u/54=") ->  | FD8: =AND('Tally Count Data'!G73,"AAAAAE/u/58=") ->  | FE8: =AND('Tally Count Data'!H73,"AAAAAE/u/6A=") ->  | FF8: =AND('Tally Count Data'!I73,"AAAAAE/u/6E=") ->  | FG8: =AND('Tally Count Data'!J73,"AAAAAE/u/6I=") ->  | FH8: =AND('Tally Count Data'!K73,"AAAAAE/u/6M=") ->  | FI8: =AND('Tally Count Data'!L73,"AAAAAE/u/6Q=") ->  | FJ8: =AND('Tally Count Data'!M73,"AAAAAE/u/6U=") ->  | FK8: =AND('Tally Count Data'!N73,"AAAAAE/u/6Y=") ->  | FL8: =AND('Tally Count Data'!O73,"AAAAAE/u/6c=") ->  | FM8: =AND('Tally Count Data'!P73,"AAAAAE/u/6g=") ->  | FN8: =AND('Tally Count Data'!Q73,"AAAAAE/u/6k=") ->  | FO8: =AND('Tally Count Data'!R73,"AAAAAE/u/6o=") ->  | FP8: =AND('Tally Count Data'!S73,"AAAAAE/u/6s=") ->  | FQ8: =AND('Tally Count Data'!T73,"AAAAAE/u/6w=") ->  | FR8: =AND('Tally Count Data'!U73,"AAAAAE/u/60=") ->  | FS8: =AND('Tally Count Data'!V73,"AAAAAE/u/64=") ->  | FT8: =AND('Tally Count Data'!W73,"AAAAAE/u/68=") ->  | FU8: =AND('Tally Count Data'!X73,"AAAAAE/u/7A=") ->  | FV8: =AND('Tally Count Data'!Y73,"AAAAAE/u/7E=") ->  | FW8: =AND('Tally Count Data'!Z73,"AAAAAE/u/7I=") ->  | FX8: =IF('Tally Count Data'!74:74,"AAAAAE/u/7M=",0) -> 0 | FY8: =AND('Tally Count Data'!A74,"AAAAAE/u/7Q=") ->  | FZ8: =AND('Tally Count Data'!B74,"AAAAAE/u/7U=") ->  | GA8: =AND('Tally Count Data'!C74,"AAAAAE/u/7Y=") ->  | GB8: =AND('Tally Count Data'!D74,"AAAAAE/u/7c=") ->  | GC8: =AND('Tally Count Data'!E74,"AAAAAE/u/7g=") ->  | GD8: =AND('Tally Count Data'!F74,"AAAAAE/u/7k=") ->  | GE8: =AND('Tally Count Data'!G74,"AAAAAE/u/7o=") ->  | GF8: =AND('Tally Count Data'!H74,"AAAAAE/u/7s=") ->  | GG8: =AND('Tally Count Data'!I74,"AAAAAE/u/7w=") ->  | GH8: =AND('Tally Count Data'!J74,"AAAAAE/u/70=") ->  | GI8: =AND('Tally Count Data'!K74,"AAAAAE/u/74=") ->  | GJ8: =AND('Tally Count Data'!L74,"AAAAAE/u/78=") ->  | GK8: =AND('Tally Count Data'!M74,"AAAAAE/u/8A=") ->  | GL8: =AND('Tally Count Data'!N74,"AAAAAE/u/8E=") ->  | GM8: =AND('Tally Count Data'!O74,"AAAAAE/u/8I=") ->  | GN8: =AND('Tally Count Data'!P74,"AAAAAE/u/8M=") ->  | GO8: =AND('Tally Count Data'!Q74,"AAAAAE/u/8Q=") ->  | GP8: =AND('Tally Count Data'!R74,"AAAAAE/u/8U=") ->  | GQ8: =AND('Tally Count Data'!S74,"AAAAAE/u/8Y=") ->  | GR8: =AND('Tally Count Data'!T74,"AAAAAE/u/8c=") ->  | GS8: =AND('Tally Count Data'!U74,"AAAAAE/u/8g=") ->  | GT8: =AND('Tally Count Data'!V74,"AAAAAE/u/8k=") ->  | GU8: =AND('Tally Count Data'!W74,"AAAAAE/u/8o=") ->  | GV8: =AND('Tally Count Data'!X74,"AAAAAE/u/8s=") ->  | GW8: =AND('Tally Count Data'!Y74,"AAAAAE/u/8w=") ->  | GX8: =AND('Tally Count Data'!Z74,"AAAAAE/u/80=") ->  | GY8: =IF('Tally Count Data'!75:75,"AAAAAE/u/84=",0) -> 0 | GZ8: =AND('Tally Count Data'!A75,"AAAAAE/u/88=") ->  | HA8: =AND('Tally Count Data'!B75,"AAAAAE/u/9A=") ->  | HB8: =AND('Tally Count Data'!C75,"AAAAAE/u/9E=") ->  | HC8: =AND('Tally Count Data'!D75,"AAAAAE/u/9I=") ->  | HD8: =AND('Tally Count Data'!E75,"AAAAAE/u/9M=") ->  | HE8: =AND('Tally Count Data'!F75,"AAAAAE/u/9Q=") ->  | HF8: =AND('Tally Count Data'!G75,"AAAAAE/u/9U=") ->  | HG8: =AND('Tally Count Data'!H75,"AAAAAE/u/9Y=") ->  | HH8: =AND('Tally Count Data'!I75,"AAAAAE/u/9c=") ->  | HI8: =AND('Tally Count Data'!J75,"AAAAAE/u/9g=") ->  | HJ8: =AND('Tally Count Data'!K75,"AAAAAE/u/9k=") ->  | HK8: =AND('Tally Count Data'!L75,"AAAAAE/u/9o=") ->  | HL8: =AND('Tally Count Data'!M75,"AAAAAE/u/9s=") ->  | HM8: =AND('Tally Count Data'!N75,"AAAAAE/u/9w=") ->  | HN8: =AND('Tally Count Data'!O75,"AAAAAE/u/90=") ->  | HO8: =AND('Tally Count Data'!P75,"AAAAAE/u/94=") ->  | HP8: =AND('Tally Count Data'!Q75,"AAAAAE/u/98=") ->  | HQ8: =AND('Tally Count Data'!R75,"AAAAAE/u/+A=") ->  | HR8: =AND('Tally Count Data'!S75,"AAAAAE/u/+E=") ->  | HS8: =AND('Tally Count Data'!T75,"AAAAAE/u/+I=") ->  | HT8: =AND('Tally Count Data'!U75,"AAAAAE/u/+M=") ->  | HU8: =AND('Tally Count Data'!V75,"AAAAAE/u/+Q=") ->  | HV8: =AND('Tally Count Data'!W75,"AAAAAE/u/+U=") ->  | HW8: =AND('Tally Count Data'!X75,"AAAAAE/u/+Y=") ->  | HX8: =AND('Tally Count Data'!Y75,"AAAAAE/u/+c=") ->  | HY8: =AND('Tally Count Data'!Z75,"AAAAAE/u/+g=") ->  | HZ8: =IF('Tally Count Data'!76:76,"AAAAAE/u/+k=",0) -> 0 | IA8: =AND('Tally Count Data'!A76,"AAAAAE/u/+o=") ->  | IB8: =AND('Tally Count Data'!B76,"AAAAAE/u/+s=") ->  | IC8: =AND('Tally Count Data'!C76,"AAAAAE/u/+w=") ->  | ID8: =AND('Tally Count Data'!D76,"AAAAAE/u/+0=") ->  | IE8: =AND('Tally Count Data'!E76,"AAAAAE/u/+4=") ->  | IF8: =AND('Tally Count Data'!F76,"AAAAAE/u/+8=") ->  | IG8: =AND('Tally Count Data'!G76,"AAAAAE/u//A=") ->  | IH8: =AND('Tally Count Data'!H76,"AAAAAE/u//E=") ->  | II8: =AND('Tally Count Data'!I76,"AAAAAE/u//I=") ->  | IJ8: =AND('Tally Count Data'!J76,"AAAAAE/u//M=") ->  | IK8: =AND('Tally Count Data'!K76,"AAAAAE/u//Q=") ->  | IL8: =AND('Tally Count Data'!L76,"AAAAAE/u//U=") ->  | IM8: =AND('Tally Count Data'!M76,"AAAAAE/u//Y=") ->  | IN8: =AND('Tally Count Data'!N76,"AAAAAE/u//c=") ->  | IO8: =AND('Tally Count Data'!O76,"AAAAAE/u//g=") ->  | IP8: =AND('Tally Count Data'!P76,"AAAAAE/u//k=") ->  | IQ8: =AND('Tally Count Data'!Q76,"AAAAAE/u//o=") ->  | IR8: =AND('Tally Count Data'!R76,"AAAAAE/u//s=") ->  | IS8: =AND('Tally Count Data'!S76,"AAAAAE/u//w=") ->  | IT8: =AND('Tally Count Data'!T76,"AAAAAE/u//0=") ->  | IU8: =AND('Tally Count Data'!U76,"AAAAAE/u//4=") ->  | IV8: =AND('Tally Count Data'!V76,"AAAAAE/u//8=") -> 
A9: =AND('Tally Count Data'!W76,"AAAAAAy/nwA=") ->  | B9: =AND('Tally Count Data'!X76,"AAAAAAy/nwE=") ->  | C9: =AND('Tally Count Data'!Y76,"AAAAAAy/nwI=") ->  | D9: =AND('Tally Count Data'!Z76,"AAAAAAy/nwM=") ->  | E9: =IF('Tally Count Data'!77:77,"AAAAAAy/nwQ=",0) -> 0 | F9: =AND('Tally Count Data'!A77,"AAAAAAy/nwU=") ->  | G9: =AND('Tally Count Data'!B77,"AAAAAAy/nwY=") ->  | H9: =AND('Tally Count Data'!C77,"AAAAAAy/nwc=") ->  | I9: =AND('Tally Count Data'!D77,"AAAAAAy/nwg=") ->  | J9: =AND('Tally Count Data'!E77,"AAAAAAy/nwk=") ->  | K9: =AND('Tally Count Data'!F77,"AAAAAAy/nwo=") ->  | L9: =AND('Tally Count Data'!G77,"AAAAAAy/nws=") ->  | M9: =AND('Tally Count Data'!H77,"AAAAAAy/nww=") ->  | N9: =AND('Tally Count Data'!I77,"AAAAAAy/nw0=") ->  | O9: =AND('Tally Count Data'!J77,"AAAAAAy/nw4=") ->  | P9: =AND('Tally Count Data'!K77,"AAAAAAy/nw8=") ->  | Q9: =AND('Tally Count Data'!L77,"AAAAAAy/nxA=") ->  | R9: =AND('Tally Count Data'!M77,"AAAAAAy/nxE=") ->  | S9: =AND('Tally Count Data'!N77,"AAAAAAy/nxI=") ->  | T9: =AND('Tally Count Data'!O77,"AAAAAAy/nxM=") ->  | U9: =AND('Tally Count Data'!P77,"AAAAAAy/nxQ=") ->  | V9: =AND('Tally Count Data'!Q77,"AAAAAAy/nxU=") ->  | W9: =AND('Tally Count Data'!R77,"AAAAAAy/nxY=") ->  | X9: =AND('Tally Count Data'!S77,"AAAAAAy/nxc=") ->  | Y9: =AND('Tally Count Data'!T77,"AAAAAAy/nxg=") ->  | Z9: =AND('Tally Count Data'!U77,"AAAAAAy/nxk=") ->  | AA9: =AND('Tally Count Data'!V77,"AAAAAAy/nxo=") ->  | AB9: =AND('Tally Count Data'!W77,"AAAAAAy/nxs=") ->  | AC9: =AND('Tally Count Data'!X77,"AAAAAAy/nxw=") ->  | AD9: =AND('Tally Count Data'!Y77,"AAAAAAy/nx0=") ->  | AE9: =AND('Tally Count Data'!Z77,"AAAAAAy/nx4=") ->  | AF9: =IF('Tally Count Data'!78:78,"AAAAAAy/nx8=",0) -> 0 | AG9: =AND('Tally Count Data'!A78,"AAAAAAy/nyA=") ->  | AH9: =AND('Tally Count Data'!B78,"AAAAAAy/nyE=") ->  | AI9: =AND('Tally Count Data'!C78,"AAAAAAy/nyI=") ->  | AJ9: =AND('Tally Count Data'!D78,"AAAAAAy/nyM=") ->  | AK9: =AND('Tally Count Data'!E78,"AAAAAAy/nyQ=") ->  | AL9: =AND('Tally Count Data'!F78,"AAAAAAy/nyU=") ->  | AM9: =AND('Tally Count Data'!G78,"AAAAAAy/nyY=") ->  | AN9: =AND('Tally Count Data'!H78,"AAAAAAy/nyc=") ->  | AO9: =AND('Tally Count Data'!I78,"AAAAAAy/nyg=") ->  | AP9: =AND('Tally Count Data'!J78,"AAAAAAy/nyk=") ->  | AQ9: =AND('Tally Count Data'!K78,"AAAAAAy/nyo=") ->  | AR9: =AND('Tally Count Data'!L78,"AAAAAAy/nys=") ->  | AS9: =AND('Tally Count Data'!M78,"AAAAAAy/nyw=") ->  | AT9: =AND('Tally Count Data'!N78,"AAAAAAy/ny0=") ->  | AU9: =AND('Tally Count Data'!O78,"AAAAAAy/ny4=") ->  | AV9: =AND('Tally Count Data'!P78,"AAAAAAy/ny8=") ->  | AW9: =AND('Tally Count Data'!Q78,"AAAAAAy/nzA=") ->  | AX9: =AND('Tally Count Data'!R78,"AAAAAAy/nzE=") ->  | AY9: =AND('Tally Count Data'!S78,"AAAAAAy/nzI=") ->  | AZ9: =AND('Tally Count Data'!T78,"AAAAAAy/nzM=") ->  | BA9: =AND('Tally Count Data'!U78,"AAAAAAy/nzQ=") ->  | BB9: =AND('Tally Count Data'!V78,"AAAAAAy/nzU=") ->  | BC9: =AND('Tally Count Data'!W78,"AAAAAAy/nzY=") ->  | BD9: =AND('Tally Count Data'!X78,"AAAAAAy/nzc=") ->  | BE9: =AND('Tally Count Data'!Y78,"AAAAAAy/nzg=") ->  | BF9: =AND('Tally Count Data'!Z78,"AAAAAAy/nzk=") ->  | BG9: =IF('Tally Count Data'!79:79,"AAAAAAy/nzo=",0) -> 0 | BH9: =AND('Tally Count Data'!A79,"AAAAAAy/nzs=") ->  | BI9: =AND('Tally Count Data'!B79,"AAAAAAy/nzw=") ->  | BJ9: =AND('Tally Count Data'!C79,"AAAAAAy/nz0=") ->  | BK9: =AND('Tally Count Data'!D79,"AAAAAAy/nz4=") ->  | BL9: =AND('Tally Count Data'!E79,"AAAAAAy/nz8=") ->  | BM9: =AND('Tally Count Data'!F79,"AAAAAAy/n0A=") ->  | BN9: =AND('Tally Count Data'!G79,"AAAAAAy/n0E=") ->  | BO9: =AND('Tally Count Data'!H79,"AAAAAAy/n0I=") ->  | BP9: =AND('Tally Count Data'!I79,"AAAAAAy/n0M=") ->  | BQ9: =AND('Tally Count Data'!J79,"AAAAAAy/n0Q=") ->  | BR9: =AND('Tally Count Data'!K79,"AAAAAAy/n0U=") ->  | BS9: =AND('Tally Count Data'!L79,"AAAAAAy/n0Y=") ->  | BT9: =AND('Tally Count Data'!M79,"AAAAAAy/n0c=") ->  | BU9: =AND('Tally Count Data'!N79,"AAAAAAy/n0g=") ->  | BV9: =AND('Tally Count Data'!O79,"AAAAAAy/n0k=") ->  | BW9: =AND('Tally Count Data'!P79,"AAAAAAy/n0o=") ->  | BX9: =AND('Tally Count Data'!Q79,"AAAAAAy/n0s=") ->  | BY9: =AND('Tally Count Data'!R79,"AAAAAAy/n0w=") ->  | BZ9: =AND('Tally Count Data'!S79,"AAAAAAy/n00=") ->  | CA9: =AND('Tally Count Data'!T79,"AAAAAAy/n04=") ->  | CB9: =AND('Tally Count Data'!U79,"AAAAAAy/n08=") ->  | CC9: =AND('Tally Count Data'!V79,"AAAAAAy/n1A=") ->  | CD9: =AND('Tally Count Data'!W79,"AAAAAAy/n1E=") ->  | CE9: =AND('Tally Count Data'!X79,"AAAAAAy/n1I=") ->  | CF9: =AND('Tally Count Data'!Y79,"AAAAAAy/n1M=") ->  | CG9: =AND('Tally Count Data'!Z79,"AAAAAAy/n1Q=") ->  | CH9: =IF('Tally Count Data'!80:80,"AAAAAAy/n1U=",0) -> 0 | CI9: =AND('Tally Count Data'!A80,"AAAAAAy/n1Y=") ->  | CJ9: =AND('Tally Count Data'!B80,"AAAAAAy/n1c=") ->  | CK9: =AND('Tally Count Data'!C80,"AAAAAAy/n1g=") ->  | CL9: =AND('Tally Count Data'!D80,"AAAAAAy/n1k=") ->  | CM9: =AND('Tally Count Data'!E80,"AAAAAAy/n1o=") ->  | CN9: =AND('Tally Count Data'!F80,"AAAAAAy/n1s=") ->  | CO9: =AND('Tally Count Data'!G80,"AAAAAAy/n1w=") ->  | CP9: =AND('Tally Count Data'!H80,"AAAAAAy/n10=") ->  | CQ9: =AND('Tally Count Data'!I80,"AAAAAAy/n14=") ->  | CR9: =AND('Tally Count Data'!J80,"AAAAAAy/n18=") ->  | CS9: =AND('Tally Count Data'!K80,"AAAAAAy/n2A=") ->  | CT9: =AND('Tally Count Data'!L80,"AAAAAAy/n2E=") ->  | CU9: =AND('Tally Count Data'!M80,"AAAAAAy/n2I=") ->  | CV9: =AND('Tally Count Data'!N80,"AAAAAAy/n2M=") ->  | CW9: =AND('Tally Count Data'!O80,"AAAAAAy/n2Q=") ->  | CX9: =AND('Tally Count Data'!P80,"AAAAAAy/n2U=") ->  | CY9: =AND('Tally Count Data'!Q80,"AAAAAAy/n2Y=") ->  | CZ9: =AND('Tally Count Data'!R80,"AAAAAAy/n2c=") ->  | DA9: =AND('Tally Count Data'!S80,"AAAAAAy/n2g=") ->  | DB9: =AND('Tally Count Data'!T80,"AAAAAAy/n2k=") ->  | DC9: =AND('Tally Count Data'!U80,"AAAAAAy/n2o=") ->  | DD9: =AND('Tally Count Data'!V80,"AAAAAAy/n2s=") ->  | DE9: =AND('Tally Count Data'!W80,"AAAAAAy/n2w=") ->  | DF9: =AND('Tally Count Data'!X80,"AAAAAAy/n20=") ->  | DG9: =AND('Tally Count Data'!Y80,"AAAAAAy/n24=") ->  | DH9: =AND('Tally Count Data'!Z80,"AAAAAAy/n28=") ->  | DI9: =IF('Tally Count Data'!81:81,"AAAAAAy/n3A=",0) -> 0 | DJ9: =AND('Tally Count Data'!A81,"AAAAAAy/n3E=") ->  | DK9: =AND('Tally Count Data'!B81,"AAAAAAy/n3I=") ->  | DL9: =AND('Tally Count Data'!C81,"AAAAAAy/n3M=") ->  | DM9: =AND('Tally Count Data'!D81,"AAAAAAy/n3Q=") ->  | DN9: =AND('Tally Count Data'!E81,"AAAAAAy/n3U=") ->  | DO9: =AND('Tally Count Data'!F81,"AAAAAAy/n3Y=") ->  | DP9: =AND('Tally Count Data'!G81,"AAAAAAy/n3c=") ->  | DQ9: =AND('Tally Count Data'!H81,"AAAAAAy/n3g=") ->  | DR9: =AND('Tally Count Data'!I81,"AAAAAAy/n3k=") ->  | DS9: =AND('Tally Count Data'!J81,"AAAAAAy/n3o=") ->  | DT9: =AND('Tally Count Data'!K81,"AAAAAAy/n3s=") ->  | DU9: =AND('Tally Count Data'!L81,"AAAAAAy/n3w=") ->  | DV9: =AND('Tally Count Data'!M81,"AAAAAAy/n30=") ->  | DW9: =AND('Tally Count Data'!N81,"AAAAAAy/n34=") ->  | DX9: =AND('Tally Count Data'!O81,"AAAAAAy/n38=") ->  | DY9: =AND('Tally Count Data'!P81,"AAAAAAy/n4A=") ->  | DZ9: =AND('Tally Count Data'!Q81,"AAAAAAy/n4E=") ->  | EA9: =AND('Tally Count Data'!R81,"AAAAAAy/n4I=") ->  | EB9: =AND('Tally Count Data'!S81,"AAAAAAy/n4M=") ->  | EC9: =AND('Tally Count Data'!T81,"AAAAAAy/n4Q=") ->  | ED9: =AND('Tally Count Data'!U81,"AAAAAAy/n4U=") ->  | EE9: =AND('Tally Count Data'!V81,"AAAAAAy/n4Y=") ->  | EF9: =AND('Tally Count Data'!W81,"AAAAAAy/n4c=") ->  | EG9: =AND('Tally Count Data'!X81,"AAAAAAy/n4g=") ->  | EH9: =AND('Tally Count Data'!Y81,"AAAAAAy/n4k=") ->  | EI9: =AND('Tally Count Data'!Z81,"AAAAAAy/n4o=") ->  | EJ9: =IF('Tally Count Data'!82:82,"AAAAAAy/n4s=",0) -> 0 | EK9: =AND('Tally Count Data'!A82,"AAAAAAy/n4w=") ->  | EL9: =AND('Tally Count Data'!B82,"AAAAAAy/n40=") ->  | EM9: =AND('Tally Count Data'!C82,"AAAAAAy/n44=") ->  | EN9: =AND('Tally Count Data'!D82,"AAAAAAy/n48=") ->  | EO9: =AND('Tally Count Data'!E82,"AAAAAAy/n5A=") ->  | EP9: =AND('Tally Count Data'!F82,"AAAAAAy/n5E=") ->  | EQ9: =AND('Tally Count Data'!G82,"AAAAAAy/n5I=") ->  | ER9: =AND('Tally Count Data'!H82,"AAAAAAy/n5M=") ->  | ES9: =AND('Tally Count Data'!I82,"AAAAAAy/n5Q=") ->  | ET9: =AND('Tally Count Data'!J82,"AAAAAAy/n5U=") ->  | EU9: =AND('Tally Count Data'!K82,"AAAAAAy/n5Y=") ->  | EV9: =AND('Tally Count Data'!L82,"AAAAAAy/n5c=") ->  | EW9: =AND('Tally Count Data'!M82,"AAAAAAy/n5g=") ->  | EX9: =AND('Tally Count Data'!N82,"AAAAAAy/n5k=") ->  | EY9: =AND('Tally Count Data'!O82,"AAAAAAy/n5o=") ->  | EZ9: =AND('Tally Count Data'!P82,"AAAAAAy/n5s=") ->  | FA9: =AND('Tally Count Data'!Q82,"AAAAAAy/n5w=") ->  | FB9: =AND('Tally Count Data'!R82,"AAAAAAy/n50=") ->  | FC9: =AND('Tally Count Data'!S82,"AAAAAAy/n54=") ->  | FD9: =AND('Tally Count Data'!T82,"AAAAAAy/n58=") ->  | FE9: =AND('Tally Count Data'!U82,"AAAAAAy/n6A=") ->  | FF9: =AND('Tally Count Data'!V82,"AAAAAAy/n6E=") ->  | FG9: =AND('Tally Count Data'!W82,"AAAAAAy/n6I=") ->  | FH9: =AND('Tally Count Data'!X82,"AAAAAAy/n6M=") ->  | FI9: =AND('Tally Count Data'!Y82,"AAAAAAy/n6Q=") ->  | FJ9: =AND('Tally Count Data'!Z82,"AAAAAAy/n6U=") ->  | FK9: =IF('Tally Count Data'!83:83,"AAAAAAy/n6Y=",0) -> 0 | FL9: =AND('Tally Count Data'!A83,"AAAAAAy/n6c=") ->  | FM9: =AND('Tally Count Data'!B83,"AAAAAAy/n6g=") ->  | FN9: =AND('Tally Count Data'!C83,"AAAAAAy/n6k=") ->  | FO9: =AND('Tally Count Data'!D83,"AAAAAAy/n6o=") ->  | FP9: =AND('Tally Count Data'!E83,"AAAAAAy/n6s=") ->  | FQ9: =AND('Tally Count Data'!F83,"AAAAAAy/n6w=") ->  | FR9: =AND('Tally Count Data'!G83,"AAAAAAy/n60=") ->  | FS9: =AND('Tally Count Data'!H83,"AAAAAAy/n64=") ->  | FT9: =AND('Tally Count Data'!I83,"AAAAAAy/n68=") ->  | FU9: =AND('Tally Count Data'!J83,"AAAAAAy/n7A=") ->  | FV9: =AND('Tally Count Data'!K83,"AAAAAAy/n7E=") ->  | FW9: =AND('Tally Count Data'!L83,"AAAAAAy/n7I=") ->  | FX9: =AND('Tally Count Data'!M83,"AAAAAAy/n7M=") ->  | FY9: =AND('Tally Count Data'!N83,"AAAAAAy/n7Q=") ->  | FZ9: =AND('Tally Count Data'!O83,"AAAAAAy/n7U=") ->  | GA9: =AND('Tally Count Data'!P83,"AAAAAAy/n7Y=") ->  | GB9: =AND('Tally Count Data'!Q83,"AAAAAAy/n7c=") ->  | GC9: =AND('Tally Count Data'!R83,"AAAAAAy/n7g=") ->  | GD9: =AND('Tally Count Data'!S83,"AAAAAAy/n7k=") ->  | GE9: =AND('Tally Count Data'!T83,"AAAAAAy/n7o=") ->  | GF9: =AND('Tally Count Data'!U83,"AAAAAAy/n7s=") ->  | GG9: =AND('Tally Count Data'!V83,"AAAAAAy/n7w=") ->  | GH9: =AND('Tally Count Data'!W83,"AAAAAAy/n70=") ->  | GI9: =AND('Tally Count Data'!X83,"AAAAAAy/n74=") ->  | GJ9: =AND('Tally Count Data'!Y83,"AAAAAAy/n78=") ->  | GK9: =AND('Tally Count Data'!Z83,"AAAAAAy/n8A=") ->  | GL9: =IF('Tally Count Data'!84:84,"AAAAAAy/n8E=",0) -> 0 | GM9: =AND('Tally Count Data'!A84,"AAAAAAy/n8I=") ->  | GN9: =AND('Tally Count Data'!B84,"AAAAAAy/n8M=") ->  | GO9: =AND('Tally Count Data'!C84,"AAAAAAy/n8Q=") ->  | GP9: =AND('Tally Count Data'!D84,"AAAAAAy/n8U=") ->  | GQ9: =AND('Tally Count Data'!E84,"AAAAAAy/n8Y=") ->  | GR9: =AND('Tally Count Data'!F84,"AAAAAAy/n8c=") ->  | GS9: =AND('Tally Count Data'!G84,"AAAAAAy/n8g=") ->  | GT9: =AND('Tally Count Data'!H84,"AAAAAAy/n8k=") ->  | GU9: =AND('Tally Count Data'!I84,"AAAAAAy/n8o=") ->  | GV9: =AND('Tally Count Data'!J84,"AAAAAAy/n8s=") ->  | GW9: =AND('Tally Count Data'!K84,"AAAAAAy/n8w=") ->  | GX9: =AND('Tally Count Data'!L84,"AAAAAAy/n80=") ->  | GY9: =AND('Tally Count Data'!M84,"AAAAAAy/n84=") ->  | GZ9: =AND('Tally Count Data'!N84,"AAAAAAy/n88=") ->  | HA9: =AND('Tally Count Data'!O84,"AAAAAAy/n9A=") ->  | HB9: =AND('Tally Count Data'!P84,"AAAAAAy/n9E=") ->  | HC9: =AND('Tally Count Data'!Q84,"AAAAAAy/n9I=") ->  | HD9: =AND('Tally Count Data'!R84,"AAAAAAy/n9M=") ->  | HE9: =AND('Tally Count Data'!S84,"AAAAAAy/n9Q=") ->  | HF9: =AND('Tally Count Data'!T84,"AAAAAAy/n9U=") ->  | HG9: =AND('Tally Count Data'!U84,"AAAAAAy/n9Y=") ->  | HH9: =AND('Tally Count Data'!V84,"AAAAAAy/n9c=") ->  | HI9: =AND('Tally Count Data'!W84,"AAAAAAy/n9g=") ->  | HJ9: =AND('Tally Count Data'!X84,"AAAAAAy/n9k=") ->  | HK9: =AND('Tally Count Data'!Y84,"AAAAAAy/n9o=") ->  | HL9: =AND('Tally Count Data'!Z84,"AAAAAAy/n9s=") ->  | HM9: =IF('Tally Count Data'!85:85,"AAAAAAy/n9w=",0) -> 0 | HN9: =AND('Tally Count Data'!A85,"AAAAAAy/n90=") ->  | HO9: =AND('Tally Count Data'!B85,"AAAAAAy/n94=") ->  | HP9: =AND('Tally Count Data'!C85,"AAAAAAy/n98=") ->  | HQ9: =AND('Tally Count Data'!D85,"AAAAAAy/n+A=") ->  | HR9: =AND('Tally Count Data'!E85,"AAAAAAy/n+E=") ->  | HS9: =AND('Tally Count Data'!F85,"AAAAAAy/n+I=") ->  | HT9: =AND('Tally Count Data'!G85,"AAAAAAy/n+M=") ->  | HU9: =AND('Tally Count Data'!H85,"AAAAAAy/n+Q=") ->  | HV9: =AND('Tally Count Data'!I85,"AAAAAAy/n+U=") ->  | HW9: =AND('Tally Count Data'!J85,"AAAAAAy/n+Y=") ->  | HX9: =AND('Tally Count Data'!K85,"AAAAAAy/n+c=") ->  | HY9: =AND('Tally Count Data'!L85,"AAAAAAy/n+g=") ->  | HZ9: =AND('Tally Count Data'!M85,"AAAAAAy/n+k=") ->  | IA9: =AND('Tally Count Data'!N85,"AAAAAAy/n+o=") ->  | IB9: =AND('Tally Count Data'!O85,"AAAAAAy/n+s=") ->  | IC9: =AND('Tally Count Data'!P85,"AAAAAAy/n+w=") ->  | ID9: =AND('Tally Count Data'!Q85,"AAAAAAy/n+0=") ->  | IE9: =AND('Tally Count Data'!R85,"AAAAAAy/n+4=") ->  | IF9: =AND('Tally Count Data'!S85,"AAAAAAy/n+8=") ->  | IG9: =AND('Tally Count Data'!T85,"AAAAAAy/n/A=") ->  | IH9: =AND('Tally Count Data'!U85,"AAAAAAy/n/E=") ->  | II9: =AND('Tally Count Data'!V85,"AAAAAAy/n/I=") ->  | IJ9: =AND('Tally Count Data'!W85,"AAAAAAy/n/M=") ->  | IK9: =AND('Tally Count Data'!X85,"AAAAAAy/n/Q=") ->  | IL9: =AND('Tally Count Data'!Y85,"AAAAAAy/n/U=") ->  | IM9: =AND('Tally Count Data'!Z85,"AAAAAAy/n/Y=") ->  | IN9: =IF('Tally Count Data'!86:86,"AAAAAAy/n/c=",0) -> 0 | IO9: =AND('Tally Count Data'!A86,"AAAAAAy/n/g=") ->  | IP9: =AND('Tally Count Data'!B86,"AAAAAAy/n/k=") ->  | IQ9: =AND('Tally Count Data'!C86,"AAAAAAy/n/o=") ->  | IR9: =AND('Tally Count Data'!D86,"AAAAAAy/n/s=") ->  | IS9: =AND('Tally Count Data'!E86,"AAAAAAy/n/w=") ->  | IT9: =AND('Tally Count Data'!F86,"AAAAAAy/n/0=") ->  | IU9: =AND('Tally Count Data'!G86,"AAAAAAy/n/4=") ->  | IV9: =AND('Tally Count Data'!H86,"AAAAAAy/n/8=") -> 
A10: =AND('Tally Count Data'!I86,"AAAAAFr/7gA=") ->  | B10: =AND('Tally Count Data'!J86,"AAAAAFr/7gE=") ->  | C10: =AND('Tally Count Data'!K86,"AAAAAFr/7gI=") ->  | D10: =AND('Tally Count Data'!L86,"AAAAAFr/7gM=") ->  | E10: =AND('Tally Count Data'!M86,"AAAAAFr/7gQ=") ->  | F10: =AND('Tally Count Data'!N86,"AAAAAFr/7gU=") ->  | G10: =AND('Tally Count Data'!O86,"AAAAAFr/7gY=") ->  | H10: =AND('Tally Count Data'!P86,"AAAAAFr/7gc=") ->  | I10: =AND('Tally Count Data'!Q86,"AAAAAFr/7gg=") ->  | J10: =AND('Tally Count Data'!R86,"AAAAAFr/7gk=") ->  | K10: =AND('Tally Count Data'!S86,"AAAAAFr/7go=") ->  | L10: =AND('Tally Count Data'!T86,"AAAAAFr/7gs=") ->  | M10: =AND('Tally Count Data'!U86,"AAAAAFr/7gw=") ->  | N10: =AND('Tally Count Data'!V86,"AAAAAFr/7g0=") ->  | O10: =AND('Tally Count Data'!W86,"AAAAAFr/7g4=") ->  | P10: =AND('Tally Count Data'!X86,"AAAAAFr/7g8=") ->  | Q10: =AND('Tally Count Data'!Y86,"AAAAAFr/7hA=") ->  | R10: =AND('Tally Count Data'!Z86,"AAAAAFr/7hE=") ->  | S10: =IF('Tally Count Data'!87:87,"AAAAAFr/7hI=",0) -> 0 | T10: =AND('Tally Count Data'!A87,"AAAAAFr/7hM=") ->  | U10: =AND('Tally Count Data'!B87,"AAAAAFr/7hQ=") ->  | V10: =AND('Tally Count Data'!C87,"AAAAAFr/7hU=") ->  | W10: =AND('Tally Count Data'!D87,"AAAAAFr/7hY=") ->  | X10: =AND('Tally Count Data'!E87,"AAAAAFr/7hc=") ->  | Y10: =AND('Tally Count Data'!F87,"AAAAAFr/7hg=") ->  | Z10: =AND('Tally Count Data'!G87,"AAAAAFr/7hk=") ->  | AA10: =AND('Tally Count Data'!H87,"AAAAAFr/7ho=") ->  | AB10: =AND('Tally Count Data'!I87,"AAAAAFr/7hs=") ->  | AC10: =AND('Tally Count Data'!J87,"AAAAAFr/7hw=") ->  | AD10: =AND('Tally Count Data'!K87,"AAAAAFr/7h0=") ->  | AE10: =AND('Tally Count Data'!L87,"AAAAAFr/7h4=") ->  | AF10: =AND('Tally Count Data'!M87,"AAAAAFr/7h8=") ->  | AG10: =AND('Tally Count Data'!N87,"AAAAAFr/7iA=") ->  | AH10: =AND('Tally Count Data'!O87,"AAAAAFr/7iE=") ->  | AI10: =AND('Tally Count Data'!P87,"AAAAAFr/7iI=") ->  | AJ10: =AND('Tally Count Data'!Q87,"AAAAAFr/7iM=") ->  | AK10: =AND('Tally Count Data'!R87,"AAAAAFr/7iQ=") ->  | AL10: =AND('Tally Count Data'!S87,"AAAAAFr/7iU=") ->  | AM10: =AND('Tally Count Data'!T87,"AAAAAFr/7iY=") ->  | AN10: =AND('Tally Count Data'!U87,"AAAAAFr/7ic=") ->  | AO10: =AND('Tally Count Data'!V87,"AAAAAFr/7ig=") ->  | AP10: =AND('Tally Count Data'!W87,"AAAAAFr/7ik=") ->  | AQ10: =AND('Tally Count Data'!X87,"AAAAAFr/7io=") ->  | AR10: =AND('Tally Count Data'!Y87,"AAAAAFr/7is=") ->  | AS10: =AND('Tally Count Data'!Z87,"AAAAAFr/7iw=") ->  | AT10: =IF('Tally Count Data'!88:88,"AAAAAFr/7i0=",0) -> 0 | AU10: =AND('Tally Count Data'!A88,"AAAAAFr/7i4=") ->  | AV10: =AND('Tally Count Data'!B88,"AAAAAFr/7i8=") ->  | AW10: =AND('Tally Count Data'!C88,"AAAAAFr/7jA=") ->  | AX10: =AND('Tally Count Data'!D88,"AAAAAFr/7jE=") ->  | AY10: =AND('Tally Count Data'!E88,"AAAAAFr/7jI=") ->  | AZ10: =AND('Tally Count Data'!F88,"AAAAAFr/7jM=") ->  | BA10: =AND('Tally Count Data'!G88,"AAAAAFr/7jQ=") ->  | BB10: =AND('Tally Count Data'!H88,"AAAAAFr/7jU=") ->  | BC10: =AND('Tally Count Data'!I88,"AAAAAFr/7jY=") ->  | BD10: =AND('Tally Count Data'!J88,"AAAAAFr/7jc=") ->  | BE10: =AND('Tally Count Data'!K88,"AAAAAFr/7jg=") ->  | BF10: =AND('Tally Count Data'!L88,"AAAAAFr/7jk=") ->  | BG10: =AND('Tally Count Data'!M88,"AAAAAFr/7jo=") ->  | BH10: =AND('Tally Count Data'!N88,"AAAAAFr/7js=") ->  | BI10: =AND('Tally Count Data'!O88,"AAAAAFr/7jw=") ->  | BJ10: =AND('Tally Count Data'!P88,"AAAAAFr/7j0=") ->  | BK10: =AND('Tally Count Data'!Q88,"AAAAAFr/7j4=") ->  | BL10: =AND('Tally Count Data'!R88,"AAAAAFr/7j8=") ->  | BM10: =AND('Tally Count Data'!S88,"AAAAAFr/7kA=") ->  | BN10: =AND('Tally Count Data'!T88,"AAAAAFr/7kE=") ->  | BO10: =AND('Tally Count Data'!U88,"AAAAAFr/7kI=") ->  | BP10: =AND('Tally Count Data'!V88,"AAAAAFr/7kM=") ->  | BQ10: =AND('Tally Count Data'!W88,"AAAAAFr/7kQ=") ->  | BR10: =AND('Tally Count Data'!X88,"AAAAAFr/7kU=") ->  | BS10: =AND('Tally Count Data'!Y88,"AAAAAFr/7kY=") ->  | BT10: =AND('Tally Count Data'!Z88,"AAAAAFr/7kc=") ->  | BU10: =IF('Tally Count Data'!89:89,"AAAAAFr/7kg=",0) -> 0 | BV10: =AND('Tally Count Data'!A89,"AAAAAFr/7kk=") ->  | BW10: =AND('Tally Count Data'!B89,"AAAAAFr/7ko=") ->  | BX10: =AND('Tally Count Data'!C89,"AAAAAFr/7ks=") ->  | BY10: =AND('Tally Count Data'!D89,"AAAAAFr/7kw=") ->  | BZ10: =AND('Tally Count Data'!E89,"AAAAAFr/7k0=") ->  | CA10: =AND('Tally Count Data'!F89,"AAAAAFr/7k4=") ->  | CB10: =AND('Tally Count Data'!G89,"AAAAAFr/7k8=") ->  | CC10: =AND('Tally Count Data'!H89,"AAAAAFr/7lA=") ->  | CD10: =AND('Tally Count Data'!I89,"AAAAAFr/7lE=") ->  | CE10: =AND('Tally Count Data'!J89,"AAAAAFr/7lI=") ->  | CF10: =AND('Tally Count Data'!K89,"AAAAAFr/7lM=") ->  | CG10: =AND('Tally Count Data'!L89,"AAAAAFr/7lQ=") ->  | CH10: =AND('Tally Count Data'!M89,"AAAAAFr/7lU=") ->  | CI10: =AND('Tally Count Data'!N89,"AAAAAFr/7lY=") ->  | CJ10: =AND('Tally Count Data'!O89,"AAAAAFr/7lc=") ->  | CK10: =AND('Tally Count Data'!P89,"AAAAAFr/7lg=") ->  | CL10: =AND('Tally Count Data'!Q89,"AAAAAFr/7lk=") ->  | CM10: =AND('Tally Count Data'!R89,"AAAAAFr/7lo=") ->  | CN10: =AND('Tally Count Data'!S89,"AAAAAFr/7ls=") ->  | CO10: =AND('Tally Count Data'!T89,"AAAAAFr/7lw=") ->  | CP10: =AND('Tally Count Data'!U89,"AAAAAFr/7l0=") ->  | CQ10: =AND('Tally Count Data'!V89,"AAAAAFr/7l4=") ->  | CR10: =AND('Tally Count Data'!W89,"AAAAAFr/7l8=") ->  | CS10: =AND('Tally Count Data'!X89,"AAAAAFr/7mA=") ->  | CT10: =AND('Tally Count Data'!Y89,"AAAAAFr/7mE=") ->  | CU10: =AND('Tally Count Data'!Z89,"AAAAAFr/7mI=") ->  | CV10: =IF('Tally Count Data'!90:90,"AAAAAFr/7mM=",0) -> 0 | CW10: =AND('Tally Count Data'!A90,"AAAAAFr/7mQ=") ->  | CX10: =AND('Tally Count Data'!B90,"AAAAAFr/7mU=") ->  | CY10: =AND('Tally Count Data'!C90,"AAAAAFr/7mY=") ->  | CZ10: =AND('Tally Count Data'!D90,"AAAAAFr/7mc=") ->  | DA10: =AND('Tally Count Data'!E90,"AAAAAFr/7mg=") ->  | DB10: =AND('Tally Count Data'!F90,"AAAAAFr/7mk=") ->  | DC10: =AND('Tally Count Data'!G90,"AAAAAFr/7mo=") ->  | DD10: =AND('Tally Count Data'!H90,"AAAAAFr/7ms=") ->  | DE10: =AND('Tally Count Data'!I90,"AAAAAFr/7mw=") ->  | DF10: =AND('Tally Count Data'!J90,"AAAAAFr/7m0=") ->  | DG10: =AND('Tally Count Data'!K90,"AAAAAFr/7m4=") ->  | DH10: =AND('Tally Count Data'!L90,"AAAAAFr/7m8=") ->  | DI10: =AND('Tally Count Data'!M90,"AAAAAFr/7nA=") ->  | DJ10: =AND('Tally Count Data'!N90,"AAAAAFr/7nE=") ->  | DK10: =AND('Tally Count Data'!O90,"AAAAAFr/7nI=") ->  | DL10: =AND('Tally Count Data'!P90,"AAAAAFr/7nM=") ->  | DM10: =AND('Tally Count Data'!Q90,"AAAAAFr/7nQ=") ->  | DN10: =AND('Tally Count Data'!R90,"AAAAAFr/7nU=") ->  | DO10: =AND('Tally Count Data'!S90,"AAAAAFr/7nY=") ->  | DP10: =AND('Tally Count Data'!T90,"AAAAAFr/7nc=") ->  | DQ10: =AND('Tally Count Data'!U90,"AAAAAFr/7ng=") ->  | DR10: =AND('Tally Count Data'!V90,"AAAAAFr/7nk=") ->  | DS10: =AND('Tally Count Data'!W90,"AAAAAFr/7no=") ->  | DT10: =AND('Tally Count Data'!X90,"AAAAAFr/7ns=") ->  | DU10: =AND('Tally Count Data'!Y90,"AAAAAFr/7nw=") ->  | DV10: =AND('Tally Count Data'!Z90,"AAAAAFr/7n0=") ->  | DW10: =IF('Tally Count Data'!91:91,"AAAAAFr/7n4=",0) -> 0 | DX10: =AND('Tally Count Data'!A91,"AAAAAFr/7n8=") ->  | DY10: =AND('Tally Count Data'!B91,"AAAAAFr/7oA=") ->  | DZ10: =AND('Tally Count Data'!C91,"AAAAAFr/7oE=") ->  | EA10: =AND('Tally Count Data'!D91,"AAAAAFr/7oI=") ->  | EB10: =AND('Tally Count Data'!E91,"AAAAAFr/7oM=") ->  | EC10: =AND('Tally Count Data'!F91,"AAAAAFr/7oQ=") ->  | ED10: =AND('Tally Count Data'!G91,"AAAAAFr/7oU=") ->  | EE10: =AND('Tally Count Data'!H91,"AAAAAFr/7oY=") ->  | EF10: =AND('Tally Count Data'!I91,"AAAAAFr/7oc=") ->  | EG10: =AND('Tally Count Data'!J91,"AAAAAFr/7og=") ->  | EH10: =AND('Tally Count Data'!K91,"AAAAAFr/7ok=") ->  | EI10: =AND('Tally Count Data'!L91,"AAAAAFr/7oo=") ->  | EJ10: =AND('Tally Count Data'!M91,"AAAAAFr/7os=") ->  | EK10: =AND('Tally Count Data'!N91,"AAAAAFr/7ow=") ->  | EL10: =AND('Tally Count Data'!O91,"AAAAAFr/7o0=") ->  | EM10: =AND('Tally Count Data'!P91,"AAAAAFr/7o4=") ->  | EN10: =AND('Tally Count Data'!Q91,"AAAAAFr/7o8=") ->  | EO10: =AND('Tally Count Data'!R91,"AAAAAFr/7pA=") ->  | EP10: =AND('Tally Count Data'!S91,"AAAAAFr/7pE=") ->  | EQ10: =AND('Tally Count Data'!T91,"AAAAAFr/7pI=") ->  | ER10: =AND('Tally Count Data'!U91,"AAAAAFr/7pM=") ->  | ES10: =AND('Tally Count Data'!V91,"AAAAAFr/7pQ=") ->  | ET10: =AND('Tally Count Data'!W91,"AAAAAFr/7pU=") ->  | EU10: =AND('Tally Count Data'!X91,"AAAAAFr/7pY=") ->  | EV10: =AND('Tally Count Data'!Y91,"AAAAAFr/7pc=") ->  | EW10: =AND('Tally Count Data'!Z91,"AAAAAFr/7pg=") ->  | EX10: =IF('Tally Count Data'!92:92,"AAAAAFr/7pk=",0) -> 0 | EY10: =AND('Tally Count Data'!A92,"AAAAAFr/7po=") ->  | EZ10: =AND('Tally Count Data'!B92,"AAAAAFr/7ps=") ->  | FA10: =AND('Tally Count Data'!C92,"AAAAAFr/7pw=") ->  | FB10: =AND('Tally Count Data'!D92,"AAAAAFr/7p0=") ->  | FC10: =AND('Tally Count Data'!E92,"AAAAAFr/7p4=") ->  | FD10: =AND('Tally Count Data'!F92,"AAAAAFr/7p8=") ->  | FE10: =AND('Tally Count Data'!G92,"AAAAAFr/7qA=") ->  | FF10: =AND('Tally Count Data'!H92,"AAAAAFr/7qE=") ->  | FG10: =AND('Tally Count Data'!I92,"AAAAAFr/7qI=") ->  | FH10: =AND('Tally Count Data'!J92,"AAAAAFr/7qM=") ->  | FI10: =AND('Tally Count Data'!K92,"AAAAAFr/7qQ=") ->  | FJ10: =AND('Tally Count Data'!L92,"AAAAAFr/7qU=") ->  | FK10: =AND('Tally Count Data'!M92,"AAAAAFr/7qY=") ->  | FL10: =AND('Tally Count Data'!N92,"AAAAAFr/7qc=") ->  | FM10: =AND('Tally Count Data'!O92,"AAAAAFr/7qg=") ->  | FN10: =AND('Tally Count Data'!P92,"AAAAAFr/7qk=") ->  | FO10: =AND('Tally Count Data'!Q92,"AAAAAFr/7qo=") ->  | FP10: =AND('Tally Count Data'!R92,"AAAAAFr/7qs=") ->  | FQ10: =AND('Tally Count Data'!S92,"AAAAAFr/7qw=") ->  | FR10: =AND('Tally Count Data'!T92,"AAAAAFr/7q0=") ->  | FS10: =AND('Tally Count Data'!U92,"AAAAAFr/7q4=") ->  | FT10: =AND('Tally Count Data'!V92,"AAAAAFr/7q8=") ->  | FU10: =AND('Tally Count Data'!W92,"AAAAAFr/7rA=") ->  | FV10: =AND('Tally Count Data'!X92,"AAAAAFr/7rE=") ->  | FW10: =AND('Tally Count Data'!Y92,"AAAAAFr/7rI=") ->  | FX10: =AND('Tally Count Data'!Z92,"AAAAAFr/7rM=") ->  | FY10: =IF('Tally Count Data'!93:93,"AAAAAFr/7rQ=",0) -> 0 | FZ10: =AND('Tally Count Data'!A93,"AAAAAFr/7rU=") ->  | GA10: =AND('Tally Count Data'!B93,"AAAAAFr/7rY=") ->  | GB10: =AND('Tally Count Data'!C93,"AAAAAFr/7rc=") ->  | GC10: =AND('Tally Count Data'!D93,"AAAAAFr/7rg=") ->  | GD10: =AND('Tally Count Data'!E93,"AAAAAFr/7rk=") ->  | GE10: =AND('Tally Count Data'!F93,"AAAAAFr/7ro=") ->  | GF10: =AND('Tally Count Data'!G93,"AAAAAFr/7rs=") ->  | GG10: =AND('Tally Count Data'!H93,"AAAAAFr/7rw=") ->  | GH10: =AND('Tally Count Data'!I93,"AAAAAFr/7r0=") ->  | GI10: =AND('Tally Count Data'!J93,"AAAAAFr/7r4=") ->  | GJ10: =AND('Tally Count Data'!K93,"AAAAAFr/7r8=") ->  | GK10: =AND('Tally Count Data'!L93,"AAAAAFr/7sA=") ->  | GL10: =AND('Tally Count Data'!M93,"AAAAAFr/7sE=") ->  | GM10: =AND('Tally Count Data'!N93,"AAAAAFr/7sI=") ->  | GN10: =AND('Tally Count Data'!O93,"AAAAAFr/7sM=") ->  | GO10: =AND('Tally Count Data'!P93,"AAAAAFr/7sQ=") ->  | GP10: =AND('Tally Count Data'!Q93,"AAAAAFr/7sU=") ->  | GQ10: =AND('Tally Count Data'!R93,"AAAAAFr/7sY=") ->  | GR10: =AND('Tally Count Data'!S93,"AAAAAFr/7sc=") ->  | GS10: =AND('Tally Count Data'!T93,"AAAAAFr/7sg=") ->  | GT10: =AND('Tally Count Data'!U93,"AAAAAFr/7sk=") ->  | GU10: =AND('Tally Count Data'!V93,"AAAAAFr/7so=") ->  | GV10: =AND('Tally Count Data'!W93,"AAAAAFr/7ss=") ->  | GW10: =AND('Tally Count Data'!X93,"AAAAAFr/7sw=") ->  | GX10: =AND('Tally Count Data'!Y93,"AAAAAFr/7s0=") ->  | GY10: =AND('Tally Count Data'!Z93,"AAAAAFr/7s4=") ->  | GZ10: =IF('Tally Count Data'!94:94,"AAAAAFr/7s8=",0) -> 0 | HA10: =AND('Tally Count Data'!A94,"AAAAAFr/7tA=") ->  | HB10: =AND('Tally Count Data'!B94,"AAAAAFr/7tE=") ->  | HC10: =AND('Tally Count Data'!C94,"AAAAAFr/7tI=") ->  | HD10: =AND('Tally Count Data'!D94,"AAAAAFr/7tM=") ->  | HE10: =AND('Tally Count Data'!E94,"AAAAAFr/7tQ=") ->  | HF10: =AND('Tally Count Data'!F94,"AAAAAFr/7tU=") ->  | HG10: =AND('Tally Count Data'!G94,"AAAAAFr/7tY=") ->  | HH10: =AND('Tally Count Data'!H94,"AAAAAFr/7tc=") ->  | HI10: =AND('Tally Count Data'!I94,"AAAAAFr/7tg=") ->  | HJ10: =AND('Tally Count Data'!J94,"AAAAAFr/7tk=") ->  | HK10: =AND('Tally Count Data'!K94,"AAAAAFr/7to=") ->  | HL10: =AND('Tally Count Data'!L94,"AAAAAFr/7ts=") ->  | HM10: =AND('Tally Count Data'!M94,"AAAAAFr/7tw=") ->  | HN10: =AND('Tally Count Data'!N94,"AAAAAFr/7t0=") ->  | HO10: =AND('Tally Count Data'!O94,"AAAAAFr/7t4=") ->  | HP10: =AND('Tally Count Data'!P94,"AAAAAFr/7t8=") ->  | HQ10: =AND('Tally Count Data'!Q94,"AAAAAFr/7uA=") ->  | HR10: =AND('Tally Count Data'!R94,"AAAAAFr/7uE=") ->  | HS10: =AND('Tally Count Data'!S94,"AAAAAFr/7uI=") ->  | HT10: =AND('Tally Count Data'!T94,"AAAAAFr/7uM=") ->  | HU10: =AND('Tally Count Data'!U94,"AAAAAFr/7uQ=") ->  | HV10: =AND('Tally Count Data'!V94,"AAAAAFr/7uU=") ->  | HW10: =AND('Tally Count Data'!W94,"AAAAAFr/7uY=") ->  | HX10: =AND('Tally Count Data'!X94,"AAAAAFr/7uc=") ->  | HY10: =AND('Tally Count Data'!Y94,"AAAAAFr/7ug=") ->  | HZ10: =AND('Tally Count Data'!Z94,"AAAAAFr/7uk=") ->  | IA10: =IF('Tally Count Data'!95:95,"AAAAAFr/7uo=",0) -> 0 | IB10: =AND('Tally Count Data'!A95,"AAAAAFr/7us=") ->  | IC10: =AND('Tally Count Data'!B95,"AAAAAFr/7uw=") ->  | ID10: =AND('Tally Count Data'!C95,"AAAAAFr/7u0=") ->  | IE10: =AND('Tally Count Data'!D95,"AAAAAFr/7u4=") ->  | IF10: =AND('Tally Count Data'!E95,"AAAAAFr/7u8=") ->  | IG10: =AND('Tally Count Data'!F95,"AAAAAFr/7vA=") ->  | IH10: =AND('Tally Count Data'!G95,"AAAAAFr/7vE=") ->  | II10: =AND('Tally Count Data'!H95,"AAAAAFr/7vI=") ->  | IJ10: =AND('Tally Count Data'!I95,"AAAAAFr/7vM=") ->  | IK10: =AND('Tally Count Data'!J95,"AAAAAFr/7vQ=") ->  | IL10: =AND('Tally Count Data'!K95,"AAAAAFr/7vU=") ->  | IM10: =AND('Tally Count Data'!L95,"AAAAAFr/7vY=") ->  | IN10: =AND('Tally Count Data'!M95,"AAAAAFr/7vc=") ->  | IO10: =AND('Tally Count Data'!N95,"AAAAAFr/7vg=") ->  | IP10: =AND('Tally Count Data'!O95,"AAAAAFr/7vk=") ->  | IQ10: =AND('Tally Count Data'!P95,"AAAAAFr/7vo=") ->  | IR10: =AND('Tally Count Data'!Q95,"AAAAAFr/7vs=") ->  | IS10: =AND('Tally Count Data'!R95,"AAAAAFr/7vw=") ->  | IT10: =AND('Tally Count Data'!S95,"AAAAAFr/7v0=") ->  | IU10: =AND('Tally Count Data'!T95,"AAAAAFr/7v4=") ->  | IV10: =AND('Tally Count Data'!U95,"AAAAAFr/7v8=") -> 
A11: =AND('Tally Count Data'!V95,"AAAAAFO+3gA=") ->  | B11: =AND('Tally Count Data'!W95,"AAAAAFO+3gE=") ->  | C11: =AND('Tally Count Data'!X95,"AAAAAFO+3gI=") ->  | D11: =AND('Tally Count Data'!Y95,"AAAAAFO+3gM=") ->  | E11: =AND('Tally Count Data'!Z95,"AAAAAFO+3gQ=") ->  | F11: =IF('Tally Count Data'!96:96,"AAAAAFO+3gU=",0) -> 0 | G11: =AND('Tally Count Data'!A96,"AAAAAFO+3gY=") ->  | H11: =AND('Tally Count Data'!B96,"AAAAAFO+3gc=") ->  | I11: =AND('Tally Count Data'!C96,"AAAAAFO+3gg=") ->  | J11: =AND('Tally Count Data'!D96,"AAAAAFO+3gk=") ->  | K11: =AND('Tally Count Data'!E96,"AAAAAFO+3go=") ->  | L11: =AND('Tally Count Data'!F96,"AAAAAFO+3gs=") ->  | M11: =AND('Tally Count Data'!G96,"AAAAAFO+3gw=") ->  | N11: =AND('Tally Count Data'!H96,"AAAAAFO+3g0=") ->  | O11: =AND('Tally Count Data'!I96,"AAAAAFO+3g4=") ->  | P11: =AND('Tally Count Data'!J96,"AAAAAFO+3g8=") ->  | Q11: =AND('Tally Count Data'!K96,"AAAAAFO+3hA=") ->  | R11: =AND('Tally Count Data'!L96,"AAAAAFO+3hE=") ->  | S11: =AND('Tally Count Data'!M96,"AAAAAFO+3hI=") ->  | T11: =AND('Tally Count Data'!N96,"AAAAAFO+3hM=") ->  | U11: =AND('Tally Count Data'!O96,"AAAAAFO+3hQ=") ->  | V11: =AND('Tally Count Data'!P96,"AAAAAFO+3hU=") ->  | W11: =AND('Tally Count Data'!Q96,"AAAAAFO+3hY=") ->  | X11: =AND('Tally Count Data'!R96,"AAAAAFO+3hc=") ->  | Y11: =AND('Tally Count Data'!S96,"AAAAAFO+3hg=") ->  | Z11: =AND('Tally Count Data'!T96,"AAAAAFO+3hk=") ->  | AA11: =AND('Tally Count Data'!U96,"AAAAAFO+3ho=") ->  | AB11: =AND('Tally Count Data'!V96,"AAAAAFO+3hs=") ->  | AC11: =AND('Tally Count Data'!W96,"AAAAAFO+3hw=") ->  | AD11: =AND('Tally Count Data'!X96,"AAAAAFO+3h0=") ->  | AE11: =AND('Tally Count Data'!Y96,"AAAAAFO+3h4=") ->  | AF11: =AND('Tally Count Data'!Z96,"AAAAAFO+3h8=") ->  | AG11: =IF('Tally Count Data'!97:97,"AAAAAFO+3iA=",0) -> 0 | AH11: =AND('Tally Count Data'!A97,"AAAAAFO+3iE=") ->  | AI11: =AND('Tally Count Data'!B97,"AAAAAFO+3iI=") ->  | AJ11: =AND('Tally Count Data'!C97,"AAAAAFO+3iM=") ->  | AK11: =AND('Tally Count Data'!D97,"AAAAAFO+3iQ=") ->  | AL11: =AND('Tally Count Data'!E97,"AAAAAFO+3iU=") ->  | AM11: =AND('Tally Count Data'!F97,"AAAAAFO+3iY=") ->  | AN11: =AND('Tally Count Data'!G97,"AAAAAFO+3ic=") ->  | AO11: =AND('Tally Count Data'!H97,"AAAAAFO+3ig=") ->  | AP11: =AND('Tally Count Data'!I97,"AAAAAFO+3ik=") ->  | AQ11: =AND('Tally Count Data'!J97,"AAAAAFO+3io=") ->  | AR11: =AND('Tally Count Data'!K97,"AAAAAFO+3is=") ->  | AS11: =AND('Tally Count Data'!L97,"AAAAAFO+3iw=") ->  | AT11: =AND('Tally Count Data'!M97,"AAAAAFO+3i0=") ->  | AU11: =AND('Tally Count Data'!N97,"AAAAAFO+3i4=") ->  | AV11: =AND('Tally Count Data'!O97,"AAAAAFO+3i8=") ->  | AW11: =AND('Tally Count Data'!P97,"AAAAAFO+3jA=") ->  | AX11: =AND('Tally Count Data'!Q97,"AAAAAFO+3jE=") ->  | AY11: =AND('Tally Count Data'!R97,"AAAAAFO+3jI=") ->  | AZ11: =AND('Tally Count Data'!S97,"AAAAAFO+3jM=") ->  | BA11: =AND('Tally Count Data'!T97,"AAAAAFO+3jQ=") ->  | BB11: =AND('Tally Count Data'!U97,"AAAAAFO+3jU=") ->  | BC11: =AND('Tally Count Data'!V97,"AAAAAFO+3jY=") ->  | BD11: =AND('Tally Count Data'!W97,"AAAAAFO+3jc=") ->  | BE11: =AND('Tally Count Data'!X97,"AAAAAFO+3jg=") ->  | BF11: =AND('Tally Count Data'!Y97,"AAAAAFO+3jk=") ->  | BG11: =AND('Tally Count Data'!Z97,"AAAAAFO+3jo=") ->  | BH11: =IF('Tally Count Data'!98:98,"AAAAAFO+3js=",0) -> 0 | BI11: =AND('Tally Count Data'!A98,"AAAAAFO+3jw=") ->  | BJ11: =AND('Tally Count Data'!B98,"AAAAAFO+3j0=") ->  | BK11: =AND('Tally Count Data'!C98,"AAAAAFO+3j4=") ->  | BL11: =AND('Tally Count Data'!D98,"AAAAAFO+3j8=") ->  | BM11: =AND('Tally Count Data'!E98,"AAAAAFO+3kA=") ->  | BN11: =AND('Tally Count Data'!F98,"AAAAAFO+3kE=") ->  | BO11: =AND('Tally Count Data'!G98,"AAAAAFO+3kI=") ->  | BP11: =AND('Tally Count Data'!H98,"AAAAAFO+3kM=") ->  | BQ11: =AND('Tally Count Data'!I98,"AAAAAFO+3kQ=") ->  | BR11: =AND('Tally Count Data'!J98,"AAAAAFO+3kU=") ->  | BS11: =AND('Tally Count Data'!K98,"AAAAAFO+3kY=") ->  | BT11: =AND('Tally Count Data'!L98,"AAAAAFO+3kc=") ->  | BU11: =AND('Tally Count Data'!M98,"AAAAAFO+3kg=") ->  | BV11: =AND('Tally Count Data'!N98,"AAAAAFO+3kk=") ->  | BW11: =AND('Tally Count Data'!O98,"AAAAAFO+3ko=") ->  | BX11: =AND('Tally Count Data'!P98,"AAAAAFO+3ks=") ->  | BY11: =AND('Tally Count Data'!Q98,"AAAAAFO+3kw=") ->  | BZ11: =AND('Tally Count Data'!R98,"AAAAAFO+3k0=") ->  | CA11: =AND('Tally Count Data'!S98,"AAAAAFO+3k4=") ->  | CB11: =AND('Tally Count Data'!T98,"AAAAAFO+3k8=") ->  | CC11: =AND('Tally Count Data'!U98,"AAAAAFO+3lA=") ->  | CD11: =AND('Tally Count Data'!V98,"AAAAAFO+3lE=") ->  | CE11: =AND('Tally Count Data'!W98,"AAAAAFO+3lI=") ->  | CF11: =AND('Tally Count Data'!X98,"AAAAAFO+3lM=") ->  | CG11: =AND('Tally Count Data'!Y98,"AAAAAFO+3lQ=") ->  | CH11: =AND('Tally Count Data'!Z98,"AAAAAFO+3lU=") ->  | CI11: =IF('Tally Count Data'!99:99,"AAAAAFO+3lY=",0) -> 0 | CJ11: =AND('Tally Count Data'!A99,"AAAAAFO+3lc=") ->  | CK11: =AND('Tally Count Data'!B99,"AAAAAFO+3lg=") ->  | CL11: =AND('Tally Count Data'!C99,"AAAAAFO+3lk=") ->  | CM11: =AND('Tally Count Data'!D99,"AAAAAFO+3lo=") ->  | CN11: =AND('Tally Count Data'!E99,"AAAAAFO+3ls=") ->  | CO11: =AND('Tally Count Data'!F99,"AAAAAFO+3lw=") ->  | CP11: =AND('Tally Count Data'!G99,"AAAAAFO+3l0=") ->  | CQ11: =AND('Tally Count Data'!H99,"AAAAAFO+3l4=") ->  | CR11: =AND('Tally Count Data'!I99,"AAAAAFO+3l8=") ->  | CS11: =AND('Tally Count Data'!J99,"AAAAAFO+3mA=") ->  | CT11: =AND('Tally Count Data'!K99,"AAAAAFO+3mE=") ->  | CU11: =AND('Tally Count Data'!L99,"AAAAAFO+3mI=") ->  | CV11: =AND('Tally Count Data'!M99,"AAAAAFO+3mM=") ->  | CW11: =AND('Tally Count Data'!N99,"AAAAAFO+3mQ=") ->  | CX11: =AND('Tally Count Data'!O99,"AAAAAFO+3mU=") ->  | CY11: =AND('Tally Count Data'!P99,"AAAAAFO+3mY=") ->  | CZ11: =AND('Tally Count Data'!Q99,"AAAAAFO+3mc=") ->  | DA11: =AND('Tally Count Data'!R99,"AAAAAFO+3mg=") ->  | DB11: =AND('Tally Count Data'!S99,"AAAAAFO+3mk=") ->  | DC11: =AND('Tally Count Data'!T99,"AAAAAFO+3mo=") ->  | DD11: =AND('Tally Count Data'!U99,"AAAAAFO+3ms=") ->  | DE11: =AND('Tally Count Data'!V99,"AAAAAFO+3mw=") ->  | DF11: =AND('Tally Count Data'!W99,"AAAAAFO+3m0=") ->  | DG11: =AND('Tally Count Data'!X99,"AAAAAFO+3m4=") ->  | DH11: =AND('Tally Count Data'!Y99,"AAAAAFO+3m8=") ->  | DI11: =AND('Tally Count Data'!Z99,"AAAAAFO+3nA=") ->  | DJ11: =IF('Tally Count Data'!100:100,"AAAAAFO+3nE=",0) -> 0 | DK11: =AND('Tally Count Data'!A100,"AAAAAFO+3nI=") ->  | DL11: =AND('Tally Count Data'!B100,"AAAAAFO+3nM=") ->  | DM11: =AND('Tally Count Data'!C100,"AAAAAFO+3nQ=") ->  | DN11: =AND('Tally Count Data'!D100,"AAAAAFO+3nU=") ->  | DO11: =AND('Tally Count Data'!E100,"AAAAAFO+3nY=") ->  | DP11: =AND('Tally Count Data'!F100,"AAAAAFO+3nc=") ->  | DQ11: =AND('Tally Count Data'!G100,"AAAAAFO+3ng=") ->  | DR11: =AND('Tally Count Data'!H100,"AAAAAFO+3nk=") ->  | DS11: =AND('Tally Count Data'!I100,"AAAAAFO+3no=") ->  | DT11: =AND('Tally Count Data'!J100,"AAAAAFO+3ns=") ->  | DU11: =AND('Tally Count Data'!K100,"AAAAAFO+3nw=") ->  | DV11: =AND('Tally Count Data'!L100,"AAAAAFO+3n0=") ->  | DW11: =AND('Tally Count Data'!M100,"AAAAAFO+3n4=") ->  | DX11: =AND('Tally Count Data'!N100,"AAAAAFO+3n8=") ->  | DY11: =AND('Tally Count Data'!O100,"AAAAAFO+3oA=") ->  | DZ11: =AND('Tally Count Data'!P100,"AAAAAFO+3oE=") ->  | EA11: =AND('Tally Count Data'!Q100,"AAAAAFO+3oI=") ->  | EB11: =AND('Tally Count Data'!R100,"AAAAAFO+3oM=") ->  | EC11: =AND('Tally Count Data'!S100,"AAAAAFO+3oQ=") ->  | ED11: =AND('Tally Count Data'!T100,"AAAAAFO+3oU=") ->  | EE11: =AND('Tally Count Data'!U100,"AAAAAFO+3oY=") ->  | EF11: =AND('Tally Count Data'!V100,"AAAAAFO+3oc=") ->  | EG11: =AND('Tally Count Data'!W100,"AAAAAFO+3og=") ->  | EH11: =AND('Tally Count Data'!X100,"AAAAAFO+3ok=") ->  | EI11: =AND('Tally Count Data'!Y100,"AAAAAFO+3oo=") ->  | EJ11: =AND('Tally Count Data'!Z100,"AAAAAFO+3os=") ->  | EK11: =IF('Tally Count Data'!101:101,"AAAAAFO+3ow=",0) -> 0 | EL11: =AND('Tally Count Data'!A101,"AAAAAFO+3o0=") ->  | EM11: =AND('Tally Count Data'!B101,"AAAAAFO+3o4=") ->  | EN11: =AND('Tally Count Data'!C101,"AAAAAFO+3o8=") ->  | EO11: =AND('Tally Count Data'!D101,"AAAAAFO+3pA=") ->  | EP11: =AND('Tally Count Data'!E101,"AAAAAFO+3pE=") ->  | EQ11: =AND('Tally Count Data'!F101,"AAAAAFO+3pI=") ->  | ER11: =AND('Tally Count Data'!G101,"AAAAAFO+3pM=") ->  | ES11: =AND('Tally Count Data'!H101,"AAAAAFO+3pQ=") ->  | ET11: =AND('Tally Count Data'!I101,"AAAAAFO+3pU=") ->  | EU11: =AND('Tally Count Data'!J101,"AAAAAFO+3pY=") ->  | EV11: =AND('Tally Count Data'!K101,"AAAAAFO+3pc=") ->  | EW11: =AND('Tally Count Data'!L101,"AAAAAFO+3pg=") ->  | EX11: =AND('Tally Count Data'!M101,"AAAAAFO+3pk=") ->  | EY11: =AND('Tally Count Data'!N101,"AAAAAFO+3po=") ->  | EZ11: =AND('Tally Count Data'!O101,"AAAAAFO+3ps=") ->  | FA11: =AND('Tally Count Data'!P101,"AAAAAFO+3pw=") ->  | FB11: =AND('Tally Count Data'!Q101,"AAAAAFO+3p0=") ->  | FC11: =AND('Tally Count Data'!R101,"AAAAAFO+3p4=") ->  | FD11: =AND('Tally Count Data'!S101,"AAAAAFO+3p8=") ->  | FE11: =AND('Tally Count Data'!T101,"AAAAAFO+3qA=") ->  | FF11: =AND('Tally Count Data'!U101,"AAAAAFO+3qE=") ->  | FG11: =AND('Tally Count Data'!V101,"AAAAAFO+3qI=") ->  | FH11: =AND('Tally Count Data'!W101,"AAAAAFO+3qM=") ->  | FI11: =AND('Tally Count Data'!X101,"AAAAAFO+3qQ=") ->  | FJ11: =AND('Tally Count Data'!Y101,"AAAAAFO+3qU=") ->  | FK11: =AND('Tally Count Data'!Z101,"AAAAAFO+3qY=") ->  | FL11: =IF('Tally Count Data'!102:102,"AAAAAFO+3qc=",0) -> 0 | FM11: =AND('Tally Count Data'!A102,"AAAAAFO+3qg=") ->  | FN11: =AND('Tally Count Data'!B102,"AAAAAFO+3qk=") ->  | FO11: =AND('Tally Count Data'!C102,"AAAAAFO+3qo=") ->  | FP11: =AND('Tally Count Data'!D102,"AAAAAFO+3qs=") ->  | FQ11: =AND('Tally Count Data'!E102,"AAAAAFO+3qw=") ->  | FR11: =AND('Tally Count Data'!F102,"AAAAAFO+3q0=") ->  | FS11: =AND('Tally Count Data'!G102,"AAAAAFO+3q4=") ->  | FT11: =AND('Tally Count Data'!H102,"AAAAAFO+3q8=") ->  | FU11: =AND('Tally Count Data'!I102,"AAAAAFO+3rA=") ->  | FV11: =AND('Tally Count Data'!J102,"AAAAAFO+3rE=") ->  | FW11: =AND('Tally Count Data'!K102,"AAAAAFO+3rI=") ->  | FX11: =AND('Tally Count Data'!L102,"AAAAAFO+3rM=") ->  | FY11: =AND('Tally Count Data'!M102,"AAAAAFO+3rQ=") ->  | FZ11: =AND('Tally Count Data'!N102,"AAAAAFO+3rU=") ->  | GA11: =AND('Tally Count Data'!O102,"AAAAAFO+3rY=") ->  | GB11: =AND('Tally Count Data'!P102,"AAAAAFO+3rc=") ->  | GC11: =AND('Tally Count Data'!Q102,"AAAAAFO+3rg=") ->  | GD11: =AND('Tally Count Data'!R102,"AAAAAFO+3rk=") ->  | GE11: =AND('Tally Count Data'!S102,"AAAAAFO+3ro=") ->  | GF11: =AND('Tally Count Data'!T102,"AAAAAFO+3rs=") ->  | GG11: =AND('Tally Count Data'!U102,"AAAAAFO+3rw=") ->  | GH11: =AND('Tally Count Data'!V102,"AAAAAFO+3r0=") ->  | GI11: =AND('Tally Count Data'!W102,"AAAAAFO+3r4=") ->  | GJ11: =AND('Tally Count Data'!X102,"AAAAAFO+3r8=") ->  | GK11: =AND('Tally Count Data'!Y102,"AAAAAFO+3sA=") ->  | GL11: =AND('Tally Count Data'!Z102,"AAAAAFO+3sE=") ->  | GM11: =IF('Tally Count Data'!103:103,"AAAAAFO+3sI=",0) -> 0 | GN11: =AND('Tally Count Data'!A103,"AAAAAFO+3sM=") ->  | GO11: =AND('Tally Count Data'!B103,"AAAAAFO+3sQ=") ->  | GP11: =AND('Tally Count Data'!C103,"AAAAAFO+3sU=") ->  | GQ11: =AND('Tally Count Data'!D103,"AAAAAFO+3sY=") ->  | GR11: =AND('Tally Count Data'!E103,"AAAAAFO+3sc=") ->  | GS11: =AND('Tally Count Data'!F103,"AAAAAFO+3sg=") ->  | GT11: =AND('Tally Count Data'!G103,"AAAAAFO+3sk=") ->  | GU11: =AND('Tally Count Data'!H103,"AAAAAFO+3so=") ->  | GV11: =AND('Tally Count Data'!I103,"AAAAAFO+3ss=") ->  | GW11: =AND('Tally Count Data'!J103,"AAAAAFO+3sw=") ->  | GX11: =AND('Tally Count Data'!K103,"AAAAAFO+3s0=") ->  | GY11: =AND('Tally Count Data'!L103,"AAAAAFO+3s4=") ->  | GZ11: =AND('Tally Count Data'!M103,"AAAAAFO+3s8=") ->  | HA11: =AND('Tally Count Data'!N103,"AAAAAFO+3tA=") ->  | HB11: =AND('Tally Count Data'!O103,"AAAAAFO+3tE=") ->  | HC11: =AND('Tally Count Data'!P103,"AAAAAFO+3tI=") ->  | HD11: =AND('Tally Count Data'!Q103,"AAAAAFO+3tM=") ->  | HE11: =AND('Tally Count Data'!R103,"AAAAAFO+3tQ=") ->  | HF11: =AND('Tally Count Data'!S103,"AAAAAFO+3tU=") ->  | HG11: =AND('Tally Count Data'!T103,"AAAAAFO+3tY=") ->  | HH11: =AND('Tally Count Data'!U103,"AAAAAFO+3tc=") ->  | HI11: =AND('Tally Count Data'!V103,"AAAAAFO+3tg=") ->  | HJ11: =AND('Tally Count Data'!W103,"AAAAAFO+3tk=") ->  | HK11: =AND('Tally Count Data'!X103,"AAAAAFO+3to=") ->  | HL11: =AND('Tally Count Data'!Y103,"AAAAAFO+3ts=") ->  | HM11: =AND('Tally Count Data'!Z103,"AAAAAFO+3tw=") ->  | HN11: =IF('Tally Count Data'!104:104,"AAAAAFO+3t0=",0) -> 0 | HO11: =AND('Tally Count Data'!A104,"AAAAAFO+3t4=") ->  | HP11: =AND('Tally Count Data'!B104,"AAAAAFO+3t8=") ->  | HQ11: =AND('Tally Count Data'!C104,"AAAAAFO+3uA=") ->  | HR11: =AND('Tally Count Data'!D104,"AAAAAFO+3uE=") ->  | HS11: =AND('Tally Count Data'!E104,"AAAAAFO+3uI=") ->  | HT11: =AND('Tally Count Data'!F104,"AAAAAFO+3uM=") ->  | HU11: =AND('Tally Count Data'!G104,"AAAAAFO+3uQ=") ->  | HV11: =AND('Tally Count Data'!H104,"AAAAAFO+3uU=") ->  | HW11: =AND('Tally Count Data'!I104,"AAAAAFO+3uY=") ->  | HX11: =AND('Tally Count Data'!J104,"AAAAAFO+3uc=") ->  | HY11: =AND('Tally Count Data'!K104,"AAAAAFO+3ug=") ->  | HZ11: =AND('Tally Count Data'!L104,"AAAAAFO+3uk=") ->  | IA11: =AND('Tally Count Data'!M104,"AAAAAFO+3uo=") ->  | IB11: =AND('Tally Count Data'!N104,"AAAAAFO+3us=") ->  | IC11: =AND('Tally Count Data'!O104,"AAAAAFO+3uw=") ->  | ID11: =AND('Tally Count Data'!P104,"AAAAAFO+3u0=") ->  | IE11: =AND('Tally Count Data'!Q104,"AAAAAFO+3u4=") ->  | IF11: =AND('Tally Count Data'!R104,"AAAAAFO+3u8=") ->  | IG11: =AND('Tally Count Data'!S104,"AAAAAFO+3vA=") ->  | IH11: =AND('Tally Count Data'!T104,"AAAAAFO+3vE=") ->  | II11: =AND('Tally Count Data'!U104,"AAAAAFO+3vI=") ->  | IJ11: =AND('Tally Count Data'!V104,"AAAAAFO+3vM=") ->  | IK11: =AND('Tally Count Data'!W104,"AAAAAFO+3vQ=") ->  | IL11: =AND('Tally Count Data'!X104,"AAAAAFO+3vU=") ->  | IM11: =AND('Tally Count Data'!Y104,"AAAAAFO+3vY=") ->  | IN11: =AND('Tally Count Data'!Z104,"AAAAAFO+3vc=") ->  | IO11: =IF('Tally Count Data'!105:105,"AAAAAFO+3vg=",0) -> 0 | IP11: =AND('Tally Count Data'!A105,"AAAAAFO+3vk=") ->  | IQ11: =AND('Tally Count Data'!B105,"AAAAAFO+3vo=") ->  | IR11: =AND('Tally Count Data'!C105,"AAAAAFO+3vs=") ->  | IS11: =AND('Tally Count Data'!D105,"AAAAAFO+3vw=") ->  | IT11: =AND('Tally Count Data'!E105,"AAAAAFO+3v0=") ->  | IU11: =AND('Tally Count Data'!F105,"AAAAAFO+3v4=") ->  | IV11: =AND('Tally Count Data'!G105,"AAAAAFO+3v8=") -> 
A12: =AND('Tally Count Data'!H105,"AAAAAHvf9wA=") ->  | B12: =AND('Tally Count Data'!I105,"AAAAAHvf9wE=") ->  | C12: =AND('Tally Count Data'!J105,"AAAAAHvf9wI=") ->  | D12: =AND('Tally Count Data'!K105,"AAAAAHvf9wM=") ->  | E12: =AND('Tally Count Data'!L105,"AAAAAHvf9wQ=") ->  | F12: =AND('Tally Count Data'!M105,"AAAAAHvf9wU=") ->  | G12: =AND('Tally Count Data'!N105,"AAAAAHvf9wY=") ->  | H12: =AND('Tally Count Data'!O105,"AAAAAHvf9wc=") ->  | I12: =AND('Tally Count Data'!P105,"AAAAAHvf9wg=") ->  | J12: =AND('Tally Count Data'!Q105,"AAAAAHvf9wk=") ->  | K12: =AND('Tally Count Data'!R105,"AAAAAHvf9wo=") ->  | L12: =AND('Tally Count Data'!S105,"AAAAAHvf9ws=") ->  | M12: =AND('Tally Count Data'!T105,"AAAAAHvf9ww=") ->  | N12: =AND('Tally Count Data'!U105,"AAAAAHvf9w0=") ->  | O12: =AND('Tally Count Data'!V105,"AAAAAHvf9w4=") ->  | P12: =AND('Tally Count Data'!W105,"AAAAAHvf9w8=") ->  | Q12: =AND('Tally Count Data'!X105,"AAAAAHvf9xA=") ->  | R12: =AND('Tally Count Data'!Y105,"AAAAAHvf9xE=") ->  | S12: =AND('Tally Count Data'!Z105,"AAAAAHvf9xI=") ->  | T12: =IF('Tally Count Data'!106:106,"AAAAAHvf9xM=",0) -> 0 | U12: =AND('Tally Count Data'!A106,"AAAAAHvf9xQ=") ->  | V12: =AND('Tally Count Data'!B106,"AAAAAHvf9xU=") ->  | W12: =AND('Tally Count Data'!C106,"AAAAAHvf9xY=") ->  | X12: =AND('Tally Count Data'!D106,"AAAAAHvf9xc=") ->  | Y12: =AND('Tally Count Data'!E106,"AAAAAHvf9xg=") ->  | Z12: =AND('Tally Count Data'!F106,"AAAAAHvf9xk=") ->  | AA12: =AND('Tally Count Data'!G106,"AAAAAHvf9xo=") ->  | AB12: =AND('Tally Count Data'!H106,"AAAAAHvf9xs=") ->  | AC12: =AND('Tally Count Data'!I106,"AAAAAHvf9xw=") ->  | AD12: =AND('Tally Count Data'!J106,"AAAAAHvf9x0=") ->  | AE12: =AND('Tally Count Data'!K106,"AAAAAHvf9x4=") ->  | AF12: =AND('Tally Count Data'!L106,"AAAAAHvf9x8=") ->  | AG12: =AND('Tally Count Data'!M106,"AAAAAHvf9yA=") ->  | AH12: =AND('Tally Count Data'!N106,"AAAAAHvf9yE=") ->  | AI12: =AND('Tally Count Data'!O106,"AAAAAHvf9yI=") ->  | AJ12: =AND('Tally Count Data'!P106,"AAAAAHvf9yM=") ->  | AK12: =AND('Tally Count Data'!Q106,"AAAAAHvf9yQ=") ->  | AL12: =AND('Tally Count Data'!R106,"AAAAAHvf9yU=") ->  | AM12: =AND('Tally Count Data'!S106,"AAAAAHvf9yY=") ->  | AN12: =AND('Tally Count Data'!T106,"AAAAAHvf9yc=") ->  | AO12: =AND('Tally Count Data'!U106,"AAAAAHvf9yg=") ->  | AP12: =AND('Tally Count Data'!V106,"AAAAAHvf9yk=") ->  | AQ12: =AND('Tally Count Data'!W106,"AAAAAHvf9yo=") ->  | AR12: =AND('Tally Count Data'!X106,"AAAAAHvf9ys=") ->  | AS12: =AND('Tally Count Data'!Y106,"AAAAAHvf9yw=") ->  | AT12: =AND('Tally Count Data'!Z106,"AAAAAHvf9y0=") ->  | AU12: =IF('Tally Count Data'!107:107,"AAAAAHvf9y4=",0) -> 0 | AV12: =AND('Tally Count Data'!A107,"AAAAAHvf9y8=") ->  | AW12: =AND('Tally Count Data'!B107,"AAAAAHvf9zA=") ->  | AX12: =AND('Tally Count Data'!C107,"AAAAAHvf9zE=") ->  | AY12: =AND('Tally Count Data'!D107,"AAAAAHvf9zI=") ->  | AZ12: =AND('Tally Count Data'!E107,"AAAAAHvf9zM=") ->  | BA12: =AND('Tally Count Data'!F107,"AAAAAHvf9zQ=") ->  | BB12: =AND('Tally Count Data'!G107,"AAAAAHvf9zU=") ->  | BC12: =AND('Tally Count Data'!H107,"AAAAAHvf9zY=") ->  | BD12: =AND('Tally Count Data'!I107,"AAAAAHvf9zc=") ->  | BE12: =AND('Tally Count Data'!J107,"AAAAAHvf9zg=") ->  | BF12: =AND('Tally Count Data'!K107,"AAAAAHvf9zk=") ->  | BG12: =AND('Tally Count Data'!L107,"AAAAAHvf9zo=") ->  | BH12: =AND('Tally Count Data'!M107,"AAAAAHvf9zs=") ->  | BI12: =AND('Tally Count Data'!N107,"AAAAAHvf9zw=") ->  | BJ12: =AND('Tally Count Data'!O107,"AAAAAHvf9z0=") ->  | BK12: =AND('Tally Count Data'!P107,"AAAAAHvf9z4=") ->  | BL12: =AND('Tally Count Data'!Q107,"AAAAAHvf9z8=") ->  | BM12: =AND('Tally Count Data'!R107,"AAAAAHvf90A=") ->  | BN12: =AND('Tally Count Data'!S107,"AAAAAHvf90E=") ->  | BO12: =AND('Tally Count Data'!T107,"AAAAAHvf90I=") ->  | BP12: =AND('Tally Count Data'!U107,"AAAAAHvf90M=") ->  | BQ12: =AND('Tally Count Data'!V107,"AAAAAHvf90Q=") ->  | BR12: =AND('Tally Count Data'!W107,"AAAAAHvf90U=") ->  | BS12: =AND('Tally Count Data'!X107,"AAAAAHvf90Y=") ->  | BT12: =AND('Tally Count Data'!Y107,"AAAAAHvf90c=") ->  | BU12: =AND('Tally Count Data'!Z107,"AAAAAHvf90g=") ->  | BV12: =IF('Tally Count Data'!108:108,"AAAAAHvf90k=",0) -> 0 | BW12: =AND('Tally Count Data'!A108,"AAAAAHvf90o=") ->  | BX12: =AND('Tally Count Data'!B108,"AAAAAHvf90s=") ->  | BY12: =AND('Tally Count Data'!C108,"AAAAAHvf90w=") ->  | BZ12: =AND('Tally Count Data'!D108,"AAAAAHvf900=") ->  | CA12: =AND('Tally Count Data'!E108,"AAAAAHvf904=") ->  | CB12: =AND('Tally Count Data'!F108,"AAAAAHvf908=") ->  | CC12: =AND('Tally Count Data'!G108,"AAAAAHvf91A=") ->  | CD12: =AND('Tally Count Data'!H108,"AAAAAHvf91E=") ->  | CE12: =AND('Tally Count Data'!I108,"AAAAAHvf91I=") ->  | CF12: =AND('Tally Count Data'!J108,"AAAAAHvf91M=") ->  | CG12: =AND('Tally Count Data'!K108,"AAAAAHvf91Q=") ->  | CH12: =AND('Tally Count Data'!L108,"AAAAAHvf91U=") ->  | CI12: =AND('Tally Count Data'!M108,"AAAAAHvf91Y=") ->  | CJ12: =AND('Tally Count Data'!N108,"AAAAAHvf91c=") ->  | CK12: =AND('Tally Count Data'!O108,"AAAAAHvf91g=") ->  | CL12: =AND('Tally Count Data'!P108,"AAAAAHvf91k=") ->  | CM12: =AND('Tally Count Data'!Q108,"AAAAAHvf91o=") ->  | CN12: =AND('Tally Count Data'!R108,"AAAAAHvf91s=") ->  | CO12: =AND('Tally Count Data'!S108,"AAAAAHvf91w=") ->  | CP12: =AND('Tally Count Data'!T108,"AAAAAHvf910=") ->  | CQ12: =AND('Tally Count Data'!U108,"AAAAAHvf914=") ->  | CR12: =AND('Tally Count Data'!V108,"AAAAAHvf918=") ->  | CS12: =AND('Tally Count Data'!W108,"AAAAAHvf92A=") ->  | CT12: =AND('Tally Count Data'!X108,"AAAAAHvf92E=") ->  | CU12: =AND('Tally Count Data'!Y108,"AAAAAHvf92I=") ->  | CV12: =AND('Tally Count Data'!Z108,"AAAAAHvf92M=") ->  | CW12: =IF('Tally Count Data'!109:109,"AAAAAHvf92Q=",0) -> 0 | CX12: =AND('Tally Count Data'!A109,"AAAAAHvf92U=") ->  | CY12: =AND('Tally Count Data'!B109,"AAAAAHvf92Y=") ->  | CZ12: =AND('Tally Count Data'!C109,"AAAAAHvf92c=") ->  | DA12: =AND('Tally Count Data'!D109,"AAAAAHvf92g=") ->  | DB12: =AND('Tally Count Data'!E109,"AAAAAHvf92k=") ->  | DC12: =AND('Tally Count Data'!F109,"AAAAAHvf92o=") ->  | DD12: =AND('Tally Count Data'!G109,"AAAAAHvf92s=") ->  | DE12: =AND('Tally Count Data'!H109,"AAAAAHvf92w=") ->  | DF12: =AND('Tally Count Data'!I109,"AAAAAHvf920=") ->  | DG12: =AND('Tally Count Data'!J109,"AAAAAHvf924=") ->  | DH12: =AND('Tally Count Data'!K109,"AAAAAHvf928=") ->  | DI12: =AND('Tally Count Data'!L109,"AAAAAHvf93A=") ->  | DJ12: =AND('Tally Count Data'!M109,"AAAAAHvf93E=") ->  | DK12: =AND('Tally Count Data'!N109,"AAAAAHvf93I=") ->  | DL12: =AND('Tally Count Data'!O109,"AAAAAHvf93M=") ->  | DM12: =AND('Tally Count Data'!P109,"AAAAAHvf93Q=") ->  | DN12: =AND('Tally Count Data'!Q109,"AAAAAHvf93U=") ->  | DO12: =AND('Tally Count Data'!R109,"AAAAAHvf93Y=") ->  | DP12: =AND('Tally Count Data'!S109,"AAAAAHvf93c=") ->  | DQ12: =AND('Tally Count Data'!T109,"AAAAAHvf93g=") ->  | DR12: =AND('Tally Count Data'!U109,"AAAAAHvf93k=") ->  | DS12: =AND('Tally Count Data'!V109,"AAAAAHvf93o=") ->  | DT12: =AND('Tally Count Data'!W109,"AAAAAHvf93s=") ->  | DU12: =AND('Tally Count Data'!X109,"AAAAAHvf93w=") ->  | DV12: =AND('Tally Count Data'!Y109,"AAAAAHvf930=") ->  | DW12: =AND('Tally Count Data'!Z109,"AAAAAHvf934=") ->  | DX12: =IF('Tally Count Data'!110:110,"AAAAAHvf938=",0) -> 0 | DY12: =AND('Tally Count Data'!A110,"AAAAAHvf94A=") ->  | DZ12: =AND('Tally Count Data'!B110,"AAAAAHvf94E=") ->  | EA12: =AND('Tally Count Data'!C110,"AAAAAHvf94I=") ->  | EB12: =AND('Tally Count Data'!D110,"AAAAAHvf94M=") ->  | EC12: =AND('Tally Count Data'!E110,"AAAAAHvf94Q=") ->  | ED12: =AND('Tally Count Data'!F110,"AAAAAHvf94U=") ->  | EE12: =AND('Tally Count Data'!G110,"AAAAAHvf94Y=") ->  | EF12: =AND('Tally Count Data'!H110,"AAAAAHvf94c=") ->  | EG12: =AND('Tally Count Data'!I110,"AAAAAHvf94g=") ->  | EH12: =AND('Tally Count Data'!J110,"AAAAAHvf94k=") ->  | EI12: =AND('Tally Count Data'!K110,"AAAAAHvf94o=") ->  | EJ12: =AND('Tally Count Data'!L110,"AAAAAHvf94s=") ->  | EK12: =AND('Tally Count Data'!M110,"AAAAAHvf94w=") ->  | EL12: =AND('Tally Count Data'!N110,"AAAAAHvf940=") ->  | EM12: =AND('Tally Count Data'!O110,"AAAAAHvf944=") ->  | EN12: =AND('Tally Count Data'!P110,"AAAAAHvf948=") ->  | EO12: =AND('Tally Count Data'!Q110,"AAAAAHvf95A=") ->  | EP12: =AND('Tally Count Data'!R110,"AAAAAHvf95E=") ->  | EQ12: =AND('Tally Count Data'!S110,"AAAAAHvf95I=") ->  | ER12: =AND('Tally Count Data'!T110,"AAAAAHvf95M=") ->  | ES12: =AND('Tally Count Data'!U110,"AAAAAHvf95Q=") ->  | ET12: =AND('Tally Count Data'!V110,"AAAAAHvf95U=") ->  | EU12: =AND('Tally Count Data'!W110,"AAAAAHvf95Y=") ->  | EV12: =AND('Tally Count Data'!X110,"AAAAAHvf95c=") ->  | EW12: =AND('Tally Count Data'!Y110,"AAAAAHvf95g=") ->  | EX12: =AND('Tally Count Data'!Z110,"AAAAAHvf95k=") ->  | EY12: =IF('Tally Count Data'!111:111,"AAAAAHvf95o=",0) -> 0 | EZ12: =AND('Tally Count Data'!A111,"AAAAAHvf95s=") ->  | FA12: =AND('Tally Count Data'!B111,"AAAAAHvf95w=") ->  | FB12: =AND('Tally Count Data'!C111,"AAAAAHvf950=") ->  | FC12: =AND('Tally Count Data'!D111,"AAAAAHvf954=") ->  | FD12: =AND('Tally Count Data'!E111,"AAAAAHvf958=") ->  | FE12: =AND('Tally Count Data'!F111,"AAAAAHvf96A=") ->  | FF12: =AND('Tally Count Data'!G111,"AAAAAHvf96E=") ->  | FG12: =AND('Tally Count Data'!H111,"AAAAAHvf96I=") ->  | FH12: =AND('Tally Count Data'!I111,"AAAAAHvf96M=") ->  | FI12: =AND('Tally Count Data'!J111,"AAAAAHvf96Q=") ->  | FJ12: =AND('Tally Count Data'!K111,"AAAAAHvf96U=") ->  | FK12: =AND('Tally Count Data'!L111,"AAAAAHvf96Y=") ->  | FL12: =AND('Tally Count Data'!M111,"AAAAAHvf96c=") ->  | FM12: =AND('Tally Count Data'!N111,"AAAAAHvf96g=") ->  | FN12: =AND('Tally Count Data'!O111,"AAAAAHvf96k=") ->  | FO12: =AND('Tally Count Data'!P111,"AAAAAHvf96o=") ->  | FP12: =AND('Tally Count Data'!Q111,"AAAAAHvf96s=") ->  | FQ12: =AND('Tally Count Data'!R111,"AAAAAHvf96w=") ->  | FR12: =AND('Tally Count Data'!S111,"AAAAAHvf960=") ->  | FS12: =AND('Tally Count Data'!T111,"AAAAAHvf964=") ->  | FT12: =AND('Tally Count Data'!U111,"AAAAAHvf968=") ->  | FU12: =AND('Tally Count Data'!V111,"AAAAAHvf97A=") ->  | FV12: =AND('Tally Count Data'!W111,"AAAAAHvf97E=") ->  | FW12: =AND('Tally Count Data'!X111,"AAAAAHvf97I=") ->  | FX12: =AND('Tally Count Data'!Y111,"AAAAAHvf97M=") ->  | FY12: =AND('Tally Count Data'!Z111,"AAAAAHvf97Q=") ->  | FZ12: =IF('Tally Count Data'!112:112,"AAAAAHvf97U=",0) -> 0 | GA12: =AND('Tally Count Data'!A112,"AAAAAHvf97Y=") ->  | GB12: =AND('Tally Count Data'!B112,"AAAAAHvf97c=") ->  | GC12: =AND('Tally Count Data'!C112,"AAAAAHvf97g=") ->  | GD12: =AND('Tally Count Data'!D112,"AAAAAHvf97k=") ->  | GE12: =AND('Tally Count Data'!E112,"AAAAAHvf97o=") ->  | GF12: =AND('Tally Count Data'!F112,"AAAAAHvf97s=") ->  | GG12: =AND('Tally Count Data'!G112,"AAAAAHvf97w=") ->  | GH12: =AND('Tally Count Data'!H112,"AAAAAHvf970=") ->  | GI12: =AND('Tally Count Data'!I112,"AAAAAHvf974=") ->  | GJ12: =AND('Tally Count Data'!J112,"AAAAAHvf978=") ->  | GK12: =AND('Tally Count Data'!K112,"AAAAAHvf98A=") ->  | GL12: =AND('Tally Count Data'!L112,"AAAAAHvf98E=") ->  | GM12: =AND('Tally Count Data'!M112,"AAAAAHvf98I=") ->  | GN12: =AND('Tally Count Data'!N112,"AAAAAHvf98M=") ->  | GO12: =AND('Tally Count Data'!O112,"AAAAAHvf98Q=") ->  | GP12: =AND('Tally Count Data'!P112,"AAAAAHvf98U=") ->  | GQ12: =AND('Tally Count Data'!Q112,"AAAAAHvf98Y=") ->  | GR12: =AND('Tally Count Data'!R112,"AAAAAHvf98c=") ->  | GS12: =AND('Tally Count Data'!S112,"AAAAAHvf98g=") ->  | GT12: =AND('Tally Count Data'!T112,"AAAAAHvf98k=") ->  | GU12: =AND('Tally Count Data'!U112,"AAAAAHvf98o=") ->  | GV12: =AND('Tally Count Data'!V112,"AAAAAHvf98s=") ->  | GW12: =AND('Tally Count Data'!W112,"AAAAAHvf98w=") ->  | GX12: =AND('Tally Count Data'!X112,"AAAAAHvf980=") ->  | GY12: =AND('Tally Count Data'!Y112,"AAAAAHvf984=") ->  | GZ12: =AND('Tally Count Data'!Z112,"AAAAAHvf988=") ->  | HA12: =IF('Tally Count Data'!113:113,"AAAAAHvf99A=",0) -> 0 | HB12: =AND('Tally Count Data'!A113,"AAAAAHvf99E=") ->  | HC12: =AND('Tally Count Data'!B113,"AAAAAHvf99I=") ->  | HD12: =AND('Tally Count Data'!C113,"AAAAAHvf99M=") ->  | HE12: =AND('Tally Count Data'!D113,"AAAAAHvf99Q=") ->  | HF12: =AND('Tally Count Data'!E113,"AAAAAHvf99U=") ->  | HG12: =AND('Tally Count Data'!F113,"AAAAAHvf99Y=") ->  | HH12: =AND('Tally Count Data'!G113,"AAAAAHvf99c=") ->  | HI12: =AND('Tally Count Data'!H113,"AAAAAHvf99g=") ->  | HJ12: =AND('Tally Count Data'!I113,"AAAAAHvf99k=") ->  | HK12: =AND('Tally Count Data'!J113,"AAAAAHvf99o=") ->  | HL12: =AND('Tally Count Data'!K113,"AAAAAHvf99s=") ->  | HM12: =AND('Tally Count Data'!L113,"AAAAAHvf99w=") ->  | HN12: =AND('Tally Count Data'!M113,"AAAAAHvf990=") ->  | HO12: =AND('Tally Count Data'!N113,"AAAAAHvf994=") ->  | HP12: =AND('Tally Count Data'!O113,"AAAAAHvf998=") ->  | HQ12: =AND('Tally Count Data'!P113,"AAAAAHvf9+A=") ->  | HR12: =AND('Tally Count Data'!Q113,"AAAAAHvf9+E=") ->  | HS12: =AND('Tally Count Data'!R113,"AAAAAHvf9+I=") ->  | HT12: =AND('Tally Count Data'!S113,"AAAAAHvf9+M=") ->  | HU12: =AND('Tally Count Data'!T113,"AAAAAHvf9+Q=") ->  | HV12: =AND('Tally Count Data'!U113,"AAAAAHvf9+U=") ->  | HW12: =AND('Tally Count Data'!V113,"AAAAAHvf9+Y=") ->  | HX12: =AND('Tally Count Data'!W113,"AAAAAHvf9+c=") ->  | HY12: =AND('Tally Count Data'!X113,"AAAAAHvf9+g=") ->  | HZ12: =AND('Tally Count Data'!Y113,"AAAAAHvf9+k=") ->  | IA12: =AND('Tally Count Data'!Z113,"AAAAAHvf9+o=") ->  | IB12: =IF('Tally Count Data'!114:114,"AAAAAHvf9+s=",0) -> 0 | IC12: =AND('Tally Count Data'!A114,"AAAAAHvf9+w=") ->  | ID12: =AND('Tally Count Data'!B114,"AAAAAHvf9+0=") ->  | IE12: =AND('Tally Count Data'!C114,"AAAAAHvf9+4=") ->  | IF12: =AND('Tally Count Data'!D114,"AAAAAHvf9+8=") ->  | IG12: =AND('Tally Count Data'!E114,"AAAAAHvf9/A=") ->  | IH12: =AND('Tally Count Data'!F114,"AAAAAHvf9/E=") ->  | II12: =AND('Tally Count Data'!G114,"AAAAAHvf9/I=") ->  | IJ12: =AND('Tally Count Data'!H114,"AAAAAHvf9/M=") ->  | IK12: =AND('Tally Count Data'!I114,"AAAAAHvf9/Q=") ->  | IL12: =AND('Tally Count Data'!J114,"AAAAAHvf9/U=") ->  | IM12: =AND('Tally Count Data'!K114,"AAAAAHvf9/Y=") ->  | IN12: =AND('Tally Count Data'!L114,"AAAAAHvf9/c=") ->  | IO12: =AND('Tally Count Data'!M114,"AAAAAHvf9/g=") ->  | IP12: =AND('Tally Count Data'!N114,"AAAAAHvf9/k=") ->  | IQ12: =AND('Tally Count Data'!O114,"AAAAAHvf9/o=") ->  | IR12: =AND('Tally Count Data'!P114,"AAAAAHvf9/s=") ->  | IS12: =AND('Tally Count Data'!Q114,"AAAAAHvf9/w=") ->  | IT12: =AND('Tally Count Data'!R114,"AAAAAHvf9/0=") ->  | IU12: =AND('Tally Count Data'!S114,"AAAAAHvf9/4=") ->  | IV12: =AND('Tally Count Data'!T114,"AAAAAHvf9/8=") -> 
A13: =AND('Tally Count Data'!U114,"AAAAAHfjWwA=") ->  | B13: =AND('Tally Count Data'!V114,"AAAAAHfjWwE=") ->  | C13: =AND('Tally Count Data'!W114,"AAAAAHfjWwI=") ->  | D13: =AND('Tally Count Data'!X114,"AAAAAHfjWwM=") ->  | E13: =AND('Tally Count Data'!Y114,"AAAAAHfjWwQ=") ->  | F13: =AND('Tally Count Data'!Z114,"AAAAAHfjWwU=") ->  | G13: =IF('Tally Count Data'!115:115,"AAAAAHfjWwY=",0) -> 0 | H13: =AND('Tally Count Data'!A115,"AAAAAHfjWwc=") ->  | I13: =AND('Tally Count Data'!B115,"AAAAAHfjWwg=") ->  | J13: =AND('Tally Count Data'!C115,"AAAAAHfjWwk=") ->  | K13: =AND('Tally Count Data'!D115,"AAAAAHfjWwo=") ->  | L13: =AND('Tally Count Data'!E115,"AAAAAHfjWws=") ->  | M13: =AND('Tally Count Data'!F115,"AAAAAHfjWww=") ->  | N13: =AND('Tally Count Data'!G115,"AAAAAHfjWw0=") ->  | O13: =AND('Tally Count Data'!H115,"AAAAAHfjWw4=") ->  | P13: =AND('Tally Count Data'!I115,"AAAAAHfjWw8=") ->  | Q13: =AND('Tally Count Data'!J115,"AAAAAHfjWxA=") ->  | R13: =AND('Tally Count Data'!K115,"AAAAAHfjWxE=") ->  | S13: =AND('Tally Count Data'!L115,"AAAAAHfjWxI=") ->  | T13: =AND('Tally Count Data'!M115,"AAAAAHfjWxM=") ->  | U13: =AND('Tally Count Data'!N115,"AAAAAHfjWxQ=") ->  | V13: =AND('Tally Count Data'!O115,"AAAAAHfjWxU=") ->  | W13: =AND('Tally Count Data'!P115,"AAAAAHfjWxY=") ->  | X13: =AND('Tally Count Data'!Q115,"AAAAAHfjWxc=") ->  | Y13: =AND('Tally Count Data'!R115,"AAAAAHfjWxg=") ->  | Z13: =AND('Tally Count Data'!S115,"AAAAAHfjWxk=") ->  | AA13: =AND('Tally Count Data'!T115,"AAAAAHfjWxo=") ->  | AB13: =AND('Tally Count Data'!U115,"AAAAAHfjWxs=") ->  | AC13: =AND('Tally Count Data'!V115,"AAAAAHfjWxw=") ->  | AD13: =AND('Tally Count Data'!W115,"AAAAAHfjWx0=") ->  | AE13: =AND('Tally Count Data'!X115,"AAAAAHfjWx4=") ->  | AF13: =AND('Tally Count Data'!Y115,"AAAAAHfjWx8=") ->  | AG13: =AND('Tally Count Data'!Z115,"AAAAAHfjWyA=") ->  | AH13: =IF('Tally Count Data'!116:116,"AAAAAHfjWyE=",0) -> 0 | AI13: =AND('Tally Count Data'!A116,"AAAAAHfjWyI=") ->  | AJ13: =AND('Tally Count Data'!B116,"AAAAAHfjWyM=") ->  | AK13: =AND('Tally Count Data'!C116,"AAAAAHfjWyQ=") ->  | AL13: =AND('Tally Count Data'!D116,"AAAAAHfjWyU=") ->  | AM13: =AND('Tally Count Data'!E116,"AAAAAHfjWyY=") ->  | AN13: =AND('Tally Count Data'!F116,"AAAAAHfjWyc=") ->  | AO13: =AND('Tally Count Data'!G116,"AAAAAHfjWyg=") ->  | AP13: =AND('Tally Count Data'!H116,"AAAAAHfjWyk=") ->  | AQ13: =AND('Tally Count Data'!I116,"AAAAAHfjWyo=") ->  | AR13: =AND('Tally Count Data'!J116,"AAAAAHfjWys=") ->  | AS13: =AND('Tally Count Data'!K116,"AAAAAHfjWyw=") ->  | AT13: =AND('Tally Count Data'!L116,"AAAAAHfjWy0=") ->  | AU13: =AND('Tally Count Data'!M116,"AAAAAHfjWy4=") ->  | AV13: =AND('Tally Count Data'!N116,"AAAAAHfjWy8=") ->  | AW13: =AND('Tally Count Data'!O116,"AAAAAHfjWzA=") ->  | AX13: =AND('Tally Count Data'!P116,"AAAAAHfjWzE=") ->  | AY13: =AND('Tally Count Data'!Q116,"AAAAAHfjWzI=") ->  | AZ13: =AND('Tally Count Data'!R116,"AAAAAHfjWzM=") ->  | BA13: =AND('Tally Count Data'!S116,"AAAAAHfjWzQ=") ->  | BB13: =AND('Tally Count Data'!T116,"AAAAAHfjWzU=") ->  | BC13: =AND('Tally Count Data'!U116,"AAAAAHfjWzY=") ->  | BD13: =AND('Tally Count Data'!V116,"AAAAAHfjWzc=") ->  | BE13: =AND('Tally Count Data'!W116,"AAAAAHfjWzg=") ->  | BF13: =AND('Tally Count Data'!X116,"AAAAAHfjWzk=") ->  | BG13: =AND('Tally Count Data'!Y116,"AAAAAHfjWzo=") ->  | BH13: =AND('Tally Count Data'!Z116,"AAAAAHfjWzs=") ->  | BI13: =IF('Tally Count Data'!117:117,"AAAAAHfjWzw=",0) -> 0 | BJ13: =AND('Tally Count Data'!A117,"AAAAAHfjWz0=") ->  | BK13: =AND('Tally Count Data'!B117,"AAAAAHfjWz4=") ->  | BL13: =AND('Tally Count Data'!C117,"AAAAAHfjWz8=") ->  | BM13: =AND('Tally Count Data'!D117,"AAAAAHfjW0A=") ->  | BN13: =AND('Tally Count Data'!E117,"AAAAAHfjW0E=") ->  | BO13: =AND('Tally Count Data'!F117,"AAAAAHfjW0I=") ->  | BP13: =AND('Tally Count Data'!G117,"AAAAAHfjW0M=") ->  | BQ13: =AND('Tally Count Data'!H117,"AAAAAHfjW0Q=") ->  | BR13: =AND('Tally Count Data'!I117,"AAAAAHfjW0U=") ->  | BS13: =AND('Tally Count Data'!J117,"AAAAAHfjW0Y=") ->  | BT13: =AND('Tally Count Data'!K117,"AAAAAHfjW0c=") ->  | BU13: =AND('Tally Count Data'!L117,"AAAAAHfjW0g=") ->  | BV13: =AND('Tally Count Data'!M117,"AAAAAHfjW0k=") ->  | BW13: =AND('Tally Count Data'!N117,"AAAAAHfjW0o=") ->  | BX13: =AND('Tally Count Data'!O117,"AAAAAHfjW0s=") ->  | BY13: =AND('Tally Count Data'!P117,"AAAAAHfjW0w=") ->  | BZ13: =AND('Tally Count Data'!Q117,"AAAAAHfjW00=") ->  | CA13: =AND('Tally Count Data'!R117,"AAAAAHfjW04=") ->  | CB13: =AND('Tally Count Data'!S117,"AAAAAHfjW08=") ->  | CC13: =AND('Tally Count Data'!T117,"AAAAAHfjW1A=") ->  | CD13: =AND('Tally Count Data'!U117,"AAAAAHfjW1E=") ->  | CE13: =AND('Tally Count Data'!V117,"AAAAAHfjW1I=") ->  | CF13: =AND('Tally Count Data'!W117,"AAAAAHfjW1M=") ->  | CG13: =AND('Tally Count Data'!X117,"AAAAAHfjW1Q=") ->  | CH13: =AND('Tally Count Data'!Y117,"AAAAAHfjW1U=") ->  | CI13: =AND('Tally Count Data'!Z117,"AAAAAHfjW1Y=") ->  | CJ13: =IF('Tally Count Data'!118:118,"AAAAAHfjW1c=",0) -> 0 | CK13: =AND('Tally Count Data'!A118,"AAAAAHfjW1g=") ->  | CL13: =AND('Tally Count Data'!B118,"AAAAAHfjW1k=") ->  | CM13: =AND('Tally Count Data'!C118,"AAAAAHfjW1o=") ->  | CN13: =AND('Tally Count Data'!D118,"AAAAAHfjW1s=") ->  | CO13: =AND('Tally Count Data'!E118,"AAAAAHfjW1w=") ->  | CP13: =AND('Tally Count Data'!F118,"AAAAAHfjW10=") ->  | CQ13: =AND('Tally Count Data'!G118,"AAAAAHfjW14=") ->  | CR13: =AND('Tally Count Data'!H118,"AAAAAHfjW18=") ->  | CS13: =AND('Tally Count Data'!I118,"AAAAAHfjW2A=") ->  | CT13: =AND('Tally Count Data'!J118,"AAAAAHfjW2E=") ->  | CU13: =AND('Tally Count Data'!K118,"AAAAAHfjW2I=") ->  | CV13: =AND('Tally Count Data'!L118,"AAAAAHfjW2M=") ->  | CW13: =AND('Tally Count Data'!M118,"AAAAAHfjW2Q=") ->  | CX13: =AND('Tally Count Data'!N118,"AAAAAHfjW2U=") ->  | CY13: =AND('Tally Count Data'!O118,"AAAAAHfjW2Y=") ->  | CZ13: =AND('Tally Count Data'!P118,"AAAAAHfjW2c=") ->  | DA13: =AND('Tally Count Data'!Q118,"AAAAAHfjW2g=") ->  | DB13: =AND('Tally Count Data'!R118,"AAAAAHfjW2k=") ->  | DC13: =AND('Tally Count Data'!S118,"AAAAAHfjW2o=") ->  | DD13: =AND('Tally Count Data'!T118,"AAAAAHfjW2s=") ->  | DE13: =AND('Tally Count Data'!U118,"AAAAAHfjW2w=") ->  | DF13: =AND('Tally Count Data'!V118,"AAAAAHfjW20=") ->  | DG13: =AND('Tally Count Data'!W118,"AAAAAHfjW24=") ->  | DH13: =AND('Tally Count Data'!X118,"AAAAAHfjW28=") ->  | DI13: =AND('Tally Count Data'!Y118,"AAAAAHfjW3A=") ->  | DJ13: =AND('Tally Count Data'!Z118,"AAAAAHfjW3E=") ->  | DK13: =IF('Tally Count Data'!119:119,"AAAAAHfjW3I=",0) -> 0 | DL13: =AND('Tally Count Data'!A119,"AAAAAHfjW3M=") ->  | DM13: =AND('Tally Count Data'!B119,"AAAAAHfjW3Q=") ->  | DN13: =AND('Tally Count Data'!C119,"AAAAAHfjW3U=") ->  | DO13: =AND('Tally Count Data'!D119,"AAAAAHfjW3Y=") ->  | DP13: =AND('Tally Count Data'!E119,"AAAAAHfjW3c=") ->  | DQ13: =AND('Tally Count Data'!F119,"AAAAAHfjW3g=") ->  | DR13: =AND('Tally Count Data'!G119,"AAAAAHfjW3k=") ->  | DS13: =AND('Tally Count Data'!H119,"AAAAAHfjW3o=") ->  | DT13: =AND('Tally Count Data'!I119,"AAAAAHfjW3s=") ->  | DU13: =AND('Tally Count Data'!J119,"AAAAAHfjW3w=") ->  | DV13: =AND('Tally Count Data'!K119,"AAAAAHfjW30=") ->  | DW13: =AND('Tally Count Data'!L119,"AAAAAHfjW34=") ->  | DX13: =AND('Tally Count Data'!M119,"AAAAAHfjW38=") ->  | DY13: =AND('Tally Count Data'!N119,"AAAAAHfjW4A=") ->  | DZ13: =AND('Tally Count Data'!O119,"AAAAAHfjW4E=") ->  | EA13: =AND('Tally Count Data'!P119,"AAAAAHfjW4I=") ->  | EB13: =AND('Tally Count Data'!Q119,"AAAAAHfjW4M=") ->  | EC13: =AND('Tally Count Data'!R119,"AAAAAHfjW4Q=") ->  | ED13: =AND('Tally Count Data'!S119,"AAAAAHfjW4U=") ->  | EE13: =AND('Tally Count Data'!T119,"AAAAAHfjW4Y=") ->  | EF13: =AND('Tally Count Data'!U119,"AAAAAHfjW4c=") ->  | EG13: =AND('Tally Count Data'!V119,"AAAAAHfjW4g=") ->  | EH13: =AND('Tally Count Data'!W119,"AAAAAHfjW4k=") ->  | EI13: =AND('Tally Count Data'!X119,"AAAAAHfjW4o=") ->  | EJ13: =AND('Tally Count Data'!Y119,"AAAAAHfjW4s=") ->  | EK13: =AND('Tally Count Data'!Z119,"AAAAAHfjW4w=") ->  | EL13: =IF('Tally Count Data'!120:120,"AAAAAHfjW40=",0) -> 0 | EM13: =AND('Tally Count Data'!A120,"AAAAAHfjW44=") ->  | EN13: =AND('Tally Count Data'!B120,"AAAAAHfjW48=") ->  | EO13: =AND('Tally Count Data'!C120,"AAAAAHfjW5A=") ->  | EP13: =AND('Tally Count Data'!D120,"AAAAAHfjW5E=") ->  | EQ13: =AND('Tally Count Data'!E120,"AAAAAHfjW5I=") ->  | ER13: =AND('Tally Count Data'!F120,"AAAAAHfjW5M=") ->  | ES13: =AND('Tally Count Data'!G120,"AAAAAHfjW5Q=") ->  | ET13: =AND('Tally Count Data'!H120,"AAAAAHfjW5U=") ->  | EU13: =AND('Tally Count Data'!I120,"AAAAAHfjW5Y=") ->  | EV13: =AND('Tally Count Data'!J120,"AAAAAHfjW5c=") ->  | EW13: =AND('Tally Count Data'!K120,"AAAAAHfjW5g=") ->  | EX13: =AND('Tally Count Data'!L120,"AAAAAHfjW5k=") ->  | EY13: =AND('Tally Count Data'!M120,"AAAAAHfjW5o=") ->  | EZ13: =AND('Tally Count Data'!N120,"AAAAAHfjW5s=") ->  | FA13: =AND('Tally Count Data'!O120,"AAAAAHfjW5w=") ->  | FB13: =AND('Tally Count Data'!P120,"AAAAAHfjW50=") ->  | FC13: =AND('Tally Count Data'!Q120,"AAAAAHfjW54=") ->  | FD13: =AND('Tally Count Data'!R120,"AAAAAHfjW58=") ->  | FE13: =AND('Tally Count Data'!S120,"AAAAAHfjW6A=") ->  | FF13: =AND('Tally Count Data'!T120,"AAAAAHfjW6E=") ->  | FG13: =AND('Tally Count Data'!U120,"AAAAAHfjW6I=") ->  | FH13: =AND('Tally Count Data'!V120,"AAAAAHfjW6M=") ->  | FI13: =AND('Tally Count Data'!W120,"AAAAAHfjW6Q=") ->  | FJ13: =AND('Tally Count Data'!X120,"AAAAAHfjW6U=") ->  | FK13: =AND('Tally Count Data'!Y120,"AAAAAHfjW6Y=") ->  | FL13: =AND('Tally Count Data'!Z120,"AAAAAHfjW6c=") ->  | FM13: =IF('Tally Count Data'!121:121,"AAAAAHfjW6g=",0) -> 0 | FN13: =AND('Tally Count Data'!A121,"AAAAAHfjW6k=") ->  | FO13: =AND('Tally Count Data'!B121,"AAAAAHfjW6o=") ->  | FP13: =AND('Tally Count Data'!C121,"AAAAAHfjW6s=") ->  | FQ13: =AND('Tally Count Data'!D121,"AAAAAHfjW6w=") ->  | FR13: =AND('Tally Count Data'!E121,"AAAAAHfjW60=") ->  | FS13: =AND('Tally Count Data'!F121,"AAAAAHfjW64=") ->  | FT13: =AND('Tally Count Data'!G121,"AAAAAHfjW68=") ->  | FU13: =AND('Tally Count Data'!H121,"AAAAAHfjW7A=") ->  | FV13: =AND('Tally Count Data'!I121,"AAAAAHfjW7E=") ->  | FW13: =AND('Tally Count Data'!J121,"AAAAAHfjW7I=") ->  | FX13: =AND('Tally Count Data'!K121,"AAAAAHfjW7M=") ->  | FY13: =AND('Tally Count Data'!L121,"AAAAAHfjW7Q=") ->  | FZ13: =AND('Tally Count Data'!M121,"AAAAAHfjW7U=") ->  | GA13: =AND('Tally Count Data'!N121,"AAAAAHfjW7Y=") ->  | GB13: =AND('Tally Count Data'!O121,"AAAAAHfjW7c=") ->  | GC13: =AND('Tally Count Data'!P121,"AAAAAHfjW7g=") ->  | GD13: =AND('Tally Count Data'!Q121,"AAAAAHfjW7k=") ->  | GE13: =AND('Tally Count Data'!R121,"AAAAAHfjW7o=") ->  | GF13: =AND('Tally Count Data'!S121,"AAAAAHfjW7s=") ->  | GG13: =AND('Tally Count Data'!T121,"AAAAAHfjW7w=") ->  | GH13: =AND('Tally Count Data'!U121,"AAAAAHfjW70=") ->  | GI13: =AND('Tally Count Data'!V121,"AAAAAHfjW74=") ->  | GJ13: =AND('Tally Count Data'!W121,"AAAAAHfjW78=") ->  | GK13: =AND('Tally Count Data'!X121,"AAAAAHfjW8A=") ->  | GL13: =AND('Tally Count Data'!Y121,"AAAAAHfjW8E=") ->  | GM13: =AND('Tally Count Data'!Z121,"AAAAAHfjW8I=") ->  | GN13: =IF('Tally Count Data'!122:122,"AAAAAHfjW8M=",0) -> 0 | GO13: =AND('Tally Count Data'!A122,"AAAAAHfjW8Q=") ->  | GP13: =AND('Tally Count Data'!B122,"AAAAAHfjW8U=") ->  | GQ13: =AND('Tally Count Data'!C122,"AAAAAHfjW8Y=") ->  | GR13: =AND('Tally Count Data'!D122,"AAAAAHfjW8c=") ->  | GS13: =AND('Tally Count Data'!E122,"AAAAAHfjW8g=") ->  | GT13: =AND('Tally Count Data'!F122,"AAAAAHfjW8k=") ->  | GU13: =AND('Tally Count Data'!G122,"AAAAAHfjW8o=") ->  | GV13: =AND('Tally Count Data'!H122,"AAAAAHfjW8s=") ->  | GW13: =AND('Tally Count Data'!I122,"AAAAAHfjW8w=") ->  | GX13: =AND('Tally Count Data'!J122,"AAAAAHfjW80=") ->  | GY13: =AND('Tally Count Data'!K122,"AAAAAHfjW84=") ->  | GZ13: =AND('Tally Count Data'!L122,"AAAAAHfjW88=") ->  | HA13: =AND('Tally Count Data'!M122,"AAAAAHfjW9A=") ->  | HB13: =AND('Tally Count Data'!N122,"AAAAAHfjW9E=") ->  | HC13: =AND('Tally Count Data'!O122,"AAAAAHfjW9I=") ->  | HD13: =AND('Tally Count Data'!P122,"AAAAAHfjW9M=") ->  | HE13: =AND('Tally Count Data'!Q122,"AAAAAHfjW9Q=") ->  | HF13: =AND('Tally Count Data'!R122,"AAAAAHfjW9U=") ->  | HG13: =AND('Tally Count Data'!S122,"AAAAAHfjW9Y=") ->  | HH13: =AND('Tally Count Data'!T122,"AAAAAHfjW9c=") ->  | HI13: =AND('Tally Count Data'!U122,"AAAAAHfjW9g=") ->  | HJ13: =AND('Tally Count Data'!V122,"AAAAAHfjW9k=") ->  | HK13: =AND('Tally Count Data'!W122,"AAAAAHfjW9o=") ->  | HL13: =AND('Tally Count Data'!X122,"AAAAAHfjW9s=") ->  | HM13: =AND('Tally Count Data'!Y122,"AAAAAHfjW9w=") ->  | HN13: =AND('Tally Count Data'!Z122,"AAAAAHfjW90=") ->  | HO13: =IF('Tally Count Data'!123:123,"AAAAAHfjW94=",0) -> 0 | HP13: =AND('Tally Count Data'!A123,"AAAAAHfjW98=") ->  | HQ13: =AND('Tally Count Data'!B123,"AAAAAHfjW+A=") ->  | HR13: =AND('Tally Count Data'!C123,"AAAAAHfjW+E=") ->  | HS13: =AND('Tally Count Data'!D123,"AAAAAHfjW+I=") ->  | HT13: =AND('Tally Count Data'!E123,"AAAAAHfjW+M=") ->  | HU13: =AND('Tally Count Data'!F123,"AAAAAHfjW+Q=") ->  | HV13: =AND('Tally Count Data'!G123,"AAAAAHfjW+U=") ->  | HW13: =AND('Tally Count Data'!H123,"AAAAAHfjW+Y=") ->  | HX13: =AND('Tally Count Data'!I123,"AAAAAHfjW+c=") ->  | HY13: =AND('Tally Count Data'!J123,"AAAAAHfjW+g=") ->  | HZ13: =AND('Tally Count Data'!K123,"AAAAAHfjW+k=") ->  | IA13: =AND('Tally Count Data'!L123,"AAAAAHfjW+o=") ->  | IB13: =AND('Tally Count Data'!M123,"AAAAAHfjW+s=") ->  | IC13: =AND('Tally Count Data'!N123,"AAAAAHfjW+w=") ->  | ID13: =AND('Tally Count Data'!O123,"AAAAAHfjW+0=") ->  | IE13: =AND('Tally Count Data'!P123,"AAAAAHfjW+4=") ->  | IF13: =AND('Tally Count Data'!Q123,"AAAAAHfjW+8=") ->  | IG13: =AND('Tally Count Data'!R123,"AAAAAHfjW/A=") ->  | IH13: =AND('Tally Count Data'!S123,"AAAAAHfjW/E=") ->  | II13: =AND('Tally Count Data'!T123,"AAAAAHfjW/I=") ->  | IJ13: =AND('Tally Count Data'!U123,"AAAAAHfjW/M=") ->  | IK13: =AND('Tally Count Data'!V123,"AAAAAHfjW/Q=") ->  | IL13: =AND('Tally Count Data'!W123,"AAAAAHfjW/U=") ->  | IM13: =AND('Tally Count Data'!X123,"AAAAAHfjW/Y=") ->  | IN13: =AND('Tally Count Data'!Y123,"AAAAAHfjW/c=") ->  | IO13: =AND('Tally Count Data'!Z123,"AAAAAHfjW/g=") ->  | IP13: =IF('Tally Count Data'!124:124,"AAAAAHfjW/k=",0) -> 0 | IQ13: =AND('Tally Count Data'!A124,"AAAAAHfjW/o=") ->  | IR13: =AND('Tally Count Data'!B124,"AAAAAHfjW/s=") ->  | IS13: =AND('Tally Count Data'!C124,"AAAAAHfjW/w=") ->  | IT13: =AND('Tally Count Data'!D124,"AAAAAHfjW/0=") ->  | IU13: =AND('Tally Count Data'!E124,"AAAAAHfjW/4=") ->  | IV13: =AND('Tally Count Data'!F124,"AAAAAHfjW/8=") -> 
A14: =AND('Tally Count Data'!G124,"AAAAAG86/wA=") ->  | B14: =AND('Tally Count Data'!H124,"AAAAAG86/wE=") ->  | C14: =AND('Tally Count Data'!I124,"AAAAAG86/wI=") ->  | D14: =AND('Tally Count Data'!J124,"AAAAAG86/wM=") ->  | E14: =AND('Tally Count Data'!K124,"AAAAAG86/wQ=") ->  | F14: =AND('Tally Count Data'!L124,"AAAAAG86/wU=") ->  | G14: =AND('Tally Count Data'!M124,"AAAAAG86/wY=") ->  | H14: =AND('Tally Count Data'!N124,"AAAAAG86/wc=") ->  | I14: =AND('Tally Count Data'!O124,"AAAAAG86/wg=") ->  | J14: =AND('Tally Count Data'!P124,"AAAAAG86/wk=") ->  | K14: =AND('Tally Count Data'!Q124,"AAAAAG86/wo=") ->  | L14: =AND('Tally Count Data'!R124,"AAAAAG86/ws=") ->  | M14: =AND('Tally Count Data'!S124,"AAAAAG86/ww=") ->  | N14: =AND('Tally Count Data'!T124,"AAAAAG86/w0=") ->  | O14: =AND('Tally Count Data'!U124,"AAAAAG86/w4=") ->  | P14: =AND('Tally Count Data'!V124,"AAAAAG86/w8=") ->  | Q14: =AND('Tally Count Data'!W124,"AAAAAG86/xA=") ->  | R14: =AND('Tally Count Data'!X124,"AAAAAG86/xE=") ->  | S14: =AND('Tally Count Data'!Y124,"AAAAAG86/xI=") ->  | T14: =AND('Tally Count Data'!Z124,"AAAAAG86/xM=") ->  | U14: =IF('Tally Count Data'!125:125,"AAAAAG86/xQ=",0) -> 0 | V14: =AND('Tally Count Data'!A125,"AAAAAG86/xU=") ->  | W14: =AND('Tally Count Data'!B125,"AAAAAG86/xY=") ->  | X14: =AND('Tally Count Data'!C125,"AAAAAG86/xc=") ->  | Y14: =AND('Tally Count Data'!D125,"AAAAAG86/xg=") ->  | Z14: =AND('Tally Count Data'!E125,"AAAAAG86/xk=") ->  | AA14: =AND('Tally Count Data'!F125,"AAAAAG86/xo=") ->  | AB14: =AND('Tally Count Data'!G125,"AAAAAG86/xs=") ->  | AC14: =AND('Tally Count Data'!H125,"AAAAAG86/xw=") ->  | AD14: =AND('Tally Count Data'!I125,"AAAAAG86/x0=") ->  | AE14: =AND('Tally Count Data'!J125,"AAAAAG86/x4=") ->  | AF14: =AND('Tally Count Data'!K125,"AAAAAG86/x8=") ->  | AG14: =AND('Tally Count Data'!L125,"AAAAAG86/yA=") ->  | AH14: =AND('Tally Count Data'!M125,"AAAAAG86/yE=") ->  | AI14: =AND('Tally Count Data'!N125,"AAAAAG86/yI=") ->  | AJ14: =AND('Tally Count Data'!O125,"AAAAAG86/yM=") ->  | AK14: =AND('Tally Count Data'!P125,"AAAAAG86/yQ=") ->  | AL14: =AND('Tally Count Data'!Q125,"AAAAAG86/yU=") ->  | AM14: =AND('Tally Count Data'!R125,"AAAAAG86/yY=") ->  | AN14: =AND('Tally Count Data'!S125,"AAAAAG86/yc=") ->  | AO14: =AND('Tally Count Data'!T125,"AAAAAG86/yg=") ->  | AP14: =AND('Tally Count Data'!U125,"AAAAAG86/yk=") ->  | AQ14: =AND('Tally Count Data'!V125,"AAAAAG86/yo=") ->  | AR14: =AND('Tally Count Data'!W125,"AAAAAG86/ys=") ->  | AS14: =AND('Tally Count Data'!X125,"AAAAAG86/yw=") ->  | AT14: =AND('Tally Count Data'!Y125,"AAAAAG86/y0=") ->  | AU14: =AND('Tally Count Data'!Z125,"AAAAAG86/y4=") ->  | AV14: =IF('Tally Count Data'!126:126,"AAAAAG86/y8=",0) -> 0 | AW14: =AND('Tally Count Data'!A126,"AAAAAG86/zA=") ->  | AX14: =AND('Tally Count Data'!B126,"AAAAAG86/zE=") ->  | AY14: =AND('Tally Count Data'!C126,"AAAAAG86/zI=") ->  | AZ14: =AND('Tally Count Data'!D126,"AAAAAG86/zM=") ->  | BA14: =AND('Tally Count Data'!E126,"AAAAAG86/zQ=") ->  | BB14: =AND('Tally Count Data'!F126,"AAAAAG86/zU=") ->  | BC14: =AND('Tally Count Data'!G126,"AAAAAG86/zY=") ->  | BD14: =AND('Tally Count Data'!H126,"AAAAAG86/zc=") ->  | BE14: =AND('Tally Count Data'!I126,"AAAAAG86/zg=") ->  | BF14: =AND('Tally Count Data'!J126,"AAAAAG86/zk=") ->  | BG14: =AND('Tally Count Data'!K126,"AAAAAG86/zo=") ->  | BH14: =AND('Tally Count Data'!L126,"AAAAAG86/zs=") ->  | BI14: =AND('Tally Count Data'!M126,"AAAAAG86/zw=") ->  | BJ14: =AND('Tally Count Data'!N126,"AAAAAG86/z0=") ->  | BK14: =AND('Tally Count Data'!O126,"AAAAAG86/z4=") ->  | BL14: =AND('Tally Count Data'!P126,"AAAAAG86/z8=") ->  | BM14: =AND('Tally Count Data'!Q126,"AAAAAG86/0A=") ->  | BN14: =AND('Tally Count Data'!R126,"AAAAAG86/0E=") ->  | BO14: =AND('Tally Count Data'!S126,"AAAAAG86/0I=") ->  | BP14: =AND('Tally Count Data'!T126,"AAAAAG86/0M=") ->  | BQ14: =AND('Tally Count Data'!U126,"AAAAAG86/0Q=") ->  | BR14: =AND('Tally Count Data'!V126,"AAAAAG86/0U=") ->  | BS14: =AND('Tally Count Data'!W126,"AAAAAG86/0Y=") ->  | BT14: =AND('Tally Count Data'!X126,"AAAAAG86/0c=") ->  | BU14: =AND('Tally Count Data'!Y126,"AAAAAG86/0g=") ->  | BV14: =AND('Tally Count Data'!Z126,"AAAAAG86/0k=") ->  | BW14: =IF('Tally Count Data'!127:127,"AAAAAG86/0o=",0) -> 0 | BX14: =AND('Tally Count Data'!A127,"AAAAAG86/0s=") ->  | BY14: =AND('Tally Count Data'!B127,"AAAAAG86/0w=") ->  | BZ14: =AND('Tally Count Data'!C127,"AAAAAG86/00=") ->  | CA14: =AND('Tally Count Data'!D127,"AAAAAG86/04=") ->  | CB14: =AND('Tally Count Data'!E127,"AAAAAG86/08=") ->  | CC14: =AND('Tally Count Data'!F127,"AAAAAG86/1A=") ->  | CD14: =AND('Tally Count Data'!G127,"AAAAAG86/1E=") ->  | CE14: =AND('Tally Count Data'!H127,"AAAAAG86/1I=") ->  | CF14: =AND('Tally Count Data'!I127,"AAAAAG86/1M=") ->  | CG14: =AND('Tally Count Data'!J127,"AAAAAG86/1Q=") ->  | CH14: =AND('Tally Count Data'!K127,"AAAAAG86/1U=") ->  | CI14: =AND('Tally Count Data'!L127,"AAAAAG86/1Y=") ->  | CJ14: =AND('Tally Count Data'!M127,"AAAAAG86/1c=") ->  | CK14: =AND('Tally Count Data'!N127,"AAAAAG86/1g=") ->  | CL14: =AND('Tally Count Data'!O127,"AAAAAG86/1k=") ->  | CM14: =AND('Tally Count Data'!P127,"AAAAAG86/1o=") ->  | CN14: =AND('Tally Count Data'!Q127,"AAAAAG86/1s=") ->  | CO14: =AND('Tally Count Data'!R127,"AAAAAG86/1w=") ->  | CP14: =AND('Tally Count Data'!S127,"AAAAAG86/10=") ->  | CQ14: =AND('Tally Count Data'!T127,"AAAAAG86/14=") ->  | CR14: =AND('Tally Count Data'!U127,"AAAAAG86/18=") ->  | CS14: =AND('Tally Count Data'!V127,"AAAAAG86/2A=") ->  | CT14: =AND('Tally Count Data'!W127,"AAAAAG86/2E=") ->  | CU14: =AND('Tally Count Data'!X127,"AAAAAG86/2I=") ->  | CV14: =AND('Tally Count Data'!Y127,"AAAAAG86/2M=") ->  | CW14: =AND('Tally Count Data'!Z127,"AAAAAG86/2Q=") ->  | CX14: =IF('Tally Count Data'!128:128,"AAAAAG86/2U=",0) -> 0 | CY14: =AND('Tally Count Data'!A128,"AAAAAG86/2Y=") ->  | CZ14: =AND('Tally Count Data'!B128,"AAAAAG86/2c=") ->  | DA14: =AND('Tally Count Data'!C128,"AAAAAG86/2g=") ->  | DB14: =AND('Tally Count Data'!D128,"AAAAAG86/2k=") ->  | DC14: =AND('Tally Count Data'!E128,"AAAAAG86/2o=") ->  | DD14: =AND('Tally Count Data'!F128,"AAAAAG86/2s=") ->  | DE14: =AND('Tally Count Data'!G128,"AAAAAG86/2w=") ->  | DF14: =AND('Tally Count Data'!H128,"AAAAAG86/20=") ->  | DG14: =AND('Tally Count Data'!I128,"AAAAAG86/24=") ->  | DH14: =AND('Tally Count Data'!J128,"AAAAAG86/28=") ->  | DI14: =AND('Tally Count Data'!K128,"AAAAAG86/3A=") ->  | DJ14: =AND('Tally Count Data'!L128,"AAAAAG86/3E=") ->  | DK14: =AND('Tally Count Data'!M128,"AAAAAG86/3I=") ->  | DL14: =AND('Tally Count Data'!N128,"AAAAAG86/3M=") ->  | DM14: =AND('Tally Count Data'!O128,"AAAAAG86/3Q=") ->  | DN14: =AND('Tally Count Data'!P128,"AAAAAG86/3U=") ->  | DO14: =AND('Tally Count Data'!Q128,"AAAAAG86/3Y=") ->  | DP14: =AND('Tally Count Data'!R128,"AAAAAG86/3c=") ->  | DQ14: =AND('Tally Count Data'!S128,"AAAAAG86/3g=") ->  | DR14: =AND('Tally Count Data'!T128,"AAAAAG86/3k=") ->  | DS14: =AND('Tally Count Data'!U128,"AAAAAG86/3o=") ->  | DT14: =AND('Tally Count Data'!V128,"AAAAAG86/3s=") ->  | DU14: =AND('Tally Count Data'!W128,"AAAAAG86/3w=") ->  | DV14: =AND('Tally Count Data'!X128,"AAAAAG86/30=") ->  | DW14: =AND('Tally Count Data'!Y128,"AAAAAG86/34=") ->  | DX14: =AND('Tally Count Data'!Z128,"AAAAAG86/38=") ->  | DY14: =IF('Tally Count Data'!129:129,"AAAAAG86/4A=",0) -> 0 | DZ14: =AND('Tally Count Data'!A129,"AAAAAG86/4E=") ->  | EA14: =AND('Tally Count Data'!B129,"AAAAAG86/4I=") ->  | EB14: =AND('Tally Count Data'!C129,"AAAAAG86/4M=") ->  | EC14: =AND('Tally Count Data'!D129,"AAAAAG86/4Q=") ->  | ED14: =AND('Tally Count Data'!E129,"AAAAAG86/4U=") ->  | EE14: =AND('Tally Count Data'!F129,"AAAAAG86/4Y=") ->  | EF14: =AND('Tally Count Data'!G129,"AAAAAG86/4c=") ->  | EG14: =AND('Tally Count Data'!H129,"AAAAAG86/4g=") ->  | EH14: =AND('Tally Count Data'!I129,"AAAAAG86/4k=") ->  | EI14: =AND('Tally Count Data'!J129,"AAAAAG86/4o=") ->  | EJ14: =AND('Tally Count Data'!K129,"AAAAAG86/4s=") ->  | EK14: =AND('Tally Count Data'!L129,"AAAAAG86/4w=") ->  | EL14: =AND('Tally Count Data'!M129,"AAAAAG86/40=") ->  | EM14: =AND('Tally Count Data'!N129,"AAAAAG86/44=") ->  | EN14: =AND('Tally Count Data'!O129,"AAAAAG86/48=") ->  | EO14: =AND('Tally Count Data'!P129,"AAAAAG86/5A=") ->  | EP14: =AND('Tally Count Data'!Q129,"AAAAAG86/5E=") ->  | EQ14: =AND('Tally Count Data'!R129,"AAAAAG86/5I=") ->  | ER14: =AND('Tally Count Data'!S129,"AAAAAG86/5M=") ->  | ES14: =AND('Tally Count Data'!T129,"AAAAAG86/5Q=") ->  | ET14: =AND('Tally Count Data'!U129,"AAAAAG86/5U=") ->  | EU14: =AND('Tally Count Data'!V129,"AAAAAG86/5Y=") ->  | EV14: =AND('Tally Count Data'!W129,"AAAAAG86/5c=") ->  | EW14: =AND('Tally Count Data'!X129,"AAAAAG86/5g=") ->  | EX14: =AND('Tally Count Data'!Y129,"AAAAAG86/5k=") ->  | EY14: =AND('Tally Count Data'!Z129,"AAAAAG86/5o=") ->  | EZ14: =IF('Tally Count Data'!130:130,"AAAAAG86/5s=",0) -> 0 | FA14: =AND('Tally Count Data'!A130,"AAAAAG86/5w=") ->  | FB14: =AND('Tally Count Data'!B130,"AAAAAG86/50=") ->  | FC14: =AND('Tally Count Data'!C130,"AAAAAG86/54=") ->  | FD14: =AND('Tally Count Data'!D130,"AAAAAG86/58=") ->  | FE14: =AND('Tally Count Data'!E130,"AAAAAG86/6A=") ->  | FF14: =AND('Tally Count Data'!F130,"AAAAAG86/6E=") ->  | FG14: =AND('Tally Count Data'!G130,"AAAAAG86/6I=") ->  | FH14: =AND('Tally Count Data'!H130,"AAAAAG86/6M=") ->  | FI14: =AND('Tally Count Data'!I130,"AAAAAG86/6Q=") ->  | FJ14: =AND('Tally Count Data'!J130,"AAAAAG86/6U=") ->  | FK14: =AND('Tally Count Data'!K130,"AAAAAG86/6Y=") ->  | FL14: =AND('Tally Count Data'!L130,"AAAAAG86/6c=") ->  | FM14: =AND('Tally Count Data'!M130,"AAAAAG86/6g=") ->  | FN14: =AND('Tally Count Data'!N130,"AAAAAG86/6k=") ->  | FO14: =AND('Tally Count Data'!O130,"AAAAAG86/6o=") ->  | FP14: =AND('Tally Count Data'!P130,"AAAAAG86/6s=") ->  | FQ14: =AND('Tally Count Data'!Q130,"AAAAAG86/6w=") ->  | FR14: =AND('Tally Count Data'!R130,"AAAAAG86/60=") ->  | FS14: =AND('Tally Count Data'!S130,"AAAAAG86/64=") ->  | FT14: =AND('Tally Count Data'!T130,"AAAAAG86/68=") ->  | FU14: =AND('Tally Count Data'!U130,"AAAAAG86/7A=") ->  | FV14: =AND('Tally Count Data'!V130,"AAAAAG86/7E=") ->  | FW14: =AND('Tally Count Data'!W130,"AAAAAG86/7I=") ->  | FX14: =AND('Tally Count Data'!X130,"AAAAAG86/7M=") ->  | FY14: =AND('Tally Count Data'!Y130,"AAAAAG86/7Q=") ->  | FZ14: =AND('Tally Count Data'!Z130,"AAAAAG86/7U=") ->  | GA14: =IF('Tally Count Data'!131:131,"AAAAAG86/7Y=",0) -> 0 | GB14: =AND('Tally Count Data'!A131,"AAAAAG86/7c=") ->  | GC14: =AND('Tally Count Data'!B131,"AAAAAG86/7g=") ->  | GD14: =AND('Tally Count Data'!C131,"AAAAAG86/7k=") ->  | GE14: =AND('Tally Count Data'!D131,"AAAAAG86/7o=") ->  | GF14: =AND('Tally Count Data'!E131,"AAAAAG86/7s=") ->  | GG14: =AND('Tally Count Data'!F131,"AAAAAG86/7w=") ->  | GH14: =AND('Tally Count Data'!G131,"AAAAAG86/70=") ->  | GI14: =AND('Tally Count Data'!H131,"AAAAAG86/74=") ->  | GJ14: =AND('Tally Count Data'!I131,"AAAAAG86/78=") ->  | GK14: =AND('Tally Count Data'!J131,"AAAAAG86/8A=") ->  | GL14: =AND('Tally Count Data'!K131,"AAAAAG86/8E=") ->  | GM14: =AND('Tally Count Data'!L131,"AAAAAG86/8I=") ->  | GN14: =AND('Tally Count Data'!M131,"AAAAAG86/8M=") ->  | GO14: =AND('Tally Count Data'!N131,"AAAAAG86/8Q=") ->  | GP14: =AND('Tally Count Data'!O131,"AAAAAG86/8U=") ->  | GQ14: =AND('Tally Count Data'!P131,"AAAAAG86/8Y=") ->  | GR14: =AND('Tally Count Data'!Q131,"AAAAAG86/8c=") ->  | GS14: =AND('Tally Count Data'!R131,"AAAAAG86/8g=") ->  | GT14: =AND('Tally Count Data'!S131,"AAAAAG86/8k=") ->  | GU14: =AND('Tally Count Data'!T131,"AAAAAG86/8o=") ->  | GV14: =AND('Tally Count Data'!U131,"AAAAAG86/8s=") ->  | GW14: =AND('Tally Count Data'!V131,"AAAAAG86/8w=") ->  | GX14: =AND('Tally Count Data'!W131,"AAAAAG86/80=") ->  | GY14: =AND('Tally Count Data'!X131,"AAAAAG86/84=") ->  | GZ14: =AND('Tally Count Data'!Y131,"AAAAAG86/88=") ->  | HA14: =AND('Tally Count Data'!Z131,"AAAAAG86/9A=") ->  | HB14: =IF('Tally Count Data'!132:132,"AAAAAG86/9E=",0) -> 0 | HC14: =AND('Tally Count Data'!A132,"AAAAAG86/9I=") ->  | HD14: =AND('Tally Count Data'!B132,"AAAAAG86/9M=") ->  | HE14: =AND('Tally Count Data'!C132,"AAAAAG86/9Q=") ->  | HF14: =AND('Tally Count Data'!D132,"AAAAAG86/9U=") ->  | HG14: =AND('Tally Count Data'!E132,"AAAAAG86/9Y=") ->  | HH14: =AND('Tally Count Data'!F132,"AAAAAG86/9c=") ->  | HI14: =AND('Tally Count Data'!G132,"AAAAAG86/9g=") ->  | HJ14: =AND('Tally Count Data'!H132,"AAAAAG86/9k=") ->  | HK14: =AND('Tally Count Data'!I132,"AAAAAG86/9o=") ->  | HL14: =AND('Tally Count Data'!J132,"AAAAAG86/9s=") ->  | HM14: =AND('Tally Count Data'!K132,"AAAAAG86/9w=") ->  | HN14: =AND('Tally Count Data'!L132,"AAAAAG86/90=") ->  | HO14: =AND('Tally Count Data'!M132,"AAAAAG86/94=") ->  | HP14: =AND('Tally Count Data'!N132,"AAAAAG86/98=") ->  | HQ14: =AND('Tally Count Data'!O132,"AAAAAG86/+A=") ->  | HR14: =AND('Tally Count Data'!P132,"AAAAAG86/+E=") ->  | HS14: =AND('Tally Count Data'!Q132,"AAAAAG86/+I=") ->  | HT14: =AND('Tally Count Data'!R132,"AAAAAG86/+M=") ->  | HU14: =AND('Tally Count Data'!S132,"AAAAAG86/+Q=") ->  | HV14: =AND('Tally Count Data'!T132,"AAAAAG86/+U=") ->  | HW14: =AND('Tally Count Data'!U132,"AAAAAG86/+Y=") ->  | HX14: =AND('Tally Count Data'!V132,"AAAAAG86/+c=") ->  | HY14: =AND('Tally Count Data'!W132,"AAAAAG86/+g=") ->  | HZ14: =AND('Tally Count Data'!X132,"AAAAAG86/+k=") ->  | IA14: =AND('Tally Count Data'!Y132,"AAAAAG86/+o=") ->  | IB14: =AND('Tally Count Data'!Z132,"AAAAAG86/+s=") ->  | IC14: =IF('Tally Count Data'!133:133,"AAAAAG86/+w=",0) -> 0 | ID14: =AND('Tally Count Data'!A133,"AAAAAG86/+0=") ->  | IE14: =AND('Tally Count Data'!B133,"AAAAAG86/+4=") ->  | IF14: =AND('Tally Count Data'!C133,"AAAAAG86/+8=") ->  | IG14: =AND('Tally Count Data'!D133,"AAAAAG86//A=") ->  | IH14: =AND('Tally Count Data'!E133,"AAAAAG86//E=") ->  | II14: =AND('Tally Count Data'!F133,"AAAAAG86//I=") ->  | IJ14: =AND('Tally Count Data'!G133,"AAAAAG86//M=") ->  | IK14: =AND('Tally Count Data'!H133,"AAAAAG86//Q=") ->  | IL14: =AND('Tally Count Data'!I133,"AAAAAG86//U=") ->  | IM14: =AND('Tally Count Data'!J133,"AAAAAG86//Y=") ->  | IN14: =AND('Tally Count Data'!K133,"AAAAAG86//c=") ->  | IO14: =AND('Tally Count Data'!L133,"AAAAAG86//g=") ->  | IP14: =AND('Tally Count Data'!M133,"AAAAAG86//k=") ->  | IQ14: =AND('Tally Count Data'!N133,"AAAAAG86//o=") ->  | IR14: =AND('Tally Count Data'!O133,"AAAAAG86//s=") ->  | IS14: =AND('Tally Count Data'!P133,"AAAAAG86//w=") ->  | IT14: =AND('Tally Count Data'!Q133,"AAAAAG86//0=") ->  | IU14: =AND('Tally Count Data'!R133,"AAAAAG86//4=") ->  | IV14: =AND('Tally Count Data'!S133,"AAAAAG86//8=") -> 
A15: =AND('Tally Count Data'!T133,"AAAAAH+R3gA=") ->  | B15: =AND('Tally Count Data'!U133,"AAAAAH+R3gE=") ->  | C15: =AND('Tally Count Data'!V133,"AAAAAH+R3gI=") ->  | D15: =AND('Tally Count Data'!W133,"AAAAAH+R3gM=") ->  | E15: =AND('Tally Count Data'!X133,"AAAAAH+R3gQ=") ->  | F15: =AND('Tally Count Data'!Y133,"AAAAAH+R3gU=") ->  | G15: =AND('Tally Count Data'!Z133,"AAAAAH+R3gY=") ->  | H15: =IF('Tally Count Data'!134:134,"AAAAAH+R3gc=",0) -> 0 | I15: =AND('Tally Count Data'!A134,"AAAAAH+R3gg=") ->  | J15: =AND('Tally Count Data'!B134,"AAAAAH+R3gk=") ->  | K15: =AND('Tally Count Data'!C134,"AAAAAH+R3go=") ->  | L15: =AND('Tally Count Data'!D134,"AAAAAH+R3gs=") ->  | M15: =AND('Tally Count Data'!E134,"AAAAAH+R3gw=") ->  | N15: =AND('Tally Count Data'!F134,"AAAAAH+R3g0=") ->  | O15: =AND('Tally Count Data'!G134,"AAAAAH+R3g4=") ->  | P15: =AND('Tally Count Data'!H134,"AAAAAH+R3g8=") ->  | Q15: =AND('Tally Count Data'!I134,"AAAAAH+R3hA=") ->  | R15: =AND('Tally Count Data'!J134,"AAAAAH+R3hE=") ->  | S15: =AND('Tally Count Data'!K134,"AAAAAH+R3hI=") ->  | T15: =AND('Tally Count Data'!L134,"AAAAAH+R3hM=") ->  | U15: =AND('Tally Count Data'!M134,"AAAAAH+R3hQ=") ->  | V15: =AND('Tally Count Data'!N134,"AAAAAH+R3hU=") ->  | W15: =AND('Tally Count Data'!O134,"AAAAAH+R3hY=") ->  | X15: =AND('Tally Count Data'!P134,"AAAAAH+R3hc=") ->  | Y15: =AND('Tally Count Data'!Q134,"AAAAAH+R3hg=") ->  | Z15: =AND('Tally Count Data'!R134,"AAAAAH+R3hk=") ->  | AA15: =AND('Tally Count Data'!S134,"AAAAAH+R3ho=") ->  | AB15: =AND('Tally Count Data'!T134,"AAAAAH+R3hs=") ->  | AC15: =AND('Tally Count Data'!U134,"AAAAAH+R3hw=") ->  | AD15: =AND('Tally Count Data'!V134,"AAAAAH+R3h0=") ->  | AE15: =AND('Tally Count Data'!W134,"AAAAAH+R3h4=") ->  | AF15: =AND('Tally Count Data'!X134,"AAAAAH+R3h8=") ->  | AG15: =AND('Tally Count Data'!Y134,"AAAAAH+R3iA=") ->  | AH15: =AND('Tally Count Data'!Z134,"AAAAAH+R3iE=") ->  | AI15: =IF('Tally Count Data'!135:135,"AAAAAH+R3iI=",0) -> 0 | AJ15: =AND('Tally Count Data'!A135,"AAAAAH+R3iM=") ->  | AK15: =AND('Tally Count Data'!B135,"AAAAAH+R3iQ=") ->  | AL15: =AND('Tally Count Data'!C135,"AAAAAH+R3iU=") ->  | AM15: =AND('Tally Count Data'!D135,"AAAAAH+R3iY=") ->  | AN15: =AND('Tally Count Data'!E135,"AAAAAH+R3ic=") ->  | AO15: =AND('Tally Count Data'!F135,"AAAAAH+R3ig=") ->  | AP15: =AND('Tally Count Data'!G135,"AAAAAH+R3ik=") ->  | AQ15: =AND('Tally Count Data'!H135,"AAAAAH+R3io=") ->  | AR15: =AND('Tally Count Data'!I135,"AAAAAH+R3is=") ->  | AS15: =AND('Tally Count Data'!J135,"AAAAAH+R3iw=") ->  | AT15: =AND('Tally Count Data'!K135,"AAAAAH+R3i0=") ->  | AU15: =AND('Tally Count Data'!L135,"AAAAAH+R3i4=") ->  | AV15: =AND('Tally Count Data'!M135,"AAAAAH+R3i8=") ->  | AW15: =AND('Tally Count Data'!N135,"AAAAAH+R3jA=") ->  | AX15: =AND('Tally Count Data'!O135,"AAAAAH+R3jE=") ->  | AY15: =AND('Tally Count Data'!P135,"AAAAAH+R3jI=") ->  | AZ15: =AND('Tally Count Data'!Q135,"AAAAAH+R3jM=") ->  | BA15: =AND('Tally Count Data'!R135,"AAAAAH+R3jQ=") ->  | BB15: =AND('Tally Count Data'!S135,"AAAAAH+R3jU=") ->  | BC15: =AND('Tally Count Data'!T135,"AAAAAH+R3jY=") ->  | BD15: =AND('Tally Count Data'!U135,"AAAAAH+R3jc=") ->  | BE15: =AND('Tally Count Data'!V135,"AAAAAH+R3jg=") ->  | BF15: =AND('Tally Count Data'!W135,"AAAAAH+R3jk=") ->  | BG15: =AND('Tally Count Data'!X135,"AAAAAH+R3jo=") ->  | BH15: =AND('Tally Count Data'!Y135,"AAAAAH+R3js=") ->  | BI15: =AND('Tally Count Data'!Z135,"AAAAAH+R3jw=") ->  | BJ15: =IF('Tally Count Data'!136:136,"AAAAAH+R3j0=",0) -> 0 | BK15: =AND('Tally Count Data'!A136,"AAAAAH+R3j4=") ->  | BL15: =AND('Tally Count Data'!B136,"AAAAAH+R3j8=") ->  | BM15: =AND('Tally Count Data'!C136,"AAAAAH+R3kA=") ->  | BN15: =AND('Tally Count Data'!D136,"AAAAAH+R3kE=") ->  | BO15: =AND('Tally Count Data'!E136,"AAAAAH+R3kI=") ->  | BP15: =AND('Tally Count Data'!F136,"AAAAAH+R3kM=") ->  | BQ15: =AND('Tally Count Data'!G136,"AAAAAH+R3kQ=") ->  | BR15: =AND('Tally Count Data'!H136,"AAAAAH+R3kU=") ->  | BS15: =AND('Tally Count Data'!I136,"AAAAAH+R3kY=") ->  | BT15: =AND('Tally Count Data'!J136,"AAAAAH+R3kc=") ->  | BU15: =AND('Tally Count Data'!K136,"AAAAAH+R3kg=") ->  | BV15: =AND('Tally Count Data'!L136,"AAAAAH+R3kk=") ->  | BW15: =AND('Tally Count Data'!M136,"AAAAAH+R3ko=") ->  | BX15: =AND('Tally Count Data'!N136,"AAAAAH+R3ks=") ->  | BY15: =AND('Tally Count Data'!O136,"AAAAAH+R3kw=") ->  | BZ15: =AND('Tally Count Data'!P136,"AAAAAH+R3k0=") ->  | CA15: =AND('Tally Count Data'!Q136,"AAAAAH+R3k4=") ->  | CB15: =AND('Tally Count Data'!R136,"AAAAAH+R3k8=") ->  | CC15: =AND('Tally Count Data'!S136,"AAAAAH+R3lA=") ->  | CD15: =AND('Tally Count Data'!T136,"AAAAAH+R3lE=") ->  | CE15: =AND('Tally Count Data'!U136,"AAAAAH+R3lI=") ->  | CF15: =AND('Tally Count Data'!V136,"AAAAAH+R3lM=") ->  | CG15: =AND('Tally Count Data'!W136,"AAAAAH+R3lQ=") ->  | CH15: =AND('Tally Count Data'!X136,"AAAAAH+R3lU=") ->  | CI15: =AND('Tally Count Data'!Y136,"AAAAAH+R3lY=") ->  | CJ15: =AND('Tally Count Data'!Z136,"AAAAAH+R3lc=") ->  | CK15: =IF('Tally Count Data'!137:137,"AAAAAH+R3lg=",0) -> 0 | CL15: =AND('Tally Count Data'!A137,"AAAAAH+R3lk=") ->  | CM15: =AND('Tally Count Data'!B137,"AAAAAH+R3lo=") ->  | CN15: =AND('Tally Count Data'!C137,"AAAAAH+R3ls=") ->  | CO15: =AND('Tally Count Data'!D137,"AAAAAH+R3lw=") ->  | CP15: =AND('Tally Count Data'!E137,"AAAAAH+R3l0=") ->  | CQ15: =AND('Tally Count Data'!F137,"AAAAAH+R3l4=") ->  | CR15: =AND('Tally Count Data'!G137,"AAAAAH+R3l8=") ->  | CS15: =AND('Tally Count Data'!H137,"AAAAAH+R3mA=") ->  | CT15: =AND('Tally Count Data'!I137,"AAAAAH+R3mE=") ->  | CU15: =AND('Tally Count Data'!J137,"AAAAAH+R3mI=") ->  | CV15: =AND('Tally Count Data'!K137,"AAAAAH+R3mM=") ->  | CW15: =AND('Tally Count Data'!L137,"AAAAAH+R3mQ=") ->  | CX15: =AND('Tally Count Data'!M137,"AAAAAH+R3mU=") ->  | CY15: =AND('Tally Count Data'!N137,"AAAAAH+R3mY=") ->  | CZ15: =AND('Tally Count Data'!O137,"AAAAAH+R3mc=") ->  | DA15: =AND('Tally Count Data'!P137,"AAAAAH+R3mg=") ->  | DB15: =AND('Tally Count Data'!Q137,"AAAAAH+R3mk=") ->  | DC15: =AND('Tally Count Data'!R137,"AAAAAH+R3mo=") ->  | DD15: =AND('Tally Count Data'!S137,"AAAAAH+R3ms=") ->  | DE15: =AND('Tally Count Data'!T137,"AAAAAH+R3mw=") ->  | DF15: =AND('Tally Count Data'!U137,"AAAAAH+R3m0=") ->  | DG15: =AND('Tally Count Data'!V137,"AAAAAH+R3m4=") ->  | DH15: =AND('Tally Count Data'!W137,"AAAAAH+R3m8=") ->  | DI15: =AND('Tally Count Data'!X137,"AAAAAH+R3nA=") ->  | DJ15: =AND('Tally Count Data'!Y137,"AAAAAH+R3nE=") ->  | DK15: =AND('Tally Count Data'!Z137,"AAAAAH+R3nI=") ->  | DL15: =IF('Tally Count Data'!138:138,"AAAAAH+R3nM=",0) -> 0 | DM15: =AND('Tally Count Data'!A138,"AAAAAH+R3nQ=") ->  | DN15: =AND('Tally Count Data'!B138,"AAAAAH+R3nU=") ->  | DO15: =AND('Tally Count Data'!C138,"AAAAAH+R3nY=") ->  | DP15: =AND('Tally Count Data'!D138,"AAAAAH+R3nc=") ->  | DQ15: =AND('Tally Count Data'!E138,"AAAAAH+R3ng=") ->  | DR15: =AND('Tally Count Data'!F138,"AAAAAH+R3nk=") ->  | DS15: =AND('Tally Count Data'!G138,"AAAAAH+R3no=") ->  | DT15: =AND('Tally Count Data'!H138,"AAAAAH+R3ns=") ->  | DU15: =AND('Tally Count Data'!I138,"AAAAAH+R3nw=") ->  | DV15: =AND('Tally Count Data'!J138,"AAAAAH+R3n0=") ->  | DW15: =AND('Tally Count Data'!K138,"AAAAAH+R3n4=") ->  | DX15: =AND('Tally Count Data'!L138,"AAAAAH+R3n8=") ->  | DY15: =AND('Tally Count Data'!M138,"AAAAAH+R3oA=") ->  | DZ15: =AND('Tally Count Data'!N138,"AAAAAH+R3oE=") ->  | EA15: =AND('Tally Count Data'!O138,"AAAAAH+R3oI=") ->  | EB15: =AND('Tally Count Data'!P138,"AAAAAH+R3oM=") ->  | EC15: =AND('Tally Count Data'!Q138,"AAAAAH+R3oQ=") ->  | ED15: =AND('Tally Count Data'!R138,"AAAAAH+R3oU=") ->  | EE15: =AND('Tally Count Data'!S138,"AAAAAH+R3oY=") ->  | EF15: =AND('Tally Count Data'!T138,"AAAAAH+R3oc=") ->  | EG15: =AND('Tally Count Data'!U138,"AAAAAH+R3og=") ->  | EH15: =AND('Tally Count Data'!V138,"AAAAAH+R3ok=") ->  | EI15: =AND('Tally Count Data'!W138,"AAAAAH+R3oo=") ->  | EJ15: =AND('Tally Count Data'!X138,"AAAAAH+R3os=") ->  | EK15: =AND('Tally Count Data'!Y138,"AAAAAH+R3ow=") ->  | EL15: =AND('Tally Count Data'!Z138,"AAAAAH+R3o0=") ->  | EM15: =IF('Tally Count Data'!139:139,"AAAAAH+R3o4=",0) -> 0 | EN15: =AND('Tally Count Data'!A139,"AAAAAH+R3o8=") ->  | EO15: =AND('Tally Count Data'!B139,"AAAAAH+R3pA=") ->  | EP15: =AND('Tally Count Data'!C139,"AAAAAH+R3pE=") ->  | EQ15: =AND('Tally Count Data'!D139,"AAAAAH+R3pI=") ->  | ER15: =AND('Tally Count Data'!E139,"AAAAAH+R3pM=") ->  | ES15: =AND('Tally Count Data'!F139,"AAAAAH+R3pQ=") ->  | ET15: =AND('Tally Count Data'!G139,"AAAAAH+R3pU=") ->  | EU15: =AND('Tally Count Data'!H139,"AAAAAH+R3pY=") ->  | EV15: =AND('Tally Count Data'!I139,"AAAAAH+R3pc=") ->  | EW15: =AND('Tally Count Data'!J139,"AAAAAH+R3pg=") ->  | EX15: =AND('Tally Count Data'!K139,"AAAAAH+R3pk=") ->  | EY15: =AND('Tally Count Data'!L139,"AAAAAH+R3po=") ->  | EZ15: =AND('Tally Count Data'!M139,"AAAAAH+R3ps=") ->  | FA15: =AND('Tally Count Data'!N139,"AAAAAH+R3pw=") ->  | FB15: =AND('Tally Count Data'!O139,"AAAAAH+R3p0=") ->  | FC15: =AND('Tally Count Data'!P139,"AAAAAH+R3p4=") ->  | FD15: =AND('Tally Count Data'!Q139,"AAAAAH+R3p8=") ->  | FE15: =AND('Tally Count Data'!R139,"AAAAAH+R3qA=") ->  | FF15: =AND('Tally Count Data'!S139,"AAAAAH+R3qE=") ->  | FG15: =AND('Tally Count Data'!T139,"AAAAAH+R3qI=") ->  | FH15: =AND('Tally Count Data'!U139,"AAAAAH+R3qM=") ->  | FI15: =AND('Tally Count Data'!V139,"AAAAAH+R3qQ=") ->  | FJ15: =AND('Tally Count Data'!W139,"AAAAAH+R3qU=") ->  | FK15: =AND('Tally Count Data'!X139,"AAAAAH+R3qY=") ->  | FL15: =AND('Tally Count Data'!Y139,"AAAAAH+R3qc=") ->  | FM15: =AND('Tally Count Data'!Z139,"AAAAAH+R3qg=") ->  | FN15: =IF('Tally Count Data'!140:140,"AAAAAH+R3qk=",0) -> 0 | FO15: =AND('Tally Count Data'!A140,"AAAAAH+R3qo=") ->  | FP15: =AND('Tally Count Data'!B140,"AAAAAH+R3qs=") ->  | FQ15: =AND('Tally Count Data'!C140,"AAAAAH+R3qw=") ->  | FR15: =AND('Tally Count Data'!D140,"AAAAAH+R3q0=") ->  | FS15: =AND('Tally Count Data'!E140,"AAAAAH+R3q4=") ->  | FT15: =AND('Tally Count Data'!F140,"AAAAAH+R3q8=") ->  | FU15: =AND('Tally Count Data'!G140,"AAAAAH+R3rA=") ->  | FV15: =AND('Tally Count Data'!H140,"AAAAAH+R3rE=") ->  | FW15: =AND('Tally Count Data'!I140,"AAAAAH+R3rI=") ->  | FX15: =AND('Tally Count Data'!J140,"AAAAAH+R3rM=") ->  | FY15: =AND('Tally Count Data'!K140,"AAAAAH+R3rQ=") ->  | FZ15: =AND('Tally Count Data'!L140,"AAAAAH+R3rU=") ->  | GA15: =AND('Tally Count Data'!M140,"AAAAAH+R3rY=") ->  | GB15: =AND('Tally Count Data'!N140,"AAAAAH+R3rc=") ->  | GC15: =AND('Tally Count Data'!O140,"AAAAAH+R3rg=") ->  | GD15: =AND('Tally Count Data'!P140,"AAAAAH+R3rk=") ->  | GE15: =AND('Tally Count Data'!Q140,"AAAAAH+R3ro=") ->  | GF15: =AND('Tally Count Data'!R140,"AAAAAH+R3rs=") ->  | GG15: =AND('Tally Count Data'!S140,"AAAAAH+R3rw=") ->  | GH15: =AND('Tally Count Data'!T140,"AAAAAH+R3r0=") ->  | GI15: =AND('Tally Count Data'!U140,"AAAAAH+R3r4=") ->  | GJ15: =AND('Tally Count Data'!V140,"AAAAAH+R3r8=") ->  | GK15: =AND('Tally Count Data'!W140,"AAAAAH+R3sA=") ->  | GL15: =AND('Tally Count Data'!X140,"AAAAAH+R3sE=") ->  | GM15: =AND('Tally Count Data'!Y140,"AAAAAH+R3sI=") ->  | GN15: =AND('Tally Count Data'!Z140,"AAAAAH+R3sM=") ->  | GO15: =IF('Tally Count Data'!141:141,"AAAAAH+R3sQ=",0) -> 0 | GP15: =AND('Tally Count Data'!A141,"AAAAAH+R3sU=") ->  | GQ15: =AND('Tally Count Data'!B141,"AAAAAH+R3sY=") ->  | GR15: =AND('Tally Count Data'!C141,"AAAAAH+R3sc=") ->  | GS15: =AND('Tally Count Data'!D141,"AAAAAH+R3sg=") ->  | GT15: =AND('Tally Count Data'!E141,"AAAAAH+R3sk=") ->  | GU15: =AND('Tally Count Data'!F141,"AAAAAH+R3so=") ->  | GV15: =AND('Tally Count Data'!G141,"AAAAAH+R3ss=") ->  | GW15: =AND('Tally Count Data'!H141,"AAAAAH+R3sw=") ->  | GX15: =AND('Tally Count Data'!I141,"AAAAAH+R3s0=") ->  | GY15: =AND('Tally Count Data'!J141,"AAAAAH+R3s4=") ->  | GZ15: =AND('Tally Count Data'!K141,"AAAAAH+R3s8=") ->  | HA15: =AND('Tally Count Data'!L141,"AAAAAH+R3tA=") ->  | HB15: =AND('Tally Count Data'!M141,"AAAAAH+R3tE=") ->  | HC15: =AND('Tally Count Data'!N141,"AAAAAH+R3tI=") ->  | HD15: =AND('Tally Count Data'!O141,"AAAAAH+R3tM=") ->  | HE15: =AND('Tally Count Data'!P141,"AAAAAH+R3tQ=") ->  | HF15: =AND('Tally Count Data'!Q141,"AAAAAH+R3tU=") ->  | HG15: =AND('Tally Count Data'!R141,"AAAAAH+R3tY=") ->  | HH15: =AND('Tally Count Data'!S141,"AAAAAH+R3tc=") ->  | HI15: =AND('Tally Count Data'!T141,"AAAAAH+R3tg=") ->  | HJ15: =AND('Tally Count Data'!U141,"AAAAAH+R3tk=") ->  | HK15: =AND('Tally Count Data'!V141,"AAAAAH+R3to=") ->  | HL15: =AND('Tally Count Data'!W141,"AAAAAH+R3ts=") ->  | HM15: =AND('Tally Count Data'!X141,"AAAAAH+R3tw=") ->  | HN15: =AND('Tally Count Data'!Y141,"AAAAAH+R3t0=") ->  | HO15: =AND('Tally Count Data'!Z141,"AAAAAH+R3t4=") ->  | HP15: =IF('Tally Count Data'!142:142,"AAAAAH+R3t8=",0) -> 0 | HQ15: =AND('Tally Count Data'!A142,"AAAAAH+R3uA=") ->  | HR15: =AND('Tally Count Data'!B142,"AAAAAH+R3uE=") ->  | HS15: =AND('Tally Count Data'!C142,"AAAAAH+R3uI=") ->  | HT15: =AND('Tally Count Data'!D142,"AAAAAH+R3uM=") ->  | HU15: =AND('Tally Count Data'!E142,"AAAAAH+R3uQ=") ->  | HV15: =AND('Tally Count Data'!F142,"AAAAAH+R3uU=") ->  | HW15: =AND('Tally Count Data'!G142,"AAAAAH+R3uY=") ->  | HX15: =AND('Tally Count Data'!H142,"AAAAAH+R3uc=") ->  | HY15: =AND('Tally Count Data'!I142,"AAAAAH+R3ug=") ->  | HZ15: =AND('Tally Count Data'!J142,"AAAAAH+R3uk=") ->  | IA15: =AND('Tally Count Data'!K142,"AAAAAH+R3uo=") ->  | IB15: =AND('Tally Count Data'!L142,"AAAAAH+R3us=") ->  | IC15: =AND('Tally Count Data'!M142,"AAAAAH+R3uw=") ->  | ID15: =AND('Tally Count Data'!N142,"AAAAAH+R3u0=") ->  | IE15: =AND('Tally Count Data'!O142,"AAAAAH+R3u4=") ->  | IF15: =AND('Tally Count Data'!P142,"AAAAAH+R3u8=") ->  | IG15: =AND('Tally Count Data'!Q142,"AAAAAH+R3vA=") ->  | IH15: =AND('Tally Count Data'!R142,"AAAAAH+R3vE=") ->  | II15: =AND('Tally Count Data'!S142,"AAAAAH+R3vI=") ->  | IJ15: =AND('Tally Count Data'!T142,"AAAAAH+R3vM=") ->  | IK15: =AND('Tally Count Data'!U142,"AAAAAH+R3vQ=") ->  | IL15: =AND('Tally Count Data'!V142,"AAAAAH+R3vU=") ->  | IM15: =AND('Tally Count Data'!W142,"AAAAAH+R3vY=") ->  | IN15: =AND('Tally Count Data'!X142,"AAAAAH+R3vc=") ->  | IO15: =AND('Tally Count Data'!Y142,"AAAAAH+R3vg=") ->  | IP15: =AND('Tally Count Data'!Z142,"AAAAAH+R3vk=") ->  | IQ15: =IF('Tally Count Data'!143:143,"AAAAAH+R3vo=",0) -> 0 | IR15: =AND('Tally Count Data'!A143,"AAAAAH+R3vs=") ->  | IS15: =AND('Tally Count Data'!B143,"AAAAAH+R3vw=") ->  | IT15: =AND('Tally Count Data'!C143,"AAAAAH+R3v0=") ->  | IU15: =AND('Tally Count Data'!D143,"AAAAAH+R3v4=") ->  | IV15: =AND('Tally Count Data'!E143,"AAAAAH+R3v8=") -> 
A16: =AND('Tally Count Data'!F143,"AAAAAG/7zAA=") ->  | B16: =AND('Tally Count Data'!G143,"AAAAAG/7zAE=") ->  | C16: =AND('Tally Count Data'!H143,"AAAAAG/7zAI=") ->  | D16: =AND('Tally Count Data'!I143,"AAAAAG/7zAM=") ->  | E16: =AND('Tally Count Data'!J143,"AAAAAG/7zAQ=") ->  | F16: =AND('Tally Count Data'!K143,"AAAAAG/7zAU=") ->  | G16: =AND('Tally Count Data'!L143,"AAAAAG/7zAY=") ->  | H16: =AND('Tally Count Data'!M143,"AAAAAG/7zAc=") ->  | I16: =AND('Tally Count Data'!N143,"AAAAAG/7zAg=") ->  | J16: =AND('Tally Count Data'!O143,"AAAAAG/7zAk=") ->  | K16: =AND('Tally Count Data'!P143,"AAAAAG/7zAo=") ->  | L16: =AND('Tally Count Data'!Q143,"AAAAAG/7zAs=") ->  | M16: =AND('Tally Count Data'!R143,"AAAAAG/7zAw=") ->  | N16: =AND('Tally Count Data'!S143,"AAAAAG/7zA0=") ->  | O16: =AND('Tally Count Data'!T143,"AAAAAG/7zA4=") ->  | P16: =AND('Tally Count Data'!U143,"AAAAAG/7zA8=") ->  | Q16: =AND('Tally Count Data'!V143,"AAAAAG/7zBA=") ->  | R16: =AND('Tally Count Data'!W143,"AAAAAG/7zBE=") ->  | S16: =AND('Tally Count Data'!X143,"AAAAAG/7zBI=") ->  | T16: =AND('Tally Count Data'!Y143,"AAAAAG/7zBM=") ->  | U16: =AND('Tally Count Data'!Z143,"AAAAAG/7zBQ=") ->  | V16: =IF('Tally Count Data'!144:144,"AAAAAG/7zBU=",0) -> 0 | W16: =AND('Tally Count Data'!A144,"AAAAAG/7zBY=") ->  | X16: =AND('Tally Count Data'!B144,"AAAAAG/7zBc=") ->  | Y16: =AND('Tally Count Data'!C144,"AAAAAG/7zBg=") ->  | Z16: =AND('Tally Count Data'!D144,"AAAAAG/7zBk=") ->  | AA16: =AND('Tally Count Data'!E144,"AAAAAG/7zBo=") ->  | AB16: =AND('Tally Count Data'!F144,"AAAAAG/7zBs=") ->  | AC16: =AND('Tally Count Data'!G144,"AAAAAG/7zBw=") ->  | AD16: =AND('Tally Count Data'!H144,"AAAAAG/7zB0=") ->  | AE16: =AND('Tally Count Data'!I144,"AAAAAG/7zB4=") ->  | AF16: =AND('Tally Count Data'!J144,"AAAAAG/7zB8=") ->  | AG16: =AND('Tally Count Data'!K144,"AAAAAG/7zCA=") ->  | AH16: =AND('Tally Count Data'!L144,"AAAAAG/7zCE=") ->  | AI16: =AND('Tally Count Data'!M144,"AAAAAG/7zCI=") ->  | AJ16: =AND('Tally Count Data'!N144,"AAAAAG/7zCM=") ->  | AK16: =AND('Tally Count Data'!O144,"AAAAAG/7zCQ=") ->  | AL16: =AND('Tally Count Data'!P144,"AAAAAG/7zCU=") ->  | AM16: =AND('Tally Count Data'!Q144,"AAAAAG/7zCY=") ->  | AN16: =AND('Tally Count Data'!R144,"AAAAAG/7zCc=") ->  | AO16: =AND('Tally Count Data'!S144,"AAAAAG/7zCg=") ->  | AP16: =AND('Tally Count Data'!T144,"AAAAAG/7zCk=") ->  | AQ16: =AND('Tally Count Data'!U144,"AAAAAG/7zCo=") ->  | AR16: =AND('Tally Count Data'!V144,"AAAAAG/7zCs=") ->  | AS16: =AND('Tally Count Data'!W144,"AAAAAG/7zCw=") ->  | AT16: =AND('Tally Count Data'!X144,"AAAAAG/7zC0=") ->  | AU16: =AND('Tally Count Data'!Y144,"AAAAAG/7zC4=") ->  | AV16: =AND('Tally Count Data'!Z144,"AAAAAG/7zC8=") ->  | AW16: =IF('Tally Count Data'!145:145,"AAAAAG/7zDA=",0) -> 0 | AX16: =AND('Tally Count Data'!A145,"AAAAAG/7zDE=") ->  | AY16: =AND('Tally Count Data'!B145,"AAAAAG/7zDI=") ->  | AZ16: =AND('Tally Count Data'!C145,"AAAAAG/7zDM=") ->  | BA16: =AND('Tally Count Data'!D145,"AAAAAG/7zDQ=") ->  | BB16: =AND('Tally Count Data'!E145,"AAAAAG/7zDU=") ->  | BC16: =AND('Tally Count Data'!F145,"AAAAAG/7zDY=") ->  | BD16: =AND('Tally Count Data'!G145,"AAAAAG/7zDc=") ->  | BE16: =AND('Tally Count Data'!H145,"AAAAAG/7zDg=") ->  | BF16: =AND('Tally Count Data'!I145,"AAAAAG/7zDk=") ->  | BG16: =AND('Tally Count Data'!J145,"AAAAAG/7zDo=") ->  | BH16: =AND('Tally Count Data'!K145,"AAAAAG/7zDs=") ->  | BI16: =AND('Tally Count Data'!L145,"AAAAAG/7zDw=") ->  | BJ16: =AND('Tally Count Data'!M145,"AAAAAG/7zD0=") ->  | BK16: =AND('Tally Count Data'!N145,"AAAAAG/7zD4=") ->  | BL16: =AND('Tally Count Data'!O145,"AAAAAG/7zD8=") ->  | BM16: =AND('Tally Count Data'!P145,"AAAAAG/7zEA=") ->  | BN16: =AND('Tally Count Data'!Q145,"AAAAAG/7zEE=") ->  | BO16: =AND('Tally Count Data'!R145,"AAAAAG/7zEI=") ->  | BP16: =AND('Tally Count Data'!S145,"AAAAAG/7zEM=") ->  | BQ16: =AND('Tally Count Data'!T145,"AAAAAG/7zEQ=") ->  | BR16: =AND('Tally Count Data'!U145,"AAAAAG/7zEU=") ->  | BS16: =AND('Tally Count Data'!V145,"AAAAAG/7zEY=") ->  | BT16: =AND('Tally Count Data'!W145,"AAAAAG/7zEc=") ->  | BU16: =AND('Tally Count Data'!X145,"AAAAAG/7zEg=") ->  | BV16: =AND('Tally Count Data'!Y145,"AAAAAG/7zEk=") ->  | BW16: =AND('Tally Count Data'!Z145,"AAAAAG/7zEo=") ->  | BX16: =IF('Tally Count Data'!146:146,"AAAAAG/7zEs=",0) -> 0 | BY16: =AND('Tally Count Data'!A146,"AAAAAG/7zEw=") ->  | BZ16: =AND('Tally Count Data'!B146,"AAAAAG/7zE0=") ->  | CA16: =AND('Tally Count Data'!C146,"AAAAAG/7zE4=") ->  | CB16: =AND('Tally Count Data'!D146,"AAAAAG/7zE8=") ->  | CC16: =AND('Tally Count Data'!E146,"AAAAAG/7zFA=") ->  | CD16: =AND('Tally Count Data'!F146,"AAAAAG/7zFE=") ->  | CE16: =AND('Tally Count Data'!G146,"AAAAAG/7zFI=") ->  | CF16: =AND('Tally Count Data'!H146,"AAAAAG/7zFM=") ->  | CG16: =AND('Tally Count Data'!I146,"AAAAAG/7zFQ=") ->  | CH16: =AND('Tally Count Data'!J146,"AAAAAG/7zFU=") ->  | CI16: =AND('Tally Count Data'!K146,"AAAAAG/7zFY=") ->  | CJ16: =AND('Tally Count Data'!L146,"AAAAAG/7zFc=") ->  | CK16: =AND('Tally Count Data'!M146,"AAAAAG/7zFg=") ->  | CL16: =AND('Tally Count Data'!N146,"AAAAAG/7zFk=") ->  | CM16: =AND('Tally Count Data'!O146,"AAAAAG/7zFo=") ->  | CN16: =AND('Tally Count Data'!P146,"AAAAAG/7zFs=") ->  | CO16: =AND('Tally Count Data'!Q146,"AAAAAG/7zFw=") ->  | CP16: =AND('Tally Count Data'!R146,"AAAAAG/7zF0=") ->  | CQ16: =AND('Tally Count Data'!S146,"AAAAAG/7zF4=") ->  | CR16: =AND('Tally Count Data'!T146,"AAAAAG/7zF8=") ->  | CS16: =AND('Tally Count Data'!U146,"AAAAAG/7zGA=") ->  | CT16: =AND('Tally Count Data'!V146,"AAAAAG/7zGE=") ->  | CU16: =AND('Tally Count Data'!W146,"AAAAAG/7zGI=") ->  | CV16: =AND('Tally Count Data'!X146,"AAAAAG/7zGM=") ->  | CW16: =AND('Tally Count Data'!Y146,"AAAAAG/7zGQ=") ->  | CX16: =AND('Tally Count Data'!Z146,"AAAAAG/7zGU=") ->  | CY16: =IF('Tally Count Data'!147:147,"AAAAAG/7zGY=",0) -> 0 | CZ16: =AND('Tally Count Data'!A147,"AAAAAG/7zGc=") ->  | DA16: =AND('Tally Count Data'!B147,"AAAAAG/7zGg=") ->  | DB16: =AND('Tally Count Data'!C147,"AAAAAG/7zGk=") ->  | DC16: =AND('Tally Count Data'!D147,"AAAAAG/7zGo=") ->  | DD16: =AND('Tally Count Data'!E147,"AAAAAG/7zGs=") ->  | DE16: =AND('Tally Count Data'!F147,"AAAAAG/7zGw=") ->  | DF16: =AND('Tally Count Data'!G147,"AAAAAG/7zG0=") ->  | DG16: =AND('Tally Count Data'!H147,"AAAAAG/7zG4=") ->  | DH16: =AND('Tally Count Data'!I147,"AAAAAG/7zG8=") ->  | DI16: =AND('Tally Count Data'!J147,"AAAAAG/7zHA=") ->  | DJ16: =AND('Tally Count Data'!K147,"AAAAAG/7zHE=") ->  | DK16: =AND('Tally Count Data'!L147,"AAAAAG/7zHI=") ->  | DL16: =AND('Tally Count Data'!M147,"AAAAAG/7zHM=") ->  | DM16: =AND('Tally Count Data'!N147,"AAAAAG/7zHQ=") ->  | DN16: =AND('Tally Count Data'!O147,"AAAAAG/7zHU=") ->  | DO16: =AND('Tally Count Data'!P147,"AAAAAG/7zHY=") ->  | DP16: =AND('Tally Count Data'!Q147,"AAAAAG/7zHc=") ->  | DQ16: =AND('Tally Count Data'!R147,"AAAAAG/7zHg=") ->  | DR16: =AND('Tally Count Data'!S147,"AAAAAG/7zHk=") ->  | DS16: =AND('Tally Count Data'!T147,"AAAAAG/7zHo=") ->  | DT16: =AND('Tally Count Data'!U147,"AAAAAG/7zHs=") ->  | DU16: =AND('Tally Count Data'!V147,"AAAAAG/7zHw=") ->  | DV16: =AND('Tally Count Data'!W147,"AAAAAG/7zH0=") ->  | DW16: =AND('Tally Count Data'!X147,"AAAAAG/7zH4=") ->  | DX16: =AND('Tally Count Data'!Y147,"AAAAAG/7zH8=") ->  | DY16: =AND('Tally Count Data'!Z147,"AAAAAG/7zIA=") ->  | DZ16: =IF('Tally Count Data'!148:148,"AAAAAG/7zIE=",0) -> 0 | EA16: =AND('Tally Count Data'!A148,"AAAAAG/7zII=") ->  | EB16: =AND('Tally Count Data'!B148,"AAAAAG/7zIM=") ->  | EC16: =AND('Tally Count Data'!C148,"AAAAAG/7zIQ=") ->  | ED16: =AND('Tally Count Data'!D148,"AAAAAG/7zIU=") ->  | EE16: =AND('Tally Count Data'!E148,"AAAAAG/7zIY=") ->  | EF16: =AND('Tally Count Data'!F148,"AAAAAG/7zIc=") ->  | EG16: =AND('Tally Count Data'!G148,"AAAAAG/7zIg=") ->  | EH16: =AND('Tally Count Data'!H148,"AAAAAG/7zIk=") ->  | EI16: =AND('Tally Count Data'!I148,"AAAAAG/7zIo=") ->  | EJ16: =AND('Tally Count Data'!J148,"AAAAAG/7zIs=") ->  | EK16: =AND('Tally Count Data'!K148,"AAAAAG/7zIw=") ->  | EL16: =AND('Tally Count Data'!L148,"AAAAAG/7zI0=") ->  | EM16: =AND('Tally Count Data'!M148,"AAAAAG/7zI4=") ->  | EN16: =AND('Tally Count Data'!N148,"AAAAAG/7zI8=") ->  | EO16: =AND('Tally Count Data'!O148,"AAAAAG/7zJA=") ->  | EP16: =AND('Tally Count Data'!P148,"AAAAAG/7zJE=") ->  | EQ16: =AND('Tally Count Data'!Q148,"AAAAAG/7zJI=") ->  | ER16: =AND('Tally Count Data'!R148,"AAAAAG/7zJM=") ->  | ES16: =AND('Tally Count Data'!S148,"AAAAAG/7zJQ=") ->  | ET16: =AND('Tally Count Data'!T148,"AAAAAG/7zJU=") ->  | EU16: =AND('Tally Count Data'!U148,"AAAAAG/7zJY=") ->  | EV16: =AND('Tally Count Data'!V148,"AAAAAG/7zJc=") ->  | EW16: =AND('Tally Count Data'!W148,"AAAAAG/7zJg=") ->  | EX16: =AND('Tally Count Data'!X148,"AAAAAG/7zJk=") ->  | EY16: =AND('Tally Count Data'!Y148,"AAAAAG/7zJo=") ->  | EZ16: =AND('Tally Count Data'!Z148,"AAAAAG/7zJs=") ->  | FA16: =IF('Tally Count Data'!149:149,"AAAAAG/7zJw=",0) -> 0 | FB16: =AND('Tally Count Data'!A149,"AAAAAG/7zJ0=") ->  | FC16: =AND('Tally Count Data'!B149,"AAAAAG/7zJ4=") ->  | FD16: =AND('Tally Count Data'!C149,"AAAAAG/7zJ8=") ->  | FE16: =AND('Tally Count Data'!D149,"AAAAAG/7zKA=") ->  | FF16: =AND('Tally Count Data'!E149,"AAAAAG/7zKE=") ->  | FG16: =AND('Tally Count Data'!F149,"AAAAAG/7zKI=") ->  | FH16: =AND('Tally Count Data'!G149,"AAAAAG/7zKM=") ->  | FI16: =AND('Tally Count Data'!H149,"AAAAAG/7zKQ=") ->  | FJ16: =AND('Tally Count Data'!I149,"AAAAAG/7zKU=") ->  | FK16: =AND('Tally Count Data'!J149,"AAAAAG/7zKY=") ->  | FL16: =AND('Tally Count Data'!K149,"AAAAAG/7zKc=") ->  | FM16: =AND('Tally Count Data'!L149,"AAAAAG/7zKg=") ->  | FN16: =AND('Tally Count Data'!M149,"AAAAAG/7zKk=") ->  | FO16: =AND('Tally Count Data'!N149,"AAAAAG/7zKo=") ->  | FP16: =AND('Tally Count Data'!O149,"AAAAAG/7zKs=") ->  | FQ16: =AND('Tally Count Data'!P149,"AAAAAG/7zKw=") ->  | FR16: =AND('Tally Count Data'!Q149,"AAAAAG/7zK0=") ->  | FS16: =AND('Tally Count Data'!R149,"AAAAAG/7zK4=") ->  | FT16: =AND('Tally Count Data'!S149,"AAAAAG/7zK8=") ->  | FU16: =AND('Tally Count Data'!T149,"AAAAAG/7zLA=") ->  | FV16: =AND('Tally Count Data'!U149,"AAAAAG/7zLE=") ->  | FW16: =AND('Tally Count Data'!V149,"AAAAAG/7zLI=") ->  | FX16: =AND('Tally Count Data'!W149,"AAAAAG/7zLM=") ->  | FY16: =AND('Tally Count Data'!X149,"AAAAAG/7zLQ=") ->  | FZ16: =AND('Tally Count Data'!Y149,"AAAAAG/7zLU=") ->  | GA16: =AND('Tally Count Data'!Z149,"AAAAAG/7zLY=") ->  | GB16: =IF('Tally Count Data'!150:150,"AAAAAG/7zLc=",0) -> 0 | GC16: =AND('Tally Count Data'!A150,"AAAAAG/7zLg=") ->  | GD16: =AND('Tally Count Data'!B150,"AAAAAG/7zLk=") ->  | GE16: =AND('Tally Count Data'!C150,"AAAAAG/7zLo=") ->  | GF16: =AND('Tally Count Data'!D150,"AAAAAG/7zLs=") ->  | GG16: =AND('Tally Count Data'!E150,"AAAAAG/7zLw=") ->  | GH16: =AND('Tally Count Data'!F150,"AAAAAG/7zL0=") ->  | GI16: =AND('Tally Count Data'!G150,"AAAAAG/7zL4=") ->  | GJ16: =AND('Tally Count Data'!H150,"AAAAAG/7zL8=") ->  | GK16: =AND('Tally Count Data'!I150,"AAAAAG/7zMA=") ->  | GL16: =AND('Tally Count Data'!J150,"AAAAAG/7zME=") ->  | GM16: =AND('Tally Count Data'!K150,"AAAAAG/7zMI=") ->  | GN16: =AND('Tally Count Data'!L150,"AAAAAG/7zMM=") ->  | GO16: =AND('Tally Count Data'!M150,"AAAAAG/7zMQ=") ->  | GP16: =AND('Tally Count Data'!N150,"AAAAAG/7zMU=") ->  | GQ16: =AND('Tally Count Data'!O150,"AAAAAG/7zMY=") ->  | GR16: =AND('Tally Count Data'!P150,"AAAAAG/7zMc=") ->  | GS16: =AND('Tally Count Data'!Q150,"AAAAAG/7zMg=") ->  | GT16: =AND('Tally Count Data'!R150,"AAAAAG/7zMk=") ->  | GU16: =AND('Tally Count Data'!S150,"AAAAAG/7zMo=") ->  | GV16: =AND('Tally Count Data'!T150,"AAAAAG/7zMs=") ->  | GW16: =AND('Tally Count Data'!U150,"AAAAAG/7zMw=") ->  | GX16: =AND('Tally Count Data'!V150,"AAAAAG/7zM0=") ->  | GY16: =AND('Tally Count Data'!W150,"AAAAAG/7zM4=") ->  | GZ16: =AND('Tally Count Data'!X150,"AAAAAG/7zM8=") ->  | HA16: =AND('Tally Count Data'!Y150,"AAAAAG/7zNA=") ->  | HB16: =AND('Tally Count Data'!Z150,"AAAAAG/7zNE=") ->  | HC16: =IF('Tally Count Data'!151:151,"AAAAAG/7zNI=",0) -> 0 | HD16: =AND('Tally Count Data'!A151,"AAAAAG/7zNM=") ->  | HE16: =AND('Tally Count Data'!B151,"AAAAAG/7zNQ=") ->  | HF16: =AND('Tally Count Data'!C151,"AAAAAG/7zNU=") ->  | HG16: =AND('Tally Count Data'!D151,"AAAAAG/7zNY=") ->  | HH16: =AND('Tally Count Data'!E151,"AAAAAG/7zNc=") ->  | HI16: =AND('Tally Count Data'!F151,"AAAAAG/7zNg=") ->  | HJ16: =AND('Tally Count Data'!G151,"AAAAAG/7zNk=") ->  | HK16: =AND('Tally Count Data'!H151,"AAAAAG/7zNo=") ->  | HL16: =AND('Tally Count Data'!I151,"AAAAAG/7zNs=") ->  | HM16: =AND('Tally Count Data'!J151,"AAAAAG/7zNw=") ->  | HN16: =AND('Tally Count Data'!K151,"AAAAAG/7zN0=") ->  | HO16: =AND('Tally Count Data'!L151,"AAAAAG/7zN4=") ->  | HP16: =AND('Tally Count Data'!M151,"AAAAAG/7zN8=") ->  | HQ16: =AND('Tally Count Data'!N151,"AAAAAG/7zOA=") ->  | HR16: =AND('Tally Count Data'!O151,"AAAAAG/7zOE=") ->  | HS16: =AND('Tally Count Data'!P151,"AAAAAG/7zOI=") ->  | HT16: =AND('Tally Count Data'!Q151,"AAAAAG/7zOM=") ->  | HU16: =AND('Tally Count Data'!R151,"AAAAAG/7zOQ=") ->  | HV16: =AND('Tally Count Data'!S151,"AAAAAG/7zOU=") ->  | HW16: =AND('Tally Count Data'!T151,"AAAAAG/7zOY=") ->  | HX16: =AND('Tally Count Data'!U151,"AAAAAG/7zOc=") ->  | HY16: =AND('Tally Count Data'!V151,"AAAAAG/7zOg=") ->  | HZ16: =AND('Tally Count Data'!W151,"AAAAAG/7zOk=") ->  | IA16: =AND('Tally Count Data'!X151,"AAAAAG/7zOo=") ->  | IB16: =AND('Tally Count Data'!Y151,"AAAAAG/7zOs=") ->  | IC16: =AND('Tally Count Data'!Z151,"AAAAAG/7zOw=") ->  | ID16: =IF('Tally Count Data'!152:152,"AAAAAG/7zO0=",0) -> 0 | IE16: =AND('Tally Count Data'!A152,"AAAAAG/7zO4=") ->  | IF16: =AND('Tally Count Data'!B152,"AAAAAG/7zO8=") ->  | IG16: =AND('Tally Count Data'!C152,"AAAAAG/7zPA=") ->  | IH16: =AND('Tally Count Data'!D152,"AAAAAG/7zPE=") ->  | II16: =AND('Tally Count Data'!E152,"AAAAAG/7zPI=") ->  | IJ16: =AND('Tally Count Data'!F152,"AAAAAG/7zPM=") ->  | IK16: =AND('Tally Count Data'!G152,"AAAAAG/7zPQ=") ->  | IL16: =AND('Tally Count Data'!H152,"AAAAAG/7zPU=") ->  | IM16: =AND('Tally Count Data'!I152,"AAAAAG/7zPY=") ->  | IN16: =AND('Tally Count Data'!J152,"AAAAAG/7zPc=") ->  | IO16: =AND('Tally Count Data'!K152,"AAAAAG/7zPg=") ->  | IP16: =AND('Tally Count Data'!L152,"AAAAAG/7zPk=") ->  | IQ16: =AND('Tally Count Data'!M152,"AAAAAG/7zPo=") ->  | IR16: =AND('Tally Count Data'!N152,"AAAAAG/7zPs=") ->  | IS16: =AND('Tally Count Data'!O152,"AAAAAG/7zPw=") ->  | IT16: =AND('Tally Count Data'!P152,"AAAAAG/7zP0=") ->  | IU16: =AND('Tally Count Data'!Q152,"AAAAAG/7zP4=") ->  | IV16: =AND('Tally Count Data'!R152,"AAAAAG/7zP8=") -> 
A17: =AND('Tally Count Data'!S152,"AAAAAHX5+gA=") ->  | B17: =AND('Tally Count Data'!T152,"AAAAAHX5+gE=") ->  | C17: =AND('Tally Count Data'!U152,"AAAAAHX5+gI=") ->  | D17: =AND('Tally Count Data'!V152,"AAAAAHX5+gM=") ->  | E17: =AND('Tally Count Data'!W152,"AAAAAHX5+gQ=") ->  | F17: =AND('Tally Count Data'!X152,"AAAAAHX5+gU=") ->  | G17: =AND('Tally Count Data'!Y152,"AAAAAHX5+gY=") ->  | H17: =AND('Tally Count Data'!Z152,"AAAAAHX5+gc=") ->  | I17: =IF('Tally Count Data'!153:153,"AAAAAHX5+gg=",0) -> 0 | J17: =AND('Tally Count Data'!A153,"AAAAAHX5+gk=") ->  | K17: =AND('Tally Count Data'!B153,"AAAAAHX5+go=") ->  | L17: =AND('Tally Count Data'!C153,"AAAAAHX5+gs=") ->  | M17: =AND('Tally Count Data'!D153,"AAAAAHX5+gw=") ->  | N17: =AND('Tally Count Data'!E153,"AAAAAHX5+g0=") ->  | O17: =AND('Tally Count Data'!F153,"AAAAAHX5+g4=") ->  | P17: =AND('Tally Count Data'!G153,"AAAAAHX5+g8=") ->  | Q17: =AND('Tally Count Data'!H153,"AAAAAHX5+hA=") ->  | R17: =AND('Tally Count Data'!I153,"AAAAAHX5+hE=") ->  | S17: =AND('Tally Count Data'!J153,"AAAAAHX5+hI=") ->  | T17: =AND('Tally Count Data'!K153,"AAAAAHX5+hM=") ->  | U17: =AND('Tally Count Data'!L153,"AAAAAHX5+hQ=") ->  | V17: =AND('Tally Count Data'!M153,"AAAAAHX5+hU=") ->  | W17: =AND('Tally Count Data'!N153,"AAAAAHX5+hY=") ->  | X17: =AND('Tally Count Data'!O153,"AAAAAHX5+hc=") ->  | Y17: =AND('Tally Count Data'!P153,"AAAAAHX5+hg=") ->  | Z17: =AND('Tally Count Data'!Q153,"AAAAAHX5+hk=") ->  | AA17: =AND('Tally Count Data'!R153,"AAAAAHX5+ho=") ->  | AB17: =AND('Tally Count Data'!S153,"AAAAAHX5+hs=") ->  | AC17: =AND('Tally Count Data'!T153,"AAAAAHX5+hw=") ->  | AD17: =AND('Tally Count Data'!U153,"AAAAAHX5+h0=") ->  | AE17: =AND('Tally Count Data'!V153,"AAAAAHX5+h4=") ->  | AF17: =AND('Tally Count Data'!W153,"AAAAAHX5+h8=") ->  | AG17: =AND('Tally Count Data'!X153,"AAAAAHX5+iA=") ->  | AH17: =AND('Tally Count Data'!Y153,"AAAAAHX5+iE=") ->  | AI17: =AND('Tally Count Data'!Z153,"AAAAAHX5+iI=") ->  | AJ17: =IF('Tally Count Data'!154:154,"AAAAAHX5+iM=",0) -> 0 | AK17: =AND('Tally Count Data'!A154,"AAAAAHX5+iQ=") ->  | AL17: =AND('Tally Count Data'!B154,"AAAAAHX5+iU=") ->  | AM17: =AND('Tally Count Data'!C154,"AAAAAHX5+iY=") ->  | AN17: =AND('Tally Count Data'!D154,"AAAAAHX5+ic=") ->  | AO17: =AND('Tally Count Data'!E154,"AAAAAHX5+ig=") ->  | AP17: =AND('Tally Count Data'!F154,"AAAAAHX5+ik=") ->  | AQ17: =AND('Tally Count Data'!G154,"AAAAAHX5+io=") ->  | AR17: =AND('Tally Count Data'!H154,"AAAAAHX5+is=") ->  | AS17: =AND('Tally Count Data'!I154,"AAAAAHX5+iw=") ->  | AT17: =AND('Tally Count Data'!J154,"AAAAAHX5+i0=") ->  | AU17: =AND('Tally Count Data'!K154,"AAAAAHX5+i4=") ->  | AV17: =AND('Tally Count Data'!L154,"AAAAAHX5+i8=") ->  | AW17: =AND('Tally Count Data'!M154,"AAAAAHX5+jA=") ->  | AX17: =AND('Tally Count Data'!N154,"AAAAAHX5+jE=") ->  | AY17: =AND('Tally Count Data'!O154,"AAAAAHX5+jI=") ->  | AZ17: =AND('Tally Count Data'!P154,"AAAAAHX5+jM=") ->  | BA17: =AND('Tally Count Data'!Q154,"AAAAAHX5+jQ=") ->  | BB17: =AND('Tally Count Data'!R154,"AAAAAHX5+jU=") ->  | BC17: =AND('Tally Count Data'!S154,"AAAAAHX5+jY=") ->  | BD17: =AND('Tally Count Data'!T154,"AAAAAHX5+jc=") ->  | BE17: =AND('Tally Count Data'!U154,"AAAAAHX5+jg=") ->  | BF17: =AND('Tally Count Data'!V154,"AAAAAHX5+jk=") ->  | BG17: =AND('Tally Count Data'!W154,"AAAAAHX5+jo=") ->  | BH17: =AND('Tally Count Data'!X154,"AAAAAHX5+js=") ->  | BI17: =AND('Tally Count Data'!Y154,"AAAAAHX5+jw=") ->  | BJ17: =AND('Tally Count Data'!Z154,"AAAAAHX5+j0=") ->  | BK17: =IF('Tally Count Data'!155:155,"AAAAAHX5+j4=",0) -> 0 | BL17: =AND('Tally Count Data'!A155,"AAAAAHX5+j8=") ->  | BM17: =AND('Tally Count Data'!B155,"AAAAAHX5+kA=") ->  | BN17: =AND('Tally Count Data'!C155,"AAAAAHX5+kE=") ->  | BO17: =AND('Tally Count Data'!D155,"AAAAAHX5+kI=") ->  | BP17: =AND('Tally Count Data'!E155,"AAAAAHX5+kM=") ->  | BQ17: =AND('Tally Count Data'!F155,"AAAAAHX5+kQ=") ->  | BR17: =AND('Tally Count Data'!G155,"AAAAAHX5+kU=") ->  | BS17: =AND('Tally Count Data'!H155,"AAAAAHX5+kY=") ->  | BT17: =AND('Tally Count Data'!I155,"AAAAAHX5+kc=") ->  | BU17: =AND('Tally Count Data'!J155,"AAAAAHX5+kg=") ->  | BV17: =AND('Tally Count Data'!K155,"AAAAAHX5+kk=") ->  | BW17: =AND('Tally Count Data'!L155,"AAAAAHX5+ko=") ->  | BX17: =AND('Tally Count Data'!M155,"AAAAAHX5+ks=") ->  | BY17: =AND('Tally Count Data'!N155,"AAAAAHX5+kw=") ->  | BZ17: =AND('Tally Count Data'!O155,"AAAAAHX5+k0=") ->  | CA17: =AND('Tally Count Data'!P155,"AAAAAHX5+k4=") ->  | CB17: =AND('Tally Count Data'!Q155,"AAAAAHX5+k8=") ->  | CC17: =AND('Tally Count Data'!R155,"AAAAAHX5+lA=") ->  | CD17: =AND('Tally Count Data'!S155,"AAAAAHX5+lE=") ->  | CE17: =AND('Tally Count Data'!T155,"AAAAAHX5+lI=") ->  | CF17: =AND('Tally Count Data'!U155,"AAAAAHX5+lM=") ->  | CG17: =AND('Tally Count Data'!V155,"AAAAAHX5+lQ=") ->  | CH17: =AND('Tally Count Data'!W155,"AAAAAHX5+lU=") ->  | CI17: =AND('Tally Count Data'!X155,"AAAAAHX5+lY=") ->  | CJ17: =AND('Tally Count Data'!Y155,"AAAAAHX5+lc=") ->  | CK17: =AND('Tally Count Data'!Z155,"AAAAAHX5+lg=") ->  | CL17: =IF('Tally Count Data'!156:156,"AAAAAHX5+lk=",0) -> 0 | CM17: =AND('Tally Count Data'!A156,"AAAAAHX5+lo=") ->  | CN17: =AND('Tally Count Data'!B156,"AAAAAHX5+ls=") ->  | CO17: =AND('Tally Count Data'!C156,"AAAAAHX5+lw=") ->  | CP17: =AND('Tally Count Data'!D156,"AAAAAHX5+l0=") ->  | CQ17: =AND('Tally Count Data'!E156,"AAAAAHX5+l4=") ->  | CR17: =AND('Tally Count Data'!F156,"AAAAAHX5+l8=") ->  | CS17: =AND('Tally Count Data'!G156,"AAAAAHX5+mA=") ->  | CT17: =AND('Tally Count Data'!H156,"AAAAAHX5+mE=") ->  | CU17: =AND('Tally Count Data'!I156,"AAAAAHX5+mI=") ->  | CV17: =AND('Tally Count Data'!J156,"AAAAAHX5+mM=") ->  | CW17: =AND('Tally Count Data'!K156,"AAAAAHX5+mQ=") ->  | CX17: =AND('Tally Count Data'!L156,"AAAAAHX5+mU=") ->  | CY17: =AND('Tally Count Data'!M156,"AAAAAHX5+mY=") ->  | CZ17: =AND('Tally Count Data'!N156,"AAAAAHX5+mc=") ->  | DA17: =AND('Tally Count Data'!O156,"AAAAAHX5+mg=") ->  | DB17: =AND('Tally Count Data'!P156,"AAAAAHX5+mk=") ->  | DC17: =AND('Tally Count Data'!Q156,"AAAAAHX5+mo=") ->  | DD17: =AND('Tally Count Data'!R156,"AAAAAHX5+ms=") ->  | DE17: =AND('Tally Count Data'!S156,"AAAAAHX5+mw=") ->  | DF17: =AND('Tally Count Data'!T156,"AAAAAHX5+m0=") ->  | DG17: =AND('Tally Count Data'!U156,"AAAAAHX5+m4=") ->  | DH17: =AND('Tally Count Data'!V156,"AAAAAHX5+m8=") ->  | DI17: =AND('Tally Count Data'!W156,"AAAAAHX5+nA=") ->  | DJ17: =AND('Tally Count Data'!X156,"AAAAAHX5+nE=") ->  | DK17: =AND('Tally Count Data'!Y156,"AAAAAHX5+nI=") ->  | DL17: =AND('Tally Count Data'!Z156,"AAAAAHX5+nM=") ->  | DM17: =IF('Tally Count Data'!157:157,"AAAAAHX5+nQ=",0) -> 0 | DN17: =AND('Tally Count Data'!A157,"AAAAAHX5+nU=") ->  | DO17: =AND('Tally Count Data'!B157,"AAAAAHX5+nY=") ->  | DP17: =AND('Tally Count Data'!C157,"AAAAAHX5+nc=") ->  | DQ17: =AND('Tally Count Data'!D157,"AAAAAHX5+ng=") ->  | DR17: =AND('Tally Count Data'!E157,"AAAAAHX5+nk=") ->  | DS17: =AND('Tally Count Data'!F157,"AAAAAHX5+no=") ->  | DT17: =AND('Tally Count Data'!G157,"AAAAAHX5+ns=") ->  | DU17: =AND('Tally Count Data'!H157,"AAAAAHX5+nw=") ->  | DV17: =AND('Tally Count Data'!I157,"AAAAAHX5+n0=") ->  | DW17: =AND('Tally Count Data'!J157,"AAAAAHX5+n4=") ->  | DX17: =AND('Tally Count Data'!K157,"AAAAAHX5+n8=") ->  | DY17: =AND('Tally Count Data'!L157,"AAAAAHX5+oA=") ->  | DZ17: =AND('Tally Count Data'!M157,"AAAAAHX5+oE=") ->  | EA17: =AND('Tally Count Data'!N157,"AAAAAHX5+oI=") ->  | EB17: =AND('Tally Count Data'!O157,"AAAAAHX5+oM=") ->  | EC17: =AND('Tally Count Data'!P157,"AAAAAHX5+oQ=") ->  | ED17: =AND('Tally Count Data'!Q157,"AAAAAHX5+oU=") ->  | EE17: =AND('Tally Count Data'!R157,"AAAAAHX5+oY=") ->  | EF17: =AND('Tally Count Data'!S157,"AAAAAHX5+oc=") ->  | EG17: =AND('Tally Count Data'!T157,"AAAAAHX5+og=") ->  | EH17: =AND('Tally Count Data'!U157,"AAAAAHX5+ok=") ->  | EI17: =AND('Tally Count Data'!V157,"AAAAAHX5+oo=") ->  | EJ17: =AND('Tally Count Data'!W157,"AAAAAHX5+os=") ->  | EK17: =AND('Tally Count Data'!X157,"AAAAAHX5+ow=") ->  | EL17: =AND('Tally Count Data'!Y157,"AAAAAHX5+o0=") ->  | EM17: =AND('Tally Count Data'!Z157,"AAAAAHX5+o4=") ->  | EN17: =IF('Tally Count Data'!158:158,"AAAAAHX5+o8=",0) -> 0 | EO17: =AND('Tally Count Data'!A158,"AAAAAHX5+pA=") ->  | EP17: =AND('Tally Count Data'!B158,"AAAAAHX5+pE=") ->  | EQ17: =AND('Tally Count Data'!C158,"AAAAAHX5+pI=") ->  | ER17: =AND('Tally Count Data'!D158,"AAAAAHX5+pM=") ->  | ES17: =AND('Tally Count Data'!E158,"AAAAAHX5+pQ=") ->  | ET17: =AND('Tally Count Data'!F158,"AAAAAHX5+pU=") ->  | EU17: =AND('Tally Count Data'!G158,"AAAAAHX5+pY=") ->  | EV17: =AND('Tally Count Data'!H158,"AAAAAHX5+pc=") ->  | EW17: =AND('Tally Count Data'!I158,"AAAAAHX5+pg=") ->  | EX17: =AND('Tally Count Data'!J158,"AAAAAHX5+pk=") ->  | EY17: =AND('Tally Count Data'!K158,"AAAAAHX5+po=") ->  | EZ17: =AND('Tally Count Data'!L158,"AAAAAHX5+ps=") ->  | FA17: =AND('Tally Count Data'!M158,"AAAAAHX5+pw=") ->  | FB17: =AND('Tally Count Data'!N158,"AAAAAHX5+p0=") ->  | FC17: =AND('Tally Count Data'!O158,"AAAAAHX5+p4=") ->  | FD17: =AND('Tally Count Data'!P158,"AAAAAHX5+p8=") ->  | FE17: =AND('Tally Count Data'!Q158,"AAAAAHX5+qA=") ->  | FF17: =AND('Tally Count Data'!R158,"AAAAAHX5+qE=") ->  | FG17: =AND('Tally Count Data'!S158,"AAAAAHX5+qI=") ->  | FH17: =AND('Tally Count Data'!T158,"AAAAAHX5+qM=") ->  | FI17: =AND('Tally Count Data'!U158,"AAAAAHX5+qQ=") ->  | FJ17: =AND('Tally Count Data'!V158,"AAAAAHX5+qU=") ->  | FK17: =AND('Tally Count Data'!W158,"AAAAAHX5+qY=") ->  | FL17: =AND('Tally Count Data'!X158,"AAAAAHX5+qc=") ->  | FM17: =AND('Tally Count Data'!Y158,"AAAAAHX5+qg=") ->  | FN17: =AND('Tally Count Data'!Z158,"AAAAAHX5+qk=") ->  | FO17: =IF('Tally Count Data'!159:159,"AAAAAHX5+qo=",0) -> 0 | FP17: =AND('Tally Count Data'!A159,"AAAAAHX5+qs=") ->  | FQ17: =AND('Tally Count Data'!B159,"AAAAAHX5+qw=") ->  | FR17: =AND('Tally Count Data'!C159,"AAAAAHX5+q0=") ->  | FS17: =AND('Tally Count Data'!D159,"AAAAAHX5+q4=") ->  | FT17: =AND('Tally Count Data'!E159,"AAAAAHX5+q8=") ->  | FU17: =AND('Tally Count Data'!F159,"AAAAAHX5+rA=") ->  | FV17: =AND('Tally Count Data'!G159,"AAAAAHX5+rE=") ->  | FW17: =AND('Tally Count Data'!H159,"AAAAAHX5+rI=") ->  | FX17: =AND('Tally Count Data'!I159,"AAAAAHX5+rM=") ->  | FY17: =AND('Tally Count Data'!J159,"AAAAAHX5+rQ=") ->  | FZ17: =AND('Tally Count Data'!K159,"AAAAAHX5+rU=") ->  | GA17: =AND('Tally Count Data'!L159,"AAAAAHX5+rY=") ->  | GB17: =AND('Tally Count Data'!M159,"AAAAAHX5+rc=") ->  | GC17: =AND('Tally Count Data'!N159,"AAAAAHX5+rg=") ->  | GD17: =AND('Tally Count Data'!O159,"AAAAAHX5+rk=") ->  | GE17: =AND('Tally Count Data'!P159,"AAAAAHX5+ro=") ->  | GF17: =AND('Tally Count Data'!Q159,"AAAAAHX5+rs=") ->  | GG17: =AND('Tally Count Data'!R159,"AAAAAHX5+rw=") ->  | GH17: =AND('Tally Count Data'!S159,"AAAAAHX5+r0=") ->  | GI17: =AND('Tally Count Data'!T159,"AAAAAHX5+r4=") ->  | GJ17: =AND('Tally Count Data'!U159,"AAAAAHX5+r8=") ->  | GK17: =AND('Tally Count Data'!V159,"AAAAAHX5+sA=") ->  | GL17: =AND('Tally Count Data'!W159,"AAAAAHX5+sE=") ->  | GM17: =AND('Tally Count Data'!X159,"AAAAAHX5+sI=") ->  | GN17: =AND('Tally Count Data'!Y159,"AAAAAHX5+sM=") ->  | GO17: =AND('Tally Count Data'!Z159,"AAAAAHX5+sQ=") ->  | GP17: =IF('Tally Count Data'!160:160,"AAAAAHX5+sU=",0) -> 0 | GQ17: =AND('Tally Count Data'!A160,"AAAAAHX5+sY=") ->  | GR17: =AND('Tally Count Data'!B160,"AAAAAHX5+sc=") ->  | GS17: =AND('Tally Count Data'!C160,"AAAAAHX5+sg=") ->  | GT17: =AND('Tally Count Data'!D160,"AAAAAHX5+sk=") ->  | GU17: =AND('Tally Count Data'!E160,"AAAAAHX5+so=") ->  | GV17: =AND('Tally Count Data'!F160,"AAAAAHX5+ss=") ->  | GW17: =AND('Tally Count Data'!G160,"AAAAAHX5+sw=") ->  | GX17: =AND('Tally Count Data'!H160,"AAAAAHX5+s0=") ->  | GY17: =AND('Tally Count Data'!I160,"AAAAAHX5+s4=") ->  | GZ17: =AND('Tally Count Data'!J160,"AAAAAHX5+s8=") ->  | HA17: =AND('Tally Count Data'!K160,"AAAAAHX5+tA=") ->  | HB17: =AND('Tally Count Data'!L160,"AAAAAHX5+tE=") ->  | HC17: =AND('Tally Count Data'!M160,"AAAAAHX5+tI=") ->  | HD17: =AND('Tally Count Data'!N160,"AAAAAHX5+tM=") ->  | HE17: =AND('Tally Count Data'!O160,"AAAAAHX5+tQ=") ->  | HF17: =AND('Tally Count Data'!P160,"AAAAAHX5+tU=") ->  | HG17: =AND('Tally Count Data'!Q160,"AAAAAHX5+tY=") ->  | HH17: =AND('Tally Count Data'!R160,"AAAAAHX5+tc=") ->  | HI17: =AND('Tally Count Data'!S160,"AAAAAHX5+tg=") ->  | HJ17: =AND('Tally Count Data'!T160,"AAAAAHX5+tk=") ->  | HK17: =AND('Tally Count Data'!U160,"AAAAAHX5+to=") ->  | HL17: =AND('Tally Count Data'!V160,"AAAAAHX5+ts=") ->  | HM17: =AND('Tally Count Data'!W160,"AAAAAHX5+tw=") ->  | HN17: =AND('Tally Count Data'!X160,"AAAAAHX5+t0=") ->  | HO17: =AND('Tally Count Data'!Y160,"AAAAAHX5+t4=") ->  | HP17: =AND('Tally Count Data'!Z160,"AAAAAHX5+t8=") ->  | HQ17: =IF('Tally Count Data'!161:161,"AAAAAHX5+uA=",0) -> 0 | HR17: =AND('Tally Count Data'!A161,"AAAAAHX5+uE=") ->  | HS17: =AND('Tally Count Data'!B161,"AAAAAHX5+uI=") ->  | HT17: =AND('Tally Count Data'!C161,"AAAAAHX5+uM=") ->  | HU17: =AND('Tally Count Data'!D161,"AAAAAHX5+uQ=") ->  | HV17: =AND('Tally Count Data'!E161,"AAAAAHX5+uU=") ->  | HW17: =AND('Tally Count Data'!F161,"AAAAAHX5+uY=") ->  | HX17: =AND('Tally Count Data'!G161,"AAAAAHX5+uc=") ->  | HY17: =AND('Tally Count Data'!H161,"AAAAAHX5+ug=") ->  | HZ17: =AND('Tally Count Data'!I161,"AAAAAHX5+uk=") ->  | IA17: =AND('Tally Count Data'!J161,"AAAAAHX5+uo=") ->  | IB17: =AND('Tally Count Data'!K161,"AAAAAHX5+us=") ->  | IC17: =AND('Tally Count Data'!L161,"AAAAAHX5+uw=") ->  | ID17: =AND('Tally Count Data'!M161,"AAAAAHX5+u0=") ->  | IE17: =AND('Tally Count Data'!N161,"AAAAAHX5+u4=") ->  | IF17: =AND('Tally Count Data'!O161,"AAAAAHX5+u8=") ->  | IG17: =AND('Tally Count Data'!P161,"AAAAAHX5+vA=") ->  | IH17: =AND('Tally Count Data'!Q161,"AAAAAHX5+vE=") ->  | II17: =AND('Tally Count Data'!R161,"AAAAAHX5+vI=") ->  | IJ17: =AND('Tally Count Data'!S161,"AAAAAHX5+vM=") ->  | IK17: =AND('Tally Count Data'!T161,"AAAAAHX5+vQ=") ->  | IL17: =AND('Tally Count Data'!U161,"AAAAAHX5+vU=") ->  | IM17: =AND('Tally Count Data'!V161,"AAAAAHX5+vY=") ->  | IN17: =AND('Tally Count Data'!W161,"AAAAAHX5+vc=") ->  | IO17: =AND('Tally Count Data'!X161,"AAAAAHX5+vg=") ->  | IP17: =AND('Tally Count Data'!Y161,"AAAAAHX5+vk=") ->  | IQ17: =AND('Tally Count Data'!Z161,"AAAAAHX5+vo=") ->  | IR17: =IF('Tally Count Data'!162:162,"AAAAAHX5+vs=",0) -> 0 | IS17: =AND('Tally Count Data'!A162,"AAAAAHX5+vw=") ->  | IT17: =AND('Tally Count Data'!B162,"AAAAAHX5+v0=") ->  | IU17: =AND('Tally Count Data'!C162,"AAAAAHX5+v4=") ->  | IV17: =AND('Tally Count Data'!D162,"AAAAAHX5+v8=") -> 
A18: =AND('Tally Count Data'!E162,"AAAAAGV8rQA=") ->  | B18: =AND('Tally Count Data'!F162,"AAAAAGV8rQE=") ->  | C18: =AND('Tally Count Data'!G162,"AAAAAGV8rQI=") ->  | D18: =AND('Tally Count Data'!H162,"AAAAAGV8rQM=") ->  | E18: =AND('Tally Count Data'!I162,"AAAAAGV8rQQ=") ->  | F18: =AND('Tally Count Data'!J162,"AAAAAGV8rQU=") ->  | G18: =AND('Tally Count Data'!K162,"AAAAAGV8rQY=") ->  | H18: =AND('Tally Count Data'!L162,"AAAAAGV8rQc=") ->  | I18: =AND('Tally Count Data'!M162,"AAAAAGV8rQg=") ->  | J18: =AND('Tally Count Data'!N162,"AAAAAGV8rQk=") ->  | K18: =AND('Tally Count Data'!O162,"AAAAAGV8rQo=") ->  | L18: =AND('Tally Count Data'!P162,"AAAAAGV8rQs=") ->  | M18: =AND('Tally Count Data'!Q162,"AAAAAGV8rQw=") ->  | N18: =AND('Tally Count Data'!R162,"AAAAAGV8rQ0=") ->  | O18: =AND('Tally Count Data'!S162,"AAAAAGV8rQ4=") ->  | P18: =AND('Tally Count Data'!T162,"AAAAAGV8rQ8=") ->  | Q18: =AND('Tally Count Data'!U162,"AAAAAGV8rRA=") ->  | R18: =AND('Tally Count Data'!V162,"AAAAAGV8rRE=") ->  | S18: =AND('Tally Count Data'!W162,"AAAAAGV8rRI=") ->  | T18: =AND('Tally Count Data'!X162,"AAAAAGV8rRM=") ->  | U18: =AND('Tally Count Data'!Y162,"AAAAAGV8rRQ=") ->  | V18: =AND('Tally Count Data'!Z162,"AAAAAGV8rRU=") ->  | W18: =IF('Tally Count Data'!163:163,"AAAAAGV8rRY=",0) -> 0 | X18: =AND('Tally Count Data'!A163,"AAAAAGV8rRc=") ->  | Y18: =AND('Tally Count Data'!B163,"AAAAAGV8rRg=") ->  | Z18: =AND('Tally Count Data'!C163,"AAAAAGV8rRk=") ->  | AA18: =AND('Tally Count Data'!D163,"AAAAAGV8rRo=") ->  | AB18: =AND('Tally Count Data'!E163,"AAAAAGV8rRs=") ->  | AC18: =AND('Tally Count Data'!F163,"AAAAAGV8rRw=") ->  | AD18: =AND('Tally Count Data'!G163,"AAAAAGV8rR0=") ->  | AE18: =AND('Tally Count Data'!H163,"AAAAAGV8rR4=") ->  | AF18: =AND('Tally Count Data'!I163,"AAAAAGV8rR8=") ->  | AG18: =AND('Tally Count Data'!J163,"AAAAAGV8rSA=") ->  | AH18: =AND('Tally Count Data'!K163,"AAAAAGV8rSE=") ->  | AI18: =AND('Tally Count Data'!L163,"AAAAAGV8rSI=") ->  | AJ18: =AND('Tally Count Data'!M163,"AAAAAGV8rSM=") ->  | AK18: =AND('Tally Count Data'!N163,"AAAAAGV8rSQ=") ->  | AL18: =AND('Tally Count Data'!O163,"AAAAAGV8rSU=") ->  | AM18: =AND('Tally Count Data'!P163,"AAAAAGV8rSY=") ->  | AN18: =AND('Tally Count Data'!Q163,"AAAAAGV8rSc=") ->  | AO18: =AND('Tally Count Data'!R163,"AAAAAGV8rSg=") ->  | AP18: =AND('Tally Count Data'!S163,"AAAAAGV8rSk=") ->  | AQ18: =AND('Tally Count Data'!T163,"AAAAAGV8rSo=") ->  | AR18: =AND('Tally Count Data'!U163,"AAAAAGV8rSs=") ->  | AS18: =AND('Tally Count Data'!V163,"AAAAAGV8rSw=") ->  | AT18: =AND('Tally Count Data'!W163,"AAAAAGV8rS0=") ->  | AU18: =AND('Tally Count Data'!X163,"AAAAAGV8rS4=") ->  | AV18: =AND('Tally Count Data'!Y163,"AAAAAGV8rS8=") ->  | AW18: =AND('Tally Count Data'!Z163,"AAAAAGV8rTA=") ->  | AX18: =IF('Tally Count Data'!164:164,"AAAAAGV8rTE=",0) -> 0 | AY18: =AND('Tally Count Data'!A164,"AAAAAGV8rTI=") ->  | AZ18: =AND('Tally Count Data'!B164,"AAAAAGV8rTM=") ->  | BA18: =AND('Tally Count Data'!C164,"AAAAAGV8rTQ=") ->  | BB18: =AND('Tally Count Data'!D164,"AAAAAGV8rTU=") ->  | BC18: =AND('Tally Count Data'!E164,"AAAAAGV8rTY=") ->  | BD18: =AND('Tally Count Data'!F164,"AAAAAGV8rTc=") ->  | BE18: =AND('Tally Count Data'!G164,"AAAAAGV8rTg=") ->  | BF18: =AND('Tally Count Data'!H164,"AAAAAGV8rTk=") ->  | BG18: =AND('Tally Count Data'!I164,"AAAAAGV8rTo=") ->  | BH18: =AND('Tally Count Data'!J164,"AAAAAGV8rTs=") ->  | BI18: =AND('Tally Count Data'!K164,"AAAAAGV8rTw=") ->  | BJ18: =AND('Tally Count Data'!L164,"AAAAAGV8rT0=") ->  | BK18: =AND('Tally Count Data'!M164,"AAAAAGV8rT4=") ->  | BL18: =AND('Tally Count Data'!N164,"AAAAAGV8rT8=") ->  | BM18: =AND('Tally Count Data'!O164,"AAAAAGV8rUA=") ->  | BN18: =AND('Tally Count Data'!P164,"AAAAAGV8rUE=") ->  | BO18: =AND('Tally Count Data'!Q164,"AAAAAGV8rUI=") ->  | BP18: =AND('Tally Count Data'!R164,"AAAAAGV8rUM=") ->  | BQ18: =AND('Tally Count Data'!S164,"AAAAAGV8rUQ=") ->  | BR18: =AND('Tally Count Data'!T164,"AAAAAGV8rUU=") ->  | BS18: =AND('Tally Count Data'!U164,"AAAAAGV8rUY=") ->  | BT18: =AND('Tally Count Data'!V164,"AAAAAGV8rUc=") ->  | BU18: =AND('Tally Count Data'!W164,"AAAAAGV8rUg=") ->  | BV18: =AND('Tally Count Data'!X164,"AAAAAGV8rUk=") ->  | BW18: =AND('Tally Count Data'!Y164,"AAAAAGV8rUo=") ->  | BX18: =AND('Tally Count Data'!Z164,"AAAAAGV8rUs=") ->  | BY18: =IF('Tally Count Data'!165:165,"AAAAAGV8rUw=",0) -> 0 | BZ18: =AND('Tally Count Data'!A165,"AAAAAGV8rU0=") ->  | CA18: =AND('Tally Count Data'!B165,"AAAAAGV8rU4=") ->  | CB18: =AND('Tally Count Data'!C165,"AAAAAGV8rU8=") ->  | CC18: =AND('Tally Count Data'!D165,"AAAAAGV8rVA=") ->  | CD18: =AND('Tally Count Data'!E165,"AAAAAGV8rVE=") ->  | CE18: =AND('Tally Count Data'!F165,"AAAAAGV8rVI=") ->  | CF18: =AND('Tally Count Data'!G165,"AAAAAGV8rVM=") ->  | CG18: =AND('Tally Count Data'!H165,"AAAAAGV8rVQ=") ->  | CH18: =AND('Tally Count Data'!I165,"AAAAAGV8rVU=") ->  | CI18: =AND('Tally Count Data'!J165,"AAAAAGV8rVY=") ->  | CJ18: =AND('Tally Count Data'!K165,"AAAAAGV8rVc=") ->  | CK18: =AND('Tally Count Data'!L165,"AAAAAGV8rVg=") ->  | CL18: =AND('Tally Count Data'!M165,"AAAAAGV8rVk=") ->  | CM18: =AND('Tally Count Data'!N165,"AAAAAGV8rVo=") ->  | CN18: =AND('Tally Count Data'!O165,"AAAAAGV8rVs=") ->  | CO18: =AND('Tally Count Data'!P165,"AAAAAGV8rVw=") ->  | CP18: =AND('Tally Count Data'!Q165,"AAAAAGV8rV0=") ->  | CQ18: =AND('Tally Count Data'!R165,"AAAAAGV8rV4=") ->  | CR18: =AND('Tally Count Data'!S165,"AAAAAGV8rV8=") ->  | CS18: =AND('Tally Count Data'!T165,"AAAAAGV8rWA=") ->  | CT18: =AND('Tally Count Data'!U165,"AAAAAGV8rWE=") ->  | CU18: =AND('Tally Count Data'!V165,"AAAAAGV8rWI=") ->  | CV18: =AND('Tally Count Data'!W165,"AAAAAGV8rWM=") ->  | CW18: =AND('Tally Count Data'!X165,"AAAAAGV8rWQ=") ->  | CX18: =AND('Tally Count Data'!Y165,"AAAAAGV8rWU=") ->  | CY18: =AND('Tally Count Data'!Z165,"AAAAAGV8rWY=") ->  | CZ18: =IF('Tally Count Data'!166:166,"AAAAAGV8rWc=",0) -> 0 | DA18: =AND('Tally Count Data'!A166,"AAAAAGV8rWg=") ->  | DB18: =AND('Tally Count Data'!B166,"AAAAAGV8rWk=") ->  | DC18: =AND('Tally Count Data'!C166,"AAAAAGV8rWo=") ->  | DD18: =AND('Tally Count Data'!D166,"AAAAAGV8rWs=") ->  | DE18: =AND('Tally Count Data'!E166,"AAAAAGV8rWw=") ->  | DF18: =AND('Tally Count Data'!F166,"AAAAAGV8rW0=") ->  | DG18: =AND('Tally Count Data'!G166,"AAAAAGV8rW4=") ->  | DH18: =AND('Tally Count Data'!H166,"AAAAAGV8rW8=") ->  | DI18: =AND('Tally Count Data'!I166,"AAAAAGV8rXA=") ->  | DJ18: =AND('Tally Count Data'!J166,"AAAAAGV8rXE=") ->  | DK18: =AND('Tally Count Data'!K166,"AAAAAGV8rXI=") ->  | DL18: =AND('Tally Count Data'!L166,"AAAAAGV8rXM=") ->  | DM18: =AND('Tally Count Data'!M166,"AAAAAGV8rXQ=") ->  | DN18: =AND('Tally Count Data'!N166,"AAAAAGV8rXU=") ->  | DO18: =AND('Tally Count Data'!O166,"AAAAAGV8rXY=") ->  | DP18: =AND('Tally Count Data'!P166,"AAAAAGV8rXc=") ->  | DQ18: =AND('Tally Count Data'!Q166,"AAAAAGV8rXg=") ->  | DR18: =AND('Tally Count Data'!R166,"AAAAAGV8rXk=") ->  | DS18: =AND('Tally Count Data'!S166,"AAAAAGV8rXo=") ->  | DT18: =AND('Tally Count Data'!T166,"AAAAAGV8rXs=") ->  | DU18: =AND('Tally Count Data'!U166,"AAAAAGV8rXw=") ->  | DV18: =AND('Tally Count Data'!V166,"AAAAAGV8rX0=") ->  | DW18: =AND('Tally Count Data'!W166,"AAAAAGV8rX4=") ->  | DX18: =AND('Tally Count Data'!X166,"AAAAAGV8rX8=") ->  | DY18: =AND('Tally Count Data'!Y166,"AAAAAGV8rYA=") ->  | DZ18: =AND('Tally Count Data'!Z166,"AAAAAGV8rYE=") ->  | EA18: =IF('Tally Count Data'!167:167,"AAAAAGV8rYI=",0) -> 0 | EB18: =AND('Tally Count Data'!A167,"AAAAAGV8rYM=") ->  | EC18: =AND('Tally Count Data'!B167,"AAAAAGV8rYQ=") ->  | ED18: =AND('Tally Count Data'!C167,"AAAAAGV8rYU=") ->  | EE18: =AND('Tally Count Data'!D167,"AAAAAGV8rYY=") ->  | EF18: =AND('Tally Count Data'!E167,"AAAAAGV8rYc=") ->  | EG18: =AND('Tally Count Data'!F167,"AAAAAGV8rYg=") ->  | EH18: =AND('Tally Count Data'!G167,"AAAAAGV8rYk=") ->  | EI18: =AND('Tally Count Data'!H167,"AAAAAGV8rYo=") ->  | EJ18: =AND('Tally Count Data'!I167,"AAAAAGV8rYs=") ->  | EK18: =AND('Tally Count Data'!J167,"AAAAAGV8rYw=") ->  | EL18: =AND('Tally Count Data'!K167,"AAAAAGV8rY0=") ->  | EM18: =AND('Tally Count Data'!L167,"AAAAAGV8rY4=") ->  | EN18: =AND('Tally Count Data'!M167,"AAAAAGV8rY8=") ->  | EO18: =AND('Tally Count Data'!N167,"AAAAAGV8rZA=") ->  | EP18: =AND('Tally Count Data'!O167,"AAAAAGV8rZE=") ->  | EQ18: =AND('Tally Count Data'!P167,"AAAAAGV8rZI=") ->  | ER18: =AND('Tally Count Data'!Q167,"AAAAAGV8rZM=") ->  | ES18: =AND('Tally Count Data'!R167,"AAAAAGV8rZQ=") ->  | ET18: =AND('Tally Count Data'!S167,"AAAAAGV8rZU=") ->  | EU18: =AND('Tally Count Data'!T167,"AAAAAGV8rZY=") ->  | EV18: =AND('Tally Count Data'!U167,"AAAAAGV8rZc=") ->  | EW18: =AND('Tally Count Data'!V167,"AAAAAGV8rZg=") ->  | EX18: =AND('Tally Count Data'!W167,"AAAAAGV8rZk=") ->  | EY18: =AND('Tally Count Data'!X167,"AAAAAGV8rZo=") ->  | EZ18: =AND('Tally Count Data'!Y167,"AAAAAGV8rZs=") ->  | FA18: =AND('Tally Count Data'!Z167,"AAAAAGV8rZw=") ->  | FB18: =IF('Tally Count Data'!168:168,"AAAAAGV8rZ0=",0) -> 0 | FC18: =AND('Tally Count Data'!A168,"AAAAAGV8rZ4=") ->  | FD18: =AND('Tally Count Data'!B168,"AAAAAGV8rZ8=") ->  | FE18: =AND('Tally Count Data'!C168,"AAAAAGV8raA=") ->  | FF18: =AND('Tally Count Data'!D168,"AAAAAGV8raE=") ->  | FG18: =AND('Tally Count Data'!E168,"AAAAAGV8raI=") ->  | FH18: =AND('Tally Count Data'!F168,"AAAAAGV8raM=") ->  | FI18: =AND('Tally Count Data'!G168,"AAAAAGV8raQ=") ->  | FJ18: =AND('Tally Count Data'!H168,"AAAAAGV8raU=") ->  | FK18: =AND('Tally Count Data'!I168,"AAAAAGV8raY=") ->  | FL18: =AND('Tally Count Data'!J168,"AAAAAGV8rac=") ->  | FM18: =AND('Tally Count Data'!K168,"AAAAAGV8rag=") ->  | FN18: =AND('Tally Count Data'!L168,"AAAAAGV8rak=") ->  | FO18: =AND('Tally Count Data'!M168,"AAAAAGV8rao=") ->  | FP18: =AND('Tally Count Data'!N168,"AAAAAGV8ras=") ->  | FQ18: =AND('Tally Count Data'!O168,"AAAAAGV8raw=") ->  | FR18: =AND('Tally Count Data'!P168,"AAAAAGV8ra0=") ->  | FS18: =AND('Tally Count Data'!Q168,"AAAAAGV8ra4=") ->  | FT18: =AND('Tally Count Data'!R168,"AAAAAGV8ra8=") ->  | FU18: =AND('Tally Count Data'!S168,"AAAAAGV8rbA=") ->  | FV18: =AND('Tally Count Data'!T168,"AAAAAGV8rbE=") ->  | FW18: =AND('Tally Count Data'!U168,"AAAAAGV8rbI=") ->  | FX18: =AND('Tally Count Data'!V168,"AAAAAGV8rbM=") ->  | FY18: =AND('Tally Count Data'!W168,"AAAAAGV8rbQ=") ->  | FZ18: =AND('Tally Count Data'!X168,"AAAAAGV8rbU=") ->  | GA18: =AND('Tally Count Data'!Y168,"AAAAAGV8rbY=") ->  | GB18: =AND('Tally Count Data'!Z168,"AAAAAGV8rbc=") ->  | GC18: =IF('Tally Count Data'!169:169,"AAAAAGV8rbg=",0) -> 0 | GD18: =AND('Tally Count Data'!A169,"AAAAAGV8rbk=") ->  | GE18: =AND('Tally Count Data'!B169,"AAAAAGV8rbo=") ->  | GF18: =AND('Tally Count Data'!C169,"AAAAAGV8rbs=") ->  | GG18: =AND('Tally Count Data'!D169,"AAAAAGV8rbw=") ->  | GH18: =AND('Tally Count Data'!E169,"AAAAAGV8rb0=") ->  | GI18: =AND('Tally Count Data'!F169,"AAAAAGV8rb4=") ->  | GJ18: =AND('Tally Count Data'!G169,"AAAAAGV8rb8=") ->  | GK18: =AND('Tally Count Data'!H169,"AAAAAGV8rcA=") ->  | GL18: =AND('Tally Count Data'!I169,"AAAAAGV8rcE=") ->  | GM18: =AND('Tally Count Data'!J169,"AAAAAGV8rcI=") ->  | GN18: =AND('Tally Count Data'!K169,"AAAAAGV8rcM=") ->  | GO18: =AND('Tally Count Data'!L169,"AAAAAGV8rcQ=") ->  | GP18: =AND('Tally Count Data'!M169,"AAAAAGV8rcU=") ->  | GQ18: =AND('Tally Count Data'!N169,"AAAAAGV8rcY=") ->  | GR18: =AND('Tally Count Data'!O169,"AAAAAGV8rcc=") ->  | GS18: =AND('Tally Count Data'!P169,"AAAAAGV8rcg=") ->  | GT18: =AND('Tally Count Data'!Q169,"AAAAAGV8rck=") ->  | GU18: =AND('Tally Count Data'!R169,"AAAAAGV8rco=") ->  | GV18: =AND('Tally Count Data'!S169,"AAAAAGV8rcs=") ->  | GW18: =AND('Tally Count Data'!T169,"AAAAAGV8rcw=") ->  | GX18: =AND('Tally Count Data'!U169,"AAAAAGV8rc0=") ->  | GY18: =AND('Tally Count Data'!V169,"AAAAAGV8rc4=") ->  | GZ18: =AND('Tally Count Data'!W169,"AAAAAGV8rc8=") ->  | HA18: =AND('Tally Count Data'!X169,"AAAAAGV8rdA=") ->  | HB18: =AND('Tally Count Data'!Y169,"AAAAAGV8rdE=") ->  | HC18: =AND('Tally Count Data'!Z169,"AAAAAGV8rdI=") ->  | HD18: =IF('Tally Count Data'!170:170,"AAAAAGV8rdM=",0) -> 0 | HE18: =AND('Tally Count Data'!A170,"AAAAAGV8rdQ=") ->  | HF18: =AND('Tally Count Data'!B170,"AAAAAGV8rdU=") ->  | HG18: =AND('Tally Count Data'!C170,"AAAAAGV8rdY=") ->  | HH18: =AND('Tally Count Data'!D170,"AAAAAGV8rdc=") ->  | HI18: =AND('Tally Count Data'!E170,"AAAAAGV8rdg=") ->  | HJ18: =AND('Tally Count Data'!F170,"AAAAAGV8rdk=") ->  | HK18: =AND('Tally Count Data'!G170,"AAAAAGV8rdo=") ->  | HL18: =AND('Tally Count Data'!H170,"AAAAAGV8rds=") ->  | HM18: =AND('Tally Count Data'!I170,"AAAAAGV8rdw=") ->  | HN18: =AND('Tally Count Data'!J170,"AAAAAGV8rd0=") ->  | HO18: =AND('Tally Count Data'!K170,"AAAAAGV8rd4=") ->  | HP18: =AND('Tally Count Data'!L170,"AAAAAGV8rd8=") ->  | HQ18: =AND('Tally Count Data'!M170,"AAAAAGV8reA=") ->  | HR18: =AND('Tally Count Data'!N170,"AAAAAGV8reE=") ->  | HS18: =AND('Tally Count Data'!O170,"AAAAAGV8reI=") ->  | HT18: =AND('Tally Count Data'!P170,"AAAAAGV8reM=") ->  | HU18: =AND('Tally Count Data'!Q170,"AAAAAGV8reQ=") ->  | HV18: =AND('Tally Count Data'!R170,"AAAAAGV8reU=") ->  | HW18: =AND('Tally Count Data'!S170,"AAAAAGV8reY=") ->  | HX18: =AND('Tally Count Data'!T170,"AAAAAGV8rec=") ->  | HY18: =AND('Tally Count Data'!U170,"AAAAAGV8reg=") ->  | HZ18: =AND('Tally Count Data'!V170,"AAAAAGV8rek=") ->  | IA18: =AND('Tally Count Data'!W170,"AAAAAGV8reo=") ->  | IB18: =AND('Tally Count Data'!X170,"AAAAAGV8res=") ->  | IC18: =AND('Tally Count Data'!Y170,"AAAAAGV8rew=") ->  | ID18: =AND('Tally Count Data'!Z170,"AAAAAGV8re0=") ->  | IE18: =IF('Tally Count Data'!171:171,"AAAAAGV8re4=",0) -> 0 | IF18: =AND('Tally Count Data'!A171,"AAAAAGV8re8=") ->  | IG18: =AND('Tally Count Data'!B171,"AAAAAGV8rfA=") ->  | IH18: =AND('Tally Count Data'!C171,"AAAAAGV8rfE=") ->  | II18: =AND('Tally Count Data'!D171,"AAAAAGV8rfI=") ->  | IJ18: =AND('Tally Count Data'!E171,"AAAAAGV8rfM=") ->  | IK18: =AND('Tally Count Data'!F171,"AAAAAGV8rfQ=") ->  | IL18: =AND('Tally Count Data'!G171,"AAAAAGV8rfU=") ->  | IM18: =AND('Tally Count Data'!H171,"AAAAAGV8rfY=") ->  | IN18: =AND('Tally Count Data'!I171,"AAAAAGV8rfc=") ->  | IO18: =AND('Tally Count Data'!J171,"AAAAAGV8rfg=") ->  | IP18: =AND('Tally Count Data'!K171,"AAAAAGV8rfk=") ->  | IQ18: =AND('Tally Count Data'!L171,"AAAAAGV8rfo=") ->  | IR18: =AND('Tally Count Data'!M171,"AAAAAGV8rfs=") ->  | IS18: =AND('Tally Count Data'!N171,"AAAAAGV8rfw=") ->  | IT18: =AND('Tally Count Data'!O171,"AAAAAGV8rf0=") ->  | IU18: =AND('Tally Count Data'!P171,"AAAAAGV8rf4=") ->  | IV18: =AND('Tally Count Data'!Q171,"AAAAAGV8rf8=") -> 
A19: =AND('Tally Count Data'!R171,"AAAAAHaP+wA=") ->  | B19: =AND('Tally Count Data'!S171,"AAAAAHaP+wE=") ->  | C19: =AND('Tally Count Data'!T171,"AAAAAHaP+wI=") ->  | D19: =AND('Tally Count Data'!U171,"AAAAAHaP+wM=") ->  | E19: =AND('Tally Count Data'!V171,"AAAAAHaP+wQ=") ->  | F19: =AND('Tally Count Data'!W171,"AAAAAHaP+wU=") ->  | G19: =AND('Tally Count Data'!X171,"AAAAAHaP+wY=") ->  | H19: =AND('Tally Count Data'!Y171,"AAAAAHaP+wc=") ->  | I19: =AND('Tally Count Data'!Z171,"AAAAAHaP+wg=") ->  | J19: =IF('Tally Count Data'!172:172,"AAAAAHaP+wk=",0) -> 0 | K19: =AND('Tally Count Data'!A172,"AAAAAHaP+wo=") ->  | L19: =AND('Tally Count Data'!B172,"AAAAAHaP+ws=") ->  | M19: =AND('Tally Count Data'!C172,"AAAAAHaP+ww=") ->  | N19: =AND('Tally Count Data'!D172,"AAAAAHaP+w0=") ->  | O19: =AND('Tally Count Data'!E172,"AAAAAHaP+w4=") ->  | P19: =AND('Tally Count Data'!F172,"AAAAAHaP+w8=") ->  | Q19: =AND('Tally Count Data'!G172,"AAAAAHaP+xA=") ->  | R19: =AND('Tally Count Data'!H172,"AAAAAHaP+xE=") ->  | S19: =AND('Tally Count Data'!I172,"AAAAAHaP+xI=") ->  | T19: =AND('Tally Count Data'!J172,"AAAAAHaP+xM=") ->  | U19: =AND('Tally Count Data'!K172,"AAAAAHaP+xQ=") ->  | V19: =AND('Tally Count Data'!L172,"AAAAAHaP+xU=") ->  | W19: =AND('Tally Count Data'!M172,"AAAAAHaP+xY=") ->  | X19: =AND('Tally Count Data'!N172,"AAAAAHaP+xc=") ->  | Y19: =AND('Tally Count Data'!O172,"AAAAAHaP+xg=") ->  | Z19: =AND('Tally Count Data'!P172,"AAAAAHaP+xk=") ->  | AA19: =AND('Tally Count Data'!Q172,"AAAAAHaP+xo=") ->  | AB19: =AND('Tally Count Data'!R172,"AAAAAHaP+xs=") ->  | AC19: =AND('Tally Count Data'!S172,"AAAAAHaP+xw=") ->  | AD19: =AND('Tally Count Data'!T172,"AAAAAHaP+x0=") ->  | AE19: =AND('Tally Count Data'!U172,"AAAAAHaP+x4=") ->  | AF19: =AND('Tally Count Data'!V172,"AAAAAHaP+x8=") ->  | AG19: =AND('Tally Count Data'!W172,"AAAAAHaP+yA=") ->  | AH19: =AND('Tally Count Data'!X172,"AAAAAHaP+yE=") ->  | AI19: =AND('Tally Count Data'!Y172,"AAAAAHaP+yI=") ->  | AJ19: =AND('Tally Count Data'!Z172,"AAAAAHaP+yM=") ->  | AK19: =IF('Tally Count Data'!173:173,"AAAAAHaP+yQ=",0) -> 0 | AL19: =AND('Tally Count Data'!A173,"AAAAAHaP+yU=") ->  | AM19: =AND('Tally Count Data'!B173,"AAAAAHaP+yY=") ->  | AN19: =AND('Tally Count Data'!C173,"AAAAAHaP+yc=") ->  | AO19: =AND('Tally Count Data'!D173,"AAAAAHaP+yg=") ->  | AP19: =AND('Tally Count Data'!E173,"AAAAAHaP+yk=") ->  | AQ19: =AND('Tally Count Data'!F173,"AAAAAHaP+yo=") ->  | AR19: =AND('Tally Count Data'!G173,"AAAAAHaP+ys=") ->  | AS19: =AND('Tally Count Data'!H173,"AAAAAHaP+yw=") ->  | AT19: =AND('Tally Count Data'!I173,"AAAAAHaP+y0=") ->  | AU19: =AND('Tally Count Data'!J173,"AAAAAHaP+y4=") ->  | AV19: =AND('Tally Count Data'!K173,"AAAAAHaP+y8=") ->  | AW19: =AND('Tally Count Data'!L173,"AAAAAHaP+zA=") ->  | AX19: =AND('Tally Count Data'!M173,"AAAAAHaP+zE=") ->  | AY19: =AND('Tally Count Data'!N173,"AAAAAHaP+zI=") ->  | AZ19: =AND('Tally Count Data'!O173,"AAAAAHaP+zM=") ->  | BA19: =AND('Tally Count Data'!P173,"AAAAAHaP+zQ=") ->  | BB19: =AND('Tally Count Data'!Q173,"AAAAAHaP+zU=") ->  | BC19: =AND('Tally Count Data'!R173,"AAAAAHaP+zY=") ->  | BD19: =AND('Tally Count Data'!S173,"AAAAAHaP+zc=") ->  | BE19: =AND('Tally Count Data'!T173,"AAAAAHaP+zg=") ->  | BF19: =AND('Tally Count Data'!U173,"AAAAAHaP+zk=") ->  | BG19: =AND('Tally Count Data'!V173,"AAAAAHaP+zo=") ->  | BH19: =AND('Tally Count Data'!W173,"AAAAAHaP+zs=") ->  | BI19: =AND('Tally Count Data'!X173,"AAAAAHaP+zw=") ->  | BJ19: =AND('Tally Count Data'!Y173,"AAAAAHaP+z0=") ->  | BK19: =AND('Tally Count Data'!Z173,"AAAAAHaP+z4=") ->  | BL19: =IF('Tally Count Data'!174:174,"AAAAAHaP+z8=",0) -> 0 | BM19: =AND('Tally Count Data'!A174,"AAAAAHaP+0A=") ->  | BN19: =AND('Tally Count Data'!B174,"AAAAAHaP+0E=") ->  | BO19: =AND('Tally Count Data'!C174,"AAAAAHaP+0I=") ->  | BP19: =AND('Tally Count Data'!D174,"AAAAAHaP+0M=") ->  | BQ19: =AND('Tally Count Data'!E174,"AAAAAHaP+0Q=") ->  | BR19: =AND('Tally Count Data'!F174,"AAAAAHaP+0U=") ->  | BS19: =AND('Tally Count Data'!G174,"AAAAAHaP+0Y=") ->  | BT19: =AND('Tally Count Data'!H174,"AAAAAHaP+0c=") ->  | BU19: =AND('Tally Count Data'!I174,"AAAAAHaP+0g=") ->  | BV19: =AND('Tally Count Data'!J174,"AAAAAHaP+0k=") ->  | BW19: =AND('Tally Count Data'!K174,"AAAAAHaP+0o=") ->  | BX19: =AND('Tally Count Data'!L174,"AAAAAHaP+0s=") ->  | BY19: =AND('Tally Count Data'!M174,"AAAAAHaP+0w=") ->  | BZ19: =AND('Tally Count Data'!N174,"AAAAAHaP+00=") ->  | CA19: =AND('Tally Count Data'!O174,"AAAAAHaP+04=") ->  | CB19: =AND('Tally Count Data'!P174,"AAAAAHaP+08=") ->  | CC19: =AND('Tally Count Data'!Q174,"AAAAAHaP+1A=") ->  | CD19: =AND('Tally Count Data'!R174,"AAAAAHaP+1E=") ->  | CE19: =AND('Tally Count Data'!S174,"AAAAAHaP+1I=") ->  | CF19: =AND('Tally Count Data'!T174,"AAAAAHaP+1M=") ->  | CG19: =AND('Tally Count Data'!U174,"AAAAAHaP+1Q=") ->  | CH19: =AND('Tally Count Data'!V174,"AAAAAHaP+1U=") ->  | CI19: =AND('Tally Count Data'!W174,"AAAAAHaP+1Y=") ->  | CJ19: =AND('Tally Count Data'!X174,"AAAAAHaP+1c=") ->  | CK19: =AND('Tally Count Data'!Y174,"AAAAAHaP+1g=") ->  | CL19: =AND('Tally Count Data'!Z174,"AAAAAHaP+1k=") ->  | CM19: =IF('Tally Count Data'!175:175,"AAAAAHaP+1o=",0) -> 0 | CN19: =AND('Tally Count Data'!A175,"AAAAAHaP+1s=") ->  | CO19: =AND('Tally Count Data'!B175,"AAAAAHaP+1w=") ->  | CP19: =AND('Tally Count Data'!C175,"AAAAAHaP+10=") ->  | CQ19: =AND('Tally Count Data'!D175,"AAAAAHaP+14=") ->  | CR19: =AND('Tally Count Data'!E175,"AAAAAHaP+18=") ->  | CS19: =AND('Tally Count Data'!F175,"AAAAAHaP+2A=") ->  | CT19: =AND('Tally Count Data'!G175,"AAAAAHaP+2E=") ->  | CU19: =AND('Tally Count Data'!H175,"AAAAAHaP+2I=") ->  | CV19: =AND('Tally Count Data'!I175,"AAAAAHaP+2M=") ->  | CW19: =AND('Tally Count Data'!J175,"AAAAAHaP+2Q=") ->  | CX19: =AND('Tally Count Data'!K175,"AAAAAHaP+2U=") ->  | CY19: =AND('Tally Count Data'!L175,"AAAAAHaP+2Y=") ->  | CZ19: =AND('Tally Count Data'!M175,"AAAAAHaP+2c=") ->  | DA19: =AND('Tally Count Data'!N175,"AAAAAHaP+2g=") ->  | DB19: =AND('Tally Count Data'!O175,"AAAAAHaP+2k=") ->  | DC19: =AND('Tally Count Data'!P175,"AAAAAHaP+2o=") ->  | DD19: =AND('Tally Count Data'!Q175,"AAAAAHaP+2s=") ->  | DE19: =AND('Tally Count Data'!R175,"AAAAAHaP+2w=") ->  | DF19: =AND('Tally Count Data'!S175,"AAAAAHaP+20=") ->  | DG19: =AND('Tally Count Data'!T175,"AAAAAHaP+24=") ->  | DH19: =AND('Tally Count Data'!U175,"AAAAAHaP+28=") ->  | DI19: =AND('Tally Count Data'!V175,"AAAAAHaP+3A=") ->  | DJ19: =AND('Tally Count Data'!W175,"AAAAAHaP+3E=") ->  | DK19: =AND('Tally Count Data'!X175,"AAAAAHaP+3I=") ->  | DL19: =AND('Tally Count Data'!Y175,"AAAAAHaP+3M=") ->  | DM19: =AND('Tally Count Data'!Z175,"AAAAAHaP+3Q=") ->  | DN19: =IF('Tally Count Data'!176:176,"AAAAAHaP+3U=",0) -> 0 | DO19: =AND('Tally Count Data'!A176,"AAAAAHaP+3Y=") ->  | DP19: =AND('Tally Count Data'!B176,"AAAAAHaP+3c=") ->  | DQ19: =AND('Tally Count Data'!C176,"AAAAAHaP+3g=") ->  | DR19: =AND('Tally Count Data'!D176,"AAAAAHaP+3k=") ->  | DS19: =AND('Tally Count Data'!E176,"AAAAAHaP+3o=") ->  | DT19: =AND('Tally Count Data'!F176,"AAAAAHaP+3s=") ->  | DU19: =AND('Tally Count Data'!G176,"AAAAAHaP+3w=") ->  | DV19: =AND('Tally Count Data'!H176,"AAAAAHaP+30=") ->  | DW19: =AND('Tally Count Data'!I176,"AAAAAHaP+34=") ->  | DX19: =AND('Tally Count Data'!J176,"AAAAAHaP+38=") ->  | DY19: =AND('Tally Count Data'!K176,"AAAAAHaP+4A=") ->  | DZ19: =AND('Tally Count Data'!L176,"AAAAAHaP+4E=") ->  | EA19: =AND('Tally Count Data'!M176,"AAAAAHaP+4I=") ->  | EB19: =AND('Tally Count Data'!N176,"AAAAAHaP+4M=") ->  | EC19: =AND('Tally Count Data'!O176,"AAAAAHaP+4Q=") ->  | ED19: =AND('Tally Count Data'!P176,"AAAAAHaP+4U=") ->  | EE19: =AND('Tally Count Data'!Q176,"AAAAAHaP+4Y=") ->  | EF19: =AND('Tally Count Data'!R176,"AAAAAHaP+4c=") ->  | EG19: =AND('Tally Count Data'!S176,"AAAAAHaP+4g=") ->  | EH19: =AND('Tally Count Data'!T176,"AAAAAHaP+4k=") ->  | EI19: =AND('Tally Count Data'!U176,"AAAAAHaP+4o=") ->  | EJ19: =AND('Tally Count Data'!V176,"AAAAAHaP+4s=") ->  | EK19: =AND('Tally Count Data'!W176,"AAAAAHaP+4w=") ->  | EL19: =AND('Tally Count Data'!X176,"AAAAAHaP+40=") ->  | EM19: =AND('Tally Count Data'!Y176,"AAAAAHaP+44=") ->  | EN19: =AND('Tally Count Data'!Z176,"AAAAAHaP+48=") ->  | EO19: =IF('Tally Count Data'!177:177,"AAAAAHaP+5A=",0) -> 0 | EP19: =AND('Tally Count Data'!A177,"AAAAAHaP+5E=") ->  | EQ19: =AND('Tally Count Data'!B177,"AAAAAHaP+5I=") ->  | ER19: =AND('Tally Count Data'!C177,"AAAAAHaP+5M=") ->  | ES19: =AND('Tally Count Data'!D177,"AAAAAHaP+5Q=") ->  | ET19: =AND('Tally Count Data'!E177,"AAAAAHaP+5U=") ->  | EU19: =AND('Tally Count Data'!F177,"AAAAAHaP+5Y=") ->  | EV19: =AND('Tally Count Data'!G177,"AAAAAHaP+5c=") ->  | EW19: =AND('Tally Count Data'!H177,"AAAAAHaP+5g=") ->  | EX19: =AND('Tally Count Data'!I177,"AAAAAHaP+5k=") ->  | EY19: =AND('Tally Count Data'!J177,"AAAAAHaP+5o=") ->  | EZ19: =AND('Tally Count Data'!K177,"AAAAAHaP+5s=") ->  | FA19: =AND('Tally Count Data'!L177,"AAAAAHaP+5w=") ->  | FB19: =AND('Tally Count Data'!M177,"AAAAAHaP+50=") ->  | FC19: =AND('Tally Count Data'!N177,"AAAAAHaP+54=") ->  | FD19: =AND('Tally Count Data'!O177,"AAAAAHaP+58=") ->  | FE19: =AND('Tally Count Data'!P177,"AAAAAHaP+6A=") ->  | FF19: =AND('Tally Count Data'!Q177,"AAAAAHaP+6E=") ->  | FG19: =AND('Tally Count Data'!R177,"AAAAAHaP+6I=") ->  | FH19: =AND('Tally Count Data'!S177,"AAAAAHaP+6M=") ->  | FI19: =AND('Tally Count Data'!T177,"AAAAAHaP+6Q=") ->  | FJ19: =AND('Tally Count Data'!U177,"AAAAAHaP+6U=") ->  | FK19: =AND('Tally Count Data'!V177,"AAAAAHaP+6Y=") ->  | FL19: =AND('Tally Count Data'!W177,"AAAAAHaP+6c=") ->  | FM19: =AND('Tally Count Data'!X177,"AAAAAHaP+6g=") ->  | FN19: =AND('Tally Count Data'!Y177,"AAAAAHaP+6k=") ->  | FO19: =AND('Tally Count Data'!Z177,"AAAAAHaP+6o=") ->  | FP19: =IF('Tally Count Data'!178:178,"AAAAAHaP+6s=",0) -> 0 | FQ19: =AND('Tally Count Data'!A178,"AAAAAHaP+6w=") ->  | FR19: =AND('Tally Count Data'!B178,"AAAAAHaP+60=") ->  | FS19: =AND('Tally Count Data'!C178,"AAAAAHaP+64=") ->  | FT19: =AND('Tally Count Data'!D178,"AAAAAHaP+68=") ->  | FU19: =AND('Tally Count Data'!E178,"AAAAAHaP+7A=") ->  | FV19: =AND('Tally Count Data'!F178,"AAAAAHaP+7E=") ->  | FW19: =AND('Tally Count Data'!G178,"AAAAAHaP+7I=") ->  | FX19: =AND('Tally Count Data'!H178,"AAAAAHaP+7M=") ->  | FY19: =AND('Tally Count Data'!I178,"AAAAAHaP+7Q=") ->  | FZ19: =AND('Tally Count Data'!J178,"AAAAAHaP+7U=") ->  | GA19: =AND('Tally Count Data'!K178,"AAAAAHaP+7Y=") ->  | GB19: =AND('Tally Count Data'!L178,"AAAAAHaP+7c=") ->  | GC19: =AND('Tally Count Data'!M178,"AAAAAHaP+7g=") ->  | GD19: =AND('Tally Count Data'!N178,"AAAAAHaP+7k=") ->  | GE19: =AND('Tally Count Data'!O178,"AAAAAHaP+7o=") ->  | GF19: =AND('Tally Count Data'!P178,"AAAAAHaP+7s=") ->  | GG19: =AND('Tally Count Data'!Q178,"AAAAAHaP+7w=") ->  | GH19: =AND('Tally Count Data'!R178,"AAAAAHaP+70=") ->  | GI19: =AND('Tally Count Data'!S178,"AAAAAHaP+74=") ->  | GJ19: =AND('Tally Count Data'!T178,"AAAAAHaP+78=") ->  | GK19: =AND('Tally Count Data'!U178,"AAAAAHaP+8A=") ->  | GL19: =AND('Tally Count Data'!V178,"AAAAAHaP+8E=") ->  | GM19: =AND('Tally Count Data'!W178,"AAAAAHaP+8I=") ->  | GN19: =AND('Tally Count Data'!X178,"AAAAAHaP+8M=") ->  | GO19: =AND('Tally Count Data'!Y178,"AAAAAHaP+8Q=") ->  | GP19: =AND('Tally Count Data'!Z178,"AAAAAHaP+8U=") ->  | GQ19: =IF('Tally Count Data'!179:179,"AAAAAHaP+8Y=",0) -> 0 | GR19: =AND('Tally Count Data'!A179,"AAAAAHaP+8c=") ->  | GS19: =AND('Tally Count Data'!B179,"AAAAAHaP+8g=") ->  | GT19: =AND('Tally Count Data'!C179,"AAAAAHaP+8k=") ->  | GU19: =AND('Tally Count Data'!D179,"AAAAAHaP+8o=") ->  | GV19: =AND('Tally Count Data'!E179,"AAAAAHaP+8s=") ->  | GW19: =AND('Tally Count Data'!F179,"AAAAAHaP+8w=") ->  | GX19: =AND('Tally Count Data'!G179,"AAAAAHaP+80=") ->  | GY19: =AND('Tally Count Data'!H179,"AAAAAHaP+84=") ->  | GZ19: =AND('Tally Count Data'!I179,"AAAAAHaP+88=") ->  | HA19: =AND('Tally Count Data'!J179,"AAAAAHaP+9A=") ->  | HB19: =AND('Tally Count Data'!K179,"AAAAAHaP+9E=") ->  | HC19: =AND('Tally Count Data'!L179,"AAAAAHaP+9I=") ->  | HD19: =AND('Tally Count Data'!M179,"AAAAAHaP+9M=") ->  | HE19: =AND('Tally Count Data'!N179,"AAAAAHaP+9Q=") ->  | HF19: =AND('Tally Count Data'!O179,"AAAAAHaP+9U=") ->  | HG19: =AND('Tally Count Data'!P179,"AAAAAHaP+9Y=") ->  | HH19: =AND('Tally Count Data'!Q179,"AAAAAHaP+9c=") ->  | HI19: =AND('Tally Count Data'!R179,"AAAAAHaP+9g=") ->  | HJ19: =AND('Tally Count Data'!S179,"AAAAAHaP+9k=") ->  | HK19: =AND('Tally Count Data'!T179,"AAAAAHaP+9o=") ->  | HL19: =AND('Tally Count Data'!U179,"AAAAAHaP+9s=") ->  | HM19: =AND('Tally Count Data'!V179,"AAAAAHaP+9w=") ->  | HN19: =AND('Tally Count Data'!W179,"AAAAAHaP+90=") ->  | HO19: =AND('Tally Count Data'!X179,"AAAAAHaP+94=") ->  | HP19: =AND('Tally Count Data'!Y179,"AAAAAHaP+98=") ->  | HQ19: =AND('Tally Count Data'!Z179,"AAAAAHaP++A=") ->  | HR19: =IF('Tally Count Data'!180:180,"AAAAAHaP++E=",0) -> 0 | HS19: =AND('Tally Count Data'!A180,"AAAAAHaP++I=") ->  | HT19: =AND('Tally Count Data'!B180,"AAAAAHaP++M=") ->  | HU19: =AND('Tally Count Data'!C180,"AAAAAHaP++Q=") ->  | HV19: =AND('Tally Count Data'!D180,"AAAAAHaP++U=") ->  | HW19: =AND('Tally Count Data'!E180,"AAAAAHaP++Y=") ->  | HX19: =AND('Tally Count Data'!F180,"AAAAAHaP++c=") ->  | HY19: =AND('Tally Count Data'!G180,"AAAAAHaP++g=") ->  | HZ19: =AND('Tally Count Data'!H180,"AAAAAHaP++k=") ->  | IA19: =AND('Tally Count Data'!I180,"AAAAAHaP++o=") ->  | IB19: =AND('Tally Count Data'!J180,"AAAAAHaP++s=") ->  | IC19: =AND('Tally Count Data'!K180,"AAAAAHaP++w=") ->  | ID19: =AND('Tally Count Data'!L180,"AAAAAHaP++0=") ->  | IE19: =AND('Tally Count Data'!M180,"AAAAAHaP++4=") ->  | IF19: =AND('Tally Count Data'!N180,"AAAAAHaP++8=") ->  | IG19: =AND('Tally Count Data'!O180,"AAAAAHaP+/A=") ->  | IH19: =AND('Tally Count Data'!P180,"AAAAAHaP+/E=") ->  | II19: =AND('Tally Count Data'!Q180,"AAAAAHaP+/I=") ->  | IJ19: =AND('Tally Count Data'!R180,"AAAAAHaP+/M=") ->  | IK19: =AND('Tally Count Data'!S180,"AAAAAHaP+/Q=") ->  | IL19: =AND('Tally Count Data'!T180,"AAAAAHaP+/U=") ->  | IM19: =AND('Tally Count Data'!U180,"AAAAAHaP+/Y=") ->  | IN19: =AND('Tally Count Data'!V180,"AAAAAHaP+/c=") ->  | IO19: =AND('Tally Count Data'!W180,"AAAAAHaP+/g=") ->  | IP19: =AND('Tally Count Data'!X180,"AAAAAHaP+/k=") ->  | IQ19: =AND('Tally Count Data'!Y180,"AAAAAHaP+/o=") ->  | IR19: =AND('Tally Count Data'!Z180,"AAAAAHaP+/s=") ->  | IS19: =IF('Tally Count Data'!181:181,"AAAAAHaP+/w=",0) -> 0 | IT19: =AND('Tally Count Data'!A181,"AAAAAHaP+/0=") ->  | IU19: =AND('Tally Count Data'!B181,"AAAAAHaP+/4=") ->  | IV19: =AND('Tally Count Data'!C181,"AAAAAHaP+/8=") -> 
